{"text_format":"1","workbook":"xlsx","n_sheets":8,"sheets":["1. Base de référence","Feuil1","Data2","EntenteType","2. Plan d'implantation","4. Résultats plan implantation","Data","Code SCIAN"],"not_rendered":{"charts":0,"images":2,"macros":1,"external_links":0,"defined_names":119,"comments":2,"pivot_tables":0},"unopened":[],"bounds":{"document_bytes":16777216,"sheet_cells":100000,"rows_first":2000,"rows_last":500,"rows_between":2000,"halvings":0,"cell_chars":16384,"cell_head_chars":4096},"cells_cut":0,"cells_raw":0,"read":"whole","date_system":"1900"}

{"sheet":"1. Base de référence","index":0,"n_rows":60,"n_cols":14,"rows_kept":60,"cut":false,"hidden":false,"merged":[]}
[]
[null,null,null,null,null,null,null,null,null,null,null,null,null,"items du menu déroulant, ne pas effacer"]
[]
[]
[]
[]
[]
[null,null,"Projet d'économie d'énergie garantie (EEG)",null,null,null,null,null,null,null,null,null,null,"important"]
[null,null,"Base de référence",null,null,null,null,null,null,null,null,null,null,"modéré"]
[null,null,null,null,null,null,null,null,null,null,null,null,null,"faible"]
[null,null,"Grille d'évaluation du travail à réaliser pour constituer une base de référence","La grille ci-dessous est à utiliser à deux moments dinstincts de l'avancement du dossier :"]
[null,null,null,null,null,null,null,null,null,null,null,null,null,"présent"]
[null,null,null,"1) Dépôt de la demande",null,null,null,null,null,null,null,null,null,"absent"]
[null,null,null,"But : Évaluer l'ampleur du travail que le consultant externe devra réaliser pour constituer la base de référence."]
[null,null,null,"Comment? Qualifier l'effort nécessaire à l'obtention des renseignements :"]
[null,null,null,"(choisir dans le menu, la qualification appropriée)"]
[]
[]
[null,null,null,"2) Dépôt au MELCCFP de la base de référence achevée (livrable)"]
[null,null,null,"But : Permettre au MELCCFP d'identifer la présence des renseignements de la liste."]
[null,null,null,"Comment? Indiquer à l'aide du menu la présence ou non, dans la documentation transmise au MELCCFP, du renseignement listé."]
[]
[]
[null,null,"Liste des renseignements à recueillir pour constituer la base de référence :"]
[null,null,null,"Site 1","Site 2","Site 3","Site 4","Site 5","Ajouter des sites au besoin",null,null,"Notes"]
[null,null,"Indiquer le nom du site :"]
[null,1,"Estimation préliminaire du potentiel de réduction de la consommation d’énergie et des émissions de GES."]
[null,2,"Tarifs mensuels à appliquer pour chaque forme d’énergie lors d'un éventuel contrat avec une ESE embauchée pour réaliser le projet d'économie d'énergie garantie. Ces tarifs sont désignés comme des tarifs contractuels."]
[null,3,"Liste des compteurs pour chaque forme d’énergie, chacun accompagné des quantités et des coûts de consommation mensuelle d’énergie (normalisée selon le mois calendraire) qui y sont associés; les coûts sont établis en fonction des tarifs contractuels et ils serviront de référence pour calculer les économies de coûts d'énergie projetées par l'ESE."]
[null,4,"Description de l’état de vétusté des systèmes de chauffage, de ventilation et de conditionnement d'air (CVCA) (résumé de quelques lignes)."]
[null,5,"Description de l’équilibrage du débit d’air des principaux systèmes de ventilation."]
[null,6,"Détails concernant le système de contrôle (description, schémas, séquences d’opération, captures d’écran, etc.)."]
[null,7,"Liste des membres de l'équipe d'exploitation (tâches, expériences et localisation) à qui l'ESE offrira de la formation."]
[null,8,"Mesures d’efficacité énergétique exigées ou travaux de maintien d’actifs obligatoires à inclure dans le projet d’efficacité énergétique; identifier la contribution financière de l'institution qui en découle, s'il y a lieu."]
[null,9,"Mesures à proscrire du projet d’efficacité énergétique."]
[null,10,"Consignes minimales à respecter par l'ESE, pour limiter la perturbation des activités de l'institution durant l'implantation des mesures d'efficacité énergétique."]
[null,11,"Consignes minimales à respecter par l'ESE, pour connaître la planification, la progression et l’achèvement des travaux, de manière à pouvoir fournir les approbations requises et à effectuer les suivis adéquats avec le personnel et les occupants."]
[null,12,"Factures mensuelles de consommation d’énergie des fournisseurs d’énergie des précédentes années (années représentatives)"]
[null,13,"Description des modes de chauffage et de climatisation pour les quatre saisons de l’année;"]
[null,14,"Liste des systèmes de chauffage, de ventilation et de conditionnement d’air (CVCA) et leurs caractéristiques, telles que :"]
[null,null,"·  Fonction (description sommaire);"]
[null,null,"·  Capacité de chauffage;"]
[null,null,"·  Capacité de refroidissement;"]
[null,null,"·  Capacité d'humidification;"]
[null,null,"·  Puissance de la force motrice;"]
[null,null,"·  Débit d’air total, au démarrage du système;"]
[null,null,"·  Débit d’air frais, au démarrage du système;"]
[null,null,"·  Horaires de fonctionnement;"]
[null,null,"·  Zones desservies;"]
[null,null,"·  Unités terminales."]
[null,15,"Systèmes d’éclairage et leurs caractéristiques."]
[null,16,"Critères de sélection des équipements CVCA (exigences techniques), notamment les critères de durabilité et d'entretien, que devra respecter l'ESE dans le choix des équipements utilisés dans son projet."]
[null,17,"Renseignements complémentaires (déjà produits) à fournir en annexe lorsque disponibles en format PDF (les documents au format papier pourront être consultés sur place) :"]
[null,null,"   ·  Liste des plans et les plans eux-mêmes;"]
[null,null,"   ·  Liste des manuels d’opération et les manuels d’opération eux-mêmes;"]
[null,null,"   ·  Rapport de vétusté;"]
[null,null,"   ·  Rapport d’équilibrage d’air des principaux systèmes de ventilation;"]
[null,null,"   ·  Rapport de mesurage des débits d'eau;"]
[null,null,"   ·  Rapport de présence d’amiante ou d'autres matières dangeureuses, si pertinent;"]
[null,null,"   ·  Tout autre rapport pertinent."]

{"sheet":"Feuil1","index":1,"n_rows":0,"n_cols":0,"rows_kept":0,"cut":false,"hidden":true,"merged":[]}

{"sheet":"Data2","index":2,"n_rows":254,"n_cols":181,"rows_kept":254,"cut":false,"hidden":true,"merged":[[61,1,61,2],[61,3,61,4]]}
["Version","Inno","Analyse","Implantation","Conversion","Gestion","Connaissance","OPTER","InnoC","AnalyseC","ImplantationC","ConversionC","GestionC","ConnaissanceC","OPTERC","Anal_Etu","Anal_IP","Anal_IP_Prelim","Anal_Approv","Conv_Bio","Conv_Sol","Conv_ER","Conv_Conv","Gestion_Agri","Gestion_Ind","DEV_Conduite","DEV_Agri","DEV_Ind","OPTER_Arena","OPTER_Super","OPTER_Agro","Code_Req","ORGreq","ORGAdr","ORGVil","ORGCP","ORGStatLeg","ORGNEQ","ORGNbreEmplois","ORGRDrec","Code_Sign","SignAppel","SignNom","SignPrenom","SignSuffixe","SignFonc","SignEMail","SignEnt","SignAdr","SignVil","SignCP","SignNEQ","SignPhone","SignPoste","SignCell","Signcc","Signcorprinc","Code_Repadm","RepAdmAppel","RepAdmNom","RepAdmPrenom","RepAdmSuffixe","RepAdmFonc","RepAdmEMail","RepAdmEnt","RepAdmAdr","RepAdmVil","RepAdmCP","RepAdmNEQ","RepAdmPhone","RepAdmPoste","RepAdmCell","RepAdmcc","RepAdmcorprinc","Code_RepTech","RepTechAppel","RepTechNom","RepTechPrenom","RepTechSuffixe","RepTechFonc","RepTechEMail","RepTechEnt","RepTechAdr","RepTechVil","RepTechCP","RepTechNEQ","RepTechPhone","RepTechPoste","RepTechCell","RepTechOrdre","RepTechNoMbre","RepTechcc","RepTechcorprinc","Code_Consultant","ConsultAppel","ConsultNom","ConsultPrenom","ConsultSuffixe","ConsultFonc","ConsultEMail","ConsultEnt","ConsultAdr","ConsultVil","ConsultCP","ConsultNEQ","ConsultPhone","ConsultPoste","ConsultCell","ConsultOrdre","ConsultNoMbre","Consultcc","Consultcorprinc","SitePrinc","SiteAdr","SiteVil","SiteCP","SiteNEQ","SiteSCIAN","SiteTypeENT","Secteur","No_Projet_Sagir_Abrev","Volet","Section","Composante","SiteGJNel","SIte36TJ","Site36TJCode","NouveauExistant","DJChauffe","Superficie","UnitSuperficie","Production","UnitProd","ConsDateDeb","ConsDateFin","TitreProj","DateDebProj","DateFinProj","DateMER","ProjStratTrans","Engagement","Residentiel","Commercial","Institutionnel","Municipal","Transport","Industriel","Agricole","Autre","DomaineAutre","ProdER","Bioénergie","Eolienne","Geothermie","Hydrolienne","Hydrogene","Maremotrice","Solaire","AutreER","ERAutre","EEInno","Electricite","MazoutLeger","MazoutLourd","GazNaturel","Propane","Essence","Diesel","AutreEE","EEAutre","Montantdem","DateDemande","Cinterne_Prevu","Cexterne_Prevu","Ctotaux_Prevu","Cinterne_Reel","Cexterne_reel","Ctotaux_Reel","NbreMes","Recom","RecomC"]
["FO_BaseRef_V2.3",{"$f":"IF(A56=TRUE,\"1\",\"\")","v":""},{"$f":"IF(B56=TRUE,\"2\",\"\")","v":""},{"$f":"IF(C56=TRUE,\"3\",\"\")","v":"3"},{"$f":"IF(D56=TRUE,\"4\",\"\")","v":""},{"$f":"IF(E56=TRUE,\"5\",\"\")","v":""},{"$f":"IF(F56=TRUE,\"6\",\"\")","v":""},{"$f":"IF(G56=TRUE,\"7\",\"\")","v":""},{"$f":"A56","v":false},{"$f":"B56","v":false},true,false,false,false,false,{"$f":"B57","v":false},{"$f":"B58","v":false},{"$f":"B60","v":false},{"$f":"B59","v":false},{"$f":"D57","v":false},{"$f":"D60","v":false},{"$f":"D58","v":false},{"$f":"D59","v":false},{"$f":"E57","v":false},{"$f":"E58","v":false},{"$f":"F57","v":false},{"$f":"F58","v":false},{"$f":"F59","v":false},{"$f":"G57","v":false},{"$f":"G58","v":false},{"$f":"G59","v":false},10,{"$f":"IF(#REF!=\"\",\"\",#REF!)","v":{"$error":"#REF!"}},{"$f":"IF(#REF!=\"\",\"\",#REF!)","v":{"$error":"#REF!"}},{"$f":"IF(#REF!=\"\",\"\",#REF!)","v":{"$error":"#REF!"}},{"$f":"IF(#REF!=\"\",\"\",#REF!)","v":{"$error":"#REF!"}},{"$f":"IF(#REF!=\"\",\"\",#REF!)","v":{"$error":"#REF!"}},{"$f":"IF(#REF!=\"\",\"\",#REF!)","v":{"$error":"#REF!"}},{"$f":"IF(#REF!=\"\",\"\",#REF!)","v":{"$error":"#REF!"}},false,1,{"$f":"INDEX(OFFSET(Appel,,-1,,),MATCH(#REF!,Appel,0))","v":{"$error":"#REF!"}},{"$f":"IF(#REF!=\"\",\"\",#REF!)","v":{"$error":"#REF!"}},{"$f":"IF(#REF!=\"\",\"\",#REF!)","v":{"$error":"#REF!"}},{"$f":"IF(#REF!=\"\",\"\",#REF!)","v":{"$error":"#REF!"}},{"$f":"IF(#REF!=\"\",\"\",#REF!)","v":{"$error":"#REF!"}},{"$f":"IF(#REF!=\"\",\"\",#REF!)","v":{"$error":"#REF!"}},{"$f":"IF(#REF!=\"\",\"\",#REF!)","v":{"$error":"#REF!"}},{"$f":"IF(#REF!=\"\",\"\",#REF!)","v":{"$error":"#REF!"}},{"$f":"IF(#REF!=\"\",\"\",#REF!)","v":{"$error":"#REF!"}},{"$f":"IF(#REF!=\"\",\"\",#REF!)","v":{"$error":"#REF!"}},{"$f":"IF(#REF!=\"\",\"\",#REF!)","v":{"$error":"#REF!"}},{"$f":"IF(#REF!=\"\",\"\",#REF!)","v":{"$error":"#REF!"}},{"$f":"IF(#REF!=\"\",\"\",#REF!)","v":{"$error":"#REF!"}},{"$f":"IF(#REF!=\"\",\"\",#REF!)","v":{"$error":"#REF!"}},false,false,2,{"$f":"INDEX(OFFSET(Appel,,-1,,),MATCH(#REF!,Appel,0))","v":{"$error":"#REF!"}},{"$f":"IF(#REF!=\"\",\"\",#REF!)","v":{"$error":"#REF!"}},{"$f":"IF(#REF!=\"\",\"\",#REF!)","v":{"$error":"#REF!"}},{"$f":"IF(#REF!=\"\",\"\",#REF!)","v":{"$error":"#REF!"}},{"$f":"IF(#REF!=\"\",\"\",#REF!)","v":{"$error":"#REF!"}},{"$f":"IF(#REF!=\"\",\"\",#REF!)","v":{"$error":"#REF!"}},{"$f":"IF(#REF!=\"\",\"\",#REF!)","v":{"$error":"#REF!"}},{"$f":"IF(#REF!=\"\",\"\",#REF!)","v":{"$error":"#REF!"}},{"$f":"IF(#REF!=\"\",\"\",#REF!)","v":{"$error":"#REF!"}},{"$f":"IF(#REF!=\"\",\"\",#REF!)","v":{"$error":"#REF!"}},{"$f":"IF(#REF!=\"\",\"\",#REF!)","v":{"$error":"#REF!"}},{"$f":"IF(#REF!=\"\",\"\",#REF!)","v":{"$error":"#REF!"}},{"$f":"IF(#REF!=\"\",\"\",#REF!)","v":{"$error":"#REF!"}},{"$f":"IF(#REF!=\"\",\"\",#REF!)","v":{"$error":"#REF!"}},false,true,3,{"$f":"INDEX(OFFSET(Appel,,-1,,),MATCH(#REF!,Appel,0))","v":{"$error":"#REF!"}},{"$f":"IF(#REF!=\"\",\"\",#REF!)","v":{"$error":"#REF!"}},{"$f":"IF(#REF!=\"\",\"\",#REF!)","v":{"$error":"#REF!"}},{"$f":"IF(#REF!=\"\",\"\",#REF!)","v":{"$error":"#REF!"}},{"$f":"IF(#REF!=\"\",\"\",#REF!)","v":{"$error":"#REF!"}},{"$f":"IF(#REF!=\"\",\"\",#REF!)","v":{"$error":"#REF!"}},{"$f":"IF(#REF!=\"\",\"\",#REF!)","v":{"$error":"#REF!"}},{"$f":"IF(#REF!=\"\",\"\",#REF!)","v":{"$error":"#REF!"}},{"$f":"IF(#REF!=\"\",\"\",#REF!)","v":{"$error":"#REF!"}},{"$f":"IF(#REF!=\"\",\"\",#REF!)","v":{"$error":"#REF!"}},{"$f":"IF(#REF!=\"\",\"\",#REF!)","v":{"$error":"#REF!"}},{"$f":"IF(#REF!=\"\",\"\",#REF!)","v":{"$error":"#REF!"}},{"$f":"IF(#REF!=\"\",\"\",#REF!)","v":{"$error":"#REF!"}},{"$f":"IF(#REF!=\"\",\"\",#REF!)","v":{"$error":"#REF!"}},{"$f":"IF(#REF!=\"\",\"\",#REF!)","v":{"$error":"#REF!"}},{"$f":"IF(#REF!=\"\",\"\",#REF!)","v":{"$error":"#REF!"}},false,false,4,{"$f":"INDEX(OFFSET(Appel,,-1,,),MATCH(#REF!,Appel,0))","v":{"$error":"#REF!"}},{"$f":"IF(#REF!=\"\",\"\",#REF!)","v":{"$error":"#REF!"}},{"$f":"IF(#REF!=\"\",\"\",#REF!)","v":{"$error":"#REF!"}},{"$f":"IF(#REF!=\"\",\"\",#REF!)","v":{"$error":"#REF!"}},{"$f":"IF(#REF!=\"\",\"\",#REF!)","v":{"$error":"#REF!"}},{"$f":"IF(#REF!=\"\",\"\",#REF!)","v":{"$error":"#REF!"}},{"$f":"IF(#REF!=\"\",\"\",#REF!)","v":{"$error":"#REF!"}},{"$f":"IF(#REF!=\"\",\"\",#REF!)","v":{"$error":"#REF!"}},{"$f":"IF(#REF!=\"\",\"\",#REF!)","v":{"$error":"#REF!"}},{"$f":"IF(#REF!=\"\",\"\",#REF!)","v":{"$error":"#REF!"}},{"$f":"IF(#REF!=\"\",\"\",#REF!)","v":{"$error":"#REF!"}},{"$f":"IF(#REF!=\"\",\"\",#REF!)","v":{"$error":"#REF!"}},{"$f":"IF(#REF!=\"\",\"\",#REF!)","v":{"$error":"#REF!"}},{"$f":"IF(#REF!=\"\",\"\",#REF!)","v":{"$error":"#REF!"}},{"$f":"IF(#REF!=\"\",\"\",#REF!)","v":{"$error":"#REF!"}},{"$f":"IF(#REF!=\"\",\"\",#REF!)","v":{"$error":"#REF!"}},true,false,{"$f":"IF(F57=TRUE,IF(#REF!=\"\",\"\",#REF!),IF(#REF!=\"\",\"\",#REF!))","v":{"$error":"#REF!"}},{"$f":"IF(F57=TRUE,IF(#REF!=\"\",\"\",#REF!),IF(#REF!=\"\",\"\",#REF!))","v":{"$error":"#REF!"}},{"$f":"IF(F57=TRUE,IF(#REF!=\"\",\"\",#REF!),IF(#REF!=\"\",\"\",#REF!))","v":{"$error":"#REF!"}},{"$f":"IF(F57=TRUE,IF(#REF!=\"\",\"\",#REF!),IF(#REF!=\"\",\"\",#REF!))","v":{"$error":"#REF!"}},{"$f":"IF(F57=TRUE,IF(#REF!=\"\",\"\",#REF!),IF(#REF!=\"\",\"\",#REF!))","v":{"$error":"#REF!"}},{"$f":"IF(F57=TRUE,484,IF(#REF!=\"\",\"\",#REF!))","v":{"$error":"#REF!"}},{"$f":"IF(F57=TRUE,10,INDEX(OFFSET(Type_EntrepriseData2,,-1,,),MATCH(#REF!,Type_EntrepriseData2,0)))","v":{"$error":"#REF!"}},{"$f":"INDEX(OFFSET(Type_EntrepriseData2,,1,,),MATCH(#REF!,Type_EntrepriseData2,0))","v":{"$error":"#REF!"}},{"$f":"IF(B61=TRUE,\"1154020\",DQ3)","v":{"$error":"#REF!"}},{"$f":"IF(A56=TRUE,\"Innovation technologique\",IF(OR(B56=TRUE,E56=TRUE,F56=TRUE),\"Analyse\",\"Implantation\"))","v":"Implantation"},{"$f":"IF(FX2=\"8\",\"8\",IF(B2=\"1\",\"1\",IF(C2=\"2\",\"2\",IF(F2=\"5\",\"5\",IF(G2=\"6\",\"6\",IF(H2=\"7\",\"7\",IF(D2=\"3\",\"3\",IF(E2=\"4\",\"4\",\"\"))))))))","v":"3"},null,{"$f":"#REF!","v":{"$error":"#REF!"}},false,{"$f":"IF(DU2>36000,\"(+ de 36TJ)\",\"(- de 36TJ)\")","v":{"$error":"#REF!"}},2,{"$f":"IF(#REF!=\"\",\"\",#REF!)","v":{"$error":"#REF!"}},{"$f":"IF(#REF!=\"\",\"\",#REF!*INDEX(OFFSET(Unite_Surface,,1,,),MATCH(#REF!,Unite_Surface,0)))","v":{"$error":"#REF!"}},{"$f":"INDEX(OFFSET(Unite_Surface,,-1,,),MATCH(#REF!,Unite_Surface,0))","v":{"$error":"#REF!"}},{"$f":"IF(#REF!=\"\",\"\",#REF!)","v":{"$error":"#REF!"}},{"$f":"IF(#REF!=\"\",\"\",#REF!)","v":{"$error":"#REF!"}},{"$f":"IF(#REF!=\"\",\"\",#REF!)","v":{"$error":"#REF!"}},{"$f":"IF(#REF!=\"\",\"\",#REF!)","v":{"$error":"#REF!"}},{"$f":"IF(#REF!=\"\",\"\",#REF!)","v":{"$error":"#REF!"}},{"$f":"IF(#REF!=\"\",\"\",#REF!)","v":{"$error":"#REF!"}},{"$f":"IF(#REF!=\"\",\"\",#REF!)","v":{"$error":"#REF!"}},{"$f":"IF(#REF!=\"\",\"\",#REF!)","v":{"$error":"#REF!"}},{"$f":"IF(A56=TRUE,TRUE,FALSE)","v":false},{"$f":"IF(#REF!=0,0,#REF!)","v":{"$error":"#REF!"}},{"$f":"IF(EL3=TRUE,\"Résidentiel\",\"\")","v":""},{"$f":"IF(EM3=TRUE,\"Commercial\",\"\")","v":""},{"$f":"IF(EN3=TRUE,\"Institutionnel\",\"\")","v":""},{"$f":"IF(EO3=TRUE,\"Municipal\",\"\")","v":""},{"$f":"IF(EP3=TRUE,\"Transport\",\"\")","v":""},{"$f":"IF(EQ3=TRUE,\"Industriel\",\"\")","v":""},{"$f":"IF(ER3=TRUE,\"Agricole\",\"\")","v":""},{"$f":"IF(ES3=TRUE,ET2,\"\")","v":""},{"$f":"IF(#REF!=\"\",\"\",#REF!)","v":{"$error":"#REF!"}},false,{"$f":"IF(EV3=TRUE,\"Bioénergie\",\"\")","v":""},{"$f":"IF(EW3=TRUE,\"Éolienne\",\"\")","v":""},{"$f":"IF(EX3=TRUE,\"Géothermie\",\"\")","v":""},{"$f":"IF(EY3=TRUE,\"Hydrolienne\",\"\")","v":""},{"$f":"IF(EZ3=TRUE,\"Hydrogène\",\"\")","v":""},{"$f":"IF(FA3=TRUE,\"Marémotrice\",\"\")","v":""},{"$f":"IF(FB3=TRUE,\"Solaire\",\"\")","v":""},{"$f":"IF(FC3=TRUE,FD2,\"\")","v":""},{"$f":"IF(#REF!=\"\",\"\",#REF!)","v":{"$error":"#REF!"}},false,{"$f":"IF(FE3=TRUE,1,\"\")","v":""},{"$f":"IF(FF3=TRUE,3,\"\")","v":""},{"$f":"IF(FG3=TRUE,4,\"\")","v":""},{"$f":"IF(FH3=TRUE,2,\"\")","v":""},{"$f":"IF(FI3=TRUE,5,\"\")","v":""},{"$f":"IF(FJ3=TRUE,7,\"\")","v":""},{"$f":"IF(FK3=TRUE,6,\"\")","v":""},{"$f":"IF(FL3=TRUE,IF(#REF!=\"\",\"\",INDEX(OFFSET(Énergie,,-1,,),MATCH(#REF!,Énergie,0))),\"\")","v":""},{"$f":"IF(#REF!=\"\",\"\",INDEX(OFFSET(Énergie,,-1,,),MATCH(#REF!,Énergie,0)))","v":{"$error":"#REF!"}},{"$f":"#REF!","v":{"$error":"#REF!"}},{"$f":"IF(#REF!=\"\",\"\",#REF!)","v":{"$error":"#REF!"}},{"$f":"B70","v":{"$error":"#REF!"}},{"$f":"C70","v":{"$error":"#REF!"}},{"$f":"FQ2+FR2","v":{"$error":"#REF!"}},{"$f":"D70","v":{"$error":"#REF!"}},{"$f":"E70","v":{"$error":"#REF!"}},{"$f":"FU2+FT2","v":{"$error":"#REF!"}},1,{"$f":"IF(B61=TRUE,\"8\",\"\")","v":""},{"$f":"B61","v":false}]
[null,null,null,null,null,null,null,null,null,null,null,null,null,null,null,null,null,null,null,null,null,null,null,null,null,null,null,null,null,null,null,null,null,null,null,null,null,null,null,null,null,null,null,null,null,null,null,null,null,null,null,null,null,null,null,null,null,null,null,null,null,null,null,null,null,null,null,null,null,null,null,null,null,null,null,null,null,null,null,null,null,null,null,null,null,null,null,null,null,null,null,null,null,null,null,null,null,null,null,null,null,null,null,null,null,null,null,null,null,null,null,null,null,null,null,null,null,null,null,null,{"$f":"IF($A$56=TRUE,\"1159400\",IF($E$56=TRUE,\"1151000\",IF($G$57=TRUE,\"1151210\",IF($F$57=TRUE,\"1157170\",IF($D$57=TRUE,\"1151240\",IF($D$60=TRUE,\"1151202\",INDEX(OFFSET(Type_EntrepriseData2,,2,,),MATCH(#REF!,Type_EntrepriseData2,0))))))))","v":{"$error":"#REF!"}},null,null,null,null,null,null,null,null,null,null,null,null,null,null,null,null,null,null,false,null,false,false,false,false,false,false,false,false,null,null,false,false,false,false,false,false,false,false,null,false,false,false,false,false,false,false,null,false]
["Aide combine max",0.75,null,null,null,null,null,null,null,null,null,null,null,null,null,null,null,null,null,null,"CC","DescriptionCC",null,null,null,null,null,null,null,null,null,null,null,null,null,null,null,null,null,null,null,null,null,null,null,null,null,null,null,null,null,null,null,null,null,null,null,null,null,null,null,null,null,null,null,null,null,null,null,null,null,null,null,null,null,null,null,null,null,null,null,null,null,null,null,null,null,null,null,null,null,null,null,null,null,null,null,null,null,null,null,null,null,null,null,null,null,null,null,null,null,null,null,null,null,null,null,null,null,null,null,null,null,null,null,null,null,null,null,null,null,null,null,null,null,null,null,null,null,null,null,null,null,null,null,null,null,null,null,null,null,null,null,null,null,null,null,null,null,null,1,3,4,2,5,7,6]
[null,false,null,null,null,null,null,null,null,null,null,null,null,null,null,null,null,null,null,null,null,"Choisir…",null,null,null,null,null,null,null,null,null,null,null,null,null,null,null,null,null,null,null,null,null,null,null,null,null,null,null,null,null,null,null,null,null,null,null,null,null,null,null,null,null,null,null,null,null,null,null,null,null,null,null,null,null,null,null,null,null,null,null,null,null,null,null,null,null,null,null,null,null,null,null,null,null,null,null,null,null,null,null,null,null,null,null,null,null,null,null,null,null,null,null,null,null,null,null,null,null,null,null,null,null,null,null,null,null,null,null,null,null,null,null,null,null,null,null,null,"n'est plus utilisé"]
["Code appel","Appel",null,"Choisir…",0,"Choisir…",null,0,"Choisir…","C","Choisir…",0,"Choisir…",null,null,"BT",null,null,null,null,"20","Santé et Services sociaux","Commercial institutionnel","1151201","Gouvernement","Commercial institutionnel",null,null,null,null,null,null,null,null,null,null,null,null,null,null,null,null,null,null,null,null,null,null,null,null,null,null,null,null,null,null,null,null,null,null,null,null,null,null,null,null,null,null,null,null,null,null,null,null,null,null,null,null,null,null,null,null,null,null,null,null,null,null,null,null,null,null,null,null,null,null,null,null,null,null,null,null,null,null,null,null,null,null,null,null,null,null,null,null,null,null,null,null,null,null,null,null,null,null,null,null,null,null,null,null,null,null,null,null,null,null,null,null,"champs supprimé dans onglet 1. Demande"]
[null,"Choisir…",null,"OIQ",2,"Analyse","Analyses",1,"Énergie","I","Implanter",1,"Implantée",null,null,"HT",null,null,null,null,"30","Éducation (Centre de services scolaires)","Commercial institutionnel","1151210","Gouvernement (Optimisation réfrigération)","Commercial institutionnel"]
[1,"Madame",null,"OIFQ",5,"Gestion_d_énergie","Analyses",2,"Fugitive","N","Ne rien faire",2,"En cours d'implantation",null,null,null,null,null,null,null,30,"Enseignement supérieur","Agricole","1158180","Privé (Agriculture)","Agricole"]
[2,"Monsieur",null,"OAQ",3,"Eff_énergétique","Implantations",0,"Aucun","E","Étude supplémentaire requise",3,"Dans la prochaine année",null,null,null,null,null,null,null,60,"Société québécoise des infrastructures","Commercial institutionnel","1151201","Privé (Commercial)","Commercial institutionnel"]
[null,null,null,null,4,"Conversion","Implantations",null,null,null,null,4,"D'ici deux ans",null,null,null,null,null,null,null,70,"Société d'habitation du Québec et OMH","Commercial institutionnel","1151210","Privé (Optimisation réfrigération)","Commercial institutionnel"]
[null,null,null,null,7,"Émissions_fugitives","Implantations",null,null,null,null,5,"Ne sera pas implantée",null,null,null,null,null,null,null,80,"Autres organismes non budgétaires","Industriel","1158180","Privé (Industriel)","Industriel"]
[null,null,null,null,null,null,null,null,null,null,null,null,null,null,null,null,null,null,null,null,"30","Éducation (Optimisation réfrigération)","Industriel","1151210","Privé (Industriel optimisation réfrigération)","Industriel"]
[null,null,null,null,null,null,null,null,null,null,null,null,null,null,null,null,null,null,null,null,"00","Gouvernement","Commercial institutionnel","1151201","Santé","Commercial institutionnel"]
[null,null,null,null,null,null,null,null,null,null,null,null,null,null,null,null,null,null,null,null,"00","Gouvernement (Optimisation réfrigération)","Commercial institutionnel","1151210","Santé (Optimisation réfrigération)","Commercial institutionnel"]
[null,null,null,null,null,null,null,null,null,null,null,null,null,null,null,null,null,null,null,null,"10","Privé (Agriculture)","Commercial institutionnel","1151201","Éducation","Commercial institutionnel"]
[null,null,null,null,null,null,"Choisir…",null,null,null,null,null,null,null,null,null,null,null,null,null,"10","Privé (Commercial)","Commercial institutionnel","1151210","Éducation (Optimisation réfrigération)","Commercial institutionnel"]
[null,null,null,null,null,null,"Subvention",null,null,null,null,null,null,null,null,null,null,null,null,null,"10","Privé (Optimisation réfrigération)"]
[null,null,null,null,null,null,"Emprunt",null,null,null,null,null,null,null,null,null,null,null,null,null,"10","Privé (Industriel)"]
[null,null,null,null,null,null,"Prêt",null,null,null,null,null,null,null,null,null,null,null,null,null,"10","Privé (Industriel optimisation réfrigération)"]
[null,null,null,null,null,null,"Équité",null,null,null,null,null,null,null,null,null,null,null,null,null,"20","Santé (Optimisation réfrigération)"]
[null,null,null,null,null,null,null,null,null,null,null,null,null,null,null,null,null,null,null,null,"40","Municipal","Commercial institutionnel","1151201","Municipal","Commercial institutionnel"]
[null,null,null,null,null,null,null,null,null,null,null,null,null,null,null,null,null,null,null,null,"40","Municipal (Optimisation réfrigération)","Commercial institutionnel","1151210","Municipal (Optimisation réfrigération)","Commercial institutionnel"]
[null,null,null,null,null,null,null,null,null,null,null,null,null,null,null,null,null,null,null,null,"50","OSBL (Agriculture)","Agricole","1158180","OSBL (Agriculture)","Agricole"]
[null,null,null,null,null,null,null,null,null,null,null,null,null,null,null,null,null,null,null,null,"50","OSBL (Institutionnel)","Commercial institutionnel","1151201","OSBL (Institutionnel)","Commercial institutionnel"]
[null,null,null,null,null,null,null,null,null,null,null,null,null,null,null,null,null,null,null,null,"50","OSBL (Commercial)","Commercial institutionnel","1151201","OSBL (Commercial)","Commercial institutionnel"]
["Oui",true,null,null,null,null,null,null,null,null,null,null,null,null,null,null,null,null,null,null,"50","OSBL (Optimisation réfrigération)","Commercial institutionnel","1151210","OSBL (Optimisation réfrigération)","Commercial institutionnel"]
["Non",false,null,null,null,null,null,null,null,null,null,null,null,null,null,null,null,null,null,null,"50","OSBL (Industriel)","Industriel","1158180","OSBL (Industriel)","Industriel"]
[]
[null,"Choisir…"]
[1,"TEQ","Transition énergétique Québec",null,null,"Choisir…","CodeCAt","CodeMEE",null,null,null,null,null,null,null,null,null,null,null,null,null,null,null,null,null,null,null,null,null,{"$f":"IF(E57=TRUE,\"GESB\",IF(E58=TRUE,\"GESA\",IF(F56=TRUE,\"DEVB\",\"\")))","v":""}]
[2,"Hydro-Québec","Hydro-Québec",null,"511","Coûts liés à l'embauche d'une personne énergie",50,"50.1"]
[3,"Gaz Métro","Gaz Métro",null,"512","Formation ISO 50001",50,"50.2",null,null,null,null,null,null,null,null,null,null,null,null,null," Enseignement supérieur",null,null,"SQI"]
[4,"Fédéral…","Fédéral…",null,"513","Accompagnement, audits, certification",50,"50.3",null,null,null,null,null,null,null,null,null,null,null,null,null,"SHQ, OMH",null,null,"Autres organisme non-budgétaire"]
[5,"Investissement Québec","Investissement Québec",null,"514","Équipement de mesurage, sondes et programmation",50,"50.4"]
[6,"Banque/Caisse","Banque/Caisse"]
[7,"TDDC","Technologies du Développement Durables Canada"]
[8,"BDC","Banque de développement du Canada"]
[9,"CDE","Centre de développement économique"]
[10,"MAPAQ","Ministère Agriculture Pêcheries et Alimentation  du Québec"]
[11,"MELS","Ministère de l'Éducation des Loisir et des Sports"]
[12,"MFE","Ministère Finance et de l'Économie"]
[13,"MSSS","Ministére de la Santé et des Services Sociaux"]
[14,"MTQ","Ministère du Transport du Québec"]
[15,"Autre…"]
[16,"Requérant"]
[]
[0,"Choisir…",0,0,"Choisir…",0]
[1,"kg",1,1,"m²",1]
[2,"lbs",{"$f":"1/2.204624","v":0.45359208645102295},2,"pi²",9.2903040000000006E-2]
[]
[]
[null,false,null,false,false,false,false]
[null,false,null,false,false,false,false]
[null,false,null,false,null,false,false]
["Innovation","Analyse","Efficacité","Conversion","Gestion","Connaissances","OPTER",null,"1","Innovation","2","Analyse","3","Efficacité","4","Conversion","5","Gestion","6","Connaissances","7","Émissions Fugitives","Tonne min","Aide max"]
[false,false,true,false,false,false,false,null,"11","R&D (reconnu)","21","Étude","31","Implantation","41","Bioénergies","51","Gestion d'énergie","61","Écoconduite","71","Optimisation réfrigération"]
[null,false,null,false,false,false,false,0.15,"12","R&D (Autre)","222","Étude IP préliminaire",null,null,"42","Énergies émergentes","52","Agriculture","62","développement","72","Autres procédés"]
[null,false,null,false,false,false,false,0.15,"13","Démonstration","221","Étude IP",null,null,"42","Solaires"]
[null,false,null,false,null,false,false,0.1,"14","Mesurage","23","Approvisionnement",null,null,"43","Traditionnelles"]
[null,false,null,false,null,null,null,null,"15","Précommercialisation"]
[null,false,null,null,null,null,null,null,"16","Diffusion"]
[null,"Référence",null,"Projet"]
[null,"Interne","Externe","Interne","Externe"]
[{"$f":"#REF!","v":{"$error":"#REF!"}},{"$f":"#REF!","v":{"$error":"#REF!"}},{"$f":"#REF!","v":{"$error":"#REF!"}},{"$f":"#REF!","v":{"$error":"#REF!"}},{"$f":"#REF!","v":{"$error":"#REF!"}}]
[{"$f":"#REF!","v":{"$error":"#REF!"}},{"$f":"#REF!","v":{"$error":"#REF!"}},{"$f":"#REF!","v":{"$error":"#REF!"}},{"$f":"#REF!","v":{"$error":"#REF!"}},{"$f":"#REF!","v":{"$error":"#REF!"}}]
[{"$f":"#REF!","v":{"$error":"#REF!"}},{"$f":"#REF!","v":{"$error":"#REF!"}},{"$f":"#REF!","v":{"$error":"#REF!"}},{"$f":"#REF!","v":{"$error":"#REF!"}},{"$f":"#REF!","v":{"$error":"#REF!"}}]
[{"$f":"#REF!","v":{"$error":"#REF!"}},{"$f":"#REF!","v":{"$error":"#REF!"}},{"$f":"#REF!","v":{"$error":"#REF!"}},{"$f":"#REF!","v":{"$error":"#REF!"}},{"$f":"#REF!","v":{"$error":"#REF!"}}]
[{"$f":"#REF!","v":{"$error":"#REF!"}},{"$f":"#REF!","v":{"$error":"#REF!"}},{"$f":"#REF!","v":{"$error":"#REF!"}},{"$f":"#REF!","v":{"$error":"#REF!"}},{"$f":"#REF!","v":{"$error":"#REF!"}}]
[{"$f":"#REF!","v":{"$error":"#REF!"}},{"$f":"#REF!","v":{"$error":"#REF!"}},{"$f":"#REF!","v":{"$error":"#REF!"}},{"$f":"#REF!","v":{"$error":"#REF!"}},{"$f":"#REF!","v":{"$error":"#REF!"}}]
["Total",{"$f":"SUM(B64:B69)","v":{"$error":"#REF!"}},{"$f":"SUM(C64:C69)","v":{"$error":"#REF!"}},{"$f":"SUM(D64:D69)","v":{"$error":"#REF!"}},{"$f":"SUM(E64:E69)","v":{"$error":"#REF!"}}]
[]
[]
[]
["Energie_SEQ","Energie_Forme","Energie_Unite","Energie_MJU","CO2equivNeutralite","Energie_kWhU","Energie_BtuU","Energie_Commentaire","Code_Etape","ABR","CO2","CH4","N2O","CO2equiv","Type_NRJ","CodeCompileMaz","PCGIECdef","PCGIECmin","PCGIECmax","FEGIECdef","FEGIECmin","FEGIECmax","%CO2Prod","CO2prod",null,"PRP_SEQ","PRP_GAZ",null,"PRP_FORMULE","PRP_PRP","Source donnees"]
[1,"Électricité","kWh",3.6,2.04,1,3413,"Annexe 13 du Rapport d'inventaire national du Canada 1990-2010 partie 3","02",null,2,2.0000000000000001E-4,1E-4,2.04,"E",0,"","","","","","",0,0,null,1,"Dioxyde de carbone (R-744)","kg","CO2",1,"Règlement sur la déclaration obligatoire de certaines émission de contaminants dans l'atmosphère, Loi sur la qualité de l'environnement, Q-2, a.2.2, 109.1 et 124.1"]
[2,"Gaz naturel","m³",37.89,1889.32,10.525,35921.944000000003,"Règlement sur la déclaration obligatoire de certaines émission de contaminants dans l'atmosphère, Loi sur la qualité de l'environnement, Q-2, a.2.2, 109.1 et 124.1\nUtilisation des données pour usages industriels, ciment, secteur manufacturier et secteurs ","03",null,1878,3.6999999999999998E-2,3.4000000000000002E-2,1889.32,"G",0,"33,6","32,55","35,28","56,1","54,3","58,3",0.1285,244.40789950000001,null,10,"HFC-134a","kg","CH2FCF3",1300,"Règlement sur la déclaration obligatoire de certaines émission de contaminants dans l'atmosphère, Loi sur la qualité de l'environnement, Q-2, a.2.2, 109.1 et 124.1"]
[3,"Mazout léger no 2","L",38.5,2734.7359999999999,10.69,36500.14,"Règlement sur la déclaration obligatoire de certaines émission de contaminants dans l'atmosphère, Loi sur la qualité de l'environnement, Q-2, a.2.2, 109.1 et 124.1\nUtilisation des données pour usages industriels.","04",null,2725,6.0000000000000001E-3,3.1E-2,2734.7359999999999,"MA2",1,"","","","","","",0.107,292.61675200000002,null,31,"HCFC-22 (R-22)","kg","CHClF2",1810,"Changes in atmospheric constituents and in radiative forcing (table 2.14 100-yr TAR)"]
[4,"Mazout lourd (nos 4, 5 et 6)","L",42.5,3146.36,11.805555555,40292.361109999998,"Règlement sur la déclaration obligatoire de certaines émission de contaminants dans l'atmosphère, Loi sur la qualité de l'environnement, Q-2, a.2.2, 109.1 et 124.1\nUtilisation des données pour usages industriels.","04",null,3124,0.12,6.4000000000000001E-2,3146.36,"MA6",1,"","","","","","",0.13700000000000001,431.05131999999998,null,47,"R-404A","kg","0,04(HFC-134a)+0,44(HFC-125)+0,52(HFC-143a)",3260,"Règlement sur la déclaration obligatoire de certaines émission de contaminants dans l'atmosphère, Loi sur la qualité de l'environnement, Q-2, a.2.2, 109.1 et 124.1"]
[5,"Propane","L",25.31,1543.9839999999999,7.03,23995.29,"Règlement sur la déclaration obligatoire de certaines émission de contaminants dans l'atmosphère, Loi sur la qualité de l'environnement, Q-2, a.2.2, 109.1 et 124.1","07",null,1510,2.4E-2,0.108,1543.9839999999999,"P",1,"25,542","24,192","28,188","63,1","61,6","65,6",0.188,290.26899200000003,null,50,"R-407A","kg","0,4(HFC-134a)+0,4(HFC-125)+0,2(HFC-32)",1770,"Règlement sur la déclaration obligatoire de certaines émission de contaminants dans l'atmosphère, Loi sur la qualité de l'environnement, Q-2, a.2.2, 109.1 et 124.1"]
[6,"Diesel","L",38.299999999999997,2789.7930000000001,10.64,36310.53,"Règlement sur la déclaration obligatoire de certaines émission de contaminants dans l'atmosphère, Loi sur la qualité de l'environnement, Q-2, a.2.2, 109.1 et 124.1","06",null,2663,0.13300000000000001,0.4,2789.7930000000001,"",1,"36,55","35,19","36,805","74,1","72,6","74,8",0.107,298.50785100000002,null,85,"R-507a","kg","0,5(HFC-125)+0,5(HFC-143a)",3300,"Règlement sur la déclaration obligatoire de certaines émission de contaminants dans l'atmosphère, Loi sur la qualité de l'environnement, Q-2, a.2.2, 109.1 et 124.1"]
[7,"Essence (automobile)","L",34.869999999999997,2361.92,9.69,33058.699999999997,"Règlement sur la déclaration obligatoire de certaines émission de contaminants dans l'atmosphère, Loi sur la qualité de l'environnement, Q-2, a.2.2, 109.1 et 124.1","05",null,2289,2.7,0.05,2361.1999999999998,"",1,"36,55","35,19","36,805","74,1","72,6","74,8",0.17,401.52640000000002,null,86,"Ammoniac (R-717)","kg","NH3",0,"Internation Institute of Ammonia Refrigeration  (IIAR) www.iiar.org"]
[8,"Essence (aviation)","L",33.520000000000003,2459.5,9.31,31778.82,"Règlement sur la déclaration obligatoire de certaines émission de contaminants dans l'atmosphère, Loi sur la qualité de l'environnement, Q-2, a.2.2, 109.1 et 124.1","05",null,2342,2.2000000000000002,0.23,2459.5,"",1,"","","","","","",0.17,418.11500000000001,null,92,"R-422D","kg","0,651(HFC-125)+0,315(HFC-134a)+0,034*(600a)",2292.2800000000002,"Règlement sur la déclaration obligatoire de certaines émission de contaminants dans l'atmosphère, Loi sur la qualité de l'environnement, Q-2, a.2.2, 109.1 et 124.1"]
[9,"Carburéacteur","L",37.4,2606.98,10.39,35457.279999999999,"Règlement sur la déclaration obligatoire de certaines émission de contaminants dans l'atmosphère, Loi sur la qualité de l'environnement, Q-2, a.2.2, 109.1 et 124.1","","",2534,0.08,0.23,2606.98,"",1,"31,453","30,175","31,808","70","67,5","73",9.2999999999999999E-2,242.44914,null,74,"Bromure de méthyle","kg","CH3Br",5,"Changes in atmospheric constituents and in radiative forcing (table 2.14 100-yr TAR)"]
[10,"Kérosène","L",37.68,2543.7359999999999,10.469443999999999,35722.730000000003,"Règlement sur la déclaration obligatoire de certaines émission de contaminants dans l'atmosphère, Loi sur la qualité de l'environnement, Q-2, a.2.2, 109.1 et 124.1","","",2534,6.0000000000000001E-3,3.1E-2,2543.7359999999999,"",1,"","","","","","",9.2999999999999999E-2,236.56744800000001,null,25,"CFC-11","kg","CCl3F",4750,"Changes in atmospheric constituents and in radiative forcing (table 2.14 100-yr TAR)"]
[11,"Bitume","L",44.46,1778.4,12.35,42150.55,"Règlement sur la déclaration obligatoire de certaines émission de contaminants dans l'atmosphère, Loi sur la qualité de l'environnement, Q-2, a.2.2, 109.1 et 124.1.  Facteur d’émission du guid des facteurs d’émissions de l’ADEME version 5.0.","","",1778.4,"","",1778.4,"",1,"40,2","33,5","41,2","80,7","73","89,9",0.13700000000000001,243.64080000000001,null,28,"CFC-113","kg","CCl2FCClF2",6130,"Changes in atmospheric constituents and in radiative forcing (table 2.14 100-yr TAR)"]
[12,"Gaz de distillation (du raffinage)","L",36.08,1756.88,10.02,34205.839999999997,"Règlement sur la déclaration obligatoire de certaines émission de contaminants dans l'atmosphère, Loi sur la qualité de l'environnement, Q-2, a.2.2, 109.1 et 124.1","","",1750,"",2.2200000000000001E-2,1756.88,"",1,"49,9","47,5","50,6","57,6","48,2","69",0.188,329.00112799999999,null,29,"CFC-114","kg","CClF2CClF2",10000,"Changes in atmospheric constituents and in radiative forcing (table 2.14 100-yr TAR)"]
[16,"Lignite","kg",15,1486.83,4.17,14220.83,"Règlement sur la déclaration obligatoire de certaines émission de contaminants dans l'atmosphère, Loi sur la qualité de l'environnement, Q-2, a.2.2, 109.1 et 124.1","","",1480,0.03,0.02,1486.83,"",1,"11,9","5,5","21,6","101","90,9","115",0.08,118.9464,null,30,"CFC-115","kg","CClF2CF3",7370,"Changes in atmospheric constituents and in radiative forcing (table 2.14 100-yr TAR)"]
[19,"Butane","L",28.44,1763.9839999999999,7.9,26962.7,"Règlement sur la déclaration obligatoire de certaines émission de contaminants dans l'atmosphère, Loi sur la qualité de l'environnement, Q-2, a.2.2, 109.1 et 124.1","","",1730,2.4E-2,0.108,1763.9839999999999,"",1,"","","","","","",0.188,331.62899199999998,null,26,"CFC-12","kg","CCl2F2",10900,"Changes in atmospheric constituents and in radiative forcing (table 2.14 100-yr TAR)"]
[20,"Éthane","L",17.22,976,4.78,16325.52,"Règlement sur la déclaration obligatoire de certaines émission de contaminants dans l'atmosphère, Loi sur la qualité de l'environnement, Q-2, a.2.2, 109.1 et 124.1","","",976,"","",976,"",1,"","","","","","",9.2999999999999999E-2,90.768000000000001,null,27,"CFC-13","kg","CClF3",14400,"Changes in atmospheric constituents and in radiative forcing (table 2.14 100-yr TAR)"]
[21,"Coke de charbon","kg",28.83,2486.83,8.0083333329999995,27332.44167,"Règlement sur la déclaration obligatoire de certaines émission de contaminants dans l'atmosphère, Loi sur la qualité de l'environnement, Q-2, a.2.2, 109.1 et 124.1.\nUtilisation des données CH4 et N2O pour le secteur industriel, centrales thermiques à vape","","",2480,0.03,0.02,2486.83,"",1,"28,2","25,1","30,2","107","95,7","119",0.08,198.94640000000001,null,38,"Halon 1301","kg","CBrF3",7140,"Changes in atmospheric constituents and in radiative forcing (table 2.14 100-yr TAR)"]
[22,"Coke de pétrole (raffinage)","kg",46.35,3836.7350000000001,12.88,43942.38,"Règlement sur la déclaration obligatoire de certaines émission de contaminants dans l'atmosphère, Loi sur la qualité de l'environnement, Q-2, a.2.2, 109.1 et 124.1","","",3826,0.12,2.6499999999999999E-2,3836.7350000000001,"",1,"32,5","29,7","41,9","97,5","82,9","115",0.08,306.93880000000001,null,83,"Halon-1211","kg","CBrClF2",1890,"Changes in atmospheric constituents and in radiative forcing (table 2.14 100-yr TAR)"]
[23,"Charbon de bois","kg",27.599910999999999,35.966000000000001,7.6666419000000001,26166.248,"Enlever","","",3190,0.57599999999999996,7.6999999999999999E-2,3231.9659999999999,"",1,"29,5","14,9","58","112","95","132",0,0,null,84,"Halon-2402","kg","CBrF2CBrF2",1640,"Changes in atmospheric constituents and in radiative forcing (table 2.14 100-yr TAR)"]
[26,"Liqueur usée de cuisson base sèche","kg",14.2,9.2309999999999999,3.94,13462.39,"Règlement sur la déclaration obligatoire de certaines émission de contaminants dans l'atmosphère, Loi sur la qualité de l'environnement, Q-2, a.2.2, 109.1 et 124.1","","",1304,4.1000000000000002E-2,2.7E-2,1313.23,"",2,"","","","85,3","80,7","110",0,0,null,32,"HCFC-123","kg","CHCl2CF3",77,"Changes in atmospheric constituents and in radiative forcing (table 2.14 100-yr TAR)"]
[29,"Bi-énergie chauffage électrique","kWh",3.6,"",1,3413,"","","","","","","","",0,"","","","","","",0,0,null,33,"HCFC-124","kg","CHClFCF3",609,"Changes in atmospheric constituents and in radiative forcing (table 2.14 100-yr TAR)"]
[30,"Autre","GJ",1000,0,277.77777700000001,948055.52,"","","","","","","","",0,"","","","","","",0,0,null,34,"HCFC-141b","kg","CH3CCl2F",725,"Changes in atmospheric constituents and in radiative forcing (table 2.14 100-yr TAR)"]
[31,"Vapeur","Lbs",1.0547902,0,0.29299730000000002,1000,"","","","","","","","",0,"","","","","","",0,0,null,35,"HCFC-142b","kg","CH3CClF2",2310,"Changes in atmospheric constituents and in radiative forcing (table 2.14 100-yr TAR)"]
[36,"Biomasse résiduelle","kg",14.77,35.966000000000001,4.0999999999999996,14002.74,"Règlement sur la déclaration obligatoire de certaines émission de contaminants dans l'atmosphère, Loi sur la qualité de l'environnement, Q-2, a.2.2, 109.1 et 124.1","",1,1799,0.57599999999999996,7.6999999999999999E-2,1834.97,"",2,"15,6","7,9","31","112","95","132",0,0,null,36,"HCFC-225ca","kg","CHCl2CF2CF3",122,"Changes in atmospheric constituents and in radiative forcing (table 2.14 100-yr TAR)"]
[59,"Écorces","kg",20,35.966000000000001,5.5555554999999996,18960.955555500001,"Forintek avec valeur de la biomasse pour les émissions",null,1,1799,0.57599999999999996,7.6999999999999999E-2,1834.97,null,2,null,null,null,null,null,null,0,0,null,37,"HCFC-225cb","kg","CHClFCF2CClF2",595,"Changes in atmospheric constituents and in radiative forcing (table 2.14 100-yr TAR)"]
[37,"Gaz de distillation (de valorisation)","m³",43.24,2146.88,12.01,40993.919999999998,"Règlement sur la déclaration obligatoire de certaines émission de contaminants dans l'atmosphère, Loi sur la qualité de l'environnement, Q-2, a.2.2, 109.1 et 124.1","","",2140,0,2.2200000000000001E-2,2146.88,"",1,"","","","57,6","48,2","69",0.188,329.00131599999997,null,24,"Hexafluorure de soufre","kg","SF6",23900,"Règlement sur la déclaration obligatoire de certaines émission de contaminants dans l'atmosphère, Loi sur la qualité de l'environnement, Q-2, a.2.2, 109.1 et 124.1"]
[39,"CRD","kg",16.72,714.94719999999995,4.644444,15851.488890000001,"note: rebus de construction","","",715.94719999999995,0,0,714.94719999999995,"",1,"","","","42,76","","",0,0,null,8,"HFC-125","kg","C2HF5",2800,"Règlement sur la déclaration obligatoire de certaines émission de contaminants dans l'atmosphère, Loi sur la qualité de l'environnement, Q-2, a.2.2, 109.1 et 124.1"]
[40,"Lubrifiants (huiles usées)","L",39.159999999999997,2422.36,10.877777777777776,37125.85555555555,"Règlement sur la déclaration obligatoire de certaines émission de contaminants dans l'atmosphère, Loi sur la qualité de l'environnement, Q-2, a.2.2, 109.1 et 124.1","","",2400,0.12,6.4000000000000001E-2,2422.36,"",1,"","","","","","",0,0,null,9,"HFC-134","kg","CHF2CHF2",1000,"Règlement sur la déclaration obligatoire de certaines émission de contaminants dans l'atmosphère, Loi sur la qualité de l'environnement, Q-2, a.2.2, 109.1 et 124.1"]
[41,"Mazout léger no 1","L",38.78,2652.7360000000003,10.772222222222222,36765.594444444447,"Règlement sur la déclaration obligatoire de certaines émission de contaminants dans l'atmosphère, Loi sur la qualité de l'environnement, Q-2, a.2.2, 109.1 et 124.1\nUtilisation des données pour autoconsommation","","",2643,6.0000000000000001E-3,3.1E-2,2652.7360000000003,"",1,"","","","","","",0.107,283.84275200000002,null,11,"HFC-143","kg","C2H3F3",300,"Règlement sur la déclaration obligatoire de certaines émission de contaminants dans l'atmosphère, Loi sur la qualité de l'environnement, Q-2, a.2.2, 109.1 et 124.1"]
[45,"Coke de pétrole (de valorisation)","L",40.57,3503.681,11.269444444444444,38462.613888888889,"Règlement sur la déclaration obligatoire de certaines émission de contaminants dans l'atmosphère, Loi sur la qualité de l'environnement, Q-2, a.2.2, 109.1 et 124.1","","",3494,0.12,2.3099999999999999E-2,3503.681,"",1,"","","","","","",0.08,280.29448000000002,null,12,"HFC-143a","kg","C2H3F3",3800,"Règlement sur la déclaration obligatoire de certaines émission de contaminants dans l'atmosphère, Loi sur la qualité de l'environnement, Q-2, a.2.2, 109.1 et 124.1"]
[46,"Éthanol (100%)","L",23.41,1519,6.5027777777777773,22193.980555555554,"Règlement sur la déclaration obligatoire de certaines émission de contaminants dans l'atmosphère, Loi sur la qualité de l'environnement, Q-2, a.2.2, 109.1 et 124.1","","",1519,0,0,1519,"",2,"","","","","","",0,0,null,13,"HFC-152a","kg","C2H4F2",140,"Règlement sur la déclaration obligatoire de certaines émission de contaminants dans l'atmosphère, Loi sur la qualité de l'environnement, Q-2, a.2.2, 109.1 et 124.1"]
[47,"Biodiésel","L",35.67,0,9.9083333333333332,33817.141666666663,"Règlement sur la déclaration obligatoire de certaines émission de contaminants dans l'atmosphère, Loi sur la qualité de l'environnement, Q-2, a.2.2, 109.1 et 124.1","","",2497,0,0,2497,"",2,"","","","","","",0,0,null,77,"HFC-161","kg","C2H5F",12,"Règlement sur la déclaration obligatoire de certaines émission de contaminants dans l'atmosphère, Loi sur la qualité de l'environnement, Q-2, a.2.2, 109.1 et 124.1"]
[48,"Gras animal fondu","L",34.840000000000003,0,9.6777777777777789,33030.255555555559,"Règlement sur la déclaration obligatoire de certaines émission de contaminants dans l'atmosphère, Loi sur la qualité de l'environnement, Q-2, a.2.2, 109.1 et 124.1","","",2348,0,0,2348,"",2,"","","","","","",0,0,null,14,"HFC-227ea","kg","C3HF7",2900,"Règlement sur la déclaration obligatoire de certaines émission de contaminants dans l'atmosphère, Loi sur la qualité de l'environnement, Q-2, a.2.2, 109.1 et 124.1"]
[49,"Huile végétale","L",33.44,0,9.2888888888888879,31702.977777777774,"Règlement sur la déclaration obligatoire de certaines émission de contaminants dans l'atmosphère, Loi sur la qualité de l'environnement, Q-2, a.2.2, 109.1 et 124.1","","",2585,0,0,2585,"",2,"","","","","","",0,0,null,4,"HFC-23","kg","CHF3",11700,"Règlement sur la déclaration obligatoire de certaines émission de contaminants dans l'atmosphère, Loi sur la qualité de l'environnement, Q-2, a.2.2, 109.1 et 124.1"]
[50,"Charbon bitumineux étranger","kg",29.82,2346.83,8.2833333333333332,28271.016666666666,"Règlement sur la déclaration obligatoire de certaines émission de contaminants dans l'atmosphère, Loi sur la qualité de l'environnement, Q-2, a.2.2, 109.1 et 124.1.\nUtilisation du charbon américain.\nUtilisation des données CH4 et N2O pour le secteur indus","","",2340,0.03,0.02,2346.83,"",1,"","","","","","",0.08,187.74639999999999,null,78,"HFC-236cb","kg","C3H2F6",1300,"Règlement sur la déclaration obligatoire de certaines émission de contaminants dans l'atmosphère, Loi sur la qualité de l'environnement, Q-2, a.2.2, 109.1 et 124.1"]
[51,"Matières résiduelles collectés par une municipalité","kg",11.57,21.642099999999999,3.213888888888889,10969.002777777778,"Règlement sur la déclaration obligatoire de certaines émission de contaminants dans l'atmosphère, Loi sur la qualité de l'environnement, Q-2, a.2.2, 109.1 et 124.1.z","","",990.39200000000005,0.34710000000000002,4.6280000000000002E-2,1012.034,"",2,"","","","","","",0,0,null,79,"HFC-236ea","kg","C3H2F6",1200,"Règlement sur la déclaration obligatoire de certaines émission de contaminants dans l'atmosphère, Loi sur la qualité de l'environnement, Q-2, a.2.2, 109.1 et 124.1"]
[52,"Tourbe","kg",9.3000000000000007,4.5198,2.5833333333333335,8816.9166666666679,"Règlement sur la déclaration obligatoire de certaines émission de contaminants dans l'atmosphère, Loi sur la qualité de l'environnement, Q-2, a.2.2, 109.1 et 124.1\n1 kg donne 11,57 MJ","",1,957.9,8.9999999999999993E-3,1.3950000000000001E-2,962.41980000000001,"",2,"","","","","","",0,0,null,15,"HFC-236fa","kg","C3H2F6",6300,"Règlement sur la déclaration obligatoire de certaines émission de contaminants dans l'atmosphère, Loi sur la qualité de l'environnement, Q-2, a.2.2, 109.1 et 124.1"]
[53,"Pneus","kg",31.18,2650,8.6611111111111114,29560.372222222224,"Règlement sur la déclaration obligatoire de certaines émission de contaminants dans l'atmosphère, Loi sur la qualité de l'environnement, Q-2, a.2.2, 109.1 et 124.1","","",2650,0,0,2650,"",1,"","","","","","",0,0,null,16,"HFC-245ca","kg","C3H3F5",560,"Règlement sur la déclaration obligatoire de certaines émission de contaminants dans l'atmosphère, Loi sur la qualité de l'environnement, Q-2, a.2.2, 109.1 et 124.1"]
[54,"Sous-produits agricoles (qui ne sont pas destinés à la consommation)","kg",9.59,0,2.6638888888888888,9091.8527777777781,"Règlement sur la déclaration obligatoire de certaines émission de contaminants dans l'atmosphère, Loi sur la qualité de l'environnement, Q-2, a.2.2, 109.1 et 124.1","",1,1074,0,0,1074,"",2,"","","","","","",0,0,null,80,"HFC-245fa","kg","C3H3F5",950,"Règlement sur la déclaration obligatoire de certaines émission de contaminants dans l'atmosphère, Loi sur la qualité de l'environnement, Q-2, a.2.2, 109.1 et 124.1"]
[55,"Sous-produits de la biomasse (résidus animaux et végétaux, excluant les résidus de bois et la liqueur de cuisson)","kg",30.03,0,8.4166666666666661,28726.083333333332,"Règlement sur la déclaration obligatoire de certaines émission de contaminants dans l'atmosphère, Loi sur la qualité de l'environnement, Q-2, a.2.2, 109.1 et 124.1","",1,3000,0,0,3000,"",2,"","","","","","",0,0,null,118,"HFC-245fa","kg","CHF 2CH 2CF 3",0,""]
[56,"Gaz de cokerie","m³",19.14,890.62700000000007,5.3166666666666664,18145.783333333333,"Règlement sur la déclaration obligatoire de certaines émission de contaminants dans l'atmosphère, Loi sur la qualité de l'environnement, Q-2, a.2.2, 109.1 et 124.1","","",879,3.6999999999999998E-2,3.5000000000000003E-2,890.62700000000007,"",1,"","","","","","",0.188,167.43787599999999,null,5,"HFC-32","kg","CH2F2",650,"Règlement sur la déclaration obligatoire de certaines émission de contaminants dans l'atmosphère, Loi sur la qualité de l'environnement, Q-2, a.2.2, 109.1 et 124.1"]
[57,"Biogaz (portion méthane)","m³",38.32,11.317,10.64,36361.42,"Règlement sur la déclaration obligatoire de certaines émission de contaminants dans l'atmosphère, Loi sur la qualité de l'environnement, Q-2, a.2.2, 109.1 et 124.1","",1,1878,3.6999999999999998E-2,3.4000000000000002E-2,1889.32,"",2,"","","","","","",0,0,null,119,"HFC-365mfc","kg","",0,""]
[58,"Gaz d'enfouissement (portion méthane)","m³",38.32,11.317,10.64,36361.42,"Règlement sur la déclaration obligatoire de certaines émission de contaminants dans l'atmosphère, Loi sur la qualité de l'environnement, Q-2, a.2.2, 109.1 et 124.1","",1,1878,3.6999999999999998E-2,3.4000000000000002E-2,1889.32,"",2,"","","","","","",0,0,null,81,"HFC-365mfc","kg","C4H5F5",890,"Règlement sur la déclaration obligatoire de certaines émission de contaminants dans l'atmosphère, Loi sur la qualité de l'environnement, Q-2, a.2.2, 109.1 et 124.1"]
[61,"Biocharbon","kg",27.6,35.966000000000001,7.67,16166.25,"Règlement sur la déclaration obligatoire de certaines émission de contaminants dans l'atmosphère, Loi sur la qualité de l'environnement, Q-2, a.2.2, 109.1 et 124.1","",1,3190,0.57599999999999996,7.6999999999999999E-2,3225.9659999999999,"",1,"","","","","","",0,0,null,6,"HFC-41","kg","CH3F",150,"Règlement sur la déclaration obligatoire de certaines émission de contaminants dans l'atmosphère, Loi sur la qualité de l'environnement, Q-2, a.2.2, 109.1 et 124.1"]
[null,null,null,null,null,null,null,null,null,null,null,null,null,null,null,null,null,null,null,null,null,null,null,null,null,7,"HFC-43-10mee","kg","C5H2F10",1300,"Règlement sur la déclaration obligatoire de certaines émission de contaminants dans l'atmosphère, Loi sur la qualité de l'environnement, Q-2, a.2.2, 109.1 et 124.1"]
[null,null,null,null,null,null,null,null,null,null,null,null,null,null,null,null,null,null,null,null,null,null,null,null,null,2,"Méthane (R-50)","kg","CH4",21,"Règlement sur la déclaration obligatoire de certaines émission de contaminants dans l'atmosphère, Loi sur la qualité de l'environnement, Q-2, a.2.2, 109.1 et 124.1"]
[null,null,null,null,null,null,null,null,null,null,null,null,null,null,null,null,null,null,null,null,null,null,null,null,null,120,"Méthylchloroforme","kg","CH3CCl3",0,""]
[null,null,null,null,null,null,null,null,null,null,null,null,null,null,null,null,null,null,null,null,null,null,null,null,null,3,"Oxyde nitreux (R-744a)","kg","N2O",310,"Règlement sur la déclaration obligatoire de certaines émission de contaminants dans l'atmosphère, Loi sur la qualité de l'environnement, Q-2, a.2.2, 109.1 et 124.1"]
[null,null,null,null,null,null,null,null,null,null,null,null,null,null,null,null,null,null,null,null,null,null,null,null,null,72,"Oxyfume 88/12","kg","0,914(HCFC-124)+0,086(ethylene oxyde)",7480,"Sterilant product. U.S. Clean Air Act regulations will ban the sale and use of most HCFC-based products like Oxyfume in the United States as of Dec. 31, 2014. This registered mark will not be manufactured after december 31, 2013,"]
[null,null,null,null,null,null,null,null,null,null,null,null,null,null,null,null,null,null,null,null,null,null,null,null,null,20,"Perfluorobutane (PFC-3-1-10)","kg","C4F10",7000,"Règlement sur la déclaration obligatoire de certaines émission de contaminants dans l'atmosphère, Loi sur la qualité de l'environnement, Q-2, a.2.2, 109.1 et 124.1"]
[null,null,null,null,null,null,null,null,null,null,null,null,null,null,null,null,null,null,null,null,null,null,null,null,null,21,"Perfluorocyclobutane (PFC-318)","kg","c-C4F8",8700,"Règlement sur la déclaration obligatoire de certaines émission de contaminants dans l'atmosphère, Loi sur la qualité de l'environnement, Q-2, a.2.2, 109.1 et 124.1"]
[null,null,null,null,null,null,null,null,null,null,null,null,null,null,null,null,null,null,null,null,null,null,null,null,null,18,"Perfluoroéthane (PFC-116)","kg","C2F6",9200,"Règlement sur la déclaration obligatoire de certaines émission de contaminants dans l'atmosphère, Loi sur la qualité de l'environnement, Q-2, a.2.2, 109.1 et 124.1"]
[null,null,null,null,null,null,null,null,null,null,null,null,null,null,null,null,null,null,null,null,null,null,null,null,null,23,"Perfluorohexane (PFC5-1-14)","kg","C6F14",7400,"Règlement sur la déclaration obligatoire de certaines émission de contaminants dans l'atmosphère, Loi sur la qualité de l'environnement, Q-2, a.2.2, 109.1 et 124.1"]
[null,null,null,null,null,null,null,null,null,null,null,null,null,null,null,null,null,null,null,null,null,null,null,null,null,17,"Perfluorométhane (PFC-14)","kg","CF4",6500,"Règlement sur la déclaration obligatoire de certaines émission de contaminants dans l'atmosphère, Loi sur la qualité de l'environnement, Q-2, a.2.2, 109.1 et 124.1"]
[null,null,null,null,null,null,null,null,null,null,null,null,null,null,null,null,null,null,null,null,null,null,null,null,null,22,"Perfluoropentane (PFC-4-1-12)","kg","C5F12",7500,"Règlement sur la déclaration obligatoire de certaines émission de contaminants dans l'atmosphère, Loi sur la qualité de l'environnement, Q-2, a.2.2, 109.1 et 124.1"]
[null,null,null,null,null,null,null,null,null,null,null,null,null,null,null,null,null,null,null,null,null,null,null,null,null,19,"Perfluoropropane (PFC-218)","kg","C3F8",7000,"Règlement sur la déclaration obligatoire de certaines émission de contaminants dans l'atmosphère, Loi sur la qualité de l'environnement, Q-2, a.2.2, 109.1 et 124.1"]
[null,null,null,null,null,null,null,null,null,null,null,null,null,null,null,null,null,null,null,null,null,null,null,null,null,95,"R-400","kg","0,5(CFC-12)+0,5(CFC-114)",10450,"Changes in atmospheric constituents and in radiative forcing (table 2.14 100-yr TAR)"]
[null,null,null,null,null,null,null,null,null,null,null,null,null,null,null,null,null,null,null,null,null,null,null,null,null,40,"R-401A","kg","0,53(HCFC-22)+0,34(HCFC-124)+0,13(HFC-152a)",1182.48,"Changes in atmospheric constituents and in radiative forcing (table 2.14 100-yr TAR)"]
[null,null,null,null,null,null,null,null,null,null,null,null,null,null,null,null,null,null,null,null,null,null,null,null,null,41,"R-401B","kg","0,61(HCFC-22)+0,28(HCFC-124)+0,11(HFC-152a)",1288.26,"Changes in atmospheric constituents and in radiative forcing (table 2.14 100-yr TAR)"]
["No_Projet_Sagir_Abrev","Section","Code_Activité","Activité","GrandConsom","Secteur","Coût_Interne","Coût_externe","Coût","Aide_demande","CatMEE","CodeMEE",null,null,null,null,null,null,null,null,null,null,null,null,null,42,"R-401C","kg","0,33(HCFC-22)+0,15(HFC-152a)+0,52(HCFC-124)",934.98,"Changes in atmospheric constituents and in radiative forcing (table 2.14 100-yr TAR) et Règlement sur la déclaration obligatoire de certaines émission de contaminants dans l'atmosphère, Loi sur la qualité de l'environnement, Q-2, a.2.2, 109.1 et 124.1"]
[{"$f":"DQ$2","v":{"$error":"#REF!"}},{"$f":"IF(B61=TRUE,\"8\",\"2\")","v":"2"},{"$f":"IF(B61=TRUE,\"81\",IF(B57=TRUE,\"21\",IF(B58=TRUE,\"221\",IF(B59=TRUE,\"23\",\"222\"))))","v":"222"},{"$f":"IF(B61=TRUE,\"Recommissioning\",IF(B57=TRUE,\"Études\",IF(B58=TRUE,\"Études IP\",IF(B59=TRUE,\"Études approvisionnement\",\"Études IP préliminaires\"))))","v":"Études IP préliminaires"},{"$f":"DV2","v":false},{"$f":"IF(DP2=\"Agricole\",\"Agricole\",IF(DP2=\"Transport\",\"Transport\",\"Affaires\"))","v":{"$error":"#REF!"}},{"$f":"#REF!","v":{"$error":"#REF!"}},{"$f":"#REF!","v":{"$error":"#REF!"}},{"$f":"#REF!","v":{"$error":"#REF!"}},{"$f":"#REF!","v":{"$error":"#REF!"}},50,{"$f":"IF(B61=TRUE,\"50.20\",IF(B57=TRUE,\"50.8\",IF(B58=TRUE,\"50.9\",IF(B59=TRUE,\"50.10\",\"50.11\"))))","v":"50.11"},null,null,null,null,null,null,null,null,null,null,null,null,null,43,"R-402A","kg","0,6(HFC-125)+0,38(HCFC-22)+0,02(C3H8)",2826.68,"Changes in atmospheric constituents and in radiative forcing (table 2.14 100-yr TAR) et Règlement sur la déclaration obligatoire de certaines émission de contaminants dans l'atmosphère, Loi sur la qualité de l'environnement, Q-2, a.2.2, 109.1 et 124.1"]
[null,null,null,null,null,null,null,null,null,null,null,null,null,null,null,null,null,null,null,null,null,null,null,null,null,44,"R-402B","kg","0,38(HFC-125)+0,60(HCFC-22)+0,02(C3H8)",2446.88,"Changes in atmospheric constituents and in radiative forcing (table 2.14 100-yr TAR) et Règlement sur la déclaration obligatoire de certaines émission de contaminants dans l'atmosphère, Loi sur la qualité de l'environnement, Q-2, a.2.2, 109.1 et 124.1"]
[null,null,null,null,null,null,null,null,null,null,null,null,null,null,null,null,null,null,null,null,null,null,null,null,null,45,"R-403A","kg","0,05(C3H8)+0,75(HCFC-22)+0,2(C3F8)",2834.6990000000001,"Règlement sur la déclaration obligatoire de certaines émission de contaminants dans l'atmosphère, Loi sur la qualité de l'environnement, Q-2, a.2.2, 109.1 et 124.1"]
[null,null,null,null,null,null,null,null,null,null,null,null,null,null,null,null,null,null,null,null,null,null,null,null,null,46,"R-403B","kg","0,05(C3H8)+0,56(HCFC-22)+0,39(C3F8)",3820.799,"Règlement sur la déclaration obligatoire de certaines émission de contaminants dans l'atmosphère, Loi sur la qualité de l'environnement, Q-2, a.2.2, 109.1 et 124.1"]
[null,null,null,null,null,null,null,null,null,null,null,null,null,null,null,null,null,null,null,null,null,null,null,null,null,48,"R-405A","kg","0,45(22)+0,07(152a)+0,055(142b)+0,425(C318)",4648.8500000000004,"Changes in atmospheric constituents and in radiative forcing (table 2.14 100-yr TAR) et Règlement sur la déclaration obligatoire de certaines émission de contaminants dans l'atmosphère, Loi sur la qualité de l'environnement, Q-2, a.2.2, 109.1 et 124.1"]
[null,null,null,null,null,null,null,null,null,null,null,null,null,null,null,null,null,null,null,null,null,null,null,null,null,49,"R-406A","kg","0,55(HCFC-22)+,04(R-600a)+0,41(HCFC-142b)",2013.16,"Changes in atmospheric constituents and in radiative forcing (table 2.14 100-yr TAR) et Règlement sur la déclaration obligatoire de certaines émission de contaminants dans l'atmosphère, Loi sur la qualité de l'environnement, Q-2, a.2.2, 109.1 et 124.1"]
[null,null,null,null,null,null,null,null,null,null,null,null,null,null,null,null,null,null,null,null,null,null,null,null,null,51,"R-407B","kg","0,1(HFC-32)+0,7(HFC-125)+0,2(HFC-134a)",2285,"Règlement sur la déclaration obligatoire de certaines émission de contaminants dans l'atmosphère, Loi sur la qualité de l'environnement, Q-2, a.2.2, 109.1 et 124.1"]
[null,null,null,null,null,null,null,null,null,null,null,null,null,null,null,null,null,null,null,null,null,null,null,null,null,52,"R-407C","kg","0,23(HFC-32)+0,25(HFC-125)+0,52(HFC-134a)",1525.5,"Règlement sur la déclaration obligatoire de certaines émission de contaminants dans l'atmosphère, Loi sur la qualité de l'environnement, Q-2, a.2.2, 109.1 et 124.1"]
[null,null,null,null,null,null,null,null,null,null,null,null,null,null,null,null,null,null,null,null,null,null,null,null,null,96,"R-407D","kg","0,15(HFC-32)+0,15(HFC-125)+0,7(HFC-134a)",1427.5,"Règlement sur la déclaration obligatoire de certaines émission de contaminants dans l'atmosphère, Loi sur la qualité de l'environnement, Q-2, a.2.2, 109.1 et 124.1"]
[null,null,null,null,null,null,null,null,null,null,null,null,null,null,null,null,null,null,null,null,null,null,null,null,null,97,"R-407E","kg","0,25(HFC-32)+0,15(HFC-125)+0,6(HFC-134a)",1362.5,"Règlement sur la déclaration obligatoire de certaines émission de contaminants dans l'atmosphère, Loi sur la qualité de l'environnement, Q-2, a.2.2, 109.1 et 124.1"]
[null,null,null,null,null,null,null,null,null,null,null,null,null,null,null,null,null,null,null,null,null,null,null,null,null,53,"R-408A","kg","0,47(HCFC-22)+0,46(HFC-143a)+0,07(HFC-125)",2794.7,"Changes in atmospheric constituents and in radiative forcing (table 2.14 100-yr TAR) et Règlement sur la déclaration obligatoire de certaines émission de contaminants dans l'atmosphère, Loi sur la qualité de l'environnement, Q-2, a.2.2, 109.1 et 124.1"]
[null,null,null,null,null,null,null,null,null,null,null,null,null,null,null,null,null,null,null,null,null,null,null,null,null,54,"R-409A","kg","0,6(HCFC-22)+0,25(HCFC-124)+0,15(HCFC-142b)",1584.75,"Changes in atmospheric constituents and in radiative forcing (table 2.14 100-yr TAR)"]
[null,null,null,null,null,null,null,null,null,null,null,null,null,null,null,null,null,null,null,null,null,null,null,null,null,98,"R-409B","kg","0,65(HCFC-22)+0,25(HCFC-124)+0,1(HCFC-142b)",1559.75,"Changes in atmospheric constituents and in radiative forcing (table 2.14 100-yr TAR)"]
[null,null,null,null,null,null,null,null,null,null,null,null,null,null,null,null,null,null,null,null,null,null,null,null,null,55,"R-410A","kg","0,5(HFC-125)+0,5(HFC-32)",1725,"Règlement sur la déclaration obligatoire de certaines émission de contaminants dans l'atmosphère, Loi sur la qualité de l'environnement, Q-2, a.2.2, 109.1 et 124.1"]
[null,null,null,null,null,null,null,null,null,null,null,null,null,null,null,null,null,null,null,null,null,null,null,null,null,56,"R-410B","kg","0,45(HFC-125)+0,55(HFC-32)",1617.5,"Règlement sur la déclaration obligatoire de certaines émission de contaminants dans l'atmosphère, Loi sur la qualité de l'environnement, Q-2, a.2.2, 109.1 et 124.1"]
["No_Projet_Sagir_Abrev","Code_Org","Partenaire","Detail","Type_aide","Contribution","Pourcent",null,null,null,null,null,null,null,null,null,null,null,null,null,null,null,null,null,null,57,"R-411A","kg","0,015*(R-1270)+0,875(HFC-22)+,11(HFC-152a)",1623.52,"Règlement sur la déclaration obligatoire de certaines émission de contaminants dans l'atmosphère, Loi sur la qualité de l'environnement, Q-2, a.2.2, 109.1 et 124.1 (note additionnelle: le 1,5% de propylene (R1270) a été négligé dans le calcul)"]
[{"$f":"DQ$2","v":{"$error":"#REF!"}},{"$f":"#REF!","v":{"$error":"#REF!"}},{"$f":"#REF!","v":{"$error":"#REF!"}},{"$f":"IF(#REF!=\"\",\"\",#REF!)","v":{"$error":"#REF!"}},{"$f":"#REF!","v":{"$error":"#REF!"}},{"$f":"#REF!","v":{"$error":"#REF!"}},{"$f":"#REF!","v":{"$error":"#REF!"}},null,null,null,null,null,null,null,null,null,null,null,null,null,null,null,null,null,null,58,"R-411B","kg","0,03*(R-1270)+0,94(HFC-22)+,03(HFC-152a)",1758.35,"Règlement sur la déclaration obligatoire de certaines émission de contaminants dans l'atmosphère, Loi sur la qualité de l'environnement, Q-2, a.2.2, 109.1 et 124.1 (note additionnelle: le 1,5% de propylene (R1270) a été négligé dans le calcul)"]
[{"$error":"#REF!"},{"$f":"#REF!","v":{"$error":"#REF!"}},{"$f":"#REF!","v":{"$error":"#REF!"}},{"$f":"IF(#REF!=\"\",\"\",#REF!)","v":{"$error":"#REF!"}},{"$f":"#REF!","v":{"$error":"#REF!"}},{"$f":"#REF!","v":{"$error":"#REF!"}},{"$f":"#REF!","v":{"$error":"#REF!"}},null,null,null,null,null,null,null,null,null,null,null,null,null,null,null,null,null,null,59,"R-412A","kg","0,7(HCFC-22)+0,05(PFC-218)+0,25(HCFC-142b)",2194.5,"Changes in atmospheric constituents and in radiative forcing (table 2.14 100-yr TAR) et Règlement sur la déclaration obligatoire de certaines émission de contaminants dans l'atmosphère, Loi sur la qualité de l'environnement, Q-2, a.2.2, 109.1 et 124.1"]
[{"$error":"#REF!"},{"$f":"#REF!","v":{"$error":"#REF!"}},{"$f":"#REF!","v":{"$error":"#REF!"}},{"$f":"IF(#REF!=\"\",\"\",#REF!)","v":{"$error":"#REF!"}},{"$f":"#REF!","v":{"$error":"#REF!"}},{"$f":"#REF!","v":{"$error":"#REF!"}},{"$f":"#REF!","v":{"$error":"#REF!"}},null,null,null,null,null,null,null,null,null,null,null,null,null,null,null,null,null,null,60,"R-413A","kg","0,09(PFC-218)+0,88(HFC-134a)+0,03*(600a)",1826.92,"Règlement sur la déclaration obligatoire de certaines émission de contaminants dans l'atmosphère, Loi sur la qualité de l'environnement, Q-2, a.2.2, 109.1 et 124.1 (note additionnelle: PRP du butane utilisé pour le PRP de l'isobutane)"]
[{"$error":"#REF!"},{"$f":"#REF!","v":{"$error":"#REF!"}},{"$f":"#REF!","v":{"$error":"#REF!"}},{"$f":"IF(#REF!=\"\",\"\",#REF!)","v":{"$error":"#REF!"}},{"$f":"#REF!","v":{"$error":"#REF!"}},{"$f":"#REF!","v":{"$error":"#REF!"}},{"$f":"#REF!","v":{"$error":"#REF!"}},null,null,null,null,null,null,null,null,null,null,null,null,null,null,null,null,null,null,61,"R-414A","kg","0,51(R-22)+0,285(HCFC-124)+,04*(600a)+0,165(142b)",1548.37,"Changes in atmospheric constituents and in radiative forcing (table 2.14 100-yr TAR) et Règlement sur la déclaration obligatoire de certaines émission de contaminants dans l'atmosphère, Loi sur la qualité de l'environnement, Q-2, a.2.2, 109.1 et 124.1"]
[{"$error":"#REF!"},{"$f":"#REF!","v":{"$error":"#REF!"}},{"$f":"#REF!","v":{"$error":"#REF!"}},{"$f":"IF(#REF!=\"\",\"\",#REF!)","v":{"$error":"#REF!"}},{"$f":"#REF!","v":{"$error":"#REF!"}},{"$f":"#REF!","v":{"$error":"#REF!"}},{"$f":"#REF!","v":{"$error":"#REF!"}},null,null,null,null,null,null,null,null,null,null,null,null,null,null,null,null,null,null,62,"R-414B","kg","0,5(R-22)+0,39(HCFC-124)+,015*(600a)+0,095(142b)",1388.42,"Changes in atmospheric constituents and in radiative forcing (table 2.14 100-yr TAR) et Règlement sur la déclaration obligatoire de certaines émission de contaminants dans l'atmosphère, Loi sur la qualité de l'environnement, Q-2, a.2.2, 109.1 et 124.1"]
[{"$error":"#REF!"},{"$f":"#REF!","v":{"$error":"#REF!"}},{"$f":"#REF!","v":{"$error":"#REF!"}},{"$f":"IF(#REF!=\"\",\"\",#REF!)","v":{"$error":"#REF!"}},{"$f":"#REF!","v":{"$error":"#REF!"}},{"$f":"#REF!","v":{"$error":"#REF!"}},{"$f":"#REF!","v":{"$error":"#REF!"}},null,null,null,null,null,null,null,null,null,null,null,null,null,null,null,null,null,null,99,"R-415A","kg","0,82(HFC-22)+0,18(HFC-152a)",1509.4,"Changes in atmospheric constituents and in radiative forcing (table 2.14 100-yr TAR) et Règlement sur la déclaration obligatoire de certaines émission de contaminants dans l'atmosphère, Loi sur la qualité de l'environnement, Q-2, a.2.2, 109.1 et 124.1"]
[null,{"$f":"#REF!","v":{"$error":"#REF!"}},{"$f":"#REF!","v":{"$error":"#REF!"}},{"$f":"IF(#REF!=\"\",\"\",#REF!)","v":{"$error":"#REF!"}},{"$f":"#REF!","v":{"$error":"#REF!"}},{"$f":"#REF!","v":{"$error":"#REF!"}},{"$f":"#REF!","v":{"$error":"#REF!"}},null,null,null,null,null,null,null,null,null,null,null,null,null,null,null,null,null,null,100,"R-415B","kg","0,25(HFC-22)+0,75(HFC-152a)",557.5,"Changes in atmospheric constituents and in radiative forcing (table 2.14 100-yr TAR) et Règlement sur la déclaration obligatoire de certaines émission de contaminants dans l'atmosphère, Loi sur la qualité de l'environnement, Q-2, a.2.2, 109.1 et 124.1",""]
[null,null,null,null,null,null,null,null,null,null,null,null,null,null,null,null,null,null,null,null,null,null,null,null,null,101,"R-416A","kg","0,59(HFC-134a)+0,395(HCFC-124)+0,015(600)",1034.01,"Changes in atmospheric constituents and in radiative forcing (table 2.14 100-yr TAR) et Règlement sur la déclaration obligatoire de certaines émission de contaminants dans l'atmosphère, Loi sur la qualité de l'environnement, Q-2, a.2.2, 109.1 et 124.1"]
["No_Projet_Sagir_Abrev","Code_FrmNRJ","Énergie","Unité","Production","Quantité","Coût","GJ","GES (t)","$/GJ","GJ/production",null,null,null,null,null,null,null,null,null,null,null,null,null,null,115,"R-417A","kg","0,466(HFC-125)+0,5(HFC-134a)+0,034(600)",2014.78,"Règlement sur la déclaration obligatoire de certaines émission de contaminants dans l'atmosphère, Loi sur la qualité de l'environnement, Q-2, a.2.2, 109.1 et 124.1"]
[{"$f":"DQ$2","v":{"$error":"#REF!"}},{"$f":"#REF!","v":{"$error":"#REF!"}},{"$f":"#REF!","v":{"$error":"#REF!"}},{"$f":"#REF!","v":{"$error":"#REF!"}},{"$f":"#REF!","v":{"$error":"#REF!"}},{"$f":"#REF!","v":{"$error":"#REF!"}},{"$f":"#REF!","v":{"$error":"#REF!"}},{"$f":"#REF!","v":{"$error":"#REF!"}},{"$f":"#REF!","v":{"$error":"#REF!"}},{"$f":"#REF!","v":{"$error":"#REF!"}},{"$f":"#REF!","v":{"$error":"#REF!"}},null,null,null,null,null,null,null,null,null,null,null,null,null,null,102,"R-418A","kg","0,015(propane)+0,96(HCFC-22)+0,025(HFC-152a)",1764.26,"Changes in atmospheric constituents and in radiative forcing (table 2.14 100-yr TAR) et Règlement sur la déclaration obligatoire de certaines émission de contaminants dans l'atmosphère, Loi sur la qualité de l'environnement, Q-2, a.2.2, 109.1 et 124.1"]
[{"$error":"#REF!"},{"$f":"#REF!","v":{"$error":"#REF!"}},{"$f":"#REF!","v":{"$error":"#REF!"}},{"$f":"#REF!","v":{"$error":"#REF!"}},{"$f":"#REF!","v":{"$error":"#REF!"}},{"$f":"#REF!","v":{"$error":"#REF!"}},{"$f":"#REF!","v":{"$error":"#REF!"}},{"$f":"#REF!","v":{"$error":"#REF!"}},{"$f":"#REF!","v":{"$error":"#REF!"}},{"$f":"#REF!","v":{"$error":"#REF!"}},{"$f":"#REF!","v":{"$error":"#REF!"}},null,null,null,null,null,null,null,null,null,null,null,null,null,null,103,"R-419A","kg","0,77(HFC-125)+0,19(HFC-134a)+0,04(ethane)",2442.04,"Règlement sur la déclaration obligatoire de certaines émission de contaminants dans l'atmosphère, Loi sur la qualité de l'environnement, Q-2, a.2.2, 109.1 et 124.1"]
[{"$error":"#REF!"},{"$f":"#REF!","v":{"$error":"#REF!"}},{"$f":"#REF!","v":{"$error":"#REF!"}},{"$f":"#REF!","v":{"$error":"#REF!"}},{"$f":"#REF!","v":{"$error":"#REF!"}},{"$f":"#REF!","v":{"$error":"#REF!"}},{"$f":"#REF!","v":{"$error":"#REF!"}},{"$f":"#REF!","v":{"$error":"#REF!"}},{"$f":"#REF!","v":{"$error":"#REF!"}},{"$f":"#REF!","v":{"$error":"#REF!"}},{"$f":"#REF!","v":{"$error":"#REF!"}},null,null,null,null,null,null,null,null,null,null,null,null,null,null,104,"R-420A","kg","0,88(HFC-134a)+0,12(HCFC-142b)",1421.2,"Changes in atmospheric constituents and in radiative forcing (table 2.14 100-yr TAR) et Règlement sur la déclaration obligatoire de certaines émission de contaminants dans l'atmosphère, Loi sur la qualité de l'environnement, Q-2, a.2.2, 109.1 et 124.1"]
[{"$error":"#REF!"},{"$f":"#REF!","v":{"$error":"#REF!"}},{"$f":"#REF!","v":{"$error":"#REF!"}},{"$f":"#REF!","v":{"$error":"#REF!"}},{"$f":"#REF!","v":{"$error":"#REF!"}},{"$f":"#REF!","v":{"$error":"#REF!"}},{"$f":"#REF!","v":{"$error":"#REF!"}},{"$f":"#REF!","v":{"$error":"#REF!"}},{"$f":"#REF!","v":{"$error":"#REF!"}},{"$f":"#REF!","v":{"$error":"#REF!"}},{"$f":"#REF!","v":{"$error":"#REF!"}},null,null,null,null,null,null,null,null,null,null,null,null,null,null,105,"R-421A","kg","0,58(HFC-125)+0,42(HFC-134a)",2170,"Règlement sur la déclaration obligatoire de certaines émission de contaminants dans l'atmosphère, Loi sur la qualité de l'environnement, Q-2, a.2.2, 109.1 et 124.1"]
[{"$error":"#REF!"},{"$f":"#REF!","v":{"$error":"#REF!"}},{"$f":"#REF!","v":{"$error":"#REF!"}},{"$f":"#REF!","v":{"$error":"#REF!"}},{"$f":"#REF!","v":{"$error":"#REF!"}},{"$f":"#REF!","v":{"$error":"#REF!"}},{"$f":"#REF!","v":{"$error":"#REF!"}},{"$f":"#REF!","v":{"$error":"#REF!"}},{"$f":"#REF!","v":{"$error":"#REF!"}},{"$f":"#REF!","v":{"$error":"#REF!"}},{"$f":"#REF!","v":{"$error":"#REF!"}},null,null,null,null,null,null,null,null,null,null,null,null,null,null,106,"R-421B","kg","0,85(HFC-125)+0,15(HFC-134a)",2575,"Règlement sur la déclaration obligatoire de certaines émission de contaminants dans l'atmosphère, Loi sur la qualité de l'environnement, Q-2, a.2.2, 109.1 et 124.1"]
[{"$error":"#REF!"},{"$f":"#REF!","v":{"$error":"#REF!"}},{"$f":"#REF!","v":{"$error":"#REF!"}},{"$f":"#REF!","v":{"$error":"#REF!"}},{"$f":"#REF!","v":{"$error":"#REF!"}},{"$f":"#REF!","v":{"$error":"#REF!"}},{"$f":"#REF!","v":{"$error":"#REF!"}},{"$f":"#REF!","v":{"$error":"#REF!"}},{"$f":"#REF!","v":{"$error":"#REF!"}},{"$f":"#REF!","v":{"$error":"#REF!"}},{"$f":"#REF!","v":{"$error":"#REF!"}},null,null,null,null,null,null,null,null,null,null,null,null,null,null,89,"R-422A","kg","0,851(HFC-125)+0,115(HFC-134a)+0,034*(600a)",2292.27,"Règlement sur la déclaration obligatoire de certaines émission de contaminants dans l'atmosphère, Loi sur la qualité de l'environnement, Q-2, a.2.2, 109.1 et 124.1"]
[null,null,null,null,null,null,null,null,null,null,null,null,null,null,null,null,null,null,null,null,null,null,null,null,null,90,"R-422B","kg","0,55(HFC-125)+0,42(HFC-134a)+0,03*(600a)",2138.91,"Règlement sur la déclaration obligatoire de certaines émission de contaminants dans l'atmosphère, Loi sur la qualité de l'environnement, Q-2, a.2.2, 109.1 et 124.1"]
["No_Projet_Sagir_Abrev","No","Type","Capacité_Actuel","Code_Refrig_Actuel","Ref_actuel","Formule_actuel","PRPActuel","Charge_Actuel","Code_unite_Actuel","Unite_actuel","Taux_Fuite","fuites_Actuel ","GES_actuel","Capacité_Prevu","Code_Refrig_Prevu","Ref_prevu","Formule_prevu","PRPprevu","Charge_prevu","Code_unite_prevu","Unite_prevu","fuites_prevu ","GES_prevu",null,91,"R-422C","kg","0,82(HFC-125)+0,15(HFC-134a)+0,03*(600a)",2543.92,"Règlement sur la déclaration obligatoire de certaines émission de contaminants dans l'atmosphère, Loi sur la qualité de l'environnement, Q-2, a.2.2, 109.1 et 124.1"]
[{"$f":"DQ$2","v":{"$error":"#REF!"}},{"$f":"#REF!","v":{"$error":"#REF!"}},{"$f":"IF(#REF!=\"\",\"\",#REF!)","v":{"$error":"#REF!"}},{"$f":"#REF!","v":{"$error":"#REF!"}},{"$f":"IF(F167=\"\",0,INDEX(OFFSET(PRP,,-1,,),MATCH(F167,PRP,0)))","v":{"$error":"#REF!"}},{"$f":"IF(#REF!=\"\",\"\",#REF!)","v":{"$error":"#REF!"}},{"$f":"IF(F167=\"\",\"\",INDEX(OFFSET(PRP,,2,,),MATCH(F167,PRP,0)))","v":{"$error":"#REF!"}},{"$f":"#REF!","v":{"$error":"#REF!"}},{"$f":"#REF!","v":{"$error":"#REF!"}},{"$f":"INDEX(OFFSET(Unite,,-1,,),MATCH(K167,Unite,0))","v":{"$error":"#REF!"}},{"$f":"#REF!","v":{"$error":"#REF!"}},{"$f":"#REF!","v":{"$error":"#REF!"}},{"$f":"#REF!*#REF!","v":{"$error":"#REF!"}},{"$f":"#REF!","v":{"$error":"#REF!"}},{"$f":"#REF!","v":{"$error":"#REF!"}},{"$f":"IF(Q167=\"\",0,INDEX(OFFSET(PRP,,-1,,),MATCH(Q167,PRP,0)))","v":{"$error":"#REF!"}},{"$f":"IF(#REF!=\"\",\"\",#REF!)","v":{"$error":"#REF!"}},{"$f":"IF(Q167=\"\",\"\",INDEX(OFFSET(PRP,,2,,),MATCH(Q167,PRP,0)))","v":{"$error":"#REF!"}},{"$f":"#REF!","v":{"$error":"#REF!"}},{"$f":"#REF!","v":{"$error":"#REF!"}},{"$f":"INDEX(OFFSET(Unite,,-1,,),MATCH(V167,Unite,0))","v":{"$error":"#REF!"}},{"$f":"#REF!","v":{"$error":"#REF!"}},{"$f":"#REF!*#REF!","v":{"$error":"#REF!"}},{"$f":"#REF!","v":{"$error":"#REF!"}},null,107,"R-423A","kg","0,525(HFC-134a)+0,475(HFC-227ea)",2060,"Règlement sur la déclaration obligatoire de certaines émission de contaminants dans l'atmosphère, Loi sur la qualité de l'environnement, Q-2, a.2.2, 109.1 et 124.1"]
[{"$error":"#REF!"},{"$f":"#REF!","v":{"$error":"#REF!"}},{"$f":"IF(#REF!=\"\",\"\",#REF!)","v":{"$error":"#REF!"}},{"$f":"#REF!","v":{"$error":"#REF!"}},{"$error":"#REF!"},{"$f":"IF(#REF!=\"\",\"\",#REF!)","v":{"$error":"#REF!"}},null,{"$f":"#REF!","v":{"$error":"#REF!"}},{"$f":"#REF!","v":{"$error":"#REF!"}},{"$error":"#REF!"},{"$f":"#REF!","v":{"$error":"#REF!"}},{"$f":"#REF!","v":{"$error":"#REF!"}},{"$f":"#REF!*#REF!","v":{"$error":"#REF!"}},{"$f":"#REF!","v":{"$error":"#REF!"}},{"$f":"#REF!","v":{"$error":"#REF!"}},{"$error":"#REF!"},{"$f":"IF(#REF!=\"\",\"\",#REF!)","v":{"$error":"#REF!"}},{"$error":"#REF!"},{"$f":"#REF!","v":{"$error":"#REF!"}},{"$f":"#REF!","v":{"$error":"#REF!"}},{"$error":"#REF!"},{"$f":"#REF!","v":{"$error":"#REF!"}},{"$f":"#REF!*#REF!","v":{"$error":"#REF!"}},{"$f":"#REF!","v":{"$error":"#REF!"}},null,108,"R-424A","kg",",505(125)+,47(134a)+0,09(600a)+,01(600)+,006(601a)",2183.87,"Règlement sur la déclaration obligatoire de certaines émission de contaminants dans l'atmosphère, Loi sur la qualité de l'environnement, Q-2, a.2.2, 109.1 et 124.1 (note dditionnelle: Pentane (601) et isopentane (601a) sont négligés et Butane (600) et iso"]
[{"$error":"#REF!"},{"$f":"#REF!","v":{"$error":"#REF!"}},{"$f":"IF(#REF!=\"\",\"\",#REF!)","v":{"$error":"#REF!"}},{"$f":"#REF!","v":{"$error":"#REF!"}},{"$error":"#REF!"},{"$f":"IF(#REF!=\"\",\"\",#REF!)","v":{"$error":"#REF!"}},null,{"$f":"#REF!","v":{"$error":"#REF!"}},{"$f":"#REF!","v":{"$error":"#REF!"}},{"$error":"#REF!"},{"$f":"#REF!","v":{"$error":"#REF!"}},{"$f":"#REF!","v":{"$error":"#REF!"}},{"$f":"#REF!*#REF!","v":{"$error":"#REF!"}},{"$f":"#REF!","v":{"$error":"#REF!"}},{"$f":"#REF!","v":{"$error":"#REF!"}},{"$error":"#REF!"},{"$f":"IF(#REF!=\"\",\"\",#REF!)","v":{"$error":"#REF!"}},{"$error":"#REF!"},{"$f":"#REF!","v":{"$error":"#REF!"}},{"$f":"#REF!","v":{"$error":"#REF!"}},{"$error":"#REF!"},{"$f":"#REF!","v":{"$error":"#REF!"}},{"$f":"#REF!*#REF!","v":{"$error":"#REF!"}},{"$f":"#REF!","v":{"$error":"#REF!"}},null,109,"R-425A","kg","0,185(HFC-32)+0,695(HFC-134a)+0,12(HFC-227ea)",1371.75,"Règlement sur la déclaration obligatoire de certaines émission de contaminants dans l'atmosphère, Loi sur la qualité de l'environnement, Q-2, a.2.2, 109.1 et 124.1"]
[{"$error":"#REF!"},{"$f":"#REF!","v":{"$error":"#REF!"}},{"$f":"IF(#REF!=\"\",\"\",#REF!)","v":{"$error":"#REF!"}},{"$f":"#REF!","v":{"$error":"#REF!"}},{"$error":"#REF!"},{"$f":"IF(#REF!=\"\",\"\",#REF!)","v":{"$error":"#REF!"}},null,{"$f":"#REF!","v":{"$error":"#REF!"}},{"$f":"#REF!","v":{"$error":"#REF!"}},{"$error":"#REF!"},{"$f":"#REF!","v":{"$error":"#REF!"}},{"$f":"#REF!","v":{"$error":"#REF!"}},{"$f":"#REF!*#REF!","v":{"$error":"#REF!"}},{"$f":"#REF!","v":{"$error":"#REF!"}},{"$f":"#REF!","v":{"$error":"#REF!"}},{"$error":"#REF!"},{"$f":"IF(#REF!=\"\",\"\",#REF!)","v":{"$error":"#REF!"}},{"$error":"#REF!"},{"$f":"#REF!","v":{"$error":"#REF!"}},{"$f":"#REF!","v":{"$error":"#REF!"}},{"$error":"#REF!"},{"$f":"#REF!","v":{"$error":"#REF!"}},{"$f":"#REF!*#REF!","v":{"$error":"#REF!"}},{"$f":"#REF!","v":{"$error":"#REF!"}},null,110,"R-426A","kg","0,051(HFC-125)+0,93(134a)+0,013(600a)+0,006(601a)",1374.73,"Règlement sur la déclaration obligatoire de certaines émission de contaminants dans l'atmosphère, Loi sur la qualité de l'environnement, Q-2, a.2.2, 109.1 et 124.1"]
[{"$error":"#REF!"},{"$f":"#REF!","v":{"$error":"#REF!"}},{"$f":"IF(#REF!=\"\",\"\",#REF!)","v":{"$error":"#REF!"}},{"$f":"#REF!","v":{"$error":"#REF!"}},{"$error":"#REF!"},{"$f":"IF(#REF!=\"\",\"\",#REF!)","v":{"$error":"#REF!"}},null,{"$f":"#REF!","v":{"$error":"#REF!"}},{"$f":"#REF!","v":{"$error":"#REF!"}},{"$error":"#REF!"},{"$f":"#REF!","v":{"$error":"#REF!"}},{"$f":"#REF!","v":{"$error":"#REF!"}},{"$f":"#REF!*#REF!","v":{"$error":"#REF!"}},{"$f":"#REF!","v":{"$error":"#REF!"}},{"$f":"#REF!","v":{"$error":"#REF!"}},{"$error":"#REF!"},{"$f":"IF(#REF!=\"\",\"\",#REF!)","v":{"$error":"#REF!"}},{"$error":"#REF!"},{"$f":"#REF!","v":{"$error":"#REF!"}},{"$f":"#REF!","v":{"$error":"#REF!"}},{"$error":"#REF!"},{"$f":"#REF!","v":{"$error":"#REF!"}},{"$f":"#REF!*#REF!","v":{"$error":"#REF!"}},{"$f":"#REF!","v":{"$error":"#REF!"}},null,111,"R-427A","kg","0,15(HFC32)+,25(HFC125)+,1(HFC143a)+,5(HFC134a)",1827.5,"Règlement sur la déclaration obligatoire de certaines émission de contaminants dans l'atmosphère, Loi sur la qualité de l'environnement, Q-2, a.2.2, 109.1 et 124.1"]
[{"$error":"#REF!"},{"$f":"#REF!","v":{"$error":"#REF!"}},{"$f":"IF(#REF!=\"\",\"\",#REF!)","v":{"$error":"#REF!"}},{"$f":"#REF!","v":{"$error":"#REF!"}},{"$error":"#REF!"},{"$f":"IF(#REF!=\"\",\"\",#REF!)","v":{"$error":"#REF!"}},null,{"$f":"#REF!","v":{"$error":"#REF!"}},{"$f":"#REF!","v":{"$error":"#REF!"}},{"$error":"#REF!"},{"$f":"#REF!","v":{"$error":"#REF!"}},{"$f":"#REF!","v":{"$error":"#REF!"}},{"$f":"#REF!*#REF!","v":{"$error":"#REF!"}},{"$f":"#REF!","v":{"$error":"#REF!"}},{"$f":"#REF!","v":{"$error":"#REF!"}},{"$error":"#REF!"},{"$f":"IF(#REF!=\"\",\"\",#REF!)","v":{"$error":"#REF!"}},{"$error":"#REF!"},{"$f":"#REF!","v":{"$error":"#REF!"}},{"$f":"#REF!","v":{"$error":"#REF!"}},{"$error":"#REF!"},{"$f":"#REF!","v":{"$error":"#REF!"}},{"$f":"#REF!*#REF!","v":{"$error":"#REF!"}},{"$f":"#REF!","v":{"$error":"#REF!"}},null,112,"R-428A","kg",",775(HFC125)+,2(HFC143a)+,006(propane)+0,019(600a)",2972.78,"Règlement sur la déclaration obligatoire de certaines émission de contaminants dans l'atmosphère, Loi sur la qualité de l'environnement, Q-2, a.2.2, 109.1 et 124.1"]
[null,null,null,null,null,null,null,null,null,null,null,null,null,null,null,null,null,null,null,null,null,null,null,null,null,93,"R-438A","kg",",085(32)+,45(125)+,442(134a)+,017(600)+,006*(601a)",1930.42,"Règlement sur la déclaration obligatoire de certaines émission de contaminants dans l'atmosphère, Loi sur la qualité de l'environnement, Q-2, a.2.2, 109.1 et 124.1 (note additionnelle: PRP du butane utilisé pour le PRP de l'isobutane)"]
["No_Projet_Sagir_Abrev","Code_Volet","Code_composante","Activité","GrandConsom","Secteur","Coût_Interne","Coût_externe","Coût","Aide_demande","QTE","CatMEE","CodeMEE",null,null,null,null,null,null,null,null,null,null,null,null,63,"R-500","kg","0,735(CFC-12)+0,262(HFC-152a)",8048.18,"Changes in atmospheric constituents and in radiative forcing (table 2.14 100-yr TAR) et Règlement sur la déclaration obligatoire de certaines émission de contaminants dans l'atmosphère, Loi sur la qualité de l'environnement, Q-2, a.2.2, 109.1 et 124.1"]
[{"$f":"DQ$2","v":{"$error":"#REF!"}},{"$f":"IF(E$56=TRUE,5,IF(F$56=TRUE,6,0))","v":0},{"$f":"#REF!","v":{"$error":"#REF!"}},{"$f":"#REF!","v":{"$error":"#REF!"}},false,{"$f":"IF(AND(DP$2=\"Agricole\",LEFT(C175,2)=\"52\"),\"Agricole\",\"Affaires\")","v":{"$error":"#REF!"}},{"$f":"#REF!","v":{"$error":"#REF!"}},{"$f":"#REF!","v":{"$error":"#REF!"}},{"$f":"#REF!","v":{"$error":"#REF!"}},{"$f":"#REF!","v":{"$error":"#REF!"}},{"$f":"#REF!","v":{"$error":"#REF!"}},{"$f":"IF(D175<>\"Choisir…\",INDEX(OFFSET(INDIRECT(AD$30),,1,,),MATCH(D175,INDIRECT(AD$30),0)),\"\")","v":{"$error":"#REF!"}},{"$f":"IF(D175<>\"Choisir…\",INDEX(OFFSET(INDIRECT(AD$30),,2,,),MATCH(D175,INDIRECT(AD$30),0)),\"\")","v":{"$error":"#REF!"}},null,null,null,null,null,null,null,null,null,null,null,null,64,"R-501","kg","0,75(HCFC-22)+0,25(CFC-12)",4082.5,"Changes in atmospheric constituents and in radiative forcing (table 2.14 100-yr TAR) et Règlement sur la déclaration obligatoire de certaines émission de contaminants dans l'atmosphère, Loi sur la qualité de l'environnement, Q-2, a.2.2, 109.1 et 124.1"]
[{"$error":"#REF!"},0,{"$f":"#REF!","v":{"$error":"#REF!"}},{"$f":"#REF!","v":{"$error":"#REF!"}},false,{"$error":"#REF!"},{"$f":"#REF!","v":{"$error":"#REF!"}},{"$f":"#REF!","v":{"$error":"#REF!"}},{"$f":"#REF!","v":{"$error":"#REF!"}},{"$f":"#REF!","v":{"$error":"#REF!"}},{"$f":"#REF!","v":{"$error":"#REF!"}},{"$error":"#REF!"},{"$error":"#REF!"},null,null,null,null,null,null,null,null,null,null,null,null,65,"R-502","kg","0,488(HCFC-22)+0,512(CFC-115)",4656.72,"Changes in atmospheric constituents and in radiative forcing (table 2.14 100-yr TAR) et Règlement sur la déclaration obligatoire de certaines émission de contaminants dans l'atmosphère, Loi sur la qualité de l'environnement, Q-2, a.2.2, 109.1 et 124.1"]
[{"$error":"#REF!"},0,{"$f":"#REF!","v":{"$error":"#REF!"}},{"$f":"#REF!","v":{"$error":"#REF!"}},false,{"$error":"#REF!"},{"$f":"#REF!","v":{"$error":"#REF!"}},{"$f":"#REF!","v":{"$error":"#REF!"}},{"$f":"#REF!","v":{"$error":"#REF!"}},{"$f":"#REF!","v":{"$error":"#REF!"}},{"$f":"#REF!","v":{"$error":"#REF!"}},{"$error":"#REF!"},{"$error":"#REF!"},null,null,null,null,null,null,null,null,null,null,null,null,66,"R-503","kg","0,401(HFC-23)+0,599(CFC-13)",13317.3,"Changes in atmospheric constituents and in radiative forcing (table 2.14 100-yr TAR) et Règlement sur la déclaration obligatoire de certaines émission de contaminants dans l'atmosphère, Loi sur la qualité de l'environnement, Q-2, a.2.2, 109.1 et 124.1"]
[{"$error":"#REF!"},0,{"$f":"#REF!","v":{"$error":"#REF!"}},{"$f":"#REF!","v":{"$error":"#REF!"}},false,{"$error":"#REF!"},{"$f":"#REF!","v":{"$error":"#REF!"}},{"$f":"#REF!","v":{"$error":"#REF!"}},{"$f":"#REF!","v":{"$error":"#REF!"}},{"$f":"#REF!","v":{"$error":"#REF!"}},{"$f":"#REF!","v":{"$error":"#REF!"}},{"$error":"#REF!"},{"$error":"#REF!"},null,null,null,null,null,null,null,null,null,null,null,null,67,"R-504","kg","0,482(HFC-32)+0,518(CFC-115)",4130.96,"Changes in atmospheric constituents and in radiative forcing (table 2.14 100-yr TAR) et Règlement sur la déclaration obligatoire de certaines émission de contaminants dans l'atmosphère, Loi sur la qualité de l'environnement, Q-2, a.2.2, 109.1 et 124.1"]
[{"$error":"#REF!"},0,{"$f":"#REF!","v":{"$error":"#REF!"}},{"$f":"#REF!","v":{"$error":"#REF!"}},false,{"$error":"#REF!"},{"$f":"#REF!","v":{"$error":"#REF!"}},{"$f":"#REF!","v":{"$error":"#REF!"}},{"$f":"#REF!","v":{"$error":"#REF!"}},{"$f":"#REF!","v":{"$error":"#REF!"}},{"$f":"#REF!","v":{"$error":"#REF!"}},{"$error":"#REF!"},{"$error":"#REF!"},null,null,null,null,null,null,null,null,null,null,null,null,69,"R-508A","kg","0,39(HFC-23)+0,61(PFC-116)",10175,"Règlement sur la déclaration obligatoire de certaines émission de contaminants dans l'atmosphère, Loi sur la qualité de l'environnement, Q-2, a.2.2, 109.1 et 124.1"]
[{"$error":"#REF!"},0,{"$f":"#REF!","v":{"$error":"#REF!"}},{"$f":"#REF!","v":{"$error":"#REF!"}},false,{"$error":"#REF!"},{"$f":"#REF!","v":{"$error":"#REF!"}},{"$f":"#REF!","v":{"$error":"#REF!"}},{"$f":"#REF!","v":{"$error":"#REF!"}},{"$f":"#REF!","v":{"$error":"#REF!"}},{"$f":"#REF!","v":{"$error":"#REF!"}},{"$error":"#REF!"},{"$error":"#REF!"},null,null,null,null,null,null,null,null,null,null,null,null,70,"R-508B","kg","0,46(HFC-23)+0,54(PFC-116)",10350,"Règlement sur la déclaration obligatoire de certaines émission de contaminants dans l'atmosphère, Loi sur la qualité de l'environnement, Q-2, a.2.2, 109.1 et 124.1"]
[null,null,null,null,null,null,null,null,null,null,null,null,null,null,null,null,null,null,null,null,null,null,null,null,null,71,"R-509A","kg","0,44(HCFC-22)+0,56(PFC-218)",4716.3999999999996,"Règlement sur la déclaration obligatoire de certaines émission de contaminants dans l'atmosphère, Loi sur la qualité de l'environnement, Q-2, a.2.2, 109.1 et 124.1"]
[null,null,null,null,null,null,null,null,null,null,null,null,null,null,null,null,null,null,null,null,null,null,null,null,null,75,"Tétrachlorure de carbone","kg","CCl4",1400,"Changes in atmospheric constituents and in radiative forcing (table 2.14 100-yr TAR)"]
[null,null,null,null,null,null,null,null,null,null,null,null,null,null,null,null,null,null,null,null,null,null,null,null,null,76,"Trifluorure d'azote","kg","NF3",17200,"Règlement sur la déclaration obligatoire de certaines émission de contaminants dans l'atmosphère, Loi sur la qualité de l'environnement, Q-2, a.2.2, 109.1 et 124.1"]
[null,null,null,null,null,null,null,null,null,null,null,null,null,null,null,null,null,null,null,null,null,null,null,null,null,82,"Autre","kg","N/A",0,""]
[null,null,null,null,null,null,null,null,null,null,null,null,null,null,null,"der"]
[]
[]
[]
[]
[]
[]
[]
[null,null,null,null,null,null,"No_Projet_Sagir_Abrev","NEQ","Code SCIAN","Type entreprise","Nom site","Adresse","Municipalité","Code postal","Entreprise","Code_entreprise","Regr_Entreprise","Tjatteint"]
[null,null,null,null,null,null,{"$f":"DQ$2","v":{"$error":"#REF!"}},{"$f":"IF(#REF!=\"\",\"\",#REF!)","v":{"$error":"#REF!"}},{"$f":"IF(#REF!=\"\",\"\",#REF!)","v":{"$error":"#REF!"}},{"$f":"IF(#REF!=\"\",\"\",#REF!)","v":{"$error":"#REF!"}},{"$f":"IF(#REF!=\"\",\"\",#REF!)","v":{"$error":"#REF!"}},{"$f":"IF(#REF!=\"\",\"\",#REF!)","v":{"$error":"#REF!"}},{"$f":"IF(#REF!=\"\",\"\",#REF!)","v":{"$error":"#REF!"}},{"$f":"IF(#REF!=\"\",\"\",#REF!)","v":{"$error":"#REF!"}},{"$f":"IF(#REF!=\"\",\"\",#REF!)","v":{"$error":"#REF!"}},{"$f":"IF(#REF!=\"\",\"\",#REF!)","v":{"$error":"#REF!"}},{"$f":"IF(#REF!=\"\",\"\",#REF!)","v":{"$error":"#REF!"}},{"$f":"IF(#REF!=\"\",\"\",#REF!)","v":{"$error":"#REF!"}}]
[null,null,null,null,null,null,{"$error":"#REF!"},{"$f":"IF(#REF!=\"\",\"\",#REF!)","v":{"$error":"#REF!"}},{"$f":"IF(#REF!=\"\",\"\",#REF!)","v":{"$error":"#REF!"}},{"$f":"IF(#REF!=\"\",\"\",#REF!)","v":{"$error":"#REF!"}},{"$f":"IF(#REF!=\"\",\"\",#REF!)","v":{"$error":"#REF!"}},{"$f":"IF(#REF!=\"\",\"\",#REF!)","v":{"$error":"#REF!"}},{"$f":"IF(#REF!=\"\",\"\",#REF!)","v":{"$error":"#REF!"}},{"$f":"IF(#REF!=\"\",\"\",#REF!)","v":{"$error":"#REF!"}},{"$f":"IF(#REF!=\"\",\"\",#REF!)","v":{"$error":"#REF!"}},{"$f":"IF(#REF!=\"\",\"\",#REF!)","v":{"$error":"#REF!"}},{"$f":"IF(#REF!=\"\",\"\",#REF!)","v":{"$error":"#REF!"}},{"$f":"IF(#REF!=\"\",\"\",#REF!)","v":{"$error":"#REF!"}}]
[null,null,null,null,null,null,{"$error":"#REF!"},{"$f":"IF(#REF!=\"\",\"\",#REF!)","v":{"$error":"#REF!"}},{"$f":"IF(#REF!=\"\",\"\",#REF!)","v":{"$error":"#REF!"}},{"$f":"IF(#REF!=\"\",\"\",#REF!)","v":{"$error":"#REF!"}},{"$f":"IF(#REF!=\"\",\"\",#REF!)","v":{"$error":"#REF!"}},{"$f":"IF(#REF!=\"\",\"\",#REF!)","v":{"$error":"#REF!"}},{"$f":"IF(#REF!=\"\",\"\",#REF!)","v":{"$error":"#REF!"}},{"$f":"IF(#REF!=\"\",\"\",#REF!)","v":{"$error":"#REF!"}},{"$f":"IF(#REF!=\"\",\"\",#REF!)","v":{"$error":"#REF!"}},{"$f":"IF(#REF!=\"\",\"\",#REF!)","v":{"$error":"#REF!"}},{"$f":"IF(#REF!=\"\",\"\",#REF!)","v":{"$error":"#REF!"}},{"$f":"IF(#REF!=\"\",\"\",#REF!)","v":{"$error":"#REF!"}}]
[null,null,null,null,null,null,{"$error":"#REF!"},{"$f":"IF(#REF!=\"\",\"\",#REF!)","v":{"$error":"#REF!"}},{"$f":"IF(#REF!=\"\",\"\",#REF!)","v":{"$error":"#REF!"}},{"$f":"IF(#REF!=\"\",\"\",#REF!)","v":{"$error":"#REF!"}},{"$f":"IF(#REF!=\"\",\"\",#REF!)","v":{"$error":"#REF!"}},{"$f":"IF(#REF!=\"\",\"\",#REF!)","v":{"$error":"#REF!"}},{"$f":"IF(#REF!=\"\",\"\",#REF!)","v":{"$error":"#REF!"}},{"$f":"IF(#REF!=\"\",\"\",#REF!)","v":{"$error":"#REF!"}},{"$f":"IF(#REF!=\"\",\"\",#REF!)","v":{"$error":"#REF!"}},{"$f":"IF(#REF!=\"\",\"\",#REF!)","v":{"$error":"#REF!"}},{"$f":"IF(#REF!=\"\",\"\",#REF!)","v":{"$error":"#REF!"}},{"$f":"IF(#REF!=\"\",\"\",#REF!)","v":{"$error":"#REF!"}}]
[null,null,null,null,null,null,{"$error":"#REF!"},{"$f":"IF(#REF!=\"\",\"\",#REF!)","v":{"$error":"#REF!"}},{"$f":"IF(#REF!=\"\",\"\",#REF!)","v":{"$error":"#REF!"}},{"$f":"IF(#REF!=\"\",\"\",#REF!)","v":{"$error":"#REF!"}},{"$f":"IF(#REF!=\"\",\"\",#REF!)","v":{"$error":"#REF!"}},{"$f":"IF(#REF!=\"\",\"\",#REF!)","v":{"$error":"#REF!"}},{"$f":"IF(#REF!=\"\",\"\",#REF!)","v":{"$error":"#REF!"}},{"$f":"IF(#REF!=\"\",\"\",#REF!)","v":{"$error":"#REF!"}},{"$f":"IF(#REF!=\"\",\"\",#REF!)","v":{"$error":"#REF!"}},{"$f":"IF(#REF!=\"\",\"\",#REF!)","v":{"$error":"#REF!"}},{"$f":"IF(#REF!=\"\",\"\",#REF!)","v":{"$error":"#REF!"}},{"$f":"IF(#REF!=\"\",\"\",#REF!)","v":{"$error":"#REF!"}}]
[null,null,null,null,null,null,{"$error":"#REF!"},{"$f":"IF(#REF!=\"\",\"\",#REF!)","v":{"$error":"#REF!"}},{"$f":"IF(#REF!=\"\",\"\",#REF!)","v":{"$error":"#REF!"}},{"$f":"IF(#REF!=\"\",\"\",#REF!)","v":{"$error":"#REF!"}},{"$f":"IF(#REF!=\"\",\"\",#REF!)","v":{"$error":"#REF!"}},{"$f":"IF(#REF!=\"\",\"\",#REF!)","v":{"$error":"#REF!"}},{"$f":"IF(#REF!=\"\",\"\",#REF!)","v":{"$error":"#REF!"}},{"$f":"IF(#REF!=\"\",\"\",#REF!)","v":{"$error":"#REF!"}},{"$f":"IF(#REF!=\"\",\"\",#REF!)","v":{"$error":"#REF!"}},{"$f":"IF(#REF!=\"\",\"\",#REF!)","v":{"$error":"#REF!"}},{"$f":"IF(#REF!=\"\",\"\",#REF!)","v":{"$error":"#REF!"}},{"$f":"IF(#REF!=\"\",\"\",#REF!)","v":{"$error":"#REF!"}}]
[null,null,null,null,null,null,{"$error":"#REF!"},{"$f":"IF(#REF!=\"\",\"\",#REF!)","v":{"$error":"#REF!"}},{"$f":"IF(#REF!=\"\",\"\",#REF!)","v":{"$error":"#REF!"}},{"$f":"IF(#REF!=\"\",\"\",#REF!)","v":{"$error":"#REF!"}},{"$f":"IF(#REF!=\"\",\"\",#REF!)","v":{"$error":"#REF!"}},{"$f":"IF(#REF!=\"\",\"\",#REF!)","v":{"$error":"#REF!"}},{"$f":"IF(#REF!=\"\",\"\",#REF!)","v":{"$error":"#REF!"}},{"$f":"IF(#REF!=\"\",\"\",#REF!)","v":{"$error":"#REF!"}},{"$f":"IF(#REF!=\"\",\"\",#REF!)","v":{"$error":"#REF!"}},{"$f":"IF(#REF!=\"\",\"\",#REF!)","v":{"$error":"#REF!"}},{"$f":"IF(#REF!=\"\",\"\",#REF!)","v":{"$error":"#REF!"}},{"$f":"IF(#REF!=\"\",\"\",#REF!)","v":{"$error":"#REF!"}}]
[null,null,null,null,null,null,{"$error":"#REF!"},{"$f":"IF(#REF!=\"\",\"\",#REF!)","v":{"$error":"#REF!"}},{"$f":"IF(#REF!=\"\",\"\",#REF!)","v":{"$error":"#REF!"}},{"$f":"IF(#REF!=\"\",\"\",#REF!)","v":{"$error":"#REF!"}},{"$f":"IF(#REF!=\"\",\"\",#REF!)","v":{"$error":"#REF!"}},{"$f":"IF(#REF!=\"\",\"\",#REF!)","v":{"$error":"#REF!"}},{"$f":"IF(#REF!=\"\",\"\",#REF!)","v":{"$error":"#REF!"}},{"$f":"IF(#REF!=\"\",\"\",#REF!)","v":{"$error":"#REF!"}},{"$f":"IF(#REF!=\"\",\"\",#REF!)","v":{"$error":"#REF!"}},{"$f":"IF(#REF!=\"\",\"\",#REF!)","v":{"$error":"#REF!"}},{"$f":"IF(#REF!=\"\",\"\",#REF!)","v":{"$error":"#REF!"}},{"$f":"IF(#REF!=\"\",\"\",#REF!)","v":{"$error":"#REF!"}}]
[null,null,null,null,null,null,{"$error":"#REF!"},{"$f":"IF(#REF!=\"\",\"\",#REF!)","v":{"$error":"#REF!"}},{"$f":"IF(#REF!=\"\",\"\",#REF!)","v":{"$error":"#REF!"}},{"$f":"IF(#REF!=\"\",\"\",#REF!)","v":{"$error":"#REF!"}},{"$f":"IF(#REF!=\"\",\"\",#REF!)","v":{"$error":"#REF!"}},{"$f":"IF(#REF!=\"\",\"\",#REF!)","v":{"$error":"#REF!"}},{"$f":"IF(#REF!=\"\",\"\",#REF!)","v":{"$error":"#REF!"}},{"$f":"IF(#REF!=\"\",\"\",#REF!)","v":{"$error":"#REF!"}},{"$f":"IF(#REF!=\"\",\"\",#REF!)","v":{"$error":"#REF!"}},{"$f":"IF(#REF!=\"\",\"\",#REF!)","v":{"$error":"#REF!"}},{"$f":"IF(#REF!=\"\",\"\",#REF!)","v":{"$error":"#REF!"}},{"$f":"IF(#REF!=\"\",\"\",#REF!)","v":{"$error":"#REF!"}}]
[null,null,null,null,null,null,{"$error":"#REF!"},{"$f":"IF(#REF!=\"\",\"\",#REF!)","v":{"$error":"#REF!"}},{"$f":"IF(#REF!=\"\",\"\",#REF!)","v":{"$error":"#REF!"}},{"$f":"IF(#REF!=\"\",\"\",#REF!)","v":{"$error":"#REF!"}},{"$f":"IF(#REF!=\"\",\"\",#REF!)","v":{"$error":"#REF!"}},{"$f":"IF(#REF!=\"\",\"\",#REF!)","v":{"$error":"#REF!"}},{"$f":"IF(#REF!=\"\",\"\",#REF!)","v":{"$error":"#REF!"}},{"$f":"IF(#REF!=\"\",\"\",#REF!)","v":{"$error":"#REF!"}},{"$f":"IF(#REF!=\"\",\"\",#REF!)","v":{"$error":"#REF!"}},{"$f":"IF(#REF!=\"\",\"\",#REF!)","v":{"$error":"#REF!"}},{"$f":"IF(#REF!=\"\",\"\",#REF!)","v":{"$error":"#REF!"}},{"$f":"IF(#REF!=\"\",\"\",#REF!)","v":{"$error":"#REF!"}}]
[null,null,null,null,null,null,{"$error":"#REF!"},{"$f":"IF(#REF!=\"\",\"\",#REF!)","v":{"$error":"#REF!"}},{"$f":"IF(#REF!=\"\",\"\",#REF!)","v":{"$error":"#REF!"}},{"$f":"IF(#REF!=\"\",\"\",#REF!)","v":{"$error":"#REF!"}},{"$f":"IF(#REF!=\"\",\"\",#REF!)","v":{"$error":"#REF!"}},{"$f":"IF(#REF!=\"\",\"\",#REF!)","v":{"$error":"#REF!"}},{"$f":"IF(#REF!=\"\",\"\",#REF!)","v":{"$error":"#REF!"}},{"$f":"IF(#REF!=\"\",\"\",#REF!)","v":{"$error":"#REF!"}},{"$f":"IF(#REF!=\"\",\"\",#REF!)","v":{"$error":"#REF!"}},{"$f":"IF(#REF!=\"\",\"\",#REF!)","v":{"$error":"#REF!"}},{"$f":"IF(#REF!=\"\",\"\",#REF!)","v":{"$error":"#REF!"}},{"$f":"IF(#REF!=\"\",\"\",#REF!)","v":{"$error":"#REF!"}}]
[null,null,null,null,null,null,{"$error":"#REF!"},{"$f":"IF(#REF!=\"\",\"\",#REF!)","v":{"$error":"#REF!"}},{"$f":"IF(#REF!=\"\",\"\",#REF!)","v":{"$error":"#REF!"}},{"$f":"IF(#REF!=\"\",\"\",#REF!)","v":{"$error":"#REF!"}},{"$f":"IF(#REF!=\"\",\"\",#REF!)","v":{"$error":"#REF!"}},{"$f":"IF(#REF!=\"\",\"\",#REF!)","v":{"$error":"#REF!"}},{"$f":"IF(#REF!=\"\",\"\",#REF!)","v":{"$error":"#REF!"}},{"$f":"IF(#REF!=\"\",\"\",#REF!)","v":{"$error":"#REF!"}},{"$f":"IF(#REF!=\"\",\"\",#REF!)","v":{"$error":"#REF!"}},{"$f":"IF(#REF!=\"\",\"\",#REF!)","v":{"$error":"#REF!"}},{"$f":"IF(#REF!=\"\",\"\",#REF!)","v":{"$error":"#REF!"}},{"$f":"IF(#REF!=\"\",\"\",#REF!)","v":{"$error":"#REF!"}}]
[null,null,null,null,null,null,{"$error":"#REF!"},{"$f":"IF(#REF!=\"\",\"\",#REF!)","v":{"$error":"#REF!"}},{"$f":"IF(#REF!=\"\",\"\",#REF!)","v":{"$error":"#REF!"}},{"$f":"IF(#REF!=\"\",\"\",#REF!)","v":{"$error":"#REF!"}},{"$f":"IF(#REF!=\"\",\"\",#REF!)","v":{"$error":"#REF!"}},{"$f":"IF(#REF!=\"\",\"\",#REF!)","v":{"$error":"#REF!"}},{"$f":"IF(#REF!=\"\",\"\",#REF!)","v":{"$error":"#REF!"}},{"$f":"IF(#REF!=\"\",\"\",#REF!)","v":{"$error":"#REF!"}},{"$f":"IF(#REF!=\"\",\"\",#REF!)","v":{"$error":"#REF!"}},{"$f":"IF(#REF!=\"\",\"\",#REF!)","v":{"$error":"#REF!"}},{"$f":"IF(#REF!=\"\",\"\",#REF!)","v":{"$error":"#REF!"}},{"$f":"IF(#REF!=\"\",\"\",#REF!)","v":{"$error":"#REF!"}}]
[null,null,null,null,null,null,{"$error":"#REF!"},{"$f":"IF(#REF!=\"\",\"\",#REF!)","v":{"$error":"#REF!"}},{"$f":"IF(#REF!=\"\",\"\",#REF!)","v":{"$error":"#REF!"}},{"$f":"IF(#REF!=\"\",\"\",#REF!)","v":{"$error":"#REF!"}},{"$f":"IF(#REF!=\"\",\"\",#REF!)","v":{"$error":"#REF!"}},{"$f":"IF(#REF!=\"\",\"\",#REF!)","v":{"$error":"#REF!"}},{"$f":"IF(#REF!=\"\",\"\",#REF!)","v":{"$error":"#REF!"}},{"$f":"IF(#REF!=\"\",\"\",#REF!)","v":{"$error":"#REF!"}},{"$f":"IF(#REF!=\"\",\"\",#REF!)","v":{"$error":"#REF!"}},{"$f":"IF(#REF!=\"\",\"\",#REF!)","v":{"$error":"#REF!"}},{"$f":"IF(#REF!=\"\",\"\",#REF!)","v":{"$error":"#REF!"}},{"$f":"IF(#REF!=\"\",\"\",#REF!)","v":{"$error":"#REF!"}}]
[null,null,null,null,null,null,{"$error":"#REF!"},{"$f":"IF(#REF!=\"\",\"\",#REF!)","v":{"$error":"#REF!"}},{"$f":"IF(#REF!=\"\",\"\",#REF!)","v":{"$error":"#REF!"}},{"$f":"IF(#REF!=\"\",\"\",#REF!)","v":{"$error":"#REF!"}},{"$f":"IF(#REF!=\"\",\"\",#REF!)","v":{"$error":"#REF!"}},{"$f":"IF(#REF!=\"\",\"\",#REF!)","v":{"$error":"#REF!"}},{"$f":"IF(#REF!=\"\",\"\",#REF!)","v":{"$error":"#REF!"}},{"$f":"IF(#REF!=\"\",\"\",#REF!)","v":{"$error":"#REF!"}},{"$f":"IF(#REF!=\"\",\"\",#REF!)","v":{"$error":"#REF!"}},{"$f":"IF(#REF!=\"\",\"\",#REF!)","v":{"$error":"#REF!"}},{"$f":"IF(#REF!=\"\",\"\",#REF!)","v":{"$error":"#REF!"}},{"$f":"IF(#REF!=\"\",\"\",#REF!)","v":{"$error":"#REF!"}}]
[null,null,null,null,null,null,{"$error":"#REF!"},{"$f":"IF(#REF!=\"\",\"\",#REF!)","v":{"$error":"#REF!"}},{"$f":"IF(#REF!=\"\",\"\",#REF!)","v":{"$error":"#REF!"}},{"$f":"IF(#REF!=\"\",\"\",#REF!)","v":{"$error":"#REF!"}},{"$f":"IF(#REF!=\"\",\"\",#REF!)","v":{"$error":"#REF!"}},{"$f":"IF(#REF!=\"\",\"\",#REF!)","v":{"$error":"#REF!"}},{"$f":"IF(#REF!=\"\",\"\",#REF!)","v":{"$error":"#REF!"}},{"$f":"IF(#REF!=\"\",\"\",#REF!)","v":{"$error":"#REF!"}},{"$f":"IF(#REF!=\"\",\"\",#REF!)","v":{"$error":"#REF!"}},{"$f":"IF(#REF!=\"\",\"\",#REF!)","v":{"$error":"#REF!"}},{"$f":"IF(#REF!=\"\",\"\",#REF!)","v":{"$error":"#REF!"}},{"$f":"IF(#REF!=\"\",\"\",#REF!)","v":{"$error":"#REF!"}}]
[null,null,null,null,null,null,{"$error":"#REF!"},{"$f":"IF(#REF!=\"\",\"\",#REF!)","v":{"$error":"#REF!"}},{"$f":"IF(#REF!=\"\",\"\",#REF!)","v":{"$error":"#REF!"}},{"$f":"IF(#REF!=\"\",\"\",#REF!)","v":{"$error":"#REF!"}},{"$f":"IF(#REF!=\"\",\"\",#REF!)","v":{"$error":"#REF!"}},{"$f":"IF(#REF!=\"\",\"\",#REF!)","v":{"$error":"#REF!"}},{"$f":"IF(#REF!=\"\",\"\",#REF!)","v":{"$error":"#REF!"}},{"$f":"IF(#REF!=\"\",\"\",#REF!)","v":{"$error":"#REF!"}},{"$f":"IF(#REF!=\"\",\"\",#REF!)","v":{"$error":"#REF!"}},{"$f":"IF(#REF!=\"\",\"\",#REF!)","v":{"$error":"#REF!"}},{"$f":"IF(#REF!=\"\",\"\",#REF!)","v":{"$error":"#REF!"}},{"$f":"IF(#REF!=\"\",\"\",#REF!)","v":{"$error":"#REF!"}}]
[null,null,null,null,null,null,{"$error":"#REF!"},{"$f":"IF(#REF!=\"\",\"\",#REF!)","v":{"$error":"#REF!"}},{"$f":"IF(#REF!=\"\",\"\",#REF!)","v":{"$error":"#REF!"}},{"$f":"IF(#REF!=\"\",\"\",#REF!)","v":{"$error":"#REF!"}},{"$f":"IF(#REF!=\"\",\"\",#REF!)","v":{"$error":"#REF!"}},{"$f":"IF(#REF!=\"\",\"\",#REF!)","v":{"$error":"#REF!"}},{"$f":"IF(#REF!=\"\",\"\",#REF!)","v":{"$error":"#REF!"}},{"$f":"IF(#REF!=\"\",\"\",#REF!)","v":{"$error":"#REF!"}},{"$f":"IF(#REF!=\"\",\"\",#REF!)","v":{"$error":"#REF!"}},{"$f":"IF(#REF!=\"\",\"\",#REF!)","v":{"$error":"#REF!"}},{"$f":"IF(#REF!=\"\",\"\",#REF!)","v":{"$error":"#REF!"}},{"$f":"IF(#REF!=\"\",\"\",#REF!)","v":{"$error":"#REF!"}}]
[null,null,null,null,null,null,{"$error":"#REF!"},{"$f":"IF(#REF!=\"\",\"\",#REF!)","v":{"$error":"#REF!"}},{"$f":"IF(#REF!=\"\",\"\",#REF!)","v":{"$error":"#REF!"}},{"$f":"IF(#REF!=\"\",\"\",#REF!)","v":{"$error":"#REF!"}},{"$f":"IF(#REF!=\"\",\"\",#REF!)","v":{"$error":"#REF!"}},{"$f":"IF(#REF!=\"\",\"\",#REF!)","v":{"$error":"#REF!"}},{"$f":"IF(#REF!=\"\",\"\",#REF!)","v":{"$error":"#REF!"}},{"$f":"IF(#REF!=\"\",\"\",#REF!)","v":{"$error":"#REF!"}},{"$f":"IF(#REF!=\"\",\"\",#REF!)","v":{"$error":"#REF!"}},{"$f":"IF(#REF!=\"\",\"\",#REF!)","v":{"$error":"#REF!"}},{"$f":"IF(#REF!=\"\",\"\",#REF!)","v":{"$error":"#REF!"}},{"$f":"IF(#REF!=\"\",\"\",#REF!)","v":{"$error":"#REF!"}}]
[null,null,null,null,null,null,{"$error":"#REF!"},{"$f":"IF(#REF!=\"\",\"\",#REF!)","v":{"$error":"#REF!"}},{"$f":"IF(#REF!=\"\",\"\",#REF!)","v":{"$error":"#REF!"}},{"$f":"IF(#REF!=\"\",\"\",#REF!)","v":{"$error":"#REF!"}},{"$f":"IF(#REF!=\"\",\"\",#REF!)","v":{"$error":"#REF!"}},{"$f":"IF(#REF!=\"\",\"\",#REF!)","v":{"$error":"#REF!"}},{"$f":"IF(#REF!=\"\",\"\",#REF!)","v":{"$error":"#REF!"}},{"$f":"IF(#REF!=\"\",\"\",#REF!)","v":{"$error":"#REF!"}},{"$f":"IF(#REF!=\"\",\"\",#REF!)","v":{"$error":"#REF!"}},{"$f":"IF(#REF!=\"\",\"\",#REF!)","v":{"$error":"#REF!"}},{"$f":"IF(#REF!=\"\",\"\",#REF!)","v":{"$error":"#REF!"}},{"$f":"IF(#REF!=\"\",\"\",#REF!)","v":{"$error":"#REF!"}}]
[null,null,null,null,null,null,{"$error":"#REF!"},{"$f":"IF(#REF!=\"\",\"\",#REF!)","v":{"$error":"#REF!"}},{"$f":"IF(#REF!=\"\",\"\",#REF!)","v":{"$error":"#REF!"}},{"$f":"IF(#REF!=\"\",\"\",#REF!)","v":{"$error":"#REF!"}},{"$f":"IF(#REF!=\"\",\"\",#REF!)","v":{"$error":"#REF!"}},{"$f":"IF(#REF!=\"\",\"\",#REF!)","v":{"$error":"#REF!"}},{"$f":"IF(#REF!=\"\",\"\",#REF!)","v":{"$error":"#REF!"}},{"$f":"IF(#REF!=\"\",\"\",#REF!)","v":{"$error":"#REF!"}},{"$f":"IF(#REF!=\"\",\"\",#REF!)","v":{"$error":"#REF!"}},{"$f":"IF(#REF!=\"\",\"\",#REF!)","v":{"$error":"#REF!"}},{"$f":"IF(#REF!=\"\",\"\",#REF!)","v":{"$error":"#REF!"}},{"$f":"IF(#REF!=\"\",\"\",#REF!)","v":{"$error":"#REF!"}}]
[null,null,null,null,null,null,{"$error":"#REF!"},{"$f":"IF(#REF!=\"\",\"\",#REF!)","v":{"$error":"#REF!"}},{"$f":"IF(#REF!=\"\",\"\",#REF!)","v":{"$error":"#REF!"}},{"$f":"IF(#REF!=\"\",\"\",#REF!)","v":{"$error":"#REF!"}},{"$f":"IF(#REF!=\"\",\"\",#REF!)","v":{"$error":"#REF!"}},{"$f":"IF(#REF!=\"\",\"\",#REF!)","v":{"$error":"#REF!"}},{"$f":"IF(#REF!=\"\",\"\",#REF!)","v":{"$error":"#REF!"}},{"$f":"IF(#REF!=\"\",\"\",#REF!)","v":{"$error":"#REF!"}},{"$f":"IF(#REF!=\"\",\"\",#REF!)","v":{"$error":"#REF!"}},{"$f":"IF(#REF!=\"\",\"\",#REF!)","v":{"$error":"#REF!"}},{"$f":"IF(#REF!=\"\",\"\",#REF!)","v":{"$error":"#REF!"}},{"$f":"IF(#REF!=\"\",\"\",#REF!)","v":{"$error":"#REF!"}}]
[null,null,null,null,null,null,{"$error":"#REF!"},{"$f":"IF(#REF!=\"\",\"\",#REF!)","v":{"$error":"#REF!"}},{"$f":"IF(#REF!=\"\",\"\",#REF!)","v":{"$error":"#REF!"}},{"$f":"IF(#REF!=\"\",\"\",#REF!)","v":{"$error":"#REF!"}},{"$f":"IF(#REF!=\"\",\"\",#REF!)","v":{"$error":"#REF!"}},{"$f":"IF(#REF!=\"\",\"\",#REF!)","v":{"$error":"#REF!"}},{"$f":"IF(#REF!=\"\",\"\",#REF!)","v":{"$error":"#REF!"}},{"$f":"IF(#REF!=\"\",\"\",#REF!)","v":{"$error":"#REF!"}},{"$f":"IF(#REF!=\"\",\"\",#REF!)","v":{"$error":"#REF!"}},{"$f":"IF(#REF!=\"\",\"\",#REF!)","v":{"$error":"#REF!"}},{"$f":"IF(#REF!=\"\",\"\",#REF!)","v":{"$error":"#REF!"}},{"$f":"IF(#REF!=\"\",\"\",#REF!)","v":{"$error":"#REF!"}}]
[null,null,null,null,null,null,{"$error":"#REF!"},{"$f":"IF(#REF!=\"\",\"\",#REF!)","v":{"$error":"#REF!"}},{"$f":"IF(#REF!=\"\",\"\",#REF!)","v":{"$error":"#REF!"}},{"$f":"IF(#REF!=\"\",\"\",#REF!)","v":{"$error":"#REF!"}},{"$f":"IF(#REF!=\"\",\"\",#REF!)","v":{"$error":"#REF!"}},{"$f":"IF(#REF!=\"\",\"\",#REF!)","v":{"$error":"#REF!"}},{"$f":"IF(#REF!=\"\",\"\",#REF!)","v":{"$error":"#REF!"}},{"$f":"IF(#REF!=\"\",\"\",#REF!)","v":{"$error":"#REF!"}},{"$f":"IF(#REF!=\"\",\"\",#REF!)","v":{"$error":"#REF!"}},{"$f":"IF(#REF!=\"\",\"\",#REF!)","v":{"$error":"#REF!"}},{"$f":"IF(#REF!=\"\",\"\",#REF!)","v":{"$error":"#REF!"}},{"$f":"IF(#REF!=\"\",\"\",#REF!)","v":{"$error":"#REF!"}}]
[null,null,null,null,null,null,{"$error":"#REF!"},{"$f":"IF(#REF!=\"\",\"\",#REF!)","v":{"$error":"#REF!"}},{"$f":"IF(#REF!=\"\",\"\",#REF!)","v":{"$error":"#REF!"}},{"$f":"IF(#REF!=\"\",\"\",#REF!)","v":{"$error":"#REF!"}},{"$f":"IF(#REF!=\"\",\"\",#REF!)","v":{"$error":"#REF!"}},{"$f":"IF(#REF!=\"\",\"\",#REF!)","v":{"$error":"#REF!"}},{"$f":"IF(#REF!=\"\",\"\",#REF!)","v":{"$error":"#REF!"}},{"$f":"IF(#REF!=\"\",\"\",#REF!)","v":{"$error":"#REF!"}},{"$f":"IF(#REF!=\"\",\"\",#REF!)","v":{"$error":"#REF!"}},{"$f":"IF(#REF!=\"\",\"\",#REF!)","v":{"$error":"#REF!"}},{"$f":"IF(#REF!=\"\",\"\",#REF!)","v":{"$error":"#REF!"}},{"$f":"IF(#REF!=\"\",\"\",#REF!)","v":{"$error":"#REF!"}}]
[null,null,null,null,null,null,{"$error":"#REF!"},{"$f":"IF(#REF!=\"\",\"\",#REF!)","v":{"$error":"#REF!"}},{"$f":"IF(#REF!=\"\",\"\",#REF!)","v":{"$error":"#REF!"}},{"$f":"IF(#REF!=\"\",\"\",#REF!)","v":{"$error":"#REF!"}},{"$f":"IF(#REF!=\"\",\"\",#REF!)","v":{"$error":"#REF!"}},{"$f":"IF(#REF!=\"\",\"\",#REF!)","v":{"$error":"#REF!"}},{"$f":"IF(#REF!=\"\",\"\",#REF!)","v":{"$error":"#REF!"}},{"$f":"IF(#REF!=\"\",\"\",#REF!)","v":{"$error":"#REF!"}},{"$f":"IF(#REF!=\"\",\"\",#REF!)","v":{"$error":"#REF!"}},{"$f":"IF(#REF!=\"\",\"\",#REF!)","v":{"$error":"#REF!"}},{"$f":"IF(#REF!=\"\",\"\",#REF!)","v":{"$error":"#REF!"}},{"$f":"IF(#REF!=\"\",\"\",#REF!)","v":{"$error":"#REF!"}}]
[null,null,null,null,null,null,{"$error":"#REF!"},{"$f":"IF(#REF!=\"\",\"\",#REF!)","v":{"$error":"#REF!"}},{"$f":"IF(#REF!=\"\",\"\",#REF!)","v":{"$error":"#REF!"}},{"$f":"IF(#REF!=\"\",\"\",#REF!)","v":{"$error":"#REF!"}},{"$f":"IF(#REF!=\"\",\"\",#REF!)","v":{"$error":"#REF!"}},{"$f":"IF(#REF!=\"\",\"\",#REF!)","v":{"$error":"#REF!"}},{"$f":"IF(#REF!=\"\",\"\",#REF!)","v":{"$error":"#REF!"}},{"$f":"IF(#REF!=\"\",\"\",#REF!)","v":{"$error":"#REF!"}},{"$f":"IF(#REF!=\"\",\"\",#REF!)","v":{"$error":"#REF!"}},{"$f":"IF(#REF!=\"\",\"\",#REF!)","v":{"$error":"#REF!"}},{"$f":"IF(#REF!=\"\",\"\",#REF!)","v":{"$error":"#REF!"}},{"$f":"IF(#REF!=\"\",\"\",#REF!)","v":{"$error":"#REF!"}},null,null,null,null,null,null,null,null,null,null,null,null,5]
[null,null,null,null,null,null,{"$error":"#REF!"},{"$f":"IF(#REF!=\"\",\"\",#REF!)","v":{"$error":"#REF!"}},{"$f":"IF(#REF!=\"\",\"\",#REF!)","v":{"$error":"#REF!"}},{"$f":"IF(#REF!=\"\",\"\",#REF!)","v":{"$error":"#REF!"}},{"$f":"IF(#REF!=\"\",\"\",#REF!)","v":{"$error":"#REF!"}},{"$f":"IF(#REF!=\"\",\"\",#REF!)","v":{"$error":"#REF!"}},{"$f":"IF(#REF!=\"\",\"\",#REF!)","v":{"$error":"#REF!"}},{"$f":"IF(#REF!=\"\",\"\",#REF!)","v":{"$error":"#REF!"}},{"$f":"IF(#REF!=\"\",\"\",#REF!)","v":{"$error":"#REF!"}},{"$f":"IF(#REF!=\"\",\"\",#REF!)","v":{"$error":"#REF!"}},{"$f":"IF(#REF!=\"\",\"\",#REF!)","v":{"$error":"#REF!"}},{"$f":"IF(#REF!=\"\",\"\",#REF!)","v":{"$error":"#REF!"}},null,null,null,null,null,null,null,null,null,null,null,null,0.25]
[null,null,null,null,null,null,{"$error":"#REF!"},{"$f":"IF(#REF!=\"\",\"\",#REF!)","v":{"$error":"#REF!"}},{"$f":"IF(#REF!=\"\",\"\",#REF!)","v":{"$error":"#REF!"}},{"$f":"IF(#REF!=\"\",\"\",#REF!)","v":{"$error":"#REF!"}},{"$f":"IF(#REF!=\"\",\"\",#REF!)","v":{"$error":"#REF!"}},{"$f":"IF(#REF!=\"\",\"\",#REF!)","v":{"$error":"#REF!"}},{"$f":"IF(#REF!=\"\",\"\",#REF!)","v":{"$error":"#REF!"}},{"$f":"IF(#REF!=\"\",\"\",#REF!)","v":{"$error":"#REF!"}},{"$f":"IF(#REF!=\"\",\"\",#REF!)","v":{"$error":"#REF!"}},{"$f":"IF(#REF!=\"\",\"\",#REF!)","v":{"$error":"#REF!"}},{"$f":"IF(#REF!=\"\",\"\",#REF!)","v":{"$error":"#REF!"}},{"$f":"IF(#REF!=\"\",\"\",#REF!)","v":{"$error":"#REF!"}},null,null,null,null,null,null,null,null,null,null,null,null,0.1]
[null,null,null,null,null,null,null,null,null,null,null,null,null,null,null,null,null,null,null,null,null,null,null,null,null,null,null,36403,"litre/an",null,0.55000000000000004,"taux participation",null,38.68,2789.7930000000001]
[]
[]
[]
[]
[]
[]
[]
[]
[]
[]
[]
[]
[]
[]
[]
[]
[]
[]
[]
[]
[]
[]
[]
[]
["No_Projet_Sagir_Abrev","Type_Depense","Cint","Cext","Ctot","CintProj","CextProj","CtotProj"]
[{"$f":"DQ$2","v":{"$error":"#REF!"}},{"$f":"#REF!","v":{"$error":"#REF!"}},{"$f":"#REF!","v":{"$error":"#REF!"}},{"$f":"#REF!","v":{"$error":"#REF!"}},{"$f":"#REF!","v":{"$error":"#REF!"}},{"$f":"#REF!","v":{"$error":"#REF!"}},{"$f":"#REF!","v":{"$error":"#REF!"}},{"$f":"#REF!","v":{"$error":"#REF!"}}]
[{"$error":"#REF!"},{"$f":"#REF!","v":{"$error":"#REF!"}},{"$f":"#REF!","v":{"$error":"#REF!"}},{"$f":"#REF!","v":{"$error":"#REF!"}},{"$f":"#REF!","v":{"$error":"#REF!"}},{"$f":"#REF!","v":{"$error":"#REF!"}},{"$f":"#REF!","v":{"$error":"#REF!"}},{"$f":"#REF!","v":{"$error":"#REF!"}}]
[{"$error":"#REF!"},{"$f":"#REF!","v":{"$error":"#REF!"}},{"$f":"#REF!","v":{"$error":"#REF!"}},{"$f":"#REF!","v":{"$error":"#REF!"}},{"$f":"#REF!","v":{"$error":"#REF!"}},{"$f":"#REF!","v":{"$error":"#REF!"}},{"$f":"#REF!","v":{"$error":"#REF!"}},{"$f":"#REF!","v":{"$error":"#REF!"}}]
[{"$error":"#REF!"},{"$f":"#REF!","v":{"$error":"#REF!"}},{"$f":"#REF!","v":{"$error":"#REF!"}},{"$f":"#REF!","v":{"$error":"#REF!"}},{"$f":"#REF!","v":{"$error":"#REF!"}},{"$f":"#REF!","v":{"$error":"#REF!"}},{"$f":"#REF!","v":{"$error":"#REF!"}},{"$f":"#REF!","v":{"$error":"#REF!"}}]
[{"$error":"#REF!"},{"$f":"#REF!","v":{"$error":"#REF!"}},{"$f":"#REF!","v":{"$error":"#REF!"}},{"$f":"#REF!","v":{"$error":"#REF!"}},{"$f":"#REF!","v":{"$error":"#REF!"}},{"$f":"#REF!","v":{"$error":"#REF!"}},{"$f":"#REF!","v":{"$error":"#REF!"}},{"$f":"#REF!","v":{"$error":"#REF!"}}]
[{"$error":"#REF!"},{"$f":"#REF!","v":{"$error":"#REF!"}},{"$f":"#REF!","v":{"$error":"#REF!"}},{"$f":"#REF!","v":{"$error":"#REF!"}},{"$f":"#REF!","v":{"$error":"#REF!"}},{"$f":"#REF!","v":{"$error":"#REF!"}},{"$f":"#REF!","v":{"$error":"#REF!"}},{"$f":"#REF!","v":{"$error":"#REF!"}}]

{"sheet":"EntenteType","index":3,"n_rows":74,"n_cols":4,"rows_kept":74,"cut":false,"hidden":true,"merged":[]}
[]
[null,"Entente type Base de référence Vf.docx"]
[]
[null,"https://burovirtuel.sharepoint.com/teams/TEQ-Exemplaritdeltat/Shared%20Documents/Projet%20EEGarantie/Base%20de%20r%C3%A9f%C3%A9rence/Entente%20type%20Base%20de%20r%C3%A9f%C3%A9rence%20Vf.docx?web=1"]
[]
[]
[null,"Champs Entente type","Formulaire, Data2","Formulaire, Data2"]
[null,null,"champs apparaît si identique","inscrire champs, si semblable, équivalent"]
[]
[]
[1,"No_COntrat",{"$f":"HLOOKUP(B11,Data2!Exportation,1,FALSE)","v":{"$error":"#N/A"}}]
[2,"REQUÉRANT",{"$f":"HLOOKUP(B12,Data2!Exportation,1,FALSE)","v":{"$error":"#N/A"}},"ORGreq"]
[3,"SignAdress",{"$f":"HLOOKUP(B13,Data2!Exportation,1,FALSE)","v":{"$error":"#N/A"}},"ORGAdr"]
[4,"SignVille",{"$f":"HLOOKUP(B14,Data2!Exportation,1,FALSE)","v":{"$error":"#N/A"}},"ORGVil"]
[5,"SignCP",{"$f":"HLOOKUP(B15,Data2!Exportation,1,FALSE)","v":"SignCP"},"ORGCP"]
[6,"Signom",{"$f":"HLOOKUP(B16,Data2!Exportation,1,FALSE)","v":{"$error":"#N/A"}},"SignNom"]
[7,"SignTitremin",{"$f":"HLOOKUP(B17,Data2!Exportation,1,FALSE)","v":{"$error":"#N/A"}},"SignFonc"]
[8,"Fem",{"$f":"HLOOKUP(B18,Data2!Exportation,1,FALSE)","v":{"$error":"#N/A"}}]
[9,"Fem2",{"$f":"HLOOKUP(B19,Data2!Exportation,1,FALSE)","v":{"$error":"#N/A"}}]
[10,"TEQnom",{"$f":"HLOOKUP(B20,Data2!Exportation,1,FALSE)","v":{"$error":"#N/A"}}]
[11,"TEQSignAutoTitreMin",{"$f":"HLOOKUP(B21,Data2!Exportation,1,FALSE)","v":{"$error":"#N/A"}}]
[12,"Date_DemandeTxt",{"$f":"HLOOKUP(B22,Data2!Exportation,1,FALSE)","v":{"$error":"#N/A"}}]
[13,"MOntantsub",{"$f":"HLOOKUP(B23,Data2!Exportation,1,FALSE)","v":{"$error":"#N/A"}}]
[14,"MOntantmax",{"$f":"HLOOKUP(B24,Data2!Exportation,1,FALSE)","v":{"$error":"#N/A"}}]
[15,"Montantadmtxt",{"$f":"HLOOKUP(B25,Data2!Exportation,1,FALSE)","v":{"$error":"#N/A"}}]
[16,"DAteVersionCN",{"$f":"HLOOKUP(B26,Data2!Exportation,1,FALSE)","v":{"$error":"#N/A"}}]
[17,"Paiement1",{"$f":"HLOOKUP(B27,Data2!Exportation,1,FALSE)","v":{"$error":"#N/A"}}]
[18,"Paiement2",{"$f":"HLOOKUP(B28,Data2!Exportation,1,FALSE)","v":{"$error":"#N/A"}}]
[19,"TEQSignAutoTitreAbrev",{"$f":"HLOOKUP(B29,Data2!Exportation,1,FALSE)","v":{"$error":"#N/A"}}]
[20,"TEQSignAuto",{"$f":"HLOOKUP(B30,Data2!Exportation,1,FALSE)","v":{"$error":"#N/A"}}]
[21,"TEQSignAutoTitreMin",{"$f":"HLOOKUP(B31,Data2!Exportation,1,FALSE)","v":{"$error":"#N/A"}}]
[22,"TEQSignAutoArt",{"$f":"HLOOKUP(B32,Data2!Exportation,1,FALSE)","v":{"$error":"#N/A"}}]
[23,"TEQSignAtrCi",{"$f":"HLOOKUP(B33,Data2!Exportation,1,FALSE)","v":{"$error":"#N/A"}}]
[24,"TEQChargAppelmin",{"$f":"HLOOKUP(B34,Data2!Exportation,1,FALSE)","v":{"$error":"#N/A"}}]
[25,"TEQChargPrenom",{"$f":"HLOOKUP(B35,Data2!Exportation,1,FALSE)","v":{"$error":"#N/A"}}]
[26,"TEQCHargNom",{"$f":"HLOOKUP(B36,Data2!Exportation,1,FALSE)","v":{"$error":"#N/A"}}]
[27,"TEQChargfem",{"$f":"HLOOKUP(B37,Data2!Exportation,1,FALSE)","v":{"$error":"#N/A"}}]
[28,"TEQCHargTitremin",{"$f":"HLOOKUP(B38,Data2!Exportation,1,FALSE)","v":{"$error":"#N/A"}}]
[29,"SignAppelmin",{"$f":"HLOOKUP(B39,Data2!Exportation,1,FALSE)","v":{"$error":"#N/A"}}]
[30,"SignPrénom",{"$f":"HLOOKUP(B40,Data2!Exportation,1,FALSE)","v":{"$error":"#N/A"}},"SignPrenom"]
[31,"Signnom",{"$f":"HLOOKUP(B41,Data2!Exportation,1,FALSE)","v":"SignNom"}]
[32,"SignTitremin",{"$f":"HLOOKUP(B42,Data2!Exportation,1,FALSE)","v":{"$error":"#N/A"}},"SignFonc"]
[33,"FEM3",{"$f":"HLOOKUP(B43,Data2!Exportation,1,FALSE)","v":{"$error":"#N/A"}}]
[34,"RepAppelmin",{"$f":"HLOOKUP(B44,Data2!Exportation,1,FALSE)","v":{"$error":"#N/A"}}]
[35,"Prénom",{"$f":"HLOOKUP(B45,Data2!Exportation,1,FALSE)","v":{"$error":"#N/A"}},"RepAdmPrenom"]
[36,"Nom",{"$f":"HLOOKUP(B46,Data2!Exportation,1,FALSE)","v":{"$error":"#N/A"}},"RepAdmNom"]
[37,"TitreRepmin",{"$f":"HLOOKUP(B47,Data2!Exportation,1,FALSE)","v":{"$error":"#N/A"}},"RepAdmFonc"]
[38,"TEQChargPrenom",{"$f":"HLOOKUP(B48,Data2!Exportation,1,FALSE)","v":{"$error":"#N/A"}}]
[39,"TEQCHargNom",{"$f":"HLOOKUP(B49,Data2!Exportation,1,FALSE)","v":{"$error":"#N/A"}}]
[40,"TEQCHargTitremin",{"$f":"HLOOKUP(B50,Data2!Exportation,1,FALSE)","v":{"$error":"#N/A"}}]
[41,"Extensioncharge",{"$f":"HLOOKUP(B51,Data2!Exportation,1,FALSE)","v":{"$error":"#N/A"}}]
[42,"CourrielCharg",{"$f":"HLOOKUP(B52,Data2!Exportation,1,FALSE)","v":{"$error":"#N/A"}}]
[43,"Appel_Appel",{"$f":"HLOOKUP(B53,Data2!Exportation,1,FALSE)","v":{"$error":"#N/A"}}]
[44,"Prénom",{"$f":"HLOOKUP(B54,Data2!Exportation,1,FALSE)","v":{"$error":"#N/A"}},"RepAdmPrenom"]
[45,"Nom",{"$f":"HLOOKUP(B55,Data2!Exportation,1,FALSE)","v":{"$error":"#N/A"}},"RepAdmNom"]
[46,"Titre",{"$f":"HLOOKUP(B56,Data2!Exportation,1,FALSE)","v":{"$error":"#N/A"}},"RepAdmFonc"]
[47,"Entreprise_Contact",{"$f":"HLOOKUP(B57,Data2!Exportation,1,FALSE)","v":{"$error":"#N/A"}},"RepAdmEnt"]
[48,"Adresse_Contact",{"$f":"HLOOKUP(B58,Data2!Exportation,1,FALSE)","v":{"$error":"#N/A"}},"RepAdmAdr"]
[49,"Ville_Contact",{"$f":"HLOOKUP(B59,Data2!Exportation,1,FALSE)","v":{"$error":"#N/A"}},"RepAdmVil"]
[50,"Province",{"$f":"HLOOKUP(B60,Data2!Exportation,1,FALSE)","v":{"$error":"#N/A"}}]
[51,"CP_Contact",{"$f":"HLOOKUP(B61,Data2!Exportation,1,FALSE)","v":{"$error":"#N/A"}},"RepAdmCP"]
[52,"Tel_Contact",{"$f":"HLOOKUP(B62,Data2!Exportation,1,FALSE)","v":{"$error":"#N/A"}},"RepAdmPhone"]
[53,"Poste_tel",{"$f":"HLOOKUP(B63,Data2!Exportation,1,FALSE)","v":{"$error":"#N/A"}},"RepAdmPoste"]
[54,"Fax_Contact",{"$f":"HLOOKUP(B64,Data2!Exportation,1,FALSE)","v":{"$error":"#N/A"}}]
[55,"Courriel_Contact",{"$f":"HLOOKUP(B65,Data2!Exportation,1,FALSE)","v":{"$error":"#N/A"}},"RepAdmEMail"]
[56,"DAtedebcontrattxt",{"$f":"HLOOKUP(B66,Data2!Exportation,1,FALSE)","v":{"$error":"#N/A"}}]
[57,"Datefinprojet",{"$f":"HLOOKUP(B67,Data2!Exportation,1,FALSE)","v":{"$error":"#N/A"}}]
[58,"Datefincontrattxt",{"$f":"HLOOKUP(B68,Data2!Exportation,1,FALSE)","v":{"$error":"#N/A"}}]
[59,"SignVille",{"$f":"HLOOKUP(B69,Data2!Exportation,1,FALSE)","v":{"$error":"#N/A"}},"SignVil"]
[60,"SignNom",{"$f":"HLOOKUP(B70,Data2!Exportation,1,FALSE)","v":"SignNom"}]
[61,"SignTitre",{"$f":"HLOOKUP(B71,Data2!Exportation,1,FALSE)","v":{"$error":"#N/A"}},"SignFonc"]
[62,"requerant",{"$f":"HLOOKUP(B72,Data2!Exportation,1,FALSE)","v":{"$error":"#N/A"}},"ORGreq"]
[63,"TEQSignAuto",{"$f":"HLOOKUP(B73,Data2!Exportation,1,FALSE)","v":{"$error":"#N/A"}}]
[64,"TEQSignAutoTitre",{"$f":"HLOOKUP(B74,Data2!Exportation,1,FALSE)","v":{"$error":"#N/A"}}]

{"sheet":"2. Plan d'implantation","index":4,"n_rows":58,"n_cols":44,"rows_kept":58,"cut":false,"hidden":true,"merged":[[12,15,13,15],[12,16,12,18],[12,11,13,11],[11,0,13,0],[11,1,13,1],[12,5,13,5],[12,8,13,8],[11,5,11,10],[12,7,13,7],[12,10,13,10],[10,28,10,31],[11,16,11,19],[11,31,13,31],[11,27,13,27],[11,29,13,29],[11,25,13,25],[11,28,13,28],[12,22,13,22],[11,20,11,21],[12,19,13,19],[12,20,13,20],[12,21,13,21],[11,26,13,26],[12,23,13,23],[7,27,7,31],[8,27,8,28],[11,4,13,4],[11,3,13,3],[12,9,13,9],[12,14,13,14],[12,13,13,13],[12,6,13,6],[11,22,11,23],[11,11,11,15],[11,30,13,30],[12,12,13,12],[11,24,13,24],[7,2,7,6],[8,2,8,3],[11,2,13,2]]}
[]
[]
[]
[]
["Plan d'implantation des mesures "]
[]
[]
[null,"Nom du requérant :",{"$f":"IF(#REF!=\"\",\"\",#REF!)","v":{"$error":"#REF!"}},null,null,null,null,null,null,null,null,null,null,null,null,null,null,null,null,null,null,null,null,null,null,null," Personne-ressource  :    ",{"$f":"CONCATENATE(IF(#REF!=\"\",\"\",#REF!),\" \",IF(#REF!=\"\",\"\",#REF!))","v":{"$error":"#REF!"}}]
[null,"Nº de l'entente : ",null,null,null,null,null,null,null,null,null,null,null,null,null,null,null,null,null,null,null,null,null,null,null,null,"Date du plan :    "]
[]
["Tableau sommaire du plan d'implantation",null,null,null,null,null,null,null,null,null,null,null,null,null,null,null,null,null,null,null,null,null,null,null,null,null,null,null,"Plan d'action et suivi par le requérant"]
["Mesure n° (1)","Description","Volet","Composante","Type\nd'émission","Consommation de référence",null,null,null,null,null,"Potentiel de réduction",null,null,null,null,"Investissement",null,null,null,"Aide potentielle\n(si applicable)",null,"PRI (4)",null,"Engagement \n(maximum 10 ans)(5)","Durée de vie","Recommandation (6)","Remarques","Action (7)","Année de réalisation prévue","Aide financière demandée au BEIE","Année de réalisation réelle"]
[null,null,null,null,null,"Forme d'énergie ou PRP (2)","Unité","Teneur\nHumidité\n%","Quantité/an","Quantité/unité de prod. (3)","Unité prod.","Quantité/an","Prix unitaire","$/an","GJ/an","GES (t/an)","Sans aide ($)",null,null,"Avec aide ($)","($)","Source de l'aide","Sans aide (an)","Avec aide (an)"]
[null,null,null,null,null,null,null,null,null,null,null,null,null,null,null,null,"Coûts\ninternes","Coûts\nexternes","Coûts\ntotaux"]
["No_Mesure","Description","Volet","Composante","Type_Emission","NRJ/PRP","UNITE","TH","QteRef","Cons_Spec","UNiteProd","QteProj","Coutunit","CoutNRJ","GJ","GES","Cint","Cext","Ctot","Iaa","S","Aideref","PRIsa","PRIaa","Engagement","Vie","Recommandation (6)","Remarques","Action (7)","Anprev","AidedemR","Anreel","Aidedem","Code_Volet","Code_composante","Type_Emisison","Code_NRJ/PRP","GesAmont","Code_Fin_Autre","Code_recom","Code_Action","GrandConsom","Secteur","No_Projet_Sagir_Abrev"]
[null,null,"Choisir…",null,"Choisir…",null,{"$f":"IF(F16=\"\",\"\",IF(OR($E16=\"choisir…\",$E16=\"Aucun\"),\"\",INDEX(OFFSET(INDIRECT($E16),,1),MATCH($F16,INDIRECT($E16),0))))","v":""},null,null,null,null,null,null,null,{"$f":"IF(L16=\"\",\"\",IF(OR(E16<>\"Énergie\",F16=\"\"),0,INDEX(OFFSET(INDIRECT($E16),,2),MATCH($F16,INDIRECT($E16),0)))*L16/1000*IF(AND(E16=\"Énergie\",F16<>\"\"),IF(AND(INDEX(OFFSET(Énergie,,8,,),MATCH(F16,Énergie,0))=1,H16<>\"\"),IF(H16=1,0,1-1.1676*H16),IF(AND(INDEX(OFFSET(Énergie,,8,,),MATCH(F16,Énergie,0))=2,H16<>\"\"),1-H16,1)),1))","v":""},{"$f":"IF(L16=\"\",\"\",IF(OR($E16=\"choisir…\",$E16=\"Aucun\",F16=\"\"),0,INDEX(OFFSET(INDIRECT(IF($E16=\"fugitive\",\"PRP\",E16)),,3),MATCH($F16,INDIRECT(IF($E16=\"fugitive\",\"PRP\",E16)),0)))*L16/1000000*IF($E16=\"fugitive\",1000,1)*IF(AND(E16=\"Énergie\",F16<>\"\"),IF(AND(INDEX(OFFSET(Énergie,,8,,),MATCH(F16,Énergie,0))=1,H16<>\"\"),IF(H16=1,0,1-1.1676*H16),IF(AND(INDEX(OFFSET(Énergie,,8,,),MATCH(F16,Énergie,0))=2,H16<>\"\"),1-H16,1)),1))","v":""},0,0,0,null,null,"Choisir…",null,null,null,null,"Choisir…",null,"Choisir…",null,"Non",null,{"$f":"INDEX(OFFSET(Aide_dem,,1,,),MATCH(AE16,Aide_dem,0))","v":false},{"$f":"IF(C16<>\"Choisir…\",INDEX(OFFSET(Volet,,-1,,),MATCH(C16,Volet,0)),\"\")","v":""},{"$f":"IF(D16<>\"\",INDEX(OFFSET(INDIRECT(C16),,-1,,),MATCH(D16,INDIRECT(C16),0)),\"\")","v":""},{"$f":"IF(E16<>\"Choisir…\",INDEX(OFFSET(Type_emission,,-1,,),MATCH(E16,Type_emission,0)),\"\")","v":""},{"$f":"IF(F16=\"\",\"\",INDEX(OFFSET(IF(E16=\"Énergie\",Énergie,IF(E16=\"Fugitive\",PRP,\"\")),,-1,,),MATCH(F16,IF(E16=\"Énergie\",Énergie,IF(E16=\"Fugitive\",PRP,\"\")),0)))","v":""},{"$f":"IF(AND(E16=\"Énergie\",F16<>\"\"),INDEX(OFFSET(Énergie,,22,,),MATCH(F16,Énergie,0)),0)*L16","v":0},{"$f":"IF(V16<>\"Choisir…\",INDEX(OFFSET(Fin_Autre,,-1,,),MATCH(V16,Fin_Autre,0)),\"\")","v":""},{"$f":"IF(AA16<>\"Choisir…\",INDEX(OFFSET(Recom,,-1,,),MATCH(AA16,Recom,0)),\"\")","v":""},{"$f":"IF(AC16<>\"Choisir…\",INDEX(OFFSET(Action,,-1,,),MATCH(AC16,Action,0)),\"\")","v":""},{"$f":"CHOOSE(AH16,FALSE,Data!DV$2,Data!DV$2,Data!DV$2,FALSE,FALSE,Data!DV$2)","v":{"$error":"#VALUE!"}},{"$f":"CHOOSE(AH16,\"Affaires\",IF(Data!DP$2=\"agricole\",\"Agricole\",\"Affaires\"),IF(Data!DP$2=\"Agricole\",\"Industriel\",Data!DP$2),IF(Data!DP$2=\"Agricole\",\"Industriel\",Data!DP$2),IF(Data!DP$2=\"Agricole\",\"Agricole\",\"Affaires\"),IF(Data!DP$2=\"Transport\",\"Transport\",\"Affaires\"),IF(Data!DP$2=\"Agricole\",\"Industriel\",Data!DP$2))","v":{"$error":"#VALUE!"}},{"$f":"IF(C16=\"Gestion\",\"1151000\",IF(AND(C16=\"Émissions_Fugitives\",D16=\"Optimisation réfrigération\"),\"1151210\",IF(AND(C16=\"Conversion\",D16=\"Bioénergies\"),\"1151240\",IF(AND(C16=\"Conversion\",D16=\"Solaires\"),\"1151202\",INDEX(OFFSET(Type_Entreprise,,2,,),MATCH(#REF!,Type_Entreprise,0))))))","v":{"$error":"#REF!"}}]
[null,null,"Choisir…",null,"Choisir…",null,"",null,null,null,null,null,null,null,"","",0,0,0,null,null,"Choisir…",null,null,null,null,"Choisir…",null,"Choisir…",null,"Non",null,false,{"$f":"IF(C17<>\"Choisir…\",INDEX(OFFSET(Volet,,-1,,),MATCH(C17,Volet,0)),\"\")","v":""},{"$f":"IF(D17<>\"\",INDEX(OFFSET(INDIRECT(C17),,-1,,),MATCH(D17,INDIRECT(C17),0)),\"\")","v":""},"","",0,"","","",{"$f":"CHOOSE(AH17,FALSE,Data!DV$2,Data!DV$2,Data!DV$2,FALSE,FALSE,Data!DV$2)","v":{"$error":"#VALUE!"}},{"$f":"CHOOSE(AH17,\"Affaires\",IF(Data!DP$2=\"agricole\",\"Agricole\",\"Affaires\"),IF(Data!DP$2=\"Agricole\",\"Industriel\",Data!DP$2),IF(Data!DP$2=\"Agricole\",\"Industriel\",Data!DP$2),IF(Data!DP$2=\"Agricole\",\"Agricole\",\"Affaires\"),IF(Data!DP$2=\"Transport\",\"Transport\",\"Affaires\"),IF(Data!DP$2=\"Agricole\",\"Industriel\",Data!DP$2))","v":{"$error":"#VALUE!"}},{"$f":"IF(C17=\"Gestion\",\"1151000\",IF(AND(C17=\"Émissions_Fugitives\",D17=\"Optimisation réfrigération\"),\"1151210\",IF(AND(C17=\"Conversion\",D17=\"Bioénergies\"),\"1151240\",IF(AND(C17=\"Conversion\",D17=\"Solaires\"),\"1151202\",INDEX(OFFSET(Type_Entreprise,,2,,),MATCH(#REF!,Type_Entreprise,0))))))","v":{"$error":"#REF!"}}]
[null,null,"Choisir…",null,"Choisir…",null,"",null,null,null,null,null,null,null,"","",0,0,0,null,null,"Choisir…",null,null,null,null,"Choisir…",null,"Choisir…",null,"Non",null,false,"","","","",0,"","","",{"$f":"CHOOSE(AH18,FALSE,Data!DV$2,Data!DV$2,Data!DV$2,FALSE,FALSE,Data!DV$2)","v":{"$error":"#VALUE!"}},{"$f":"CHOOSE(AH18,\"Affaires\",IF(Data!DP$2=\"agricole\",\"Agricole\",\"Affaires\"),IF(Data!DP$2=\"Agricole\",\"Industriel\",Data!DP$2),IF(Data!DP$2=\"Agricole\",\"Industriel\",Data!DP$2),IF(Data!DP$2=\"Agricole\",\"Agricole\",\"Affaires\"),IF(Data!DP$2=\"Transport\",\"Transport\",\"Affaires\"),IF(Data!DP$2=\"Agricole\",\"Industriel\",Data!DP$2))","v":{"$error":"#VALUE!"}},{"$f":"IF(C18=\"Gestion\",\"1151000\",IF(AND(C18=\"Émissions_Fugitives\",D18=\"Optimisation réfrigération\"),\"1151210\",IF(AND(C18=\"Conversion\",D18=\"Bioénergies\"),\"1151240\",IF(AND(C18=\"Conversion\",D18=\"Solaires\"),\"1151202\",INDEX(OFFSET(Type_Entreprise,,2,,),MATCH(#REF!,Type_Entreprise,0))))))","v":{"$error":"#REF!"}}]
[null,null,"Choisir…",null,"Choisir…",null,"",null,null,null,null,null,null,null,"","",0,0,0,null,null,"Choisir…",null,null,null,null,"Choisir…",null,"Choisir…",null,"Non",null,false,"","","","",0,"","","",{"$f":"CHOOSE(AH19,FALSE,Data!DV$2,Data!DV$2,Data!DV$2,FALSE,FALSE,Data!DV$2)","v":{"$error":"#VALUE!"}},{"$f":"CHOOSE(AH19,\"Affaires\",IF(Data!DP$2=\"agricole\",\"Agricole\",\"Affaires\"),IF(Data!DP$2=\"Agricole\",\"Industriel\",Data!DP$2),IF(Data!DP$2=\"Agricole\",\"Industriel\",Data!DP$2),IF(Data!DP$2=\"Agricole\",\"Agricole\",\"Affaires\"),IF(Data!DP$2=\"Transport\",\"Transport\",\"Affaires\"),IF(Data!DP$2=\"Agricole\",\"Industriel\",Data!DP$2))","v":{"$error":"#VALUE!"}},{"$f":"IF(C19=\"Gestion\",\"1151000\",IF(AND(C19=\"Émissions_Fugitives\",D19=\"Optimisation réfrigération\"),\"1151210\",IF(AND(C19=\"Conversion\",D19=\"Bioénergies\"),\"1151240\",IF(AND(C19=\"Conversion\",D19=\"Solaires\"),\"1151202\",INDEX(OFFSET(Type_Entreprise,,2,,),MATCH(#REF!,Type_Entreprise,0))))))","v":{"$error":"#REF!"}}]
[null,null,"Choisir…",null,"Choisir…",null,"",null,null,null,null,null,null,null,"","",0,0,0,null,null,"Choisir…",null,null,null,null,"Choisir…",null,"Choisir…",null,"Non",null,false,"","","","",0,"","","",{"$f":"CHOOSE(AH20,FALSE,Data!DV$2,Data!DV$2,Data!DV$2,FALSE,FALSE,Data!DV$2)","v":{"$error":"#VALUE!"}},{"$f":"CHOOSE(AH20,\"Affaires\",IF(Data!DP$2=\"agricole\",\"Agricole\",\"Affaires\"),IF(Data!DP$2=\"Agricole\",\"Industriel\",Data!DP$2),IF(Data!DP$2=\"Agricole\",\"Industriel\",Data!DP$2),IF(Data!DP$2=\"Agricole\",\"Agricole\",\"Affaires\"),IF(Data!DP$2=\"Transport\",\"Transport\",\"Affaires\"),IF(Data!DP$2=\"Agricole\",\"Industriel\",Data!DP$2))","v":{"$error":"#VALUE!"}},{"$f":"IF(C20=\"Gestion\",\"1151000\",IF(AND(C20=\"Émissions_Fugitives\",D20=\"Optimisation réfrigération\"),\"1151210\",IF(AND(C20=\"Conversion\",D20=\"Bioénergies\"),\"1151240\",IF(AND(C20=\"Conversion\",D20=\"Solaires\"),\"1151202\",INDEX(OFFSET(Type_Entreprise,,2,,),MATCH(#REF!,Type_Entreprise,0))))))","v":{"$error":"#REF!"}}]
[null,null,"Choisir…",null,"Choisir…",null,"",null,null,null,null,null,null,null,"","",0,0,0,null,null,"Choisir…",null,null,null,null,"Choisir…",null,"Choisir…",null,"Non",null,false,"","","","",0,"","","",{"$f":"CHOOSE(AH21,FALSE,Data!DV$2,Data!DV$2,Data!DV$2,FALSE,FALSE,Data!DV$2)","v":{"$error":"#VALUE!"}},{"$f":"CHOOSE(AH21,\"Affaires\",IF(Data!DP$2=\"agricole\",\"Agricole\",\"Affaires\"),IF(Data!DP$2=\"Agricole\",\"Industriel\",Data!DP$2),IF(Data!DP$2=\"Agricole\",\"Industriel\",Data!DP$2),IF(Data!DP$2=\"Agricole\",\"Agricole\",\"Affaires\"),IF(Data!DP$2=\"Transport\",\"Transport\",\"Affaires\"),IF(Data!DP$2=\"Agricole\",\"Industriel\",Data!DP$2))","v":{"$error":"#VALUE!"}},{"$f":"IF(C21=\"Gestion\",\"1151000\",IF(AND(C21=\"Émissions_Fugitives\",D21=\"Optimisation réfrigération\"),\"1151210\",IF(AND(C21=\"Conversion\",D21=\"Bioénergies\"),\"1151240\",IF(AND(C21=\"Conversion\",D21=\"Solaires\"),\"1151202\",INDEX(OFFSET(Type_Entreprise,,2,,),MATCH(#REF!,Type_Entreprise,0))))))","v":{"$error":"#REF!"}}]
[null,null,"Choisir…",null,"Choisir…",null,"",null,null,null,null,null,null,null,"","",0,0,0,null,null,"Choisir…",null,null,null,null,"Choisir…",null,"Choisir…",null,"Non",null,false,"","","","",0,"","","",{"$f":"CHOOSE(AH22,FALSE,Data!DV$2,Data!DV$2,Data!DV$2,FALSE,FALSE,Data!DV$2)","v":{"$error":"#VALUE!"}},{"$f":"CHOOSE(AH22,\"Affaires\",IF(Data!DP$2=\"agricole\",\"Agricole\",\"Affaires\"),IF(Data!DP$2=\"Agricole\",\"Industriel\",Data!DP$2),IF(Data!DP$2=\"Agricole\",\"Industriel\",Data!DP$2),IF(Data!DP$2=\"Agricole\",\"Agricole\",\"Affaires\"),IF(Data!DP$2=\"Transport\",\"Transport\",\"Affaires\"),IF(Data!DP$2=\"Agricole\",\"Industriel\",Data!DP$2))","v":{"$error":"#VALUE!"}},{"$f":"IF(C22=\"Gestion\",\"1151000\",IF(AND(C22=\"Émissions_Fugitives\",D22=\"Optimisation réfrigération\"),\"1151210\",IF(AND(C22=\"Conversion\",D22=\"Bioénergies\"),\"1151240\",IF(AND(C22=\"Conversion\",D22=\"Solaires\"),\"1151202\",INDEX(OFFSET(Type_Entreprise,,2,,),MATCH(#REF!,Type_Entreprise,0))))))","v":{"$error":"#REF!"}}]
[null,null,"Choisir…",null,"Choisir…",null,"",null,null,null,null,null,null,null,"","",0,0,0,null,null,"Choisir…",null,null,null,null,"Choisir…",null,"Choisir…",null,"Non",null,false,"","","","",0,"","","",{"$f":"CHOOSE(AH23,FALSE,Data!DV$2,Data!DV$2,Data!DV$2,FALSE,FALSE,Data!DV$2)","v":{"$error":"#VALUE!"}},{"$f":"CHOOSE(AH23,\"Affaires\",IF(Data!DP$2=\"agricole\",\"Agricole\",\"Affaires\"),IF(Data!DP$2=\"Agricole\",\"Industriel\",Data!DP$2),IF(Data!DP$2=\"Agricole\",\"Industriel\",Data!DP$2),IF(Data!DP$2=\"Agricole\",\"Agricole\",\"Affaires\"),IF(Data!DP$2=\"Transport\",\"Transport\",\"Affaires\"),IF(Data!DP$2=\"Agricole\",\"Industriel\",Data!DP$2))","v":{"$error":"#VALUE!"}},{"$f":"IF(C23=\"Gestion\",\"1151000\",IF(AND(C23=\"Émissions_Fugitives\",D23=\"Optimisation réfrigération\"),\"1151210\",IF(AND(C23=\"Conversion\",D23=\"Bioénergies\"),\"1151240\",IF(AND(C23=\"Conversion\",D23=\"Solaires\"),\"1151202\",INDEX(OFFSET(Type_Entreprise,,2,,),MATCH(#REF!,Type_Entreprise,0))))))","v":{"$error":"#REF!"}}]
[null,null,"Choisir…",null,"Choisir…",null,"",null,null,null,null,null,null,null,"","",0,0,0,null,null,"Choisir…",null,null,null,null,"Choisir…",null,"Choisir…",null,"Non",null,false,"","","","",0,"","","",{"$f":"CHOOSE(AH24,FALSE,Data!DV$2,Data!DV$2,Data!DV$2,FALSE,FALSE,Data!DV$2)","v":{"$error":"#VALUE!"}},{"$f":"CHOOSE(AH24,\"Affaires\",IF(Data!DP$2=\"agricole\",\"Agricole\",\"Affaires\"),IF(Data!DP$2=\"Agricole\",\"Industriel\",Data!DP$2),IF(Data!DP$2=\"Agricole\",\"Industriel\",Data!DP$2),IF(Data!DP$2=\"Agricole\",\"Agricole\",\"Affaires\"),IF(Data!DP$2=\"Transport\",\"Transport\",\"Affaires\"),IF(Data!DP$2=\"Agricole\",\"Industriel\",Data!DP$2))","v":{"$error":"#VALUE!"}},{"$f":"IF(C24=\"Gestion\",\"1151000\",IF(AND(C24=\"Émissions_Fugitives\",D24=\"Optimisation réfrigération\"),\"1151210\",IF(AND(C24=\"Conversion\",D24=\"Bioénergies\"),\"1151240\",IF(AND(C24=\"Conversion\",D24=\"Solaires\"),\"1151202\",INDEX(OFFSET(Type_Entreprise,,2,,),MATCH(#REF!,Type_Entreprise,0))))))","v":{"$error":"#REF!"}}]
[null,null,"Choisir…",null,"Choisir…",null,"",null,null,null,null,null,null,null,"","",0,0,0,null,null,"Choisir…",null,null,null,null,"Choisir…",null,"Choisir…",null,"Non",null,false,"","","","",0,"","","",{"$f":"CHOOSE(AH25,FALSE,Data!DV$2,Data!DV$2,Data!DV$2,FALSE,FALSE,Data!DV$2)","v":{"$error":"#VALUE!"}},{"$f":"CHOOSE(AH25,\"Affaires\",IF(Data!DP$2=\"agricole\",\"Agricole\",\"Affaires\"),IF(Data!DP$2=\"Agricole\",\"Industriel\",Data!DP$2),IF(Data!DP$2=\"Agricole\",\"Industriel\",Data!DP$2),IF(Data!DP$2=\"Agricole\",\"Agricole\",\"Affaires\"),IF(Data!DP$2=\"Transport\",\"Transport\",\"Affaires\"),IF(Data!DP$2=\"Agricole\",\"Industriel\",Data!DP$2))","v":{"$error":"#VALUE!"}},{"$f":"IF(C25=\"Gestion\",\"1151000\",IF(AND(C25=\"Émissions_Fugitives\",D25=\"Optimisation réfrigération\"),\"1151210\",IF(AND(C25=\"Conversion\",D25=\"Bioénergies\"),\"1151240\",IF(AND(C25=\"Conversion\",D25=\"Solaires\"),\"1151202\",INDEX(OFFSET(Type_Entreprise,,2,,),MATCH(#REF!,Type_Entreprise,0))))))","v":{"$error":"#REF!"}}]
[null,null,"Choisir…",null,"Choisir…",null,"",null,null,null,null,null,null,null,"","",0,0,0,null,null,"Choisir…",null,null,null,null,"Choisir…",null,"Choisir…",null,"Non",null,false,"","","","",0,"","","",{"$f":"CHOOSE(AH26,FALSE,Data!DV$2,Data!DV$2,Data!DV$2,FALSE,FALSE,Data!DV$2)","v":{"$error":"#VALUE!"}},{"$f":"CHOOSE(AH26,\"Affaires\",IF(Data!DP$2=\"agricole\",\"Agricole\",\"Affaires\"),IF(Data!DP$2=\"Agricole\",\"Industriel\",Data!DP$2),IF(Data!DP$2=\"Agricole\",\"Industriel\",Data!DP$2),IF(Data!DP$2=\"Agricole\",\"Agricole\",\"Affaires\"),IF(Data!DP$2=\"Transport\",\"Transport\",\"Affaires\"),IF(Data!DP$2=\"Agricole\",\"Industriel\",Data!DP$2))","v":{"$error":"#VALUE!"}},{"$f":"IF(C26=\"Gestion\",\"1151000\",IF(AND(C26=\"Émissions_Fugitives\",D26=\"Optimisation réfrigération\"),\"1151210\",IF(AND(C26=\"Conversion\",D26=\"Bioénergies\"),\"1151240\",IF(AND(C26=\"Conversion\",D26=\"Solaires\"),\"1151202\",INDEX(OFFSET(Type_Entreprise,,2,,),MATCH(#REF!,Type_Entreprise,0))))))","v":{"$error":"#REF!"}}]
[null,null,"Choisir…",null,"Choisir…",null,"",null,null,null,null,null,null,null,"","",0,0,0,null,null,"Choisir…",null,null,null,null,"Choisir…",null,"Choisir…",null,"Non",null,false,"","","","",0,"","","",{"$f":"CHOOSE(AH27,FALSE,Data!DV$2,Data!DV$2,Data!DV$2,FALSE,FALSE,Data!DV$2)","v":{"$error":"#VALUE!"}},{"$f":"CHOOSE(AH27,\"Affaires\",IF(Data!DP$2=\"agricole\",\"Agricole\",\"Affaires\"),IF(Data!DP$2=\"Agricole\",\"Industriel\",Data!DP$2),IF(Data!DP$2=\"Agricole\",\"Industriel\",Data!DP$2),IF(Data!DP$2=\"Agricole\",\"Agricole\",\"Affaires\"),IF(Data!DP$2=\"Transport\",\"Transport\",\"Affaires\"),IF(Data!DP$2=\"Agricole\",\"Industriel\",Data!DP$2))","v":{"$error":"#VALUE!"}},{"$f":"IF(C27=\"Gestion\",\"1151000\",IF(AND(C27=\"Émissions_Fugitives\",D27=\"Optimisation réfrigération\"),\"1151210\",IF(AND(C27=\"Conversion\",D27=\"Bioénergies\"),\"1151240\",IF(AND(C27=\"Conversion\",D27=\"Solaires\"),\"1151202\",INDEX(OFFSET(Type_Entreprise,,2,,),MATCH(#REF!,Type_Entreprise,0))))))","v":{"$error":"#REF!"}}]
[null,null,"Choisir…",null,"Choisir…",null,"",null,null,null,null,null,null,null,"","",0,0,0,null,null,"Choisir…",null,null,null,null,"Choisir…",null,"Choisir…",null,"Non",null,false,"","","","",0,"","","",{"$f":"CHOOSE(AH28,FALSE,Data!DV$2,Data!DV$2,Data!DV$2,FALSE,FALSE,Data!DV$2)","v":{"$error":"#VALUE!"}},{"$f":"CHOOSE(AH28,\"Affaires\",IF(Data!DP$2=\"agricole\",\"Agricole\",\"Affaires\"),IF(Data!DP$2=\"Agricole\",\"Industriel\",Data!DP$2),IF(Data!DP$2=\"Agricole\",\"Industriel\",Data!DP$2),IF(Data!DP$2=\"Agricole\",\"Agricole\",\"Affaires\"),IF(Data!DP$2=\"Transport\",\"Transport\",\"Affaires\"),IF(Data!DP$2=\"Agricole\",\"Industriel\",Data!DP$2))","v":{"$error":"#VALUE!"}},{"$f":"IF(C28=\"Gestion\",\"1151000\",IF(AND(C28=\"Émissions_Fugitives\",D28=\"Optimisation réfrigération\"),\"1151210\",IF(AND(C28=\"Conversion\",D28=\"Bioénergies\"),\"1151240\",IF(AND(C28=\"Conversion\",D28=\"Solaires\"),\"1151202\",INDEX(OFFSET(Type_Entreprise,,2,,),MATCH(#REF!,Type_Entreprise,0))))))","v":{"$error":"#REF!"}}]
[null,null,"Choisir…",null,"Choisir…",null,"",null,null,null,null,null,null,null,"","",0,0,0,null,null,"Choisir…",null,null,null,null,"Choisir…",null,"Choisir…",null,"Non",null,false,"","","","",0,"","","",{"$f":"CHOOSE(AH29,FALSE,Data!DV$2,Data!DV$2,Data!DV$2,FALSE,FALSE,Data!DV$2)","v":{"$error":"#VALUE!"}},{"$f":"CHOOSE(AH29,\"Affaires\",IF(Data!DP$2=\"agricole\",\"Agricole\",\"Affaires\"),IF(Data!DP$2=\"Agricole\",\"Industriel\",Data!DP$2),IF(Data!DP$2=\"Agricole\",\"Industriel\",Data!DP$2),IF(Data!DP$2=\"Agricole\",\"Agricole\",\"Affaires\"),IF(Data!DP$2=\"Transport\",\"Transport\",\"Affaires\"),IF(Data!DP$2=\"Agricole\",\"Industriel\",Data!DP$2))","v":{"$error":"#VALUE!"}},{"$f":"IF(C29=\"Gestion\",\"1151000\",IF(AND(C29=\"Émissions_Fugitives\",D29=\"Optimisation réfrigération\"),\"1151210\",IF(AND(C29=\"Conversion\",D29=\"Bioénergies\"),\"1151240\",IF(AND(C29=\"Conversion\",D29=\"Solaires\"),\"1151202\",INDEX(OFFSET(Type_Entreprise,,2,,),MATCH(#REF!,Type_Entreprise,0))))))","v":{"$error":"#REF!"}}]
[null,null,"Choisir…",null,"Choisir…",null,"",null,null,null,null,null,null,null,"","",0,0,0,null,null,"Choisir…",null,null,null,null,"Choisir…",null,"Choisir…",null,"Non",null,false,"","","","",0,"","","",{"$f":"CHOOSE(AH30,FALSE,Data!DV$2,Data!DV$2,Data!DV$2,FALSE,FALSE,Data!DV$2)","v":{"$error":"#VALUE!"}},{"$f":"CHOOSE(AH30,\"Affaires\",IF(Data!DP$2=\"agricole\",\"Agricole\",\"Affaires\"),IF(Data!DP$2=\"Agricole\",\"Industriel\",Data!DP$2),IF(Data!DP$2=\"Agricole\",\"Industriel\",Data!DP$2),IF(Data!DP$2=\"Agricole\",\"Agricole\",\"Affaires\"),IF(Data!DP$2=\"Transport\",\"Transport\",\"Affaires\"),IF(Data!DP$2=\"Agricole\",\"Industriel\",Data!DP$2))","v":{"$error":"#VALUE!"}},{"$f":"IF(C30=\"Gestion\",\"1151000\",IF(AND(C30=\"Émissions_Fugitives\",D30=\"Optimisation réfrigération\"),\"1151210\",IF(AND(C30=\"Conversion\",D30=\"Bioénergies\"),\"1151240\",IF(AND(C30=\"Conversion\",D30=\"Solaires\"),\"1151202\",INDEX(OFFSET(Type_Entreprise,,2,,),MATCH(#REF!,Type_Entreprise,0))))))","v":{"$error":"#REF!"}}]
[null,null,"Choisir…",null,"Choisir…",null,"",null,null,null,null,null,null,null,"","",0,0,0,null,null,"Choisir…",null,null,null,null,"Choisir…",null,"Choisir…",null,"Non",null,false,"","","","",0,"","","",{"$f":"CHOOSE(AH31,FALSE,Data!DV$2,Data!DV$2,Data!DV$2,FALSE,FALSE,Data!DV$2)","v":{"$error":"#VALUE!"}},{"$f":"CHOOSE(AH31,\"Affaires\",IF(Data!DP$2=\"agricole\",\"Agricole\",\"Affaires\"),IF(Data!DP$2=\"Agricole\",\"Industriel\",Data!DP$2),IF(Data!DP$2=\"Agricole\",\"Industriel\",Data!DP$2),IF(Data!DP$2=\"Agricole\",\"Agricole\",\"Affaires\"),IF(Data!DP$2=\"Transport\",\"Transport\",\"Affaires\"),IF(Data!DP$2=\"Agricole\",\"Industriel\",Data!DP$2))","v":{"$error":"#VALUE!"}},{"$f":"IF(C31=\"Gestion\",\"1151000\",IF(AND(C31=\"Émissions_Fugitives\",D31=\"Optimisation réfrigération\"),\"1151210\",IF(AND(C31=\"Conversion\",D31=\"Bioénergies\"),\"1151240\",IF(AND(C31=\"Conversion\",D31=\"Solaires\"),\"1151202\",INDEX(OFFSET(Type_Entreprise,,2,,),MATCH(#REF!,Type_Entreprise,0))))))","v":{"$error":"#REF!"}}]
[null,null,"Choisir…",null,"Choisir…",null,"",null,null,null,null,null,null,null,"","",0,0,0,null,null,"Choisir…",null,null,null,null,"Choisir…",null,"Choisir…",null,"Non",null,false,"","","","",0,"","","",{"$f":"CHOOSE(AH32,FALSE,Data!DV$2,Data!DV$2,Data!DV$2,FALSE,FALSE,Data!DV$2)","v":{"$error":"#VALUE!"}},{"$f":"CHOOSE(AH32,\"Affaires\",IF(Data!DP$2=\"agricole\",\"Agricole\",\"Affaires\"),IF(Data!DP$2=\"Agricole\",\"Industriel\",Data!DP$2),IF(Data!DP$2=\"Agricole\",\"Industriel\",Data!DP$2),IF(Data!DP$2=\"Agricole\",\"Agricole\",\"Affaires\"),IF(Data!DP$2=\"Transport\",\"Transport\",\"Affaires\"),IF(Data!DP$2=\"Agricole\",\"Industriel\",Data!DP$2))","v":{"$error":"#VALUE!"}},{"$f":"IF(C32=\"Gestion\",\"1151000\",IF(AND(C32=\"Émissions_Fugitives\",D32=\"Optimisation réfrigération\"),\"1151210\",IF(AND(C32=\"Conversion\",D32=\"Bioénergies\"),\"1151240\",IF(AND(C32=\"Conversion\",D32=\"Solaires\"),\"1151202\",INDEX(OFFSET(Type_Entreprise,,2,,),MATCH(#REF!,Type_Entreprise,0))))))","v":{"$error":"#REF!"}}]
[null,null,"Choisir…",null,"Choisir…",null,"",null,null,null,null,null,null,null,"","",0,0,0,null,null,"Choisir…",null,null,null,null,"Choisir…",null,"Choisir…",null,"Non",null,false,"","","","",0,"","","",{"$f":"CHOOSE(AH33,FALSE,Data!DV$2,Data!DV$2,Data!DV$2,FALSE,FALSE,Data!DV$2)","v":{"$error":"#VALUE!"}},{"$f":"CHOOSE(AH33,\"Affaires\",IF(Data!DP$2=\"agricole\",\"Agricole\",\"Affaires\"),IF(Data!DP$2=\"Agricole\",\"Industriel\",Data!DP$2),IF(Data!DP$2=\"Agricole\",\"Industriel\",Data!DP$2),IF(Data!DP$2=\"Agricole\",\"Agricole\",\"Affaires\"),IF(Data!DP$2=\"Transport\",\"Transport\",\"Affaires\"),IF(Data!DP$2=\"Agricole\",\"Industriel\",Data!DP$2))","v":{"$error":"#VALUE!"}},{"$f":"IF(C33=\"Gestion\",\"1151000\",IF(AND(C33=\"Émissions_Fugitives\",D33=\"Optimisation réfrigération\"),\"1151210\",IF(AND(C33=\"Conversion\",D33=\"Bioénergies\"),\"1151240\",IF(AND(C33=\"Conversion\",D33=\"Solaires\"),\"1151202\",INDEX(OFFSET(Type_Entreprise,,2,,),MATCH(#REF!,Type_Entreprise,0))))))","v":{"$error":"#REF!"}}]
[null,null,"Choisir…",null,"Choisir…",null,"",null,null,null,null,null,null,null,"","",0,0,0,null,null,"Choisir…",null,null,null,null,"Choisir…",null,"Choisir…",null,"Non",null,false,"","","","",0,"","","",{"$f":"CHOOSE(AH34,FALSE,Data!DV$2,Data!DV$2,Data!DV$2,FALSE,FALSE,Data!DV$2)","v":{"$error":"#VALUE!"}},{"$f":"CHOOSE(AH34,\"Affaires\",IF(Data!DP$2=\"agricole\",\"Agricole\",\"Affaires\"),IF(Data!DP$2=\"Agricole\",\"Industriel\",Data!DP$2),IF(Data!DP$2=\"Agricole\",\"Industriel\",Data!DP$2),IF(Data!DP$2=\"Agricole\",\"Agricole\",\"Affaires\"),IF(Data!DP$2=\"Transport\",\"Transport\",\"Affaires\"),IF(Data!DP$2=\"Agricole\",\"Industriel\",Data!DP$2))","v":{"$error":"#VALUE!"}},{"$f":"IF(C34=\"Gestion\",\"1151000\",IF(AND(C34=\"Émissions_Fugitives\",D34=\"Optimisation réfrigération\"),\"1151210\",IF(AND(C34=\"Conversion\",D34=\"Bioénergies\"),\"1151240\",IF(AND(C34=\"Conversion\",D34=\"Solaires\"),\"1151202\",INDEX(OFFSET(Type_Entreprise,,2,,),MATCH(#REF!,Type_Entreprise,0))))))","v":{"$error":"#REF!"}}]
[null,null,"Choisir…",null,"Choisir…",null,"",null,null,null,null,null,null,null,"","",0,0,0,null,null,"Choisir…",null,null,null,null,"Choisir…",null,"Choisir…",null,"Non",null,false,"","","","",0,"","","",{"$f":"CHOOSE(AH35,FALSE,Data!DV$2,Data!DV$2,Data!DV$2,FALSE,FALSE,Data!DV$2)","v":{"$error":"#VALUE!"}},{"$f":"CHOOSE(AH35,\"Affaires\",IF(Data!DP$2=\"agricole\",\"Agricole\",\"Affaires\"),IF(Data!DP$2=\"Agricole\",\"Industriel\",Data!DP$2),IF(Data!DP$2=\"Agricole\",\"Industriel\",Data!DP$2),IF(Data!DP$2=\"Agricole\",\"Agricole\",\"Affaires\"),IF(Data!DP$2=\"Transport\",\"Transport\",\"Affaires\"),IF(Data!DP$2=\"Agricole\",\"Industriel\",Data!DP$2))","v":{"$error":"#VALUE!"}},{"$f":"IF(C35=\"Gestion\",\"1151000\",IF(AND(C35=\"Émissions_Fugitives\",D35=\"Optimisation réfrigération\"),\"1151210\",IF(AND(C35=\"Conversion\",D35=\"Bioénergies\"),\"1151240\",IF(AND(C35=\"Conversion\",D35=\"Solaires\"),\"1151202\",INDEX(OFFSET(Type_Entreprise,,2,,),MATCH(#REF!,Type_Entreprise,0))))))","v":{"$error":"#REF!"}}]
[null,null,"Choisir…",null,"Choisir…",null,"",null,null,null,null,null,null,null,"","",0,0,0,null,null,"Choisir…",null,null,null,null,"Choisir…",null,"Choisir…",null,"Non",null,false,"","","","",0,"","","",{"$f":"CHOOSE(AH36,FALSE,Data!DV$2,Data!DV$2,Data!DV$2,FALSE,FALSE,Data!DV$2)","v":{"$error":"#VALUE!"}},{"$f":"CHOOSE(AH36,\"Affaires\",IF(Data!DP$2=\"agricole\",\"Agricole\",\"Affaires\"),IF(Data!DP$2=\"Agricole\",\"Industriel\",Data!DP$2),IF(Data!DP$2=\"Agricole\",\"Industriel\",Data!DP$2),IF(Data!DP$2=\"Agricole\",\"Agricole\",\"Affaires\"),IF(Data!DP$2=\"Transport\",\"Transport\",\"Affaires\"),IF(Data!DP$2=\"Agricole\",\"Industriel\",Data!DP$2))","v":{"$error":"#VALUE!"}},{"$f":"IF(C36=\"Gestion\",\"1151000\",IF(AND(C36=\"Émissions_Fugitives\",D36=\"Optimisation réfrigération\"),\"1151210\",IF(AND(C36=\"Conversion\",D36=\"Bioénergies\"),\"1151240\",IF(AND(C36=\"Conversion\",D36=\"Solaires\"),\"1151202\",INDEX(OFFSET(Type_Entreprise,,2,,),MATCH(#REF!,Type_Entreprise,0))))))","v":{"$error":"#REF!"}}]
[null,null,"Choisir…",null,"Choisir…",null,"",null,null,null,null,null,null,null,"","",0,0,0,null,null,"Choisir…",null,null,null,null,"Choisir…",null,"Choisir…",null,"Non",null,false,"","","","",0,"","","",{"$f":"CHOOSE(AH37,FALSE,Data!DV$2,Data!DV$2,Data!DV$2,FALSE,FALSE,Data!DV$2)","v":{"$error":"#VALUE!"}},{"$f":"CHOOSE(AH37,\"Affaires\",IF(Data!DP$2=\"agricole\",\"Agricole\",\"Affaires\"),IF(Data!DP$2=\"Agricole\",\"Industriel\",Data!DP$2),IF(Data!DP$2=\"Agricole\",\"Industriel\",Data!DP$2),IF(Data!DP$2=\"Agricole\",\"Agricole\",\"Affaires\"),IF(Data!DP$2=\"Transport\",\"Transport\",\"Affaires\"),IF(Data!DP$2=\"Agricole\",\"Industriel\",Data!DP$2))","v":{"$error":"#VALUE!"}},{"$f":"IF(C37=\"Gestion\",\"1151000\",IF(AND(C37=\"Émissions_Fugitives\",D37=\"Optimisation réfrigération\"),\"1151210\",IF(AND(C37=\"Conversion\",D37=\"Bioénergies\"),\"1151240\",IF(AND(C37=\"Conversion\",D37=\"Solaires\"),\"1151202\",INDEX(OFFSET(Type_Entreprise,,2,,),MATCH(#REF!,Type_Entreprise,0))))))","v":{"$error":"#REF!"}}]
[null,null,"Choisir…",null,"Choisir…",null,"",null,null,null,null,null,null,null,"","",0,0,0,null,null,"Choisir…",null,null,null,null,"Choisir…",null,"Choisir…",null,"Non",null,false,"","","","",0,"","","",{"$f":"CHOOSE(AH38,FALSE,Data!DV$2,Data!DV$2,Data!DV$2,FALSE,FALSE,Data!DV$2)","v":{"$error":"#VALUE!"}},{"$f":"CHOOSE(AH38,\"Affaires\",IF(Data!DP$2=\"agricole\",\"Agricole\",\"Affaires\"),IF(Data!DP$2=\"Agricole\",\"Industriel\",Data!DP$2),IF(Data!DP$2=\"Agricole\",\"Industriel\",Data!DP$2),IF(Data!DP$2=\"Agricole\",\"Agricole\",\"Affaires\"),IF(Data!DP$2=\"Transport\",\"Transport\",\"Affaires\"),IF(Data!DP$2=\"Agricole\",\"Industriel\",Data!DP$2))","v":{"$error":"#VALUE!"}},{"$f":"IF(C38=\"Gestion\",\"1151000\",IF(AND(C38=\"Émissions_Fugitives\",D38=\"Optimisation réfrigération\"),\"1151210\",IF(AND(C38=\"Conversion\",D38=\"Bioénergies\"),\"1151240\",IF(AND(C38=\"Conversion\",D38=\"Solaires\"),\"1151202\",INDEX(OFFSET(Type_Entreprise,,2,,),MATCH(#REF!,Type_Entreprise,0))))))","v":{"$error":"#REF!"}}]
[null,null,"Choisir…",null,"Choisir…",null,"",null,null,null,null,null,null,null,"","",0,0,0,null,null,"Choisir…",null,null,null,null,"Choisir…",null,"Choisir…",null,"Non",null,false,"","","","",0,"","","",{"$f":"CHOOSE(AH39,FALSE,Data!DV$2,Data!DV$2,Data!DV$2,FALSE,FALSE,Data!DV$2)","v":{"$error":"#VALUE!"}},{"$f":"CHOOSE(AH39,\"Affaires\",IF(Data!DP$2=\"agricole\",\"Agricole\",\"Affaires\"),IF(Data!DP$2=\"Agricole\",\"Industriel\",Data!DP$2),IF(Data!DP$2=\"Agricole\",\"Industriel\",Data!DP$2),IF(Data!DP$2=\"Agricole\",\"Agricole\",\"Affaires\"),IF(Data!DP$2=\"Transport\",\"Transport\",\"Affaires\"),IF(Data!DP$2=\"Agricole\",\"Industriel\",Data!DP$2))","v":{"$error":"#VALUE!"}},{"$f":"IF(C39=\"Gestion\",\"1151000\",IF(AND(C39=\"Émissions_Fugitives\",D39=\"Optimisation réfrigération\"),\"1151210\",IF(AND(C39=\"Conversion\",D39=\"Bioénergies\"),\"1151240\",IF(AND(C39=\"Conversion\",D39=\"Solaires\"),\"1151202\",INDEX(OFFSET(Type_Entreprise,,2,,),MATCH(#REF!,Type_Entreprise,0))))))","v":{"$error":"#REF!"}}]
[null,null,"Choisir…",null,"Choisir…",null,"",null,null,null,null,null,null,null,"","",0,0,0,null,null,"Choisir…",null,null,null,null,"Choisir…",null,"Choisir…",null,"Non",null,false,"","","","",0,"","","",{"$f":"CHOOSE(AH40,FALSE,Data!DV$2,Data!DV$2,Data!DV$2,FALSE,FALSE,Data!DV$2)","v":{"$error":"#VALUE!"}},{"$f":"CHOOSE(AH40,\"Affaires\",IF(Data!DP$2=\"agricole\",\"Agricole\",\"Affaires\"),IF(Data!DP$2=\"Agricole\",\"Industriel\",Data!DP$2),IF(Data!DP$2=\"Agricole\",\"Industriel\",Data!DP$2),IF(Data!DP$2=\"Agricole\",\"Agricole\",\"Affaires\"),IF(Data!DP$2=\"Transport\",\"Transport\",\"Affaires\"),IF(Data!DP$2=\"Agricole\",\"Industriel\",Data!DP$2))","v":{"$error":"#VALUE!"}},{"$f":"IF(C40=\"Gestion\",\"1151000\",IF(AND(C40=\"Émissions_Fugitives\",D40=\"Optimisation réfrigération\"),\"1151210\",IF(AND(C40=\"Conversion\",D40=\"Bioénergies\"),\"1151240\",IF(AND(C40=\"Conversion\",D40=\"Solaires\"),\"1151202\",INDEX(OFFSET(Type_Entreprise,,2,,),MATCH(#REF!,Type_Entreprise,0))))))","v":{"$error":"#REF!"}}]
[null,null,"Choisir…",null,"Choisir…",null,"",null,null,null,null,null,null,null,"","",0,0,0,null,null,"Choisir…",null,null,null,null,"Choisir…",null,"Choisir…",null,"Non",null,false,"","","","",0,"","","",{"$f":"CHOOSE(AH41,FALSE,Data!DV$2,Data!DV$2,Data!DV$2,FALSE,FALSE,Data!DV$2)","v":{"$error":"#VALUE!"}},{"$f":"CHOOSE(AH41,\"Affaires\",IF(Data!DP$2=\"agricole\",\"Agricole\",\"Affaires\"),IF(Data!DP$2=\"Agricole\",\"Industriel\",Data!DP$2),IF(Data!DP$2=\"Agricole\",\"Industriel\",Data!DP$2),IF(Data!DP$2=\"Agricole\",\"Agricole\",\"Affaires\"),IF(Data!DP$2=\"Transport\",\"Transport\",\"Affaires\"),IF(Data!DP$2=\"Agricole\",\"Industriel\",Data!DP$2))","v":{"$error":"#VALUE!"}},{"$f":"IF(C41=\"Gestion\",\"1151000\",IF(AND(C41=\"Émissions_Fugitives\",D41=\"Optimisation réfrigération\"),\"1151210\",IF(AND(C41=\"Conversion\",D41=\"Bioénergies\"),\"1151240\",IF(AND(C41=\"Conversion\",D41=\"Solaires\"),\"1151202\",INDEX(OFFSET(Type_Entreprise,,2,,),MATCH(#REF!,Type_Entreprise,0))))))","v":{"$error":"#REF!"}}]
[null,null,"Choisir…",null,"Choisir…",null,"",null,null,null,null,null,null,null,"","",0,0,0,null,null,"Choisir…",null,null,null,null,"Choisir…",null,"Choisir…",null,"Non",null,false,"","","","",0,"","","",{"$f":"CHOOSE(AH42,FALSE,Data!DV$2,Data!DV$2,Data!DV$2,FALSE,FALSE,Data!DV$2)","v":{"$error":"#VALUE!"}},{"$f":"CHOOSE(AH42,\"Affaires\",IF(Data!DP$2=\"agricole\",\"Agricole\",\"Affaires\"),IF(Data!DP$2=\"Agricole\",\"Industriel\",Data!DP$2),IF(Data!DP$2=\"Agricole\",\"Industriel\",Data!DP$2),IF(Data!DP$2=\"Agricole\",\"Agricole\",\"Affaires\"),IF(Data!DP$2=\"Transport\",\"Transport\",\"Affaires\"),IF(Data!DP$2=\"Agricole\",\"Industriel\",Data!DP$2))","v":{"$error":"#VALUE!"}},{"$f":"IF(C42=\"Gestion\",\"1151000\",IF(AND(C42=\"Émissions_Fugitives\",D42=\"Optimisation réfrigération\"),\"1151210\",IF(AND(C42=\"Conversion\",D42=\"Bioénergies\"),\"1151240\",IF(AND(C42=\"Conversion\",D42=\"Solaires\"),\"1151202\",INDEX(OFFSET(Type_Entreprise,,2,,),MATCH(#REF!,Type_Entreprise,0))))))","v":{"$error":"#REF!"}}]
[null,null,"Choisir…",null,"Choisir…",null,"",null,null,null,null,null,null,null,"","",0,0,0,null,null,"Choisir…",null,null,null,null,"Choisir…",null,"Choisir…",null,"Non",null,false,"","","","",0,"","","",{"$f":"CHOOSE(AH43,FALSE,Data!DV$2,Data!DV$2,Data!DV$2,FALSE,FALSE,Data!DV$2)","v":{"$error":"#VALUE!"}},{"$f":"CHOOSE(AH43,\"Affaires\",IF(Data!DP$2=\"agricole\",\"Agricole\",\"Affaires\"),IF(Data!DP$2=\"Agricole\",\"Industriel\",Data!DP$2),IF(Data!DP$2=\"Agricole\",\"Industriel\",Data!DP$2),IF(Data!DP$2=\"Agricole\",\"Agricole\",\"Affaires\"),IF(Data!DP$2=\"Transport\",\"Transport\",\"Affaires\"),IF(Data!DP$2=\"Agricole\",\"Industriel\",Data!DP$2))","v":{"$error":"#VALUE!"}},{"$f":"IF(C43=\"Gestion\",\"1151000\",IF(AND(C43=\"Émissions_Fugitives\",D43=\"Optimisation réfrigération\"),\"1151210\",IF(AND(C43=\"Conversion\",D43=\"Bioénergies\"),\"1151240\",IF(AND(C43=\"Conversion\",D43=\"Solaires\"),\"1151202\",INDEX(OFFSET(Type_Entreprise,,2,,),MATCH(#REF!,Type_Entreprise,0))))))","v":{"$error":"#REF!"}}]
[null,null,"Choisir…",null,"Choisir…",null,"",null,null,null,null,null,null,null,"","",0,0,0,null,null,"Choisir…",null,null,null,null,"Choisir…",null,"Choisir…",null,"Non",null,false,"","","","",0,"","","",{"$f":"CHOOSE(AH44,FALSE,Data!DV$2,Data!DV$2,Data!DV$2,FALSE,FALSE,Data!DV$2)","v":{"$error":"#VALUE!"}},{"$f":"CHOOSE(AH44,\"Affaires\",IF(Data!DP$2=\"agricole\",\"Agricole\",\"Affaires\"),IF(Data!DP$2=\"Agricole\",\"Industriel\",Data!DP$2),IF(Data!DP$2=\"Agricole\",\"Industriel\",Data!DP$2),IF(Data!DP$2=\"Agricole\",\"Agricole\",\"Affaires\"),IF(Data!DP$2=\"Transport\",\"Transport\",\"Affaires\"),IF(Data!DP$2=\"Agricole\",\"Industriel\",Data!DP$2))","v":{"$error":"#VALUE!"}},{"$f":"IF(C44=\"Gestion\",\"1151000\",IF(AND(C44=\"Émissions_Fugitives\",D44=\"Optimisation réfrigération\"),\"1151210\",IF(AND(C44=\"Conversion\",D44=\"Bioénergies\"),\"1151240\",IF(AND(C44=\"Conversion\",D44=\"Solaires\"),\"1151202\",INDEX(OFFSET(Type_Entreprise,,2,,),MATCH(#REF!,Type_Entreprise,0))))))","v":{"$error":"#REF!"}}]
[null,null,"Choisir…",null,"Choisir…",null,"",null,null,null,null,null,null,null,"","",0,0,0,null,null,"Choisir…",null,null,null,null,"Choisir…",null,"Choisir…",null,"Non",null,false,"","","","",0,"","","",{"$f":"CHOOSE(AH45,FALSE,Data!DV$2,Data!DV$2,Data!DV$2,FALSE,FALSE,Data!DV$2)","v":{"$error":"#VALUE!"}},{"$f":"CHOOSE(AH45,\"Affaires\",IF(Data!DP$2=\"agricole\",\"Agricole\",\"Affaires\"),IF(Data!DP$2=\"Agricole\",\"Industriel\",Data!DP$2),IF(Data!DP$2=\"Agricole\",\"Industriel\",Data!DP$2),IF(Data!DP$2=\"Agricole\",\"Agricole\",\"Affaires\"),IF(Data!DP$2=\"Transport\",\"Transport\",\"Affaires\"),IF(Data!DP$2=\"Agricole\",\"Industriel\",Data!DP$2))","v":{"$error":"#VALUE!"}},{"$f":"IF(C45=\"Gestion\",\"1151000\",IF(AND(C45=\"Émissions_Fugitives\",D45=\"Optimisation réfrigération\"),\"1151210\",IF(AND(C45=\"Conversion\",D45=\"Bioénergies\"),\"1151240\",IF(AND(C45=\"Conversion\",D45=\"Solaires\"),\"1151202\",INDEX(OFFSET(Type_Entreprise,,2,,),MATCH(#REF!,Type_Entreprise,0))))))","v":{"$error":"#REF!"}}]
[null,null,"Choisir…",null,"Choisir…",null,"",null,null,null,null,null,null,null,"","",0,0,0,null,null,"Choisir…",null,null,null,null,"Choisir…",null,"Choisir…",null,"Non",null,false,"","","","",0,"","","",{"$f":"CHOOSE(AH46,FALSE,Data!DV$2,Data!DV$2,Data!DV$2,FALSE,FALSE,Data!DV$2)","v":{"$error":"#VALUE!"}},{"$f":"CHOOSE(AH46,\"Affaires\",IF(Data!DP$2=\"agricole\",\"Agricole\",\"Affaires\"),IF(Data!DP$2=\"Agricole\",\"Industriel\",Data!DP$2),IF(Data!DP$2=\"Agricole\",\"Industriel\",Data!DP$2),IF(Data!DP$2=\"Agricole\",\"Agricole\",\"Affaires\"),IF(Data!DP$2=\"Transport\",\"Transport\",\"Affaires\"),IF(Data!DP$2=\"Agricole\",\"Industriel\",Data!DP$2))","v":{"$error":"#VALUE!"}},{"$f":"IF(C46=\"Gestion\",\"1151000\",IF(AND(C46=\"Émissions_Fugitives\",D46=\"Optimisation réfrigération\"),\"1151210\",IF(AND(C46=\"Conversion\",D46=\"Bioénergies\"),\"1151240\",IF(AND(C46=\"Conversion\",D46=\"Solaires\"),\"1151202\",INDEX(OFFSET(Type_Entreprise,,2,,),MATCH(#REF!,Type_Entreprise,0))))))","v":{"$error":"#REF!"}}]
[null,null,"Choisir…",null,"Choisir…",null,"",null,null,null,null,null,null,null,"","",0,0,0,null,null,"Choisir…",null,null,null,null,"Choisir…",null,"Choisir…",null,"Non",null,false,"","","","",0,"","","",{"$f":"CHOOSE(AH47,FALSE,Data!DV$2,Data!DV$2,Data!DV$2,FALSE,FALSE,Data!DV$2)","v":{"$error":"#VALUE!"}},{"$f":"CHOOSE(AH47,\"Affaires\",IF(Data!DP$2=\"agricole\",\"Agricole\",\"Affaires\"),IF(Data!DP$2=\"Agricole\",\"Industriel\",Data!DP$2),IF(Data!DP$2=\"Agricole\",\"Industriel\",Data!DP$2),IF(Data!DP$2=\"Agricole\",\"Agricole\",\"Affaires\"),IF(Data!DP$2=\"Transport\",\"Transport\",\"Affaires\"),IF(Data!DP$2=\"Agricole\",\"Industriel\",Data!DP$2))","v":{"$error":"#VALUE!"}},{"$f":"IF(C47=\"Gestion\",\"1151000\",IF(AND(C47=\"Émissions_Fugitives\",D47=\"Optimisation réfrigération\"),\"1151210\",IF(AND(C47=\"Conversion\",D47=\"Bioénergies\"),\"1151240\",IF(AND(C47=\"Conversion\",D47=\"Solaires\"),\"1151202\",INDEX(OFFSET(Type_Entreprise,,2,,),MATCH(#REF!,Type_Entreprise,0))))))","v":{"$error":"#REF!"}}]
[null,null,"Choisir…",null,"Choisir…",null,"",null,null,null,null,null,null,null,"","",0,0,0,null,null,"Choisir…",null,null,null,null,"Choisir…",null,"Choisir…",null,"Non",null,false,"","","","",0,"","","",{"$f":"CHOOSE(AH48,FALSE,Data!DV$2,Data!DV$2,Data!DV$2,FALSE,FALSE,Data!DV$2)","v":{"$error":"#VALUE!"}},{"$f":"CHOOSE(AH48,\"Affaires\",IF(Data!DP$2=\"agricole\",\"Agricole\",\"Affaires\"),IF(Data!DP$2=\"Agricole\",\"Industriel\",Data!DP$2),IF(Data!DP$2=\"Agricole\",\"Industriel\",Data!DP$2),IF(Data!DP$2=\"Agricole\",\"Agricole\",\"Affaires\"),IF(Data!DP$2=\"Transport\",\"Transport\",\"Affaires\"),IF(Data!DP$2=\"Agricole\",\"Industriel\",Data!DP$2))","v":{"$error":"#VALUE!"}},{"$f":"IF(C48=\"Gestion\",\"1151000\",IF(AND(C48=\"Émissions_Fugitives\",D48=\"Optimisation réfrigération\"),\"1151210\",IF(AND(C48=\"Conversion\",D48=\"Bioénergies\"),\"1151240\",IF(AND(C48=\"Conversion\",D48=\"Solaires\"),\"1151202\",INDEX(OFFSET(Type_Entreprise,,2,,),MATCH(#REF!,Type_Entreprise,0))))))","v":{"$error":"#REF!"}}]
[null,null,"Choisir…",null,"Choisir…",null,"",null,null,null,null,null,null,null,"","",0,0,0,null,null,"Choisir…",null,null,null,null,"Choisir…",null,"Choisir…",null,"Non",null,false,"","","","",0,"","","",{"$f":"CHOOSE(AH49,FALSE,Data!DV$2,Data!DV$2,Data!DV$2,FALSE,FALSE,Data!DV$2)","v":{"$error":"#VALUE!"}},{"$f":"CHOOSE(AH49,\"Affaires\",IF(Data!DP$2=\"agricole\",\"Agricole\",\"Affaires\"),IF(Data!DP$2=\"Agricole\",\"Industriel\",Data!DP$2),IF(Data!DP$2=\"Agricole\",\"Industriel\",Data!DP$2),IF(Data!DP$2=\"Agricole\",\"Agricole\",\"Affaires\"),IF(Data!DP$2=\"Transport\",\"Transport\",\"Affaires\"),IF(Data!DP$2=\"Agricole\",\"Industriel\",Data!DP$2))","v":{"$error":"#VALUE!"}},{"$f":"IF(C49=\"Gestion\",\"1151000\",IF(AND(C49=\"Émissions_Fugitives\",D49=\"Optimisation réfrigération\"),\"1151210\",IF(AND(C49=\"Conversion\",D49=\"Bioénergies\"),\"1151240\",IF(AND(C49=\"Conversion\",D49=\"Solaires\"),\"1151202\",INDEX(OFFSET(Type_Entreprise,,2,,),MATCH(#REF!,Type_Entreprise,0))))))","v":{"$error":"#REF!"}}]
[null,null,"Total",null,null,null,null,null,null,null,null,null,null,{"$f":"SUM(N16:N49)","v":0},0,0,0,0,0,0,0]
[]
["(1) Si, pour une même mesure, il y a des réductions ou des augmentations de la consommation énergétique ou que la mesure implique différentes  formes d'énergie, celles-ci doivent être présentées sur des lignes différentes.",null,null,null,null,null,null,null,null,null,null,null,null,null,null,null,null,"(6) Recommandation",null,null,null,"(7) Action",null,null,null,null,null,null,null,null,null,"    Voir le Guide détaillé du requérant pour plus de détails"]
["(2) Formes d'énergie et unités énergétiques :",null,null,null,null,null,null,null,null,null,null,null,null,null,null,null,null,"      I-Implanter",null,null,null,"     1- Implantée"]
["(3) Si applicable, spécifiez l'unité de production",null,null,null,null,null,null,null,null,null,null,null,null,null,null,null,null,"     N-Ne rien faire",null,null,null,"     2- En cours d'implantation"]
["(4) La PRI est définie comme étant le rapport : ",null,null,null,null,null,null,null,null,null,null,null,null,null,null,null,null,"     E-Étude supplémentaire requise",null,null,null,"     3- Dans la prochaine année"]
["      Coûts du projet/économies nettes liées à la consommation énergétique (différence entre réductions et augmentations)",null,null,null,null,null,null,null,null,null,null,null,null,null,null,null,null,null,null,null,null,"     4- D'ici deux ans"]
["      Se référer au Guide détaillé du requérant pour d'autres détails",null,null,null,null,null,null,null,null,null,null,null,null,null,null,null,null,null,null,null,null,"     5- Ne sera pas implantée"]
["(5) Pour le volet conversion seulement"]

{"sheet":"4. Résultats plan implantation","index":5,"n_rows":59,"n_cols":40,"rows_kept":59,"cut":false,"hidden":true,"merged":[[11,0,13,0],[12,9,13,9],[12,15,13,15],[12,7,13,7],[11,1,13,1],[12,13,13,13],[12,10,13,10],[12,11,13,11],[7,26,7,30],[8,26,8,27],[12,23,13,23],[12,19,13,19],[12,20,13,20],[10,27,10,30],[11,26,13,26],[12,22,13,22],[11,16,11,19],[12,29,13,29],[12,30,13,30],[11,20,11,21],[11,22,11,23],[11,27,11,28],[12,28,13,28],[11,25,13,25],[11,29,11,30],[11,2,13,2],[11,3,13,3],[11,5,11,10],[12,8,13,8],[11,11,11,15],[12,12,13,12],[12,14,13,14],[12,21,13,21],[12,27,13,27],[7,2,7,7],[11,24,13,24],[8,2,8,3],[12,5,13,5],[12,6,13,6],[11,4,13,4],[12,16,12,18]]}
[]
[]
[]
[]
[]
[]
[]
[null,"Nom du requérant :",{"$f":"IF('2. Plan d''implantation'!C8=\"\",\"\",'2. Plan d''implantation'!C8)","v":{"$error":"#REF!"}},null,null,null,null,null,null,null,null,null,null,null,null,null,null,null,null,null,null,null,null,null,null," Personne-ressource  :    ",{"$f":"IF('2. Plan d''implantation'!AB8=\"\",\"\",'2. Plan d''implantation'!AB8)","v":{"$error":"#REF!"}}]
[null,"Nº de l'entente : ",{"$f":"IF('2. Plan d''implantation'!C9=\"\",\"\",'2. Plan d''implantation'!C9)","v":""},null,null,null,null,null,null,null,null,null,null,null,null,null,null,null,null,null,null,null,null,null,null,"Date du plan :    "]
[]
[null,null,"Tableau sommaire des résultats",null,null,null,null,null,null,null,null,null,null,null,null,null,null,null,null,null,null,null,null,null,null,null,null,"Plan d'action et suivi par le requérant",null,null,null,true,true]
["Mesure n° (1)","Description","Volet","Composante","Type\nd'émission","Consommation de référence",null,null,null,null,null,"Potentiel de réduction",null,null,null,null,"Investissement",null,null,null,"Aide potentielle\n(si applicable)",null,"PRI (4)",null,"Engagement \n(maximum 10 ans)(5)","Durée de vie","Remarques","Objectif du projet",null,"Écart par rapport à l'objectif (+/-)"]
[null,null,null,null,null,"Forme d'énergie ou PRP (2)","Unité","Teneur\nHumidité\n%","Quantité/an","Quantité/unité de prod. (3)","unité prod.","Quantité/an","Prix unitaire","$/an","GJ/an","GES (t/an)","Sans aide ($)",null,null,"Avec aide ($)","($)","Source de l'aide","Sans aide (an)","Avec aide (an)",null,null,null,"Quantité/an","GES (t)","Quantité/an","%"]
[null,null,null,null,null,null,null,null,null,null,null,null,null,null,null,null,"Coûts\ninternes","Coûts\nexternes","Coûts\ntotaux"]
["No_Mesure","Description","Volet","Composante","Type_Emission","NRJ/PRP","UNITE","TH","QteRef","Cons_Spec","UNiteProd","QteProj","Coutunit","CoutNRJ","GJ","GES","Cint","Cext","Ctot","Iaa","S","Aideref","PRIsa","PRIaa","Engagement","Vie","Remarques","QteObj","GESObj","EcartQteObj","PourcentEcartObj","Code_Volet","Code_composante","Type_Emisison","Code_NRJ/PRP","GesAmont","Code_Fin_Autre","GrandConsom","Secteur","No_Projet_Sagir_Abrev"]
[null,null,"Choisir…",null,"Choisir…",null,{"$f":"IF(F16=\"\",\"\",IF(OR($E16=\"choisir…\",$E16=\"Aucun\"),\"\",INDEX(OFFSET(INDIRECT($E16),,1),MATCH($F16,INDIRECT($E16),0))))","v":""},null,null,null,null,null,null,null,{"$f":"IF(L16=\"\",\"\",IF(OR(E16<>\"Énergie\",F16=\"\"),0,INDEX(OFFSET(INDIRECT($E16),,2),MATCH($F16,INDIRECT($E16),0)))*L16/1000*IF(AND(E16=\"Énergie\",F16<>\"\"),IF(AND(INDEX(OFFSET(Énergie,,8,,),MATCH(F16,Énergie,0))=1,H16<>\"\"),IF(H16=1,0,1-1.1676*H16),IF(AND(INDEX(OFFSET(Énergie,,8,,),MATCH(F16,Énergie,0))=2,H16<>\"\"),1-H16,1)),1))","v":""},{"$f":"IF(L16=\"\",\"\",IF(OR($E16=\"choisir…\",$E16=\"Aucun\",F16=\"\"),0,INDEX(OFFSET(INDIRECT(IF($E16=\"fugitive\",\"PRP\",E16)),,3),MATCH($F16,INDIRECT(IF($E16=\"fugitive\",\"PRP\",E16)),0)))*L16/1000000*IF($E16=\"Fugitive\",1000,1)*IF(AND(E16=\"Énergie\",F16<>\"\"),IF(AND(INDEX(OFFSET(Énergie,,8,,),MATCH(F16,Énergie,0))=1,H16<>\"\"),IF(H16=1,0,1-1.1676*H16),IF(AND(INDEX(OFFSET(Énergie,,8,,),MATCH(F16,Énergie,0))=2,H16<>\"\"),1-H16,1)),1))","v":""},0,0,0,null,null,"Choisir…",null,null,null,null,null,null,{"$f":"IF(AB16=\"\",\"\",IF(OR($E16=\"choisir…\",$E16=\"Aucun\"),0,INDEX(OFFSET(INDIRECT($E16),,3),MATCH($F16,INDIRECT($E16),0)))*AB16/1000000)","v":""},{"$f":"IF(AB16=\"\",\"\",L16-AB16)","v":""},{"$f":"IF(AB16=\"\",\"\",AD16/AB16)","v":""},{"$f":"IF(C16<>\"Choisir…\",INDEX(OFFSET(Volet,,-1,,),MATCH(C16,Volet,0)),\"\")","v":""},{"$f":"IF(C16<>\"Choisir…\",INDEX(OFFSET(INDIRECT(C16),,-1,,),MATCH(D16,INDIRECT(C16),0)),\"\")","v":""},{"$f":"IF(E16<>\"Choisir…\",INDEX(OFFSET(Type_emission,,-1,,),MATCH(E16,Type_emission,0)),\"\")","v":""},{"$f":"IF(F16=\"\",\"\",INDEX(OFFSET(IF(E16=\"Énergie\",Énergie,IF(E16=\"Fugitive\",PRP,\"\")),,-1,,),MATCH(F16,IF(E16=\"Énergie\",Énergie,IF(E16=\"Fugitive\",PRP,\"\")),0)))","v":""},{"$f":"IF(AND(E16=\"Énergie\",F16<>\"\"),INDEX(OFFSET(Énergie,,22,,),MATCH(F16,Énergie,0)),0)*L16","v":0},{"$f":"IF(V16<>\"Choisir…\",INDEX(OFFSET(Fin_Autre,,-1,,),MATCH(V16,Fin_Autre,0)),\"\")","v":""},{"$f":"CHOOSE(AF16,FALSE,Data!DV$2,IF(Data!DP$2=\"Transport\",FALSE,Data!DV$2),IF(Data!DP$2=\"Transport\",FALSE,Data!DV$2),FALSE,FALSE,Data!DV$2)","v":{"$error":"#VALUE!"}},{"$f":"CHOOSE(AF16,\"Affaires\",IF(Data!DP$2=\"agricole\",\"Agricole\",\"Affaires\"),IF(Data!DP$2=\"Agricole\",\"Industriel\",Data!DP$2),IF(Data!DP$2=\"Agricole\",\"Industriel\",Data!DP$2),IF(Data!DP$2=\"Agricole\",\"Agricole\",\"Affaires\"),IF(Data!DP$2=\"Transport\",\"Transport\",\"Affaires\"),IF(Data!DP$2=\"Agricole\",\"Industriel\",Data!DP$2))","v":{"$error":"#VALUE!"}},{"$f":"IF(C16=\"Innovation\",\"1159400\",IF(C16=\"Gestion\",\"1151000\",IF(C16=\"OPTER\",\"1151210\",IF(AND(C16=\"Connaissances\",D16=\"Écoconduite\"),\"1157170\",IF(AND(C16=\"Conversion\",D16=\"Bioénergies\"),\"1151240\",IF(AND(C16=\"Conversion\",D16=\"Solaires\"),\"1151202\",INDEX(OFFSET(Type_Entreprise,,2,,),MATCH(#REF!,Type_Entreprise,0))))))))","v":{"$error":"#REF!"}}]
[null,null,"Choisir…",null,"Choisir…",null,"",null,null,null,null,null,null,null,"","",0,0,0,null,null,"Choisir…",null,null,null,null,null,null,"",{"$f":"IF(AB17=\"\",\"\",AB17-L17)","v":""},{"$f":"IF(AB17=\"\",\"\",AD17/AB17)","v":""},"",{"$f":"IF(C17<>\"Choisir…\",INDEX(OFFSET(INDIRECT(C17),,-1,,),MATCH(D17,INDIRECT(C17),0)),\"\")","v":""},"","",0,"",{"$f":"CHOOSE(AF17,FALSE,Data!DV$2,IF(Data!DP$2=\"Transport\",FALSE,Data!DV$2),IF(Data!DP$2=\"Transport\",FALSE,Data!DV$2),FALSE,FALSE,Data!DV$2)","v":{"$error":"#VALUE!"}},{"$f":"CHOOSE(AF17,\"Affaires\",IF(Data!DP$2=\"agricole\",\"Agricole\",\"Affaires\"),IF(Data!DP$2=\"Agricole\",\"Industriel\",Data!DP$2),IF(Data!DP$2=\"Agricole\",\"Industriel\",Data!DP$2),IF(Data!DP$2=\"Agricole\",\"Agricole\",\"Affaires\"),IF(Data!DP$2=\"Transport\",\"Transport\",\"Affaires\"),IF(Data!DP$2=\"Agricole\",\"Industriel\",Data!DP$2))","v":{"$error":"#VALUE!"}},{"$f":"IF(C17=\"Innovation\",\"1159400\",IF(C17=\"Gestion\",\"1151000\",IF(C17=\"OPTER\",\"1151210\",IF(AND(C17=\"Connaissances\",D17=\"Écoconduite\"),\"1157170\",IF(AND(C17=\"Conversion\",D17=\"Bioénergies\"),\"1151240\",IF(AND(C17=\"Conversion\",D17=\"Solaires\"),\"1151202\",INDEX(OFFSET(Type_Entreprise,,2,,),MATCH(#REF!,Type_Entreprise,0))))))))","v":{"$error":"#REF!"}}]
[null,null,"Choisir…",null,"Choisir…",null,"",null,null,null,null,null,null,null,"","",0,0,0,null,null,"Choisir…",null,null,null,null,null,null,"","","","","","","",0,"",{"$f":"CHOOSE(AF18,FALSE,Data!DV$2,IF(Data!DP$2=\"Transport\",FALSE,Data!DV$2),IF(Data!DP$2=\"Transport\",FALSE,Data!DV$2),FALSE,FALSE,Data!DV$2)","v":{"$error":"#VALUE!"}},{"$f":"CHOOSE(AF18,\"Affaires\",IF(Data!DP$2=\"agricole\",\"Agricole\",\"Affaires\"),IF(Data!DP$2=\"Agricole\",\"Industriel\",Data!DP$2),IF(Data!DP$2=\"Agricole\",\"Industriel\",Data!DP$2),IF(Data!DP$2=\"Agricole\",\"Agricole\",\"Affaires\"),IF(Data!DP$2=\"Transport\",\"Transport\",\"Affaires\"),IF(Data!DP$2=\"Agricole\",\"Industriel\",Data!DP$2))","v":{"$error":"#VALUE!"}},{"$f":"IF(C18=\"Innovation\",\"1159400\",IF(C18=\"Gestion\",\"1151000\",IF(C18=\"OPTER\",\"1151210\",IF(AND(C18=\"Connaissances\",D18=\"Écoconduite\"),\"1157170\",IF(AND(C18=\"Conversion\",D18=\"Bioénergies\"),\"1151240\",IF(AND(C18=\"Conversion\",D18=\"Solaires\"),\"1151202\",INDEX(OFFSET(Type_Entreprise,,2,,),MATCH(#REF!,Type_Entreprise,0))))))))","v":{"$error":"#REF!"}}]
[null,null,"Choisir…",null,"Choisir…",null,"",null,null,null,null,null,null,null,"","",0,0,0,null,null,"Choisir…",null,null,null,null,null,null,"","","","","","","",0,"",{"$f":"CHOOSE(AF19,FALSE,Data!DV$2,IF(Data!DP$2=\"Transport\",FALSE,Data!DV$2),IF(Data!DP$2=\"Transport\",FALSE,Data!DV$2),FALSE,FALSE,Data!DV$2)","v":{"$error":"#VALUE!"}},{"$f":"CHOOSE(AF19,\"Affaires\",IF(Data!DP$2=\"agricole\",\"Agricole\",\"Affaires\"),IF(Data!DP$2=\"Agricole\",\"Industriel\",Data!DP$2),IF(Data!DP$2=\"Agricole\",\"Industriel\",Data!DP$2),IF(Data!DP$2=\"Agricole\",\"Agricole\",\"Affaires\"),IF(Data!DP$2=\"Transport\",\"Transport\",\"Affaires\"),IF(Data!DP$2=\"Agricole\",\"Industriel\",Data!DP$2))","v":{"$error":"#VALUE!"}},{"$f":"IF(C19=\"Innovation\",\"1159400\",IF(C19=\"Gestion\",\"1151000\",IF(C19=\"OPTER\",\"1151210\",IF(AND(C19=\"Connaissances\",D19=\"Écoconduite\"),\"1157170\",IF(AND(C19=\"Conversion\",D19=\"Bioénergies\"),\"1151240\",IF(AND(C19=\"Conversion\",D19=\"Solaires\"),\"1151202\",INDEX(OFFSET(Type_Entreprise,,2,,),MATCH(#REF!,Type_Entreprise,0))))))))","v":{"$error":"#REF!"}}]
[null,null,"Choisir…",null,"Choisir…",null,"",null,null,null,null,null,null,null,"","",0,0,0,null,null,"Choisir…",null,null,null,null,null,null,"","","","","","","",0,"",{"$f":"CHOOSE(AF20,FALSE,Data!DV$2,IF(Data!DP$2=\"Transport\",FALSE,Data!DV$2),IF(Data!DP$2=\"Transport\",FALSE,Data!DV$2),FALSE,FALSE,Data!DV$2)","v":{"$error":"#VALUE!"}},{"$f":"CHOOSE(AF20,\"Affaires\",IF(Data!DP$2=\"agricole\",\"Agricole\",\"Affaires\"),IF(Data!DP$2=\"Agricole\",\"Industriel\",Data!DP$2),IF(Data!DP$2=\"Agricole\",\"Industriel\",Data!DP$2),IF(Data!DP$2=\"Agricole\",\"Agricole\",\"Affaires\"),IF(Data!DP$2=\"Transport\",\"Transport\",\"Affaires\"),IF(Data!DP$2=\"Agricole\",\"Industriel\",Data!DP$2))","v":{"$error":"#VALUE!"}},{"$f":"IF(C20=\"Innovation\",\"1159400\",IF(C20=\"Gestion\",\"1151000\",IF(C20=\"OPTER\",\"1151210\",IF(AND(C20=\"Connaissances\",D20=\"Écoconduite\"),\"1157170\",IF(AND(C20=\"Conversion\",D20=\"Bioénergies\"),\"1151240\",IF(AND(C20=\"Conversion\",D20=\"Solaires\"),\"1151202\",INDEX(OFFSET(Type_Entreprise,,2,,),MATCH(#REF!,Type_Entreprise,0))))))))","v":{"$error":"#REF!"}}]
[null,null,"Choisir…",null,"Choisir…",null,"",null,null,null,null,null,null,null,"","",0,0,0,null,null,"Choisir…",null,null,null,null,null,null,"","","","","","","",0,"",{"$f":"CHOOSE(AF21,FALSE,Data!DV$2,IF(Data!DP$2=\"Transport\",FALSE,Data!DV$2),IF(Data!DP$2=\"Transport\",FALSE,Data!DV$2),FALSE,FALSE,Data!DV$2)","v":{"$error":"#VALUE!"}},{"$f":"CHOOSE(AF21,\"Affaires\",IF(Data!DP$2=\"agricole\",\"Agricole\",\"Affaires\"),IF(Data!DP$2=\"Agricole\",\"Industriel\",Data!DP$2),IF(Data!DP$2=\"Agricole\",\"Industriel\",Data!DP$2),IF(Data!DP$2=\"Agricole\",\"Agricole\",\"Affaires\"),IF(Data!DP$2=\"Transport\",\"Transport\",\"Affaires\"),IF(Data!DP$2=\"Agricole\",\"Industriel\",Data!DP$2))","v":{"$error":"#VALUE!"}},{"$f":"IF(C21=\"Innovation\",\"1159400\",IF(C21=\"Gestion\",\"1151000\",IF(C21=\"OPTER\",\"1151210\",IF(AND(C21=\"Connaissances\",D21=\"Écoconduite\"),\"1157170\",IF(AND(C21=\"Conversion\",D21=\"Bioénergies\"),\"1151240\",IF(AND(C21=\"Conversion\",D21=\"Solaires\"),\"1151202\",INDEX(OFFSET(Type_Entreprise,,2,,),MATCH(#REF!,Type_Entreprise,0))))))))","v":{"$error":"#REF!"}}]
[null,null,"Choisir…",null,"Choisir…",null,"",null,null,null,null,null,null,null,"","",0,0,0,null,null,"Choisir…",null,null,null,null,null,null,"","","","","","","",0,"",{"$f":"CHOOSE(AF22,FALSE,Data!DV$2,IF(Data!DP$2=\"Transport\",FALSE,Data!DV$2),IF(Data!DP$2=\"Transport\",FALSE,Data!DV$2),FALSE,FALSE,Data!DV$2)","v":{"$error":"#VALUE!"}},{"$f":"CHOOSE(AF22,\"Affaires\",IF(Data!DP$2=\"agricole\",\"Agricole\",\"Affaires\"),IF(Data!DP$2=\"Agricole\",\"Industriel\",Data!DP$2),IF(Data!DP$2=\"Agricole\",\"Industriel\",Data!DP$2),IF(Data!DP$2=\"Agricole\",\"Agricole\",\"Affaires\"),IF(Data!DP$2=\"Transport\",\"Transport\",\"Affaires\"),IF(Data!DP$2=\"Agricole\",\"Industriel\",Data!DP$2))","v":{"$error":"#VALUE!"}},{"$f":"IF(C22=\"Innovation\",\"1159400\",IF(C22=\"Gestion\",\"1151000\",IF(C22=\"OPTER\",\"1151210\",IF(AND(C22=\"Connaissances\",D22=\"Écoconduite\"),\"1157170\",IF(AND(C22=\"Conversion\",D22=\"Bioénergies\"),\"1151240\",IF(AND(C22=\"Conversion\",D22=\"Solaires\"),\"1151202\",INDEX(OFFSET(Type_Entreprise,,2,,),MATCH(#REF!,Type_Entreprise,0))))))))","v":{"$error":"#REF!"}}]
[null,null,"Choisir…",null,"Choisir…",null,"",null,null,null,null,null,null,null,"","",0,0,0,null,null,"Choisir…",null,null,null,null,null,null,"","","","","","","",0,"",{"$f":"CHOOSE(AF23,FALSE,Data!DV$2,IF(Data!DP$2=\"Transport\",FALSE,Data!DV$2),IF(Data!DP$2=\"Transport\",FALSE,Data!DV$2),FALSE,FALSE,Data!DV$2)","v":{"$error":"#VALUE!"}},{"$f":"CHOOSE(AF23,\"Affaires\",IF(Data!DP$2=\"agricole\",\"Agricole\",\"Affaires\"),IF(Data!DP$2=\"Agricole\",\"Industriel\",Data!DP$2),IF(Data!DP$2=\"Agricole\",\"Industriel\",Data!DP$2),IF(Data!DP$2=\"Agricole\",\"Agricole\",\"Affaires\"),IF(Data!DP$2=\"Transport\",\"Transport\",\"Affaires\"),IF(Data!DP$2=\"Agricole\",\"Industriel\",Data!DP$2))","v":{"$error":"#VALUE!"}},{"$f":"IF(C23=\"Innovation\",\"1159400\",IF(C23=\"Gestion\",\"1151000\",IF(C23=\"OPTER\",\"1151210\",IF(AND(C23=\"Connaissances\",D23=\"Écoconduite\"),\"1157170\",IF(AND(C23=\"Conversion\",D23=\"Bioénergies\"),\"1151240\",IF(AND(C23=\"Conversion\",D23=\"Solaires\"),\"1151202\",INDEX(OFFSET(Type_Entreprise,,2,,),MATCH(#REF!,Type_Entreprise,0))))))))","v":{"$error":"#REF!"}}]
[null,null,"Choisir…",null,"Choisir…",null,"",null,null,null,null,null,null,null,"","",0,0,0,null,null,"Choisir…",null,null,null,null,null,null,"","","","","","","",0,"",{"$f":"CHOOSE(AF24,FALSE,Data!DV$2,IF(Data!DP$2=\"Transport\",FALSE,Data!DV$2),IF(Data!DP$2=\"Transport\",FALSE,Data!DV$2),FALSE,FALSE,Data!DV$2)","v":{"$error":"#VALUE!"}},{"$f":"CHOOSE(AF24,\"Affaires\",IF(Data!DP$2=\"agricole\",\"Agricole\",\"Affaires\"),IF(Data!DP$2=\"Agricole\",\"Industriel\",Data!DP$2),IF(Data!DP$2=\"Agricole\",\"Industriel\",Data!DP$2),IF(Data!DP$2=\"Agricole\",\"Agricole\",\"Affaires\"),IF(Data!DP$2=\"Transport\",\"Transport\",\"Affaires\"),IF(Data!DP$2=\"Agricole\",\"Industriel\",Data!DP$2))","v":{"$error":"#VALUE!"}},{"$f":"IF(C24=\"Innovation\",\"1159400\",IF(C24=\"Gestion\",\"1151000\",IF(C24=\"OPTER\",\"1151210\",IF(AND(C24=\"Connaissances\",D24=\"Écoconduite\"),\"1157170\",IF(AND(C24=\"Conversion\",D24=\"Bioénergies\"),\"1151240\",IF(AND(C24=\"Conversion\",D24=\"Solaires\"),\"1151202\",INDEX(OFFSET(Type_Entreprise,,2,,),MATCH(#REF!,Type_Entreprise,0))))))))","v":{"$error":"#REF!"}}]
[null,null,"Choisir…",null,"Choisir…",null,"",null,null,null,null,null,null,null,"","",0,0,0,null,null,"Choisir…",null,null,null,null,null,null,"","","","","","","",0,"",{"$f":"CHOOSE(AF25,FALSE,Data!DV$2,IF(Data!DP$2=\"Transport\",FALSE,Data!DV$2),IF(Data!DP$2=\"Transport\",FALSE,Data!DV$2),FALSE,FALSE,Data!DV$2)","v":{"$error":"#VALUE!"}},{"$f":"CHOOSE(AF25,\"Affaires\",IF(Data!DP$2=\"agricole\",\"Agricole\",\"Affaires\"),IF(Data!DP$2=\"Agricole\",\"Industriel\",Data!DP$2),IF(Data!DP$2=\"Agricole\",\"Industriel\",Data!DP$2),IF(Data!DP$2=\"Agricole\",\"Agricole\",\"Affaires\"),IF(Data!DP$2=\"Transport\",\"Transport\",\"Affaires\"),IF(Data!DP$2=\"Agricole\",\"Industriel\",Data!DP$2))","v":{"$error":"#VALUE!"}},{"$f":"IF(C25=\"Innovation\",\"1159400\",IF(C25=\"Gestion\",\"1151000\",IF(C25=\"OPTER\",\"1151210\",IF(AND(C25=\"Connaissances\",D25=\"Écoconduite\"),\"1157170\",IF(AND(C25=\"Conversion\",D25=\"Bioénergies\"),\"1151240\",IF(AND(C25=\"Conversion\",D25=\"Solaires\"),\"1151202\",INDEX(OFFSET(Type_Entreprise,,2,,),MATCH(#REF!,Type_Entreprise,0))))))))","v":{"$error":"#REF!"}}]
[null,null,"Choisir…",null,"Choisir…",null,"",null,null,null,null,null,null,null,"","",0,0,0,null,null,"Choisir…",null,null,null,null,null,null,"","","","","","","",0,"",{"$f":"CHOOSE(AF26,FALSE,Data!DV$2,IF(Data!DP$2=\"Transport\",FALSE,Data!DV$2),IF(Data!DP$2=\"Transport\",FALSE,Data!DV$2),FALSE,FALSE,Data!DV$2)","v":{"$error":"#VALUE!"}},{"$f":"CHOOSE(AF26,\"Affaires\",IF(Data!DP$2=\"agricole\",\"Agricole\",\"Affaires\"),IF(Data!DP$2=\"Agricole\",\"Industriel\",Data!DP$2),IF(Data!DP$2=\"Agricole\",\"Industriel\",Data!DP$2),IF(Data!DP$2=\"Agricole\",\"Agricole\",\"Affaires\"),IF(Data!DP$2=\"Transport\",\"Transport\",\"Affaires\"),IF(Data!DP$2=\"Agricole\",\"Industriel\",Data!DP$2))","v":{"$error":"#VALUE!"}},{"$f":"IF(C26=\"Innovation\",\"1159400\",IF(C26=\"Gestion\",\"1151000\",IF(C26=\"OPTER\",\"1151210\",IF(AND(C26=\"Connaissances\",D26=\"Écoconduite\"),\"1157170\",IF(AND(C26=\"Conversion\",D26=\"Bioénergies\"),\"1151240\",IF(AND(C26=\"Conversion\",D26=\"Solaires\"),\"1151202\",INDEX(OFFSET(Type_Entreprise,,2,,),MATCH(#REF!,Type_Entreprise,0))))))))","v":{"$error":"#REF!"}}]
[null,null,"Choisir…",null,"Choisir…",null,"",null,null,null,null,null,null,null,"","",0,0,0,null,null,"Choisir…",null,null,null,null,null,null,"","","","","","","",0,"",{"$f":"CHOOSE(AF27,FALSE,Data!DV$2,IF(Data!DP$2=\"Transport\",FALSE,Data!DV$2),IF(Data!DP$2=\"Transport\",FALSE,Data!DV$2),FALSE,FALSE,Data!DV$2)","v":{"$error":"#VALUE!"}},{"$f":"CHOOSE(AF27,\"Affaires\",IF(Data!DP$2=\"agricole\",\"Agricole\",\"Affaires\"),IF(Data!DP$2=\"Agricole\",\"Industriel\",Data!DP$2),IF(Data!DP$2=\"Agricole\",\"Industriel\",Data!DP$2),IF(Data!DP$2=\"Agricole\",\"Agricole\",\"Affaires\"),IF(Data!DP$2=\"Transport\",\"Transport\",\"Affaires\"),IF(Data!DP$2=\"Agricole\",\"Industriel\",Data!DP$2))","v":{"$error":"#VALUE!"}},{"$f":"IF(C27=\"Innovation\",\"1159400\",IF(C27=\"Gestion\",\"1151000\",IF(C27=\"OPTER\",\"1151210\",IF(AND(C27=\"Connaissances\",D27=\"Écoconduite\"),\"1157170\",IF(AND(C27=\"Conversion\",D27=\"Bioénergies\"),\"1151240\",IF(AND(C27=\"Conversion\",D27=\"Solaires\"),\"1151202\",INDEX(OFFSET(Type_Entreprise,,2,,),MATCH(#REF!,Type_Entreprise,0))))))))","v":{"$error":"#REF!"}}]
[null,null,"Choisir…",null,"Choisir…",null,"",null,null,null,null,null,null,null,"","",0,0,0,null,null,"Choisir…",null,null,null,null,null,null,"","","","","","","",0,"",{"$f":"CHOOSE(AF28,FALSE,Data!DV$2,IF(Data!DP$2=\"Transport\",FALSE,Data!DV$2),IF(Data!DP$2=\"Transport\",FALSE,Data!DV$2),FALSE,FALSE,Data!DV$2)","v":{"$error":"#VALUE!"}},{"$f":"CHOOSE(AF28,\"Affaires\",IF(Data!DP$2=\"agricole\",\"Agricole\",\"Affaires\"),IF(Data!DP$2=\"Agricole\",\"Industriel\",Data!DP$2),IF(Data!DP$2=\"Agricole\",\"Industriel\",Data!DP$2),IF(Data!DP$2=\"Agricole\",\"Agricole\",\"Affaires\"),IF(Data!DP$2=\"Transport\",\"Transport\",\"Affaires\"),IF(Data!DP$2=\"Agricole\",\"Industriel\",Data!DP$2))","v":{"$error":"#VALUE!"}},{"$f":"IF(C28=\"Innovation\",\"1159400\",IF(C28=\"Gestion\",\"1151000\",IF(C28=\"OPTER\",\"1151210\",IF(AND(C28=\"Connaissances\",D28=\"Écoconduite\"),\"1157170\",IF(AND(C28=\"Conversion\",D28=\"Bioénergies\"),\"1151240\",IF(AND(C28=\"Conversion\",D28=\"Solaires\"),\"1151202\",INDEX(OFFSET(Type_Entreprise,,2,,),MATCH(#REF!,Type_Entreprise,0))))))))","v":{"$error":"#REF!"}}]
[null,null,"Choisir…",null,"Choisir…",null,"",null,null,null,null,null,null,null,"","",0,0,0,null,null,"Choisir…",null,null,null,null,null,null,"","","","","","","",0,"",{"$f":"CHOOSE(AF29,FALSE,Data!DV$2,IF(Data!DP$2=\"Transport\",FALSE,Data!DV$2),IF(Data!DP$2=\"Transport\",FALSE,Data!DV$2),FALSE,FALSE,Data!DV$2)","v":{"$error":"#VALUE!"}},{"$f":"CHOOSE(AF29,\"Affaires\",IF(Data!DP$2=\"agricole\",\"Agricole\",\"Affaires\"),IF(Data!DP$2=\"Agricole\",\"Industriel\",Data!DP$2),IF(Data!DP$2=\"Agricole\",\"Industriel\",Data!DP$2),IF(Data!DP$2=\"Agricole\",\"Agricole\",\"Affaires\"),IF(Data!DP$2=\"Transport\",\"Transport\",\"Affaires\"),IF(Data!DP$2=\"Agricole\",\"Industriel\",Data!DP$2))","v":{"$error":"#VALUE!"}},{"$f":"IF(C29=\"Innovation\",\"1159400\",IF(C29=\"Gestion\",\"1151000\",IF(C29=\"OPTER\",\"1151210\",IF(AND(C29=\"Connaissances\",D29=\"Écoconduite\"),\"1157170\",IF(AND(C29=\"Conversion\",D29=\"Bioénergies\"),\"1151240\",IF(AND(C29=\"Conversion\",D29=\"Solaires\"),\"1151202\",INDEX(OFFSET(Type_Entreprise,,2,,),MATCH(#REF!,Type_Entreprise,0))))))))","v":{"$error":"#REF!"}}]
[null,null,"Choisir…",null,"Choisir…",null,"",null,null,null,null,null,null,null,"","",0,0,0,null,null,"Choisir…",null,null,null,null,null,null,"","","","","","","",0,"",{"$f":"CHOOSE(AF30,FALSE,Data!DV$2,IF(Data!DP$2=\"Transport\",FALSE,Data!DV$2),IF(Data!DP$2=\"Transport\",FALSE,Data!DV$2),FALSE,FALSE,Data!DV$2)","v":{"$error":"#VALUE!"}},{"$f":"CHOOSE(AF30,\"Affaires\",IF(Data!DP$2=\"agricole\",\"Agricole\",\"Affaires\"),IF(Data!DP$2=\"Agricole\",\"Industriel\",Data!DP$2),IF(Data!DP$2=\"Agricole\",\"Industriel\",Data!DP$2),IF(Data!DP$2=\"Agricole\",\"Agricole\",\"Affaires\"),IF(Data!DP$2=\"Transport\",\"Transport\",\"Affaires\"),IF(Data!DP$2=\"Agricole\",\"Industriel\",Data!DP$2))","v":{"$error":"#VALUE!"}},{"$f":"IF(C30=\"Innovation\",\"1159400\",IF(C30=\"Gestion\",\"1151000\",IF(C30=\"OPTER\",\"1151210\",IF(AND(C30=\"Connaissances\",D30=\"Écoconduite\"),\"1157170\",IF(AND(C30=\"Conversion\",D30=\"Bioénergies\"),\"1151240\",IF(AND(C30=\"Conversion\",D30=\"Solaires\"),\"1151202\",INDEX(OFFSET(Type_Entreprise,,2,,),MATCH(#REF!,Type_Entreprise,0))))))))","v":{"$error":"#REF!"}}]
[null,null,"Choisir…",null,"Choisir…",null,"",null,null,null,null,null,null,null,"","",0,0,0,null,null,"Choisir…",null,null,null,null,null,null,"","","","","","","",0,"",{"$f":"CHOOSE(AF31,FALSE,Data!DV$2,IF(Data!DP$2=\"Transport\",FALSE,Data!DV$2),IF(Data!DP$2=\"Transport\",FALSE,Data!DV$2),FALSE,FALSE,Data!DV$2)","v":{"$error":"#VALUE!"}},{"$f":"CHOOSE(AF31,\"Affaires\",IF(Data!DP$2=\"agricole\",\"Agricole\",\"Affaires\"),IF(Data!DP$2=\"Agricole\",\"Industriel\",Data!DP$2),IF(Data!DP$2=\"Agricole\",\"Industriel\",Data!DP$2),IF(Data!DP$2=\"Agricole\",\"Agricole\",\"Affaires\"),IF(Data!DP$2=\"Transport\",\"Transport\",\"Affaires\"),IF(Data!DP$2=\"Agricole\",\"Industriel\",Data!DP$2))","v":{"$error":"#VALUE!"}},{"$f":"IF(C31=\"Innovation\",\"1159400\",IF(C31=\"Gestion\",\"1151000\",IF(C31=\"OPTER\",\"1151210\",IF(AND(C31=\"Connaissances\",D31=\"Écoconduite\"),\"1157170\",IF(AND(C31=\"Conversion\",D31=\"Bioénergies\"),\"1151240\",IF(AND(C31=\"Conversion\",D31=\"Solaires\"),\"1151202\",INDEX(OFFSET(Type_Entreprise,,2,,),MATCH(#REF!,Type_Entreprise,0))))))))","v":{"$error":"#REF!"}}]
[null,null,"Choisir…",null,"Choisir…",null,"",null,null,null,null,null,null,null,"","",0,0,0,null,null,"Choisir…",null,null,null,null,null,null,"","","","","","","",0,"",{"$f":"CHOOSE(AF32,FALSE,Data!DV$2,IF(Data!DP$2=\"Transport\",FALSE,Data!DV$2),IF(Data!DP$2=\"Transport\",FALSE,Data!DV$2),FALSE,FALSE,Data!DV$2)","v":{"$error":"#VALUE!"}},{"$f":"CHOOSE(AF32,\"Affaires\",IF(Data!DP$2=\"agricole\",\"Agricole\",\"Affaires\"),IF(Data!DP$2=\"Agricole\",\"Industriel\",Data!DP$2),IF(Data!DP$2=\"Agricole\",\"Industriel\",Data!DP$2),IF(Data!DP$2=\"Agricole\",\"Agricole\",\"Affaires\"),IF(Data!DP$2=\"Transport\",\"Transport\",\"Affaires\"),IF(Data!DP$2=\"Agricole\",\"Industriel\",Data!DP$2))","v":{"$error":"#VALUE!"}},{"$f":"IF(C32=\"Innovation\",\"1159400\",IF(C32=\"Gestion\",\"1151000\",IF(C32=\"OPTER\",\"1151210\",IF(AND(C32=\"Connaissances\",D32=\"Écoconduite\"),\"1157170\",IF(AND(C32=\"Conversion\",D32=\"Bioénergies\"),\"1151240\",IF(AND(C32=\"Conversion\",D32=\"Solaires\"),\"1151202\",INDEX(OFFSET(Type_Entreprise,,2,,),MATCH(#REF!,Type_Entreprise,0))))))))","v":{"$error":"#REF!"}}]
[null,null,"Choisir…",null,"Choisir…",null,"",null,null,null,null,null,null,null,"","",0,0,0,null,null,"Choisir…",null,null,null,null,null,null,"","","","","","","",0,"",{"$f":"CHOOSE(AF33,FALSE,Data!DV$2,IF(Data!DP$2=\"Transport\",FALSE,Data!DV$2),IF(Data!DP$2=\"Transport\",FALSE,Data!DV$2),FALSE,FALSE,Data!DV$2)","v":{"$error":"#VALUE!"}},{"$f":"CHOOSE(AF33,\"Affaires\",IF(Data!DP$2=\"agricole\",\"Agricole\",\"Affaires\"),IF(Data!DP$2=\"Agricole\",\"Industriel\",Data!DP$2),IF(Data!DP$2=\"Agricole\",\"Industriel\",Data!DP$2),IF(Data!DP$2=\"Agricole\",\"Agricole\",\"Affaires\"),IF(Data!DP$2=\"Transport\",\"Transport\",\"Affaires\"),IF(Data!DP$2=\"Agricole\",\"Industriel\",Data!DP$2))","v":{"$error":"#VALUE!"}},{"$f":"IF(C33=\"Innovation\",\"1159400\",IF(C33=\"Gestion\",\"1151000\",IF(C33=\"OPTER\",\"1151210\",IF(AND(C33=\"Connaissances\",D33=\"Écoconduite\"),\"1157170\",IF(AND(C33=\"Conversion\",D33=\"Bioénergies\"),\"1151240\",IF(AND(C33=\"Conversion\",D33=\"Solaires\"),\"1151202\",INDEX(OFFSET(Type_Entreprise,,2,,),MATCH(#REF!,Type_Entreprise,0))))))))","v":{"$error":"#REF!"}}]
[null,null,"Choisir…",null,"Choisir…",null,"",null,null,null,null,null,null,null,"","",0,0,0,null,null,"Choisir…",null,null,null,null,null,null,"","","","","","","",0,"",{"$f":"CHOOSE(AF34,FALSE,Data!DV$2,IF(Data!DP$2=\"Transport\",FALSE,Data!DV$2),IF(Data!DP$2=\"Transport\",FALSE,Data!DV$2),FALSE,FALSE,Data!DV$2)","v":{"$error":"#VALUE!"}},{"$f":"CHOOSE(AF34,\"Affaires\",IF(Data!DP$2=\"agricole\",\"Agricole\",\"Affaires\"),IF(Data!DP$2=\"Agricole\",\"Industriel\",Data!DP$2),IF(Data!DP$2=\"Agricole\",\"Industriel\",Data!DP$2),IF(Data!DP$2=\"Agricole\",\"Agricole\",\"Affaires\"),IF(Data!DP$2=\"Transport\",\"Transport\",\"Affaires\"),IF(Data!DP$2=\"Agricole\",\"Industriel\",Data!DP$2))","v":{"$error":"#VALUE!"}},{"$f":"IF(C34=\"Innovation\",\"1159400\",IF(C34=\"Gestion\",\"1151000\",IF(C34=\"OPTER\",\"1151210\",IF(AND(C34=\"Connaissances\",D34=\"Écoconduite\"),\"1157170\",IF(AND(C34=\"Conversion\",D34=\"Bioénergies\"),\"1151240\",IF(AND(C34=\"Conversion\",D34=\"Solaires\"),\"1151202\",INDEX(OFFSET(Type_Entreprise,,2,,),MATCH(#REF!,Type_Entreprise,0))))))))","v":{"$error":"#REF!"}}]
[null,null,"Choisir…",null,"Choisir…",null,"",null,null,null,null,null,null,null,"","",0,0,0,null,null,"Choisir…",null,null,null,null,null,null,"","","","","","","",0,"",{"$f":"CHOOSE(AF35,FALSE,Data!DV$2,IF(Data!DP$2=\"Transport\",FALSE,Data!DV$2),IF(Data!DP$2=\"Transport\",FALSE,Data!DV$2),FALSE,FALSE,Data!DV$2)","v":{"$error":"#VALUE!"}},{"$f":"CHOOSE(AF35,\"Affaires\",IF(Data!DP$2=\"agricole\",\"Agricole\",\"Affaires\"),IF(Data!DP$2=\"Agricole\",\"Industriel\",Data!DP$2),IF(Data!DP$2=\"Agricole\",\"Industriel\",Data!DP$2),IF(Data!DP$2=\"Agricole\",\"Agricole\",\"Affaires\"),IF(Data!DP$2=\"Transport\",\"Transport\",\"Affaires\"),IF(Data!DP$2=\"Agricole\",\"Industriel\",Data!DP$2))","v":{"$error":"#VALUE!"}},{"$f":"IF(C35=\"Innovation\",\"1159400\",IF(C35=\"Gestion\",\"1151000\",IF(C35=\"OPTER\",\"1151210\",IF(AND(C35=\"Connaissances\",D35=\"Écoconduite\"),\"1157170\",IF(AND(C35=\"Conversion\",D35=\"Bioénergies\"),\"1151240\",IF(AND(C35=\"Conversion\",D35=\"Solaires\"),\"1151202\",INDEX(OFFSET(Type_Entreprise,,2,,),MATCH(#REF!,Type_Entreprise,0))))))))","v":{"$error":"#REF!"}}]
[null,null,"Choisir…",null,"Choisir…",null,"",null,null,null,null,null,null,null,"","",0,0,0,null,null,"Choisir…",null,null,null,null,null,null,"","","","","","","",0,"",{"$f":"CHOOSE(AF36,FALSE,Data!DV$2,IF(Data!DP$2=\"Transport\",FALSE,Data!DV$2),IF(Data!DP$2=\"Transport\",FALSE,Data!DV$2),FALSE,FALSE,Data!DV$2)","v":{"$error":"#VALUE!"}},{"$f":"CHOOSE(AF36,\"Affaires\",IF(Data!DP$2=\"agricole\",\"Agricole\",\"Affaires\"),IF(Data!DP$2=\"Agricole\",\"Industriel\",Data!DP$2),IF(Data!DP$2=\"Agricole\",\"Industriel\",Data!DP$2),IF(Data!DP$2=\"Agricole\",\"Agricole\",\"Affaires\"),IF(Data!DP$2=\"Transport\",\"Transport\",\"Affaires\"),IF(Data!DP$2=\"Agricole\",\"Industriel\",Data!DP$2))","v":{"$error":"#VALUE!"}},{"$f":"IF(C36=\"Innovation\",\"1159400\",IF(C36=\"Gestion\",\"1151000\",IF(C36=\"OPTER\",\"1151210\",IF(AND(C36=\"Connaissances\",D36=\"Écoconduite\"),\"1157170\",IF(AND(C36=\"Conversion\",D36=\"Bioénergies\"),\"1151240\",IF(AND(C36=\"Conversion\",D36=\"Solaires\"),\"1151202\",INDEX(OFFSET(Type_Entreprise,,2,,),MATCH(#REF!,Type_Entreprise,0))))))))","v":{"$error":"#REF!"}}]
[null,null,"Choisir…",null,"Choisir…",null,"",null,null,null,null,null,null,null,"","",0,0,0,null,null,"Choisir…",null,null,null,null,null,null,"","","","","","","",0,"",{"$f":"CHOOSE(AF37,FALSE,Data!DV$2,IF(Data!DP$2=\"Transport\",FALSE,Data!DV$2),IF(Data!DP$2=\"Transport\",FALSE,Data!DV$2),FALSE,FALSE,Data!DV$2)","v":{"$error":"#VALUE!"}},{"$f":"CHOOSE(AF37,\"Affaires\",IF(Data!DP$2=\"agricole\",\"Agricole\",\"Affaires\"),IF(Data!DP$2=\"Agricole\",\"Industriel\",Data!DP$2),IF(Data!DP$2=\"Agricole\",\"Industriel\",Data!DP$2),IF(Data!DP$2=\"Agricole\",\"Agricole\",\"Affaires\"),IF(Data!DP$2=\"Transport\",\"Transport\",\"Affaires\"),IF(Data!DP$2=\"Agricole\",\"Industriel\",Data!DP$2))","v":{"$error":"#VALUE!"}},{"$f":"IF(C37=\"Innovation\",\"1159400\",IF(C37=\"Gestion\",\"1151000\",IF(C37=\"OPTER\",\"1151210\",IF(AND(C37=\"Connaissances\",D37=\"Écoconduite\"),\"1157170\",IF(AND(C37=\"Conversion\",D37=\"Bioénergies\"),\"1151240\",IF(AND(C37=\"Conversion\",D37=\"Solaires\"),\"1151202\",INDEX(OFFSET(Type_Entreprise,,2,,),MATCH(#REF!,Type_Entreprise,0))))))))","v":{"$error":"#REF!"}}]
[null,null,"Choisir…",null,"Choisir…",null,"",null,null,null,null,null,null,null,"","",0,0,0,null,null,"Choisir…",null,null,null,null,null,null,"","","","","","","",0,"",{"$f":"CHOOSE(AF38,FALSE,Data!DV$2,IF(Data!DP$2=\"Transport\",FALSE,Data!DV$2),IF(Data!DP$2=\"Transport\",FALSE,Data!DV$2),FALSE,FALSE,Data!DV$2)","v":{"$error":"#VALUE!"}},{"$f":"CHOOSE(AF38,\"Affaires\",IF(Data!DP$2=\"agricole\",\"Agricole\",\"Affaires\"),IF(Data!DP$2=\"Agricole\",\"Industriel\",Data!DP$2),IF(Data!DP$2=\"Agricole\",\"Industriel\",Data!DP$2),IF(Data!DP$2=\"Agricole\",\"Agricole\",\"Affaires\"),IF(Data!DP$2=\"Transport\",\"Transport\",\"Affaires\"),IF(Data!DP$2=\"Agricole\",\"Industriel\",Data!DP$2))","v":{"$error":"#VALUE!"}},{"$f":"IF(C38=\"Innovation\",\"1159400\",IF(C38=\"Gestion\",\"1151000\",IF(C38=\"OPTER\",\"1151210\",IF(AND(C38=\"Connaissances\",D38=\"Écoconduite\"),\"1157170\",IF(AND(C38=\"Conversion\",D38=\"Bioénergies\"),\"1151240\",IF(AND(C38=\"Conversion\",D38=\"Solaires\"),\"1151202\",INDEX(OFFSET(Type_Entreprise,,2,,),MATCH(#REF!,Type_Entreprise,0))))))))","v":{"$error":"#REF!"}}]
[null,null,"Choisir…",null,"Choisir…",null,"",null,null,null,null,null,null,null,"","",0,0,0,null,null,"Choisir…",null,null,null,null,null,null,"","","","","","","",0,"",{"$f":"CHOOSE(AF39,FALSE,Data!DV$2,IF(Data!DP$2=\"Transport\",FALSE,Data!DV$2),IF(Data!DP$2=\"Transport\",FALSE,Data!DV$2),FALSE,FALSE,Data!DV$2)","v":{"$error":"#VALUE!"}},{"$f":"CHOOSE(AF39,\"Affaires\",IF(Data!DP$2=\"agricole\",\"Agricole\",\"Affaires\"),IF(Data!DP$2=\"Agricole\",\"Industriel\",Data!DP$2),IF(Data!DP$2=\"Agricole\",\"Industriel\",Data!DP$2),IF(Data!DP$2=\"Agricole\",\"Agricole\",\"Affaires\"),IF(Data!DP$2=\"Transport\",\"Transport\",\"Affaires\"),IF(Data!DP$2=\"Agricole\",\"Industriel\",Data!DP$2))","v":{"$error":"#VALUE!"}},{"$f":"IF(C39=\"Innovation\",\"1159400\",IF(C39=\"Gestion\",\"1151000\",IF(C39=\"OPTER\",\"1151210\",IF(AND(C39=\"Connaissances\",D39=\"Écoconduite\"),\"1157170\",IF(AND(C39=\"Conversion\",D39=\"Bioénergies\"),\"1151240\",IF(AND(C39=\"Conversion\",D39=\"Solaires\"),\"1151202\",INDEX(OFFSET(Type_Entreprise,,2,,),MATCH(#REF!,Type_Entreprise,0))))))))","v":{"$error":"#REF!"}}]
[null,null,"Choisir…",null,"Choisir…",null,"",null,null,null,null,null,null,null,"","",0,0,0,null,null,"Choisir…",null,null,null,null,null,null,"","","","","","","",0,"",{"$f":"CHOOSE(AF40,FALSE,Data!DV$2,IF(Data!DP$2=\"Transport\",FALSE,Data!DV$2),IF(Data!DP$2=\"Transport\",FALSE,Data!DV$2),FALSE,FALSE,Data!DV$2)","v":{"$error":"#VALUE!"}},{"$f":"CHOOSE(AF40,\"Affaires\",IF(Data!DP$2=\"agricole\",\"Agricole\",\"Affaires\"),IF(Data!DP$2=\"Agricole\",\"Industriel\",Data!DP$2),IF(Data!DP$2=\"Agricole\",\"Industriel\",Data!DP$2),IF(Data!DP$2=\"Agricole\",\"Agricole\",\"Affaires\"),IF(Data!DP$2=\"Transport\",\"Transport\",\"Affaires\"),IF(Data!DP$2=\"Agricole\",\"Industriel\",Data!DP$2))","v":{"$error":"#VALUE!"}},{"$f":"IF(C40=\"Innovation\",\"1159400\",IF(C40=\"Gestion\",\"1151000\",IF(C40=\"OPTER\",\"1151210\",IF(AND(C40=\"Connaissances\",D40=\"Écoconduite\"),\"1157170\",IF(AND(C40=\"Conversion\",D40=\"Bioénergies\"),\"1151240\",IF(AND(C40=\"Conversion\",D40=\"Solaires\"),\"1151202\",INDEX(OFFSET(Type_Entreprise,,2,,),MATCH(#REF!,Type_Entreprise,0))))))))","v":{"$error":"#REF!"}}]
[null,null,"Choisir…",null,"Choisir…",null,"",null,null,null,null,null,null,null,"","",0,0,0,null,null,"Choisir…",null,null,null,null,null,null,"","","","","","","",0,"",{"$f":"CHOOSE(AF41,FALSE,Data!DV$2,IF(Data!DP$2=\"Transport\",FALSE,Data!DV$2),IF(Data!DP$2=\"Transport\",FALSE,Data!DV$2),FALSE,FALSE,Data!DV$2)","v":{"$error":"#VALUE!"}},{"$f":"CHOOSE(AF41,\"Affaires\",IF(Data!DP$2=\"agricole\",\"Agricole\",\"Affaires\"),IF(Data!DP$2=\"Agricole\",\"Industriel\",Data!DP$2),IF(Data!DP$2=\"Agricole\",\"Industriel\",Data!DP$2),IF(Data!DP$2=\"Agricole\",\"Agricole\",\"Affaires\"),IF(Data!DP$2=\"Transport\",\"Transport\",\"Affaires\"),IF(Data!DP$2=\"Agricole\",\"Industriel\",Data!DP$2))","v":{"$error":"#VALUE!"}},{"$f":"IF(C41=\"Innovation\",\"1159400\",IF(C41=\"Gestion\",\"1151000\",IF(C41=\"OPTER\",\"1151210\",IF(AND(C41=\"Connaissances\",D41=\"Écoconduite\"),\"1157170\",IF(AND(C41=\"Conversion\",D41=\"Bioénergies\"),\"1151240\",IF(AND(C41=\"Conversion\",D41=\"Solaires\"),\"1151202\",INDEX(OFFSET(Type_Entreprise,,2,,),MATCH(#REF!,Type_Entreprise,0))))))))","v":{"$error":"#REF!"}}]
[null,null,"Choisir…",null,"Choisir…",null,"",null,null,null,null,null,null,null,"","",0,0,0,null,null,"Choisir…",null,null,null,null,null,null,"","","","","","","",0,"",{"$f":"CHOOSE(AF42,FALSE,Data!DV$2,IF(Data!DP$2=\"Transport\",FALSE,Data!DV$2),IF(Data!DP$2=\"Transport\",FALSE,Data!DV$2),FALSE,FALSE,Data!DV$2)","v":{"$error":"#VALUE!"}},{"$f":"CHOOSE(AF42,\"Affaires\",IF(Data!DP$2=\"agricole\",\"Agricole\",\"Affaires\"),IF(Data!DP$2=\"Agricole\",\"Industriel\",Data!DP$2),IF(Data!DP$2=\"Agricole\",\"Industriel\",Data!DP$2),IF(Data!DP$2=\"Agricole\",\"Agricole\",\"Affaires\"),IF(Data!DP$2=\"Transport\",\"Transport\",\"Affaires\"),IF(Data!DP$2=\"Agricole\",\"Industriel\",Data!DP$2))","v":{"$error":"#VALUE!"}},{"$f":"IF(C42=\"Innovation\",\"1159400\",IF(C42=\"Gestion\",\"1151000\",IF(C42=\"OPTER\",\"1151210\",IF(AND(C42=\"Connaissances\",D42=\"Écoconduite\"),\"1157170\",IF(AND(C42=\"Conversion\",D42=\"Bioénergies\"),\"1151240\",IF(AND(C42=\"Conversion\",D42=\"Solaires\"),\"1151202\",INDEX(OFFSET(Type_Entreprise,,2,,),MATCH(#REF!,Type_Entreprise,0))))))))","v":{"$error":"#REF!"}}]
[null,null,"Choisir…",null,"Choisir…",null,"",null,null,null,null,null,null,null,"","",0,0,0,null,null,"Choisir…",null,null,null,null,null,null,"","","","","","","",0,"",{"$f":"CHOOSE(AF43,FALSE,Data!DV$2,IF(Data!DP$2=\"Transport\",FALSE,Data!DV$2),IF(Data!DP$2=\"Transport\",FALSE,Data!DV$2),FALSE,FALSE,Data!DV$2)","v":{"$error":"#VALUE!"}},{"$f":"CHOOSE(AF43,\"Affaires\",IF(Data!DP$2=\"agricole\",\"Agricole\",\"Affaires\"),IF(Data!DP$2=\"Agricole\",\"Industriel\",Data!DP$2),IF(Data!DP$2=\"Agricole\",\"Industriel\",Data!DP$2),IF(Data!DP$2=\"Agricole\",\"Agricole\",\"Affaires\"),IF(Data!DP$2=\"Transport\",\"Transport\",\"Affaires\"),IF(Data!DP$2=\"Agricole\",\"Industriel\",Data!DP$2))","v":{"$error":"#VALUE!"}},{"$f":"IF(C43=\"Innovation\",\"1159400\",IF(C43=\"Gestion\",\"1151000\",IF(C43=\"OPTER\",\"1151210\",IF(AND(C43=\"Connaissances\",D43=\"Écoconduite\"),\"1157170\",IF(AND(C43=\"Conversion\",D43=\"Bioénergies\"),\"1151240\",IF(AND(C43=\"Conversion\",D43=\"Solaires\"),\"1151202\",INDEX(OFFSET(Type_Entreprise,,2,,),MATCH(#REF!,Type_Entreprise,0))))))))","v":{"$error":"#REF!"}}]
[null,null,"Choisir…",null,"Choisir…",null,"",null,null,null,null,null,null,null,"","",0,0,0,null,null,"Choisir…",null,null,null,null,null,null,"","","","","","","",0,"",{"$f":"CHOOSE(AF44,FALSE,Data!DV$2,IF(Data!DP$2=\"Transport\",FALSE,Data!DV$2),IF(Data!DP$2=\"Transport\",FALSE,Data!DV$2),FALSE,FALSE,Data!DV$2)","v":{"$error":"#VALUE!"}},{"$f":"CHOOSE(AF44,\"Affaires\",IF(Data!DP$2=\"agricole\",\"Agricole\",\"Affaires\"),IF(Data!DP$2=\"Agricole\",\"Industriel\",Data!DP$2),IF(Data!DP$2=\"Agricole\",\"Industriel\",Data!DP$2),IF(Data!DP$2=\"Agricole\",\"Agricole\",\"Affaires\"),IF(Data!DP$2=\"Transport\",\"Transport\",\"Affaires\"),IF(Data!DP$2=\"Agricole\",\"Industriel\",Data!DP$2))","v":{"$error":"#VALUE!"}},{"$f":"IF(C44=\"Innovation\",\"1159400\",IF(C44=\"Gestion\",\"1151000\",IF(C44=\"OPTER\",\"1151210\",IF(AND(C44=\"Connaissances\",D44=\"Écoconduite\"),\"1157170\",IF(AND(C44=\"Conversion\",D44=\"Bioénergies\"),\"1151240\",IF(AND(C44=\"Conversion\",D44=\"Solaires\"),\"1151202\",INDEX(OFFSET(Type_Entreprise,,2,,),MATCH(#REF!,Type_Entreprise,0))))))))","v":{"$error":"#REF!"}}]
[null,null,"Choisir…",null,"Choisir…",null,"",null,null,null,null,null,null,null,"","",0,0,0,null,null,"Choisir…",null,null,null,null,null,null,"","","","","","","",0,"",{"$f":"CHOOSE(AF45,FALSE,Data!DV$2,IF(Data!DP$2=\"Transport\",FALSE,Data!DV$2),IF(Data!DP$2=\"Transport\",FALSE,Data!DV$2),FALSE,FALSE,Data!DV$2)","v":{"$error":"#VALUE!"}},{"$f":"CHOOSE(AF45,\"Affaires\",IF(Data!DP$2=\"agricole\",\"Agricole\",\"Affaires\"),IF(Data!DP$2=\"Agricole\",\"Industriel\",Data!DP$2),IF(Data!DP$2=\"Agricole\",\"Industriel\",Data!DP$2),IF(Data!DP$2=\"Agricole\",\"Agricole\",\"Affaires\"),IF(Data!DP$2=\"Transport\",\"Transport\",\"Affaires\"),IF(Data!DP$2=\"Agricole\",\"Industriel\",Data!DP$2))","v":{"$error":"#VALUE!"}},{"$f":"IF(C45=\"Innovation\",\"1159400\",IF(C45=\"Gestion\",\"1151000\",IF(C45=\"OPTER\",\"1151210\",IF(AND(C45=\"Connaissances\",D45=\"Écoconduite\"),\"1157170\",IF(AND(C45=\"Conversion\",D45=\"Bioénergies\"),\"1151240\",IF(AND(C45=\"Conversion\",D45=\"Solaires\"),\"1151202\",INDEX(OFFSET(Type_Entreprise,,2,,),MATCH(#REF!,Type_Entreprise,0))))))))","v":{"$error":"#REF!"}}]
[null,null,"Choisir…",null,"Choisir…",null,"",null,null,null,null,null,null,null,"","",0,0,0,null,null,"Choisir…",null,null,null,null,null,null,"","","","","","","",0,"",{"$f":"CHOOSE(AF46,FALSE,Data!DV$2,IF(Data!DP$2=\"Transport\",FALSE,Data!DV$2),IF(Data!DP$2=\"Transport\",FALSE,Data!DV$2),FALSE,FALSE,Data!DV$2)","v":{"$error":"#VALUE!"}},{"$f":"CHOOSE(AF46,\"Affaires\",IF(Data!DP$2=\"agricole\",\"Agricole\",\"Affaires\"),IF(Data!DP$2=\"Agricole\",\"Industriel\",Data!DP$2),IF(Data!DP$2=\"Agricole\",\"Industriel\",Data!DP$2),IF(Data!DP$2=\"Agricole\",\"Agricole\",\"Affaires\"),IF(Data!DP$2=\"Transport\",\"Transport\",\"Affaires\"),IF(Data!DP$2=\"Agricole\",\"Industriel\",Data!DP$2))","v":{"$error":"#VALUE!"}},{"$f":"IF(C46=\"Innovation\",\"1159400\",IF(C46=\"Gestion\",\"1151000\",IF(C46=\"OPTER\",\"1151210\",IF(AND(C46=\"Connaissances\",D46=\"Écoconduite\"),\"1157170\",IF(AND(C46=\"Conversion\",D46=\"Bioénergies\"),\"1151240\",IF(AND(C46=\"Conversion\",D46=\"Solaires\"),\"1151202\",INDEX(OFFSET(Type_Entreprise,,2,,),MATCH(#REF!,Type_Entreprise,0))))))))","v":{"$error":"#REF!"}}]
[null,null,"Choisir…",null,"Choisir…",null,"",null,null,null,null,null,null,null,"","",0,0,0,null,null,"Choisir…",null,null,null,null,null,null,"","","","","","","",0,"",{"$f":"CHOOSE(AF47,FALSE,Data!DV$2,IF(Data!DP$2=\"Transport\",FALSE,Data!DV$2),IF(Data!DP$2=\"Transport\",FALSE,Data!DV$2),FALSE,FALSE,Data!DV$2)","v":{"$error":"#VALUE!"}},{"$f":"CHOOSE(AF47,\"Affaires\",IF(Data!DP$2=\"agricole\",\"Agricole\",\"Affaires\"),IF(Data!DP$2=\"Agricole\",\"Industriel\",Data!DP$2),IF(Data!DP$2=\"Agricole\",\"Industriel\",Data!DP$2),IF(Data!DP$2=\"Agricole\",\"Agricole\",\"Affaires\"),IF(Data!DP$2=\"Transport\",\"Transport\",\"Affaires\"),IF(Data!DP$2=\"Agricole\",\"Industriel\",Data!DP$2))","v":{"$error":"#VALUE!"}},{"$f":"IF(C47=\"Innovation\",\"1159400\",IF(C47=\"Gestion\",\"1151000\",IF(C47=\"OPTER\",\"1151210\",IF(AND(C47=\"Connaissances\",D47=\"Écoconduite\"),\"1157170\",IF(AND(C47=\"Conversion\",D47=\"Bioénergies\"),\"1151240\",IF(AND(C47=\"Conversion\",D47=\"Solaires\"),\"1151202\",INDEX(OFFSET(Type_Entreprise,,2,,),MATCH(#REF!,Type_Entreprise,0))))))))","v":{"$error":"#REF!"}}]
[null,null,"Choisir…",null,"Choisir…",null,"",null,null,null,null,null,null,null,"","",0,0,0,null,null,"Choisir…",null,null,null,null,null,null,"","","","","","","",0,"",{"$f":"CHOOSE(AF48,FALSE,Data!DV$2,IF(Data!DP$2=\"Transport\",FALSE,Data!DV$2),IF(Data!DP$2=\"Transport\",FALSE,Data!DV$2),FALSE,FALSE,Data!DV$2)","v":{"$error":"#VALUE!"}},{"$f":"CHOOSE(AF48,\"Affaires\",IF(Data!DP$2=\"agricole\",\"Agricole\",\"Affaires\"),IF(Data!DP$2=\"Agricole\",\"Industriel\",Data!DP$2),IF(Data!DP$2=\"Agricole\",\"Industriel\",Data!DP$2),IF(Data!DP$2=\"Agricole\",\"Agricole\",\"Affaires\"),IF(Data!DP$2=\"Transport\",\"Transport\",\"Affaires\"),IF(Data!DP$2=\"Agricole\",\"Industriel\",Data!DP$2))","v":{"$error":"#VALUE!"}},{"$f":"IF(C48=\"Innovation\",\"1159400\",IF(C48=\"Gestion\",\"1151000\",IF(C48=\"OPTER\",\"1151210\",IF(AND(C48=\"Connaissances\",D48=\"Écoconduite\"),\"1157170\",IF(AND(C48=\"Conversion\",D48=\"Bioénergies\"),\"1151240\",IF(AND(C48=\"Conversion\",D48=\"Solaires\"),\"1151202\",INDEX(OFFSET(Type_Entreprise,,2,,),MATCH(#REF!,Type_Entreprise,0))))))))","v":{"$error":"#REF!"}}]
[null,null,"Choisir…",null,"Choisir…",null,"",null,null,null,null,null,null,null,"","",0,0,0,null,null,"Choisir…",null,null,null,null,null,null,"","","","","","","",0,"",{"$f":"CHOOSE(AF49,FALSE,Data!DV$2,IF(Data!DP$2=\"Transport\",FALSE,Data!DV$2),IF(Data!DP$2=\"Transport\",FALSE,Data!DV$2),FALSE,FALSE,Data!DV$2)","v":{"$error":"#VALUE!"}},{"$f":"CHOOSE(AF49,\"Affaires\",IF(Data!DP$2=\"agricole\",\"Agricole\",\"Affaires\"),IF(Data!DP$2=\"Agricole\",\"Industriel\",Data!DP$2),IF(Data!DP$2=\"Agricole\",\"Industriel\",Data!DP$2),IF(Data!DP$2=\"Agricole\",\"Agricole\",\"Affaires\"),IF(Data!DP$2=\"Transport\",\"Transport\",\"Affaires\"),IF(Data!DP$2=\"Agricole\",\"Industriel\",Data!DP$2))","v":{"$error":"#VALUE!"}},{"$f":"IF(C49=\"Innovation\",\"1159400\",IF(C49=\"Gestion\",\"1151000\",IF(C49=\"OPTER\",\"1151210\",IF(AND(C49=\"Connaissances\",D49=\"Écoconduite\"),\"1157170\",IF(AND(C49=\"Conversion\",D49=\"Bioénergies\"),\"1151240\",IF(AND(C49=\"Conversion\",D49=\"Solaires\"),\"1151202\",INDEX(OFFSET(Type_Entreprise,,2,,),MATCH(#REF!,Type_Entreprise,0))))))))","v":{"$error":"#REF!"}}]
[null,null,"Total",null,null,null,null,null,null,null,null,null,null,{"$f":"SUM(N16:N49)","v":0},0,0,0,0,0,0,0]
[]
["(1) Si, pour une même mesure, il y a des réductions ou des augmentations de la consommation énergétique ou que la mesure implique différentes  formes d'énergie, celles-ci doivent être présentées sur des lignes différentes."]
["(2) Formes d'énergie ou composante :"]
["(3) Si applicable, spécifiez l'unité de production"]
["(4) La PRI est définie comme étant le rapport : "]
["      Coûts du projet/économies nettes liées à la consommation énergétique (différence entre réductions et augmentations)"]
["      Se référer au Guide détaillé du requérant pour d'autres détails"]
["(5) Pour les conversions seulement"]
["    Voir le Guide détaillé du requérant pour plus de détails"]

{"sheet":"Data","index":6,"n_rows":254,"n_cols":181,"rows_kept":254,"cut":false,"hidden":true,"merged":[[61,1,61,2],[61,3,61,4]]}
["Version","Inno","Analyse","Implantation","Conversion","Gestion","Connaissance","OPTER","InnoC","AnalyseC","ImplantationC","ConversionC","GestionC","ConnaissanceC","OPTERC","Anal_Etu","Anal_IP","Anal_IP_Prelim","Anal_Approv","Conv_Bio","Conv_Sol","Conv_ER","Conv_Conv","Gestion_Agri","Gestion_Ind","DEV_Conduite","DEV_Agri","DEV_Ind","OPTER_Arena","OPTER_Super","OPTER_Agro","Code_Req","ORGreq","ORGAdr","ORGVil","ORGCP","ORGStatLeg","ORGNEQ","ORGNbreEmplois","ORGRDrec","Code_Sign","SignAppel","SignNom","SignPrenom","SignSuffixe","SignFonc","SignEMail","SignEnt","SignAdr","SignVil","SignCP","SignNEQ","SignPhone","SignPoste","SignCell","Signcc","Signcorprinc","Code_Repadm","RepAdmAppel","RepAdmNom","RepAdmPrenom","RepAdmSuffixe","RepAdmFonc","RepAdmEMail","RepAdmEnt","RepAdmAdr","RepAdmVil","RepAdmCP","RepAdmNEQ","RepAdmPhone","RepAdmPoste","RepAdmCell","RepAdmcc","RepAdmcorprinc","Code_RepTech","RepTechAppel","RepTechNom","RepTechPrenom","RepTechSuffixe","RepTechFonc","RepTechEMail","RepTechEnt","RepTechAdr","RepTechVil","RepTechCP","RepTechNEQ","RepTechPhone","RepTechPoste","RepTechCell","RepTechOrdre","RepTechNoMbre","RepTechcc","RepTechcorprinc","Code_Consultant","ConsultAppel","ConsultNom","ConsultPrenom","ConsultSuffixe","ConsultFonc","ConsultEMail","ConsultEnt","ConsultAdr","ConsultVil","ConsultCP","ConsultNEQ","ConsultPhone","ConsultPoste","ConsultCell","ConsultOrdre","ConsultNoMbre","Consultcc","Consultcorprinc","SitePrinc","SiteAdr","SiteVil","SiteCP","SiteNEQ","SiteSCIAN","SiteTypeENT","Secteur","No_Projet_Sagir_Abrev","Volet","Section","Composante","SiteGJNel","SIte36TJ","Site36TJCode","NouveauExistant","DJChauffe","Superficie","UnitSuperficie","Production","UnitProd","ConsDateDeb","ConsDateFin","TitreProj","DateDebProj","DateFinProj","DateMER","ProjStratTrans","Engagement","Residentiel","Commercial","Institutionnel","Municipal","Transport","Industriel","Agricole","Autre","DomaineAutre","ProdER","Bioénergie","Eolienne","Geothermie","Hydrolienne","Hydrogene","Maremotrice","Solaire","AutreER","ERAutre","EEInno","Electricite","MazoutLeger","MazoutLourd","GazNaturel","Propane","Essence","Diesel","AutreEE","EEAutre","Montantdem","DateDemande","Cinterne_Prevu","Cexterne_Prevu","Ctotaux_Prevu","Cinterne_Reel","Cexterne_reel","Ctotaux_Reel","NbreMes","Recom","RecomC"]
["FO_ECOPERF_V1",{"$f":"IF(A56=TRUE,\"1\",\"\")","v":""},{"$f":"IF(B56=TRUE,\"2\",\"\")","v":"2"},{"$f":"IF(C56=TRUE,\"3\",\"\")","v":""},{"$f":"IF(D56=TRUE,\"4\",\"\")","v":""},{"$f":"IF(E56=TRUE,\"5\",\"\")","v":""},{"$f":"IF(F56=TRUE,\"6\",\"\")","v":""},{"$f":"IF(G56=TRUE,\"7\",\"\")","v":""},{"$f":"A56","v":false},{"$f":"B56","v":true},false,false,false,false,false,{"$f":"B57","v":false},{"$f":"B58","v":false},{"$f":"B60","v":false},{"$f":"B59","v":false},{"$f":"D57","v":false},{"$f":"D60","v":false},{"$f":"D58","v":false},{"$f":"D59","v":false},{"$f":"E57","v":false},{"$f":"E58","v":false},{"$f":"F57","v":false},{"$f":"F58","v":false},{"$f":"F59","v":false},{"$f":"G57","v":false},{"$f":"G58","v":false},{"$f":"G59","v":false},10,{"$f":"IF(#REF!=\"\",\"\",#REF!)","v":{"$error":"#REF!"}},{"$f":"IF(#REF!=\"\",\"\",#REF!)","v":{"$error":"#REF!"}},{"$f":"IF(#REF!=\"\",\"\",#REF!)","v":{"$error":"#REF!"}},{"$f":"IF(#REF!=\"\",\"\",#REF!)","v":{"$error":"#REF!"}},{"$f":"IF(#REF!=\"\",\"\",#REF!)","v":{"$error":"#REF!"}},{"$f":"IF(#REF!=\"\",\"\",#REF!)","v":{"$error":"#REF!"}},{"$f":"IF(#REF!=\"\",\"\",#REF!)","v":{"$error":"#REF!"}},false,1,{"$f":"INDEX(OFFSET(Appel,,-1,,),MATCH(#REF!,Appel,0))","v":{"$error":"#REF!"}},{"$f":"IF(#REF!=\"\",\"\",#REF!)","v":{"$error":"#REF!"}},{"$f":"IF(#REF!=\"\",\"\",#REF!)","v":{"$error":"#REF!"}},{"$f":"IF(#REF!=\"\",\"\",#REF!)","v":{"$error":"#REF!"}},{"$f":"IF(#REF!=\"\",\"\",#REF!)","v":{"$error":"#REF!"}},{"$f":"IF(#REF!=\"\",\"\",#REF!)","v":{"$error":"#REF!"}},{"$f":"IF(#REF!=\"\",\"\",#REF!)","v":{"$error":"#REF!"}},{"$f":"IF(#REF!=\"\",\"\",#REF!)","v":{"$error":"#REF!"}},{"$f":"IF(#REF!=\"\",\"\",#REF!)","v":{"$error":"#REF!"}},{"$f":"IF(#REF!=\"\",\"\",#REF!)","v":{"$error":"#REF!"}},{"$f":"IF(#REF!=\"\",\"\",#REF!)","v":{"$error":"#REF!"}},{"$f":"IF(#REF!=\"\",\"\",#REF!)","v":{"$error":"#REF!"}},{"$f":"IF(#REF!=\"\",\"\",#REF!)","v":{"$error":"#REF!"}},{"$f":"IF(#REF!=\"\",\"\",#REF!)","v":{"$error":"#REF!"}},false,false,2,{"$f":"INDEX(OFFSET(Appel,,-1,,),MATCH(#REF!,Appel,0))","v":{"$error":"#REF!"}},{"$f":"IF(#REF!=\"\",\"\",#REF!)","v":{"$error":"#REF!"}},{"$f":"IF(#REF!=\"\",\"\",#REF!)","v":{"$error":"#REF!"}},{"$f":"IF(#REF!=\"\",\"\",#REF!)","v":{"$error":"#REF!"}},{"$f":"IF(#REF!=\"\",\"\",#REF!)","v":{"$error":"#REF!"}},{"$f":"IF(#REF!=\"\",\"\",#REF!)","v":{"$error":"#REF!"}},{"$f":"IF(#REF!=\"\",\"\",#REF!)","v":{"$error":"#REF!"}},{"$f":"IF(#REF!=\"\",\"\",#REF!)","v":{"$error":"#REF!"}},{"$f":"IF(#REF!=\"\",\"\",#REF!)","v":{"$error":"#REF!"}},{"$f":"IF(#REF!=\"\",\"\",#REF!)","v":{"$error":"#REF!"}},{"$f":"IF(#REF!=\"\",\"\",#REF!)","v":{"$error":"#REF!"}},{"$f":"IF(#REF!=\"\",\"\",#REF!)","v":{"$error":"#REF!"}},{"$f":"IF(#REF!=\"\",\"\",#REF!)","v":{"$error":"#REF!"}},{"$f":"IF(#REF!=\"\",\"\",#REF!)","v":{"$error":"#REF!"}},false,true,3,{"$f":"INDEX(OFFSET(Appel,,-1,,),MATCH(#REF!,Appel,0))","v":{"$error":"#REF!"}},{"$f":"IF(#REF!=\"\",\"\",#REF!)","v":{"$error":"#REF!"}},{"$f":"IF(#REF!=\"\",\"\",#REF!)","v":{"$error":"#REF!"}},{"$f":"IF(#REF!=\"\",\"\",#REF!)","v":{"$error":"#REF!"}},{"$f":"IF(#REF!=\"\",\"\",#REF!)","v":{"$error":"#REF!"}},{"$f":"IF(#REF!=\"\",\"\",#REF!)","v":{"$error":"#REF!"}},{"$f":"IF(#REF!=\"\",\"\",#REF!)","v":{"$error":"#REF!"}},{"$f":"IF(#REF!=\"\",\"\",#REF!)","v":{"$error":"#REF!"}},{"$f":"IF(#REF!=\"\",\"\",#REF!)","v":{"$error":"#REF!"}},{"$f":"IF(#REF!=\"\",\"\",#REF!)","v":{"$error":"#REF!"}},{"$f":"IF(#REF!=\"\",\"\",#REF!)","v":{"$error":"#REF!"}},{"$f":"IF(#REF!=\"\",\"\",#REF!)","v":{"$error":"#REF!"}},{"$f":"IF(#REF!=\"\",\"\",#REF!)","v":{"$error":"#REF!"}},{"$f":"IF(#REF!=\"\",\"\",#REF!)","v":{"$error":"#REF!"}},{"$f":"IF(#REF!=\"\",\"\",#REF!)","v":{"$error":"#REF!"}},{"$f":"IF(#REF!=\"\",\"\",#REF!)","v":{"$error":"#REF!"}},false,false,4,{"$f":"INDEX(OFFSET(Appel,,-1,,),MATCH(#REF!,Appel,0))","v":{"$error":"#REF!"}},{"$f":"IF(#REF!=\"\",\"\",#REF!)","v":{"$error":"#REF!"}},{"$f":"IF(#REF!=\"\",\"\",#REF!)","v":{"$error":"#REF!"}},{"$f":"IF(#REF!=\"\",\"\",#REF!)","v":{"$error":"#REF!"}},{"$f":"IF(#REF!=\"\",\"\",#REF!)","v":{"$error":"#REF!"}},{"$f":"IF(#REF!=\"\",\"\",#REF!)","v":{"$error":"#REF!"}},{"$f":"IF(#REF!=\"\",\"\",#REF!)","v":{"$error":"#REF!"}},{"$f":"IF(#REF!=\"\",\"\",#REF!)","v":{"$error":"#REF!"}},{"$f":"IF(#REF!=\"\",\"\",#REF!)","v":{"$error":"#REF!"}},{"$f":"IF(#REF!=\"\",\"\",#REF!)","v":{"$error":"#REF!"}},{"$f":"IF(#REF!=\"\",\"\",#REF!)","v":{"$error":"#REF!"}},{"$f":"IF(#REF!=\"\",\"\",#REF!)","v":{"$error":"#REF!"}},{"$f":"IF(#REF!=\"\",\"\",#REF!)","v":{"$error":"#REF!"}},{"$f":"IF(#REF!=\"\",\"\",#REF!)","v":{"$error":"#REF!"}},{"$f":"IF(#REF!=\"\",\"\",#REF!)","v":{"$error":"#REF!"}},{"$f":"IF(#REF!=\"\",\"\",#REF!)","v":{"$error":"#REF!"}},true,false,{"$f":"IF(F57=TRUE,IF(#REF!=\"\",\"\",#REF!),IF(#REF!=\"\",\"\",#REF!))","v":{"$error":"#REF!"}},{"$f":"IF(F57=TRUE,IF(#REF!=\"\",\"\",#REF!),IF(#REF!=\"\",\"\",#REF!))","v":{"$error":"#REF!"}},{"$f":"IF(F57=TRUE,IF(#REF!=\"\",\"\",#REF!),IF(#REF!=\"\",\"\",#REF!))","v":{"$error":"#REF!"}},{"$f":"IF(F57=TRUE,IF(#REF!=\"\",\"\",#REF!),IF(#REF!=\"\",\"\",#REF!))","v":{"$error":"#REF!"}},{"$f":"IF(F57=TRUE,IF(#REF!=\"\",\"\",#REF!),IF(#REF!=\"\",\"\",#REF!))","v":{"$error":"#REF!"}},{"$f":"IF(F57=TRUE,484,IF(#REF!=\"\",\"\",#REF!))","v":{"$error":"#REF!"}},{"$f":"IF(F57=TRUE,10,INDEX(OFFSET(Type_Entreprise,,-1,,),MATCH(#REF!,Type_Entreprise,0)))","v":{"$error":"#REF!"}},{"$f":"INDEX(OFFSET(Type_Entreprise,,1,,),MATCH(#REF!,Type_Entreprise,0))","v":{"$error":"#REF!"}},{"$f":"IF(B61=TRUE,\"1154020\",DQ3)","v":{"$error":"#REF!"}},{"$f":"IF(A56=TRUE,\"Innovation technologique\",IF(OR(B56=TRUE,E56=TRUE,F56=TRUE),\"Analyse\",\"Implantation\"))","v":"Analyse"},{"$f":"IF(FX2=\"8\",\"8\",IF(B2=\"1\",\"1\",IF(C2=\"2\",\"2\",IF(F2=\"5\",\"5\",IF(G2=\"6\",\"6\",IF(H2=\"7\",\"7\",IF(D2=\"3\",\"3\",IF(E2=\"4\",\"4\",\"\"))))))))","v":"2"},null,{"$f":"#REF!","v":{"$error":"#REF!"}},false,{"$f":"IF(DU2>36000,\"(+ de 36TJ)\",\"(- de 36TJ)\")","v":{"$error":"#REF!"}},2,{"$f":"IF(#REF!=\"\",\"\",#REF!)","v":{"$error":"#REF!"}},{"$f":"IF(#REF!=\"\",\"\",#REF!*INDEX(OFFSET(Unite_Surface,,1,,),MATCH(#REF!,Unite_Surface,0)))","v":{"$error":"#REF!"}},{"$f":"INDEX(OFFSET(Unite_Surface,,-1,,),MATCH(#REF!,Unite_Surface,0))","v":{"$error":"#REF!"}},{"$f":"IF(#REF!=\"\",\"\",#REF!)","v":{"$error":"#REF!"}},{"$f":"IF(#REF!=\"\",\"\",#REF!)","v":{"$error":"#REF!"}},{"$f":"IF(#REF!=\"\",\"\",#REF!)","v":{"$error":"#REF!"}},{"$f":"IF(#REF!=\"\",\"\",#REF!)","v":{"$error":"#REF!"}},{"$f":"IF(#REF!=\"\",\"\",#REF!)","v":{"$error":"#REF!"}},{"$f":"IF(#REF!=\"\",\"\",#REF!)","v":{"$error":"#REF!"}},{"$f":"IF(#REF!=\"\",\"\",#REF!)","v":{"$error":"#REF!"}},{"$f":"IF(#REF!=\"\",\"\",#REF!)","v":{"$error":"#REF!"}},{"$f":"IF(A56=TRUE,TRUE,FALSE)","v":false},{"$f":"IF(#REF!=0,0,#REF!)","v":{"$error":"#REF!"}},{"$f":"IF(EL3=TRUE,\"Résidentiel\",\"\")","v":""},{"$f":"IF(EM3=TRUE,\"Commercial\",\"\")","v":""},{"$f":"IF(EN3=TRUE,\"Institutionnel\",\"\")","v":""},{"$f":"IF(EO3=TRUE,\"Municipal\",\"\")","v":""},{"$f":"IF(EP3=TRUE,\"Transport\",\"\")","v":""},{"$f":"IF(EQ3=TRUE,\"Industriel\",\"\")","v":""},{"$f":"IF(ER3=TRUE,\"Agricole\",\"\")","v":""},{"$f":"IF(ES3=TRUE,ET2,\"\")","v":""},{"$f":"IF(#REF!=\"\",\"\",#REF!)","v":{"$error":"#REF!"}},false,{"$f":"IF(EV3=TRUE,\"Bioénergie\",\"\")","v":""},{"$f":"IF(EW3=TRUE,\"Éolienne\",\"\")","v":""},{"$f":"IF(EX3=TRUE,\"Géothermie\",\"\")","v":""},{"$f":"IF(EY3=TRUE,\"Hydrolienne\",\"\")","v":""},{"$f":"IF(EZ3=TRUE,\"Hydrogène\",\"\")","v":""},{"$f":"IF(FA3=TRUE,\"Marémotrice\",\"\")","v":""},{"$f":"IF(FB3=TRUE,\"Solaire\",\"\")","v":""},{"$f":"IF(FC3=TRUE,FD2,\"\")","v":""},{"$f":"IF(#REF!=\"\",\"\",#REF!)","v":{"$error":"#REF!"}},false,{"$f":"IF(FE3=TRUE,1,\"\")","v":""},{"$f":"IF(FF3=TRUE,3,\"\")","v":""},{"$f":"IF(FG3=TRUE,4,\"\")","v":""},{"$f":"IF(FH3=TRUE,2,\"\")","v":""},{"$f":"IF(FI3=TRUE,5,\"\")","v":""},{"$f":"IF(FJ3=TRUE,7,\"\")","v":""},{"$f":"IF(FK3=TRUE,6,\"\")","v":""},{"$f":"IF(FL3=TRUE,IF(#REF!=\"\",\"\",INDEX(OFFSET(Énergie,,-1,,),MATCH(#REF!,Énergie,0))),\"\")","v":""},{"$f":"IF(#REF!=\"\",\"\",INDEX(OFFSET(Énergie,,-1,,),MATCH(#REF!,Énergie,0)))","v":{"$error":"#REF!"}},{"$f":"#REF!","v":{"$error":"#REF!"}},{"$f":"IF(#REF!=\"\",\"\",#REF!)","v":{"$error":"#REF!"}},{"$f":"B70","v":{"$error":"#REF!"}},{"$f":"C70","v":{"$error":"#REF!"}},{"$f":"FQ2+FR2","v":{"$error":"#REF!"}},{"$f":"D70","v":{"$error":"#REF!"}},{"$f":"E70","v":{"$error":"#REF!"}},{"$f":"FU2+FT2","v":{"$error":"#REF!"}},1,{"$f":"IF(B61=TRUE,\"8\",\"\")","v":""},{"$f":"B61","v":false}]
[null,null,null,null,null,null,null,null,null,null,null,null,null,null,null,null,null,null,null,null,null,null,null,null,null,null,null,null,null,null,null,null,null,null,null,null,null,null,null,null,null,null,null,null,null,null,null,null,null,null,null,null,null,null,null,null,null,null,null,null,null,null,null,null,null,null,null,null,null,null,null,null,null,null,null,null,null,null,null,null,null,null,null,null,null,null,null,null,null,null,null,null,null,null,null,null,null,null,null,null,null,null,null,null,null,null,null,null,null,null,null,null,null,null,null,null,null,null,null,null,{"$f":"IF($A$56=TRUE,\"1159400\",IF($E$56=TRUE,\"1151000\",IF($G$57=TRUE,\"1151210\",IF($F$57=TRUE,\"1157170\",IF($D$57=TRUE,\"1151240\",IF($D$60=TRUE,\"1151202\",INDEX(OFFSET(Type_Entreprise,,2,,),MATCH(#REF!,Type_Entreprise,0))))))))","v":{"$error":"#REF!"}},null,null,null,null,null,null,null,null,null,null,null,null,null,null,null,null,null,null,false,null,false,false,false,false,false,false,false,false,null,null,false,false,false,false,false,false,false,false,null,false,false,false,false,false,false,false,null,false]
["Aide combine max",0.75,null,null,null,null,null,null,null,null,null,null,null,null,null,null,null,null,null,null,"CC","DescriptionCC",null,null,null,null,null,null,null,null,null,null,null,null,null,null,null,null,null,null,null,null,null,null,null,null,null,null,null,null,null,null,null,null,null,null,null,null,null,null,null,null,null,null,null,null,null,null,null,null,null,null,null,null,null,null,null,null,null,null,null,null,null,null,null,null,null,null,null,null,null,null,null,null,null,null,null,null,null,null,null,null,null,null,null,null,null,null,null,null,null,null,null,null,null,null,null,null,null,null,null,null,null,null,null,null,null,null,null,null,null,null,null,null,null,null,null,null,null,null,null,null,null,null,null,null,null,null,null,null,null,null,null,null,null,null,null,null,null,null,1,3,4,2,5,7,6]
[null,false,null,null,null,null,null,null,null,null,null,null,null,null,null,null,null,null,null,null,null,"Choisir…"]
["Code appel","Appel",null,"Choisir…",0,"Choisir…",null,0,"Choisir…","C","Choisir…",0,"Choisir…",null,null,"BT",null,null,null,null,"00","Gouvernement","Commercial institutionnel","1151201"]
[null,"Choisir…",null,"OIQ",2,"Analyse","Analyses",1,"Énergie","I","Implanter",1,"Implantée",null,null,"HT",null,null,null,null,"00","Gouvernement (Optimisation réfrigération)","Commercial institutionnel","1151210"]
[1,"Madame",null,"OIFQ",5,"Gestion_d_énergie","Analyses",2,"Fugitive","N","Ne rien faire",2,"En cours d'implantation",null,null,null,null,null,null,null,"10","Privé (Agriculture)","Agricole","1158180"]
[2,"Monsieur",null,"OAQ",3,"Eff_énergétique","Implantations",0,"Aucun","E","Étude supplémentaire requise",3,"Dans la prochaine année",null,null,null,null,null,null,null,"10","Privé (Commercial)","Commercial institutionnel","1151201"]
[null,null,null,null,4,"Conversion","Implantations",null,null,null,null,4,"D'ici deux ans",null,null,null,null,null,null,null,"10","Privé (Optimisation réfrigération)","Commercial institutionnel","1151210"]
[null,null,null,null,7,"Émissions_fugitives","Implantations",null,null,null,null,5,"Ne sera pas implantée",null,null,null,null,null,null,null,"10","Privé (Industriel)","Industriel","1158180"]
[null,null,null,null,null,null,null,null,null,null,null,null,null,null,null,null,null,null,null,null,"10","Privé (Industriel optimisation réfrigération)","Industriel","1151210"]
[null,null,null,null,null,null,null,null,null,null,null,null,null,null,null,null,null,null,null,null,"20","Santé","Commercial institutionnel","1151201"]
[null,null,null,null,null,null,null,null,null,null,null,null,null,null,null,null,null,null,null,null,"20","Santé (Optimisation réfrigération)","Commercial institutionnel","1151210"]
[null,null,null,null,null,null,null,null,null,null,null,null,null,null,null,null,null,null,null,null,"30","Éducation","Commercial institutionnel","1151201"]
[null,null,null,null,null,null,"Choisir…",null,null,null,null,null,null,null,null,null,null,null,null,null,"30","Éducation (Optimisation réfrigération)","Commercial institutionnel","1151210"]
[null,null,null,null,null,null,"Subvention",null,null,null,null,null,null,null,null,null,null,null,null,null,"40","Municipal","Commercial institutionnel","1151201"]
[null,null,null,null,null,null,"Emprunt",null,null,null,null,null,null,null,null,null,null,null,null,null,"40","Municipal (Optimisation réfrigération)","Commercial institutionnel","1151210"]
[null,null,null,null,null,null,"Prêt",null,null,null,null,null,null,null,null,null,null,null,null,null,"50","OSBL (Agriculture)","Agricole","1158180"]
[null,null,null,null,null,null,"Équité",null,null,null,null,null,null,null,null,null,null,null,null,null,"50","OSBL (Institutionnel)","Commercial institutionnel","1151201"]
[null,null,null,null,null,null,null,null,null,null,null,null,null,null,null,null,null,null,null,null,"50","OSBL (Commercial)","Commercial institutionnel","1151201"]
[null,null,null,null,null,null,null,null,null,null,null,null,null,null,null,null,null,null,null,null,"50","OSBL (Optimisation réfrigération)","Commercial institutionnel","1151210"]
[null,null,null,null,null,null,null,null,null,null,null,null,null,null,null,null,null,null,null,null,"50","OSBL (Industriel)","Industriel","1158180"]
[]
[]
["Oui",true]
["Non",false]
[]
[null,"Choisir…"]
[1,"TEQ","Transition énergétique Québec",null,null,"Choisir…","CodeCAt","CodeMEE",null,null,null,null,null,null,null,null,null,null,null,null,null,null,null,null,null,null,null,null,null,{"$f":"IF(E57=TRUE,\"GESB\",IF(E58=TRUE,\"GESA\",IF(F56=TRUE,\"DEVB\",\"\")))","v":""}]
[2,"Hydro-Québec","Hydro-Québec",null,"511","Coûts liés à l'embauche d'une personne énergie",50,"50.1"]
[3,"Gaz Métro","Gaz Métro",null,"512","Formation ISO 50001",50,"50.2"]
[4,"Fédéral…","Fédéral…",null,"513","Accompagnement, audits, certification",50,"50.3"]
[5,"Investissement Québec","Investissement Québec",null,"514","Équipement de mesurage, sondes et programmation",50,"50.4"]
[6,"Banque/Caisse","Banque/Caisse"]
[7,"TDDC","Technologies du Développement Durables Canada"]
[8,"BDC","Banque de développement du Canada"]
[9,"CDE","Centre de développement économique"]
[10,"MAPAQ","Ministère Agriculture Pêcheries et Alimentation  du Québec"]
[11,"MELS","Ministère de l'Éducation des Loisir et des Sports"]
[12,"MFE","Ministère Finance et de l'Économie"]
[13,"MSSS","Ministére de la sSanté et des Services Sociaux"]
[14,"MTQ","Ministère duTransport du Québec"]
[15,"Autre…"]
[16,"Requérant"]
[]
[0,"Choisir…",0,0,"Choisir…",0]
[1,"kg",1,1,"m²",1]
[2,"lbs",{"$f":"1/2.204624","v":0.45359208645102295},2,"pi²",9.2903040000000006E-2]
[]
[]
[null,false,null,false,false,false,false]
[null,false,null,false,false,false,false]
[null,false,null,false,null,false,false]
["Innovation","Analyse","Efficacité","Conversion","Gestion","Connaissances","OPTER",null,"1","Innovation","2","Analyse","3","Efficacité","4","Conversion","5","Gestion","6","Connaissances","7","Émissions Fugitives","Tonne min","Aide max"]
[false,true,false,false,false,false,false,null,"11","R&D (reconnu)","21","Étude","31","Implantation","41","Bioénergies","51","Gestion d'énergie","61","Écoconduite","71","Optimisation réfrigération"]
[null,false,null,false,false,false,false,0.15,"12","R&D (Autre)","222","Étude IP préliminaire",null,null,"42","Énergies émergentes","52","Agriculture","62","développement","72","Autres procédés"]
[null,false,null,false,false,false,false,0.15,"13","Démonstration","221","Étude IP",null,null,"42","Solaires"]
[null,false,null,false,null,false,false,0.1,"14","Mesurage","23","Approvisionnement",null,null,"43","Traditionnelles"]
[null,false,null,false,null,null,null,null,"15","Précommercialisation"]
[null,false,null,null,null,null,null,null,"16","Diffusion"]
[null,"Référence",null,"Projet"]
[null,"Interne","Externe","Interne","Externe"]
[{"$f":"#REF!","v":{"$error":"#REF!"}},{"$f":"#REF!","v":{"$error":"#REF!"}},{"$f":"#REF!","v":{"$error":"#REF!"}},{"$f":"#REF!","v":{"$error":"#REF!"}},{"$f":"#REF!","v":{"$error":"#REF!"}}]
[{"$f":"#REF!","v":{"$error":"#REF!"}},{"$f":"#REF!","v":{"$error":"#REF!"}},{"$f":"#REF!","v":{"$error":"#REF!"}},{"$f":"#REF!","v":{"$error":"#REF!"}},{"$f":"#REF!","v":{"$error":"#REF!"}}]
[{"$f":"#REF!","v":{"$error":"#REF!"}},{"$f":"#REF!","v":{"$error":"#REF!"}},{"$f":"#REF!","v":{"$error":"#REF!"}},{"$f":"#REF!","v":{"$error":"#REF!"}},{"$f":"#REF!","v":{"$error":"#REF!"}}]
[{"$f":"#REF!","v":{"$error":"#REF!"}},{"$f":"#REF!","v":{"$error":"#REF!"}},{"$f":"#REF!","v":{"$error":"#REF!"}},{"$f":"#REF!","v":{"$error":"#REF!"}},{"$f":"#REF!","v":{"$error":"#REF!"}}]
[{"$f":"#REF!","v":{"$error":"#REF!"}},{"$f":"#REF!","v":{"$error":"#REF!"}},{"$f":"#REF!","v":{"$error":"#REF!"}},{"$f":"#REF!","v":{"$error":"#REF!"}},{"$f":"#REF!","v":{"$error":"#REF!"}}]
[{"$f":"#REF!","v":{"$error":"#REF!"}},{"$f":"#REF!","v":{"$error":"#REF!"}},{"$f":"#REF!","v":{"$error":"#REF!"}},{"$f":"#REF!","v":{"$error":"#REF!"}},{"$f":"#REF!","v":{"$error":"#REF!"}}]
["Total",{"$f":"SUM(B64:B69)","v":{"$error":"#REF!"}},{"$f":"SUM(C64:C69)","v":{"$error":"#REF!"}},{"$f":"SUM(D64:D69)","v":{"$error":"#REF!"}},{"$f":"SUM(E64:E69)","v":{"$error":"#REF!"}}]
[]
[]
[]
["Energie_SEQ","Energie_Forme","Energie_Unite","Energie_MJU","CO2equivNeutralite","Energie_kWhU","Energie_BtuU","Energie_Commentaire","Code_Etape","ABR","CO2","CH4","N2O","CO2equiv","Type_NRJ","CodeCompileMaz","PCGIECdef","PCGIECmin","PCGIECmax","FEGIECdef","FEGIECmin","FEGIECmax","%CO2Prod","CO2prod",null,"PRP_SEQ","PRP_GAZ",null,"PRP_FORMULE","PRP_PRP","Source donnees"]
[1,"Électricité","kWh",3.6,2.04,1,3413,"Annexe 13 du Rapport d'inventaire national du Canada 1990-2010 partie 3","02",null,2,2.0000000000000001E-4,1E-4,2.04,"E",0,"","","","","","",0,0,null,1,"Dioxyde de carbone (R-744)","kg","CO2",1,"Règlement sur la déclaration obligatoire de certaines émission de contaminants dans l'atmosphère, Loi sur la qualité de l'environnement, Q-2, a.2.2, 109.1 et 124.1"]
[2,"Gaz naturel","m³",37.89,1889.32,10.525,35921.944000000003,"Règlement sur la déclaration obligatoire de certaines émission de contaminants dans l'atmosphère, Loi sur la qualité de l'environnement, Q-2, a.2.2, 109.1 et 124.1\nUtilisation des données pour usages industriels, ciment, secteur manufacturier et secteurs ","03",null,1878,3.6999999999999998E-2,3.4000000000000002E-2,1889.32,"G",0,"33,6","32,55","35,28","56,1","54,3","58,3",0.1285,244.40789950000001,null,10,"HFC-134a","kg","CH2FCF3",1300,"Règlement sur la déclaration obligatoire de certaines émission de contaminants dans l'atmosphère, Loi sur la qualité de l'environnement, Q-2, a.2.2, 109.1 et 124.1"]
[3,"Mazout léger no 2","L",38.5,2734.7359999999999,10.69,36500.14,"Règlement sur la déclaration obligatoire de certaines émission de contaminants dans l'atmosphère, Loi sur la qualité de l'environnement, Q-2, a.2.2, 109.1 et 124.1\nUtilisation des données pour usages industriels.","04",null,2725,6.0000000000000001E-3,3.1E-2,2734.7359999999999,"MA2",1,"","","","","","",0.107,292.61675200000002,null,31,"HCFC-22 (R-22)","kg","CHClF2",1810,"Changes in atmospheric constituents and in radiative forcing (table 2.14 100-yr TAR)"]
[4,"Mazout lourd (nos 4, 5 et 6)","L",42.5,3146.36,11.805555555,40292.361109999998,"Règlement sur la déclaration obligatoire de certaines émission de contaminants dans l'atmosphère, Loi sur la qualité de l'environnement, Q-2, a.2.2, 109.1 et 124.1\nUtilisation des données pour usages industriels.","04",null,3124,0.12,6.4000000000000001E-2,3146.36,"MA6",1,"","","","","","",0.13700000000000001,431.05131999999998,null,47,"R-404A","kg","0,04(HFC-134a)+0,44(HFC-125)+0,52(HFC-143a)",3260,"Règlement sur la déclaration obligatoire de certaines émission de contaminants dans l'atmosphère, Loi sur la qualité de l'environnement, Q-2, a.2.2, 109.1 et 124.1"]
[5,"Propane","L",25.31,1543.9839999999999,7.03,23995.29,"Règlement sur la déclaration obligatoire de certaines émission de contaminants dans l'atmosphère, Loi sur la qualité de l'environnement, Q-2, a.2.2, 109.1 et 124.1","07",null,1510,2.4E-2,0.108,1543.9839999999999,"P",1,"25,542","24,192","28,188","63,1","61,6","65,6",0.188,290.26899200000003,null,50,"R-407A","kg","0,4(HFC-134a)+0,4(HFC-125)+0,2(HFC-32)",1770,"Règlement sur la déclaration obligatoire de certaines émission de contaminants dans l'atmosphère, Loi sur la qualité de l'environnement, Q-2, a.2.2, 109.1 et 124.1"]
[6,"Diesel","L",38.299999999999997,2789.7930000000001,10.64,36310.53,"Règlement sur la déclaration obligatoire de certaines émission de contaminants dans l'atmosphère, Loi sur la qualité de l'environnement, Q-2, a.2.2, 109.1 et 124.1","06",null,2663,0.13300000000000001,0.4,2789.7930000000001,"",1,"36,55","35,19","36,805","74,1","72,6","74,8",0.107,298.50785100000002,null,85,"R-507a","kg","0,5(HFC-125)+0,5(HFC-143a)",3300,"Règlement sur la déclaration obligatoire de certaines émission de contaminants dans l'atmosphère, Loi sur la qualité de l'environnement, Q-2, a.2.2, 109.1 et 124.1"]
[7,"Essence (automobile)","L",34.869999999999997,2361.92,9.69,33058.699999999997,"Règlement sur la déclaration obligatoire de certaines émission de contaminants dans l'atmosphère, Loi sur la qualité de l'environnement, Q-2, a.2.2, 109.1 et 124.1","05",null,2289,2.7,0.05,2361.1999999999998,"",1,"36,55","35,19","36,805","74,1","72,6","74,8",0.17,401.52640000000002,null,86,"Ammoniac (R-717)","kg","NH3",0,"Internation Institute of Ammonia Refrigeration  (IIAR) www.iiar.org"]
[8,"Essence (aviation)","L",33.520000000000003,2459.5,9.31,31778.82,"Règlement sur la déclaration obligatoire de certaines émission de contaminants dans l'atmosphère, Loi sur la qualité de l'environnement, Q-2, a.2.2, 109.1 et 124.1","05",null,2342,2.2000000000000002,0.23,2459.5,"",1,"","","","","","",0.17,418.11500000000001,null,92,"R-422D","kg","0,651(HFC-125)+0,315(HFC-134a)+0,034*(600a)",2292.2800000000002,"Règlement sur la déclaration obligatoire de certaines émission de contaminants dans l'atmosphère, Loi sur la qualité de l'environnement, Q-2, a.2.2, 109.1 et 124.1"]
[9,"Carburéacteur","L",37.4,2606.98,10.39,35457.279999999999,"Règlement sur la déclaration obligatoire de certaines émission de contaminants dans l'atmosphère, Loi sur la qualité de l'environnement, Q-2, a.2.2, 109.1 et 124.1","","",2534,0.08,0.23,2606.98,"",1,"31,453","30,175","31,808","70","67,5","73",9.2999999999999999E-2,242.44914,null,74,"Bromure de méthyle","kg","CH3Br",5,"Changes in atmospheric constituents and in radiative forcing (table 2.14 100-yr TAR)"]
[10,"Kérosène","L",37.68,2543.7359999999999,10.469443999999999,35722.730000000003,"Règlement sur la déclaration obligatoire de certaines émission de contaminants dans l'atmosphère, Loi sur la qualité de l'environnement, Q-2, a.2.2, 109.1 et 124.1","","",2534,6.0000000000000001E-3,3.1E-2,2543.7359999999999,"",1,"","","","","","",9.2999999999999999E-2,236.56744800000001,null,25,"CFC-11","kg","CCl3F",4750,"Changes in atmospheric constituents and in radiative forcing (table 2.14 100-yr TAR)"]
[11,"Bitume","L",44.46,1778.4,12.35,42150.55,"Règlement sur la déclaration obligatoire de certaines émission de contaminants dans l'atmosphère, Loi sur la qualité de l'environnement, Q-2, a.2.2, 109.1 et 124.1.  Facteur d’émission du guid des facteurs d’émissions de l’ADEME version 5.0.","","",1778.4,"","",1778.4,"",1,"40,2","33,5","41,2","80,7","73","89,9",0.13700000000000001,243.64080000000001,null,28,"CFC-113","kg","CCl2FCClF2",6130,"Changes in atmospheric constituents and in radiative forcing (table 2.14 100-yr TAR)"]
[12,"Gaz de distillation (du raffinage)","L",36.08,1756.88,10.02,34205.839999999997,"Règlement sur la déclaration obligatoire de certaines émission de contaminants dans l'atmosphère, Loi sur la qualité de l'environnement, Q-2, a.2.2, 109.1 et 124.1","","",1750,"",2.2200000000000001E-2,1756.88,"",1,"49,9","47,5","50,6","57,6","48,2","69",0.188,329.00112799999999,null,29,"CFC-114","kg","CClF2CClF2",10000,"Changes in atmospheric constituents and in radiative forcing (table 2.14 100-yr TAR)"]
[16,"Lignite","kg",15,1486.83,4.17,14220.83,"Règlement sur la déclaration obligatoire de certaines émission de contaminants dans l'atmosphère, Loi sur la qualité de l'environnement, Q-2, a.2.2, 109.1 et 124.1","","",1480,0.03,0.02,1486.83,"",1,"11,9","5,5","21,6","101","90,9","115",0.08,118.9464,null,30,"CFC-115","kg","CClF2CF3",7370,"Changes in atmospheric constituents and in radiative forcing (table 2.14 100-yr TAR)"]
[19,"Butane","L",28.44,1763.9839999999999,7.9,26962.7,"Règlement sur la déclaration obligatoire de certaines émission de contaminants dans l'atmosphère, Loi sur la qualité de l'environnement, Q-2, a.2.2, 109.1 et 124.1","","",1730,2.4E-2,0.108,1763.9839999999999,"",1,"","","","","","",0.188,331.62899199999998,null,26,"CFC-12","kg","CCl2F2",10900,"Changes in atmospheric constituents and in radiative forcing (table 2.14 100-yr TAR)"]
[20,"Éthane","L",17.22,976,4.78,16325.52,"Règlement sur la déclaration obligatoire de certaines émission de contaminants dans l'atmosphère, Loi sur la qualité de l'environnement, Q-2, a.2.2, 109.1 et 124.1","","",976,"","",976,"",1,"","","","","","",9.2999999999999999E-2,90.768000000000001,null,27,"CFC-13","kg","CClF3",14400,"Changes in atmospheric constituents and in radiative forcing (table 2.14 100-yr TAR)"]
[21,"Coke de charbon","kg",28.83,2486.83,8.0083333329999995,27332.44167,"Règlement sur la déclaration obligatoire de certaines émission de contaminants dans l'atmosphère, Loi sur la qualité de l'environnement, Q-2, a.2.2, 109.1 et 124.1.\nUtilisation des données CH4 et N2O pour le secteur industriel, centrales thermiques à vape","","",2480,0.03,0.02,2486.83,"",1,"28,2","25,1","30,2","107","95,7","119",0.08,198.94640000000001,null,38,"Halon 1301","kg","CBrF3",7140,"Changes in atmospheric constituents and in radiative forcing (table 2.14 100-yr TAR)"]
[22,"Coke de pétrole (raffinage)","kg",46.35,3836.7350000000001,12.88,43942.38,"Règlement sur la déclaration obligatoire de certaines émission de contaminants dans l'atmosphère, Loi sur la qualité de l'environnement, Q-2, a.2.2, 109.1 et 124.1","","",3826,0.12,2.6499999999999999E-2,3836.7350000000001,"",1,"32,5","29,7","41,9","97,5","82,9","115",0.08,306.93880000000001,null,83,"Halon-1211","kg","CBrClF2",1890,"Changes in atmospheric constituents and in radiative forcing (table 2.14 100-yr TAR)"]
[23,"Charbon de bois","kg",27.599910999999999,35.966000000000001,7.6666419000000001,26166.248,"Enlever","","",3190,0.57599999999999996,7.6999999999999999E-2,3231.9659999999999,"",1,"29,5","14,9","58","112","95","132",0,0,null,84,"Halon-2402","kg","CBrF2CBrF2",1640,"Changes in atmospheric constituents and in radiative forcing (table 2.14 100-yr TAR)"]
[26,"Liqueur usée de cuisson base sèche","kg",14.2,9.2309999999999999,3.94,13462.39,"Règlement sur la déclaration obligatoire de certaines émission de contaminants dans l'atmosphère, Loi sur la qualité de l'environnement, Q-2, a.2.2, 109.1 et 124.1","","",1304,4.1000000000000002E-2,2.7E-2,1313.23,"",2,"","","","85,3","80,7","110",0,0,null,32,"HCFC-123","kg","CHCl2CF3",77,"Changes in atmospheric constituents and in radiative forcing (table 2.14 100-yr TAR)"]
[29,"Bi-énergie chauffage électrique","kWh",3.6,"",1,3413,"","","","","","","","",0,"","","","","","",0,0,null,33,"HCFC-124","kg","CHClFCF3",609,"Changes in atmospheric constituents and in radiative forcing (table 2.14 100-yr TAR)"]
[30,"Autre","GJ",1000,0,277.77777700000001,948055.52,"","","","","","","","",0,"","","","","","",0,0,null,34,"HCFC-141b","kg","CH3CCl2F",725,"Changes in atmospheric constituents and in radiative forcing (table 2.14 100-yr TAR)"]
[31,"Vapeur","Lbs",1.0547902,0,0.29299730000000002,1000,"","","","","","","","",0,"","","","","","",0,0,null,35,"HCFC-142b","kg","CH3CClF2",2310,"Changes in atmospheric constituents and in radiative forcing (table 2.14 100-yr TAR)"]
[36,"Biomasse résiduelle","kg",14.77,35.966000000000001,4.0999999999999996,14002.74,"Règlement sur la déclaration obligatoire de certaines émission de contaminants dans l'atmosphère, Loi sur la qualité de l'environnement, Q-2, a.2.2, 109.1 et 124.1","",1,1799,0.57599999999999996,7.6999999999999999E-2,1834.97,"",2,"15,6","7,9","31","112","95","132",0,0,null,36,"HCFC-225ca","kg","CHCl2CF2CF3",122,"Changes in atmospheric constituents and in radiative forcing (table 2.14 100-yr TAR)"]
[59,"Écorces","kg",20,35.966000000000001,5.5555554999999996,18960.955555500001,"Forintek avec valeur de la biomasse pour les émissions",null,1,1799,0.57599999999999996,7.6999999999999999E-2,1834.97,null,2,null,null,null,null,null,null,0,0,null,37,"HCFC-225cb","kg","CHClFCF2CClF2",595,"Changes in atmospheric constituents and in radiative forcing (table 2.14 100-yr TAR)"]
[37,"Gaz de distillation (de valorisation)","m³",43.24,2146.88,12.01,40993.919999999998,"Règlement sur la déclaration obligatoire de certaines émission de contaminants dans l'atmosphère, Loi sur la qualité de l'environnement, Q-2, a.2.2, 109.1 et 124.1","","",2140,0,2.2200000000000001E-2,2146.88,"",1,"","","","57,6","48,2","69",0.188,329.00131599999997,null,24,"Hexafluorure de soufre","kg","SF6",23900,"Règlement sur la déclaration obligatoire de certaines émission de contaminants dans l'atmosphère, Loi sur la qualité de l'environnement, Q-2, a.2.2, 109.1 et 124.1"]
[39,"CRD","kg",16.72,714.94719999999995,4.644444,15851.488890000001,"note: rebus de construction","","",715.94719999999995,0,0,714.94719999999995,"",1,"","","","42,76","","",0,0,null,8,"HFC-125","kg","C2HF5",2800,"Règlement sur la déclaration obligatoire de certaines émission de contaminants dans l'atmosphère, Loi sur la qualité de l'environnement, Q-2, a.2.2, 109.1 et 124.1"]
[40,"Lubrifiants (huiles usées)","L",39.159999999999997,2422.36,10.877777777777776,37125.85555555555,"Règlement sur la déclaration obligatoire de certaines émission de contaminants dans l'atmosphère, Loi sur la qualité de l'environnement, Q-2, a.2.2, 109.1 et 124.1","","",2400,0.12,6.4000000000000001E-2,2422.36,"",1,"","","","","","",0,0,null,9,"HFC-134","kg","CHF2CHF2",1000,"Règlement sur la déclaration obligatoire de certaines émission de contaminants dans l'atmosphère, Loi sur la qualité de l'environnement, Q-2, a.2.2, 109.1 et 124.1"]
[41,"Mazout léger no 1","L",38.78,2652.7360000000003,10.772222222222222,36765.594444444447,"Règlement sur la déclaration obligatoire de certaines émission de contaminants dans l'atmosphère, Loi sur la qualité de l'environnement, Q-2, a.2.2, 109.1 et 124.1\nUtilisation des données pour autoconsommation","","",2643,6.0000000000000001E-3,3.1E-2,2652.7360000000003,"",1,"","","","","","",0.107,283.84275200000002,null,11,"HFC-143","kg","C2H3F3",300,"Règlement sur la déclaration obligatoire de certaines émission de contaminants dans l'atmosphère, Loi sur la qualité de l'environnement, Q-2, a.2.2, 109.1 et 124.1"]
[45,"Coke de pétrole (de valorisation)","L",40.57,3503.681,11.269444444444444,38462.613888888889,"Règlement sur la déclaration obligatoire de certaines émission de contaminants dans l'atmosphère, Loi sur la qualité de l'environnement, Q-2, a.2.2, 109.1 et 124.1","","",3494,0.12,2.3099999999999999E-2,3503.681,"",1,"","","","","","",0.08,280.29448000000002,null,12,"HFC-143a","kg","C2H3F3",3800,"Règlement sur la déclaration obligatoire de certaines émission de contaminants dans l'atmosphère, Loi sur la qualité de l'environnement, Q-2, a.2.2, 109.1 et 124.1"]
[46,"Éthanol (100%)","L",23.41,1519,6.5027777777777773,22193.980555555554,"Règlement sur la déclaration obligatoire de certaines émission de contaminants dans l'atmosphère, Loi sur la qualité de l'environnement, Q-2, a.2.2, 109.1 et 124.1","","",1519,0,0,1519,"",2,"","","","","","",0,0,null,13,"HFC-152a","kg","C2H4F2",140,"Règlement sur la déclaration obligatoire de certaines émission de contaminants dans l'atmosphère, Loi sur la qualité de l'environnement, Q-2, a.2.2, 109.1 et 124.1"]
[47,"Biodiésel","L",35.67,0,9.9083333333333332,33817.141666666663,"Règlement sur la déclaration obligatoire de certaines émission de contaminants dans l'atmosphère, Loi sur la qualité de l'environnement, Q-2, a.2.2, 109.1 et 124.1","","",2497,0,0,2497,"",2,"","","","","","",0,0,null,77,"HFC-161","kg","C2H5F",12,"Règlement sur la déclaration obligatoire de certaines émission de contaminants dans l'atmosphère, Loi sur la qualité de l'environnement, Q-2, a.2.2, 109.1 et 124.1"]
[48,"Gras animal fondu","L",34.840000000000003,0,9.6777777777777789,33030.255555555559,"Règlement sur la déclaration obligatoire de certaines émission de contaminants dans l'atmosphère, Loi sur la qualité de l'environnement, Q-2, a.2.2, 109.1 et 124.1","","",2348,0,0,2348,"",2,"","","","","","",0,0,null,14,"HFC-227ea","kg","C3HF7",2900,"Règlement sur la déclaration obligatoire de certaines émission de contaminants dans l'atmosphère, Loi sur la qualité de l'environnement, Q-2, a.2.2, 109.1 et 124.1"]
[49,"Huile végétale","L",33.44,0,9.2888888888888879,31702.977777777774,"Règlement sur la déclaration obligatoire de certaines émission de contaminants dans l'atmosphère, Loi sur la qualité de l'environnement, Q-2, a.2.2, 109.1 et 124.1","","",2585,0,0,2585,"",2,"","","","","","",0,0,null,4,"HFC-23","kg","CHF3",11700,"Règlement sur la déclaration obligatoire de certaines émission de contaminants dans l'atmosphère, Loi sur la qualité de l'environnement, Q-2, a.2.2, 109.1 et 124.1"]
[50,"Charbon bitumineux étranger","kg",29.82,2346.83,8.2833333333333332,28271.016666666666,"Règlement sur la déclaration obligatoire de certaines émission de contaminants dans l'atmosphère, Loi sur la qualité de l'environnement, Q-2, a.2.2, 109.1 et 124.1.\nUtilisation du charbon américain.\nUtilisation des données CH4 et N2O pour le secteur indus","","",2340,0.03,0.02,2346.83,"",1,"","","","","","",0.08,187.74639999999999,null,78,"HFC-236cb","kg","C3H2F6",1300,"Règlement sur la déclaration obligatoire de certaines émission de contaminants dans l'atmosphère, Loi sur la qualité de l'environnement, Q-2, a.2.2, 109.1 et 124.1"]
[51,"Matières résiduelles collectés par une municipalité","kg",11.57,21.642099999999999,3.213888888888889,10969.002777777778,"Règlement sur la déclaration obligatoire de certaines émission de contaminants dans l'atmosphère, Loi sur la qualité de l'environnement, Q-2, a.2.2, 109.1 et 124.1.z","","",990.39200000000005,0.34710000000000002,4.6280000000000002E-2,1012.034,"",2,"","","","","","",0,0,null,79,"HFC-236ea","kg","C3H2F6",1200,"Règlement sur la déclaration obligatoire de certaines émission de contaminants dans l'atmosphère, Loi sur la qualité de l'environnement, Q-2, a.2.2, 109.1 et 124.1"]
[52,"Tourbe","kg",9.3000000000000007,4.5198,2.5833333333333335,8816.9166666666679,"Règlement sur la déclaration obligatoire de certaines émission de contaminants dans l'atmosphère, Loi sur la qualité de l'environnement, Q-2, a.2.2, 109.1 et 124.1\n1 kg donne 11,57 MJ","",1,957.9,8.9999999999999993E-3,1.3950000000000001E-2,962.41980000000001,"",2,"","","","","","",0,0,null,15,"HFC-236fa","kg","C3H2F6",6300,"Règlement sur la déclaration obligatoire de certaines émission de contaminants dans l'atmosphère, Loi sur la qualité de l'environnement, Q-2, a.2.2, 109.1 et 124.1"]
[53,"Pneus","kg",31.18,2650,8.6611111111111114,29560.372222222224,"Règlement sur la déclaration obligatoire de certaines émission de contaminants dans l'atmosphère, Loi sur la qualité de l'environnement, Q-2, a.2.2, 109.1 et 124.1","","",2650,0,0,2650,"",1,"","","","","","",0,0,null,16,"HFC-245ca","kg","C3H3F5",560,"Règlement sur la déclaration obligatoire de certaines émission de contaminants dans l'atmosphère, Loi sur la qualité de l'environnement, Q-2, a.2.2, 109.1 et 124.1"]
[54,"Sous-produits agricoles (qui ne sont pas destinés à la consommation)","kg",9.59,0,2.6638888888888888,9091.8527777777781,"Règlement sur la déclaration obligatoire de certaines émission de contaminants dans l'atmosphère, Loi sur la qualité de l'environnement, Q-2, a.2.2, 109.1 et 124.1","",1,1074,0,0,1074,"",2,"","","","","","",0,0,null,80,"HFC-245fa","kg","C3H3F5",950,"Règlement sur la déclaration obligatoire de certaines émission de contaminants dans l'atmosphère, Loi sur la qualité de l'environnement, Q-2, a.2.2, 109.1 et 124.1"]
[55,"Sous-produits de la biomasse (résidus animaux et végétaux, excluant les résidus de bois et la liqueur de cuisson)","kg",30.03,0,8.4166666666666661,28726.083333333332,"Règlement sur la déclaration obligatoire de certaines émission de contaminants dans l'atmosphère, Loi sur la qualité de l'environnement, Q-2, a.2.2, 109.1 et 124.1","",1,3000,0,0,3000,"",2,"","","","","","",0,0,null,118,"HFC-245fa","kg","CHF 2CH 2CF 3",0,""]
[56,"Gaz de cokerie","m³",19.14,890.62700000000007,5.3166666666666664,18145.783333333333,"Règlement sur la déclaration obligatoire de certaines émission de contaminants dans l'atmosphère, Loi sur la qualité de l'environnement, Q-2, a.2.2, 109.1 et 124.1","","",879,3.6999999999999998E-2,3.5000000000000003E-2,890.62700000000007,"",1,"","","","","","",0.188,167.43787599999999,null,5,"HFC-32","kg","CH2F2",650,"Règlement sur la déclaration obligatoire de certaines émission de contaminants dans l'atmosphère, Loi sur la qualité de l'environnement, Q-2, a.2.2, 109.1 et 124.1"]
[57,"Biogaz (portion méthane)","m³",38.32,11.317,10.64,36361.42,"Règlement sur la déclaration obligatoire de certaines émission de contaminants dans l'atmosphère, Loi sur la qualité de l'environnement, Q-2, a.2.2, 109.1 et 124.1","",1,1878,3.6999999999999998E-2,3.4000000000000002E-2,1889.32,"",2,"","","","","","",0,0,null,119,"HFC-365mfc","kg","",0,""]
[58,"Gaz d'enfouissement (portion méthane)","m³",38.32,11.317,10.64,36361.42,"Règlement sur la déclaration obligatoire de certaines émission de contaminants dans l'atmosphère, Loi sur la qualité de l'environnement, Q-2, a.2.2, 109.1 et 124.1","",1,1878,3.6999999999999998E-2,3.4000000000000002E-2,1889.32,"",2,"","","","","","",0,0,null,81,"HFC-365mfc","kg","C4H5F5",890,"Règlement sur la déclaration obligatoire de certaines émission de contaminants dans l'atmosphère, Loi sur la qualité de l'environnement, Q-2, a.2.2, 109.1 et 124.1"]
[61,"Biocharbon","kg",27.6,35.966000000000001,7.67,16166.25,"Règlement sur la déclaration obligatoire de certaines émission de contaminants dans l'atmosphère, Loi sur la qualité de l'environnement, Q-2, a.2.2, 109.1 et 124.1","",1,3190,0.57599999999999996,7.6999999999999999E-2,3225.9659999999999,"",1,"","","","","","",0,0,null,6,"HFC-41","kg","CH3F",150,"Règlement sur la déclaration obligatoire de certaines émission de contaminants dans l'atmosphère, Loi sur la qualité de l'environnement, Q-2, a.2.2, 109.1 et 124.1"]
[null,null,null,null,null,null,null,null,null,null,null,null,null,null,null,null,null,null,null,null,null,null,null,null,null,7,"HFC-43-10mee","kg","C5H2F10",1300,"Règlement sur la déclaration obligatoire de certaines émission de contaminants dans l'atmosphère, Loi sur la qualité de l'environnement, Q-2, a.2.2, 109.1 et 124.1"]
[null,null,null,null,null,null,null,null,null,null,null,null,null,null,null,null,null,null,null,null,null,null,null,null,null,2,"Méthane (R-50)","kg","CH4",21,"Règlement sur la déclaration obligatoire de certaines émission de contaminants dans l'atmosphère, Loi sur la qualité de l'environnement, Q-2, a.2.2, 109.1 et 124.1"]
[null,null,null,null,null,null,null,null,null,null,null,null,null,null,null,null,null,null,null,null,null,null,null,null,null,120,"Méthylchloroforme","kg","CH3CCl3",0,""]
[null,null,null,null,null,null,null,null,null,null,null,null,null,null,null,null,null,null,null,null,null,null,null,null,null,3,"Oxyde nitreux (R-744a)","kg","N2O",310,"Règlement sur la déclaration obligatoire de certaines émission de contaminants dans l'atmosphère, Loi sur la qualité de l'environnement, Q-2, a.2.2, 109.1 et 124.1"]
[null,null,null,null,null,null,null,null,null,null,null,null,null,null,null,null,null,null,null,null,null,null,null,null,null,72,"Oxyfume 88/12","kg","0,914(HCFC-124)+0,086(ethylene oxyde)",7480,"Sterilant product. U.S. Clean Air Act regulations will ban the sale and use of most HCFC-based products like Oxyfume in the United States as of Dec. 31, 2014. This registered mark will not be manufactured after december 31, 2013,"]
[null,null,null,null,null,null,null,null,null,null,null,null,null,null,null,null,null,null,null,null,null,null,null,null,null,20,"Perfluorobutane (PFC-3-1-10)","kg","C4F10",7000,"Règlement sur la déclaration obligatoire de certaines émission de contaminants dans l'atmosphère, Loi sur la qualité de l'environnement, Q-2, a.2.2, 109.1 et 124.1"]
[null,null,null,null,null,null,null,null,null,null,null,null,null,null,null,null,null,null,null,null,null,null,null,null,null,21,"Perfluorocyclobutane (PFC-318)","kg","c-C4F8",8700,"Règlement sur la déclaration obligatoire de certaines émission de contaminants dans l'atmosphère, Loi sur la qualité de l'environnement, Q-2, a.2.2, 109.1 et 124.1"]
[null,null,null,null,null,null,null,null,null,null,null,null,null,null,null,null,null,null,null,null,null,null,null,null,null,18,"Perfluoroéthane (PFC-116)","kg","C2F6",9200,"Règlement sur la déclaration obligatoire de certaines émission de contaminants dans l'atmosphère, Loi sur la qualité de l'environnement, Q-2, a.2.2, 109.1 et 124.1"]
[null,null,null,null,null,null,null,null,null,null,null,null,null,null,null,null,null,null,null,null,null,null,null,null,null,23,"Perfluorohexane (PFC5-1-14)","kg","C6F14",7400,"Règlement sur la déclaration obligatoire de certaines émission de contaminants dans l'atmosphère, Loi sur la qualité de l'environnement, Q-2, a.2.2, 109.1 et 124.1"]
[null,null,null,null,null,null,null,null,null,null,null,null,null,null,null,null,null,null,null,null,null,null,null,null,null,17,"Perfluorométhane (PFC-14)","kg","CF4",6500,"Règlement sur la déclaration obligatoire de certaines émission de contaminants dans l'atmosphère, Loi sur la qualité de l'environnement, Q-2, a.2.2, 109.1 et 124.1"]
[null,null,null,null,null,null,null,null,null,null,null,null,null,null,null,null,null,null,null,null,null,null,null,null,null,22,"Perfluoropentane (PFC-4-1-12)","kg","C5F12",7500,"Règlement sur la déclaration obligatoire de certaines émission de contaminants dans l'atmosphère, Loi sur la qualité de l'environnement, Q-2, a.2.2, 109.1 et 124.1"]
[null,null,null,null,null,null,null,null,null,null,null,null,null,null,null,null,null,null,null,null,null,null,null,null,null,19,"Perfluoropropane (PFC-218)","kg","C3F8",7000,"Règlement sur la déclaration obligatoire de certaines émission de contaminants dans l'atmosphère, Loi sur la qualité de l'environnement, Q-2, a.2.2, 109.1 et 124.1"]
[null,null,null,null,null,null,null,null,null,null,null,null,null,null,null,null,null,null,null,null,null,null,null,null,null,95,"R-400","kg","0,5(CFC-12)+0,5(CFC-114)",10450,"Changes in atmospheric constituents and in radiative forcing (table 2.14 100-yr TAR)"]
[null,null,null,null,null,null,null,null,null,null,null,null,null,null,null,null,null,null,null,null,null,null,null,null,null,40,"R-401A","kg","0,53(HCFC-22)+0,34(HCFC-124)+0,13(HFC-152a)",1182.48,"Changes in atmospheric constituents and in radiative forcing (table 2.14 100-yr TAR)"]
[null,null,null,null,null,null,null,null,null,null,null,null,null,null,null,null,null,null,null,null,null,null,null,null,null,41,"R-401B","kg","0,61(HCFC-22)+0,28(HCFC-124)+0,11(HFC-152a)",1288.26,"Changes in atmospheric constituents and in radiative forcing (table 2.14 100-yr TAR)"]
["No_Projet_Sagir_Abrev","Section","Code_Activité","Activité","GrandConsom","Secteur","Coût_Interne","Coût_externe","Coût","Aide_demande","CatMEE","CodeMEE",null,null,null,null,null,null,null,null,null,null,null,null,null,42,"R-401C","kg","0,33(HCFC-22)+0,15(HFC-152a)+0,52(HCFC-124)",934.98,"Changes in atmospheric constituents and in radiative forcing (table 2.14 100-yr TAR) et Règlement sur la déclaration obligatoire de certaines émission de contaminants dans l'atmosphère, Loi sur la qualité de l'environnement, Q-2, a.2.2, 109.1 et 124.1"]
[{"$f":"DQ$2","v":{"$error":"#REF!"}},{"$f":"IF(B61=TRUE,\"8\",\"2\")","v":"2"},{"$f":"IF(B61=TRUE,\"81\",IF(B57=TRUE,\"21\",IF(B58=TRUE,\"221\",IF(B59=TRUE,\"23\",\"222\"))))","v":"222"},{"$f":"IF(B61=TRUE,\"Recommissioning\",IF(B57=TRUE,\"Études\",IF(B58=TRUE,\"Études IP\",IF(B59=TRUE,\"Études approvisionnement\",\"Études IP préliminaires\"))))","v":"Études IP préliminaires"},{"$f":"DV2","v":false},{"$f":"IF(DP2=\"Agricole\",\"Agricole\",IF(DP2=\"Transport\",\"Transport\",\"Affaires\"))","v":{"$error":"#REF!"}},{"$f":"#REF!","v":{"$error":"#REF!"}},{"$f":"#REF!","v":{"$error":"#REF!"}},{"$f":"#REF!","v":{"$error":"#REF!"}},{"$f":"#REF!","v":{"$error":"#REF!"}},50,{"$f":"IF(B61=TRUE,\"50.20\",IF(B57=TRUE,\"50.8\",IF(B58=TRUE,\"50.9\",IF(B59=TRUE,\"50.10\",\"50.11\"))))","v":"50.11"},null,null,null,null,null,null,null,null,null,null,null,null,null,43,"R-402A","kg","0,6(HFC-125)+0,38(HCFC-22)+0,02(C3H8)",2826.68,"Changes in atmospheric constituents and in radiative forcing (table 2.14 100-yr TAR) et Règlement sur la déclaration obligatoire de certaines émission de contaminants dans l'atmosphère, Loi sur la qualité de l'environnement, Q-2, a.2.2, 109.1 et 124.1"]
[null,null,null,null,null,null,null,null,null,null,null,null,null,null,null,null,null,null,null,null,null,null,null,null,null,44,"R-402B","kg","0,38(HFC-125)+0,60(HCFC-22)+0,02(C3H8)",2446.88,"Changes in atmospheric constituents and in radiative forcing (table 2.14 100-yr TAR) et Règlement sur la déclaration obligatoire de certaines émission de contaminants dans l'atmosphère, Loi sur la qualité de l'environnement, Q-2, a.2.2, 109.1 et 124.1"]
[null,null,null,null,null,null,null,null,null,null,null,null,null,null,null,null,null,null,null,null,null,null,null,null,null,45,"R-403A","kg","0,05(C3H8)+0,75(HCFC-22)+0,2(C3F8)",2834.6990000000001,"Règlement sur la déclaration obligatoire de certaines émission de contaminants dans l'atmosphère, Loi sur la qualité de l'environnement, Q-2, a.2.2, 109.1 et 124.1"]
[null,null,null,null,null,null,null,null,null,null,null,null,null,null,null,null,null,null,null,null,null,null,null,null,null,46,"R-403B","kg","0,05(C3H8)+0,56(HCFC-22)+0,39(C3F8)",3820.799,"Règlement sur la déclaration obligatoire de certaines émission de contaminants dans l'atmosphère, Loi sur la qualité de l'environnement, Q-2, a.2.2, 109.1 et 124.1"]
[null,null,null,null,null,null,null,null,null,null,null,null,null,null,null,null,null,null,null,null,null,null,null,null,null,48,"R-405A","kg","0,45(22)+0,07(152a)+0,055(142b)+0,425(C318)",4648.8500000000004,"Changes in atmospheric constituents and in radiative forcing (table 2.14 100-yr TAR) et Règlement sur la déclaration obligatoire de certaines émission de contaminants dans l'atmosphère, Loi sur la qualité de l'environnement, Q-2, a.2.2, 109.1 et 124.1"]
[null,null,null,null,null,null,null,null,null,null,null,null,null,null,null,null,null,null,null,null,null,null,null,null,null,49,"R-406A","kg","0,55(HCFC-22)+,04(R-600a)+0,41(HCFC-142b)",2013.16,"Changes in atmospheric constituents and in radiative forcing (table 2.14 100-yr TAR) et Règlement sur la déclaration obligatoire de certaines émission de contaminants dans l'atmosphère, Loi sur la qualité de l'environnement, Q-2, a.2.2, 109.1 et 124.1"]
[null,null,null,null,null,null,null,null,null,null,null,null,null,null,null,null,null,null,null,null,null,null,null,null,null,51,"R-407B","kg","0,1(HFC-32)+0,7(HFC-125)+0,2(HFC-134a)",2285,"Règlement sur la déclaration obligatoire de certaines émission de contaminants dans l'atmosphère, Loi sur la qualité de l'environnement, Q-2, a.2.2, 109.1 et 124.1"]
[null,null,null,null,null,null,null,null,null,null,null,null,null,null,null,null,null,null,null,null,null,null,null,null,null,52,"R-407C","kg","0,23(HFC-32)+0,25(HFC-125)+0,52(HFC-134a)",1525.5,"Règlement sur la déclaration obligatoire de certaines émission de contaminants dans l'atmosphère, Loi sur la qualité de l'environnement, Q-2, a.2.2, 109.1 et 124.1"]
[null,null,null,null,null,null,null,null,null,null,null,null,null,null,null,null,null,null,null,null,null,null,null,null,null,96,"R-407D","kg","0,15(HFC-32)+0,15(HFC-125)+0,7(HFC-134a)",1427.5,"Règlement sur la déclaration obligatoire de certaines émission de contaminants dans l'atmosphère, Loi sur la qualité de l'environnement, Q-2, a.2.2, 109.1 et 124.1"]
[null,null,null,null,null,null,null,null,null,null,null,null,null,null,null,null,null,null,null,null,null,null,null,null,null,97,"R-407E","kg","0,25(HFC-32)+0,15(HFC-125)+0,6(HFC-134a)",1362.5,"Règlement sur la déclaration obligatoire de certaines émission de contaminants dans l'atmosphère, Loi sur la qualité de l'environnement, Q-2, a.2.2, 109.1 et 124.1"]
[null,null,null,null,null,null,null,null,null,null,null,null,null,null,null,null,null,null,null,null,null,null,null,null,null,53,"R-408A","kg","0,47(HCFC-22)+0,46(HFC-143a)+0,07(HFC-125)",2794.7,"Changes in atmospheric constituents and in radiative forcing (table 2.14 100-yr TAR) et Règlement sur la déclaration obligatoire de certaines émission de contaminants dans l'atmosphère, Loi sur la qualité de l'environnement, Q-2, a.2.2, 109.1 et 124.1"]
[null,null,null,null,null,null,null,null,null,null,null,null,null,null,null,null,null,null,null,null,null,null,null,null,null,54,"R-409A","kg","0,6(HCFC-22)+0,25(HCFC-124)+0,15(HCFC-142b)",1584.75,"Changes in atmospheric constituents and in radiative forcing (table 2.14 100-yr TAR)"]
[null,null,null,null,null,null,null,null,null,null,null,null,null,null,null,null,null,null,null,null,null,null,null,null,null,98,"R-409B","kg","0,65(HCFC-22)+0,25(HCFC-124)+0,1(HCFC-142b)",1559.75,"Changes in atmospheric constituents and in radiative forcing (table 2.14 100-yr TAR)"]
[null,null,null,null,null,null,null,null,null,null,null,null,null,null,null,null,null,null,null,null,null,null,null,null,null,55,"R-410A","kg","0,5(HFC-125)+0,5(HFC-32)",1725,"Règlement sur la déclaration obligatoire de certaines émission de contaminants dans l'atmosphère, Loi sur la qualité de l'environnement, Q-2, a.2.2, 109.1 et 124.1"]
[null,null,null,null,null,null,null,null,null,null,null,null,null,null,null,null,null,null,null,null,null,null,null,null,null,56,"R-410B","kg","0,45(HFC-125)+0,55(HFC-32)",1617.5,"Règlement sur la déclaration obligatoire de certaines émission de contaminants dans l'atmosphère, Loi sur la qualité de l'environnement, Q-2, a.2.2, 109.1 et 124.1"]
["No_Projet_Sagir_Abrev","Code_Org","Partenaire","Detail","Type_aide","Contribution","Pourcent",null,null,null,null,null,null,null,null,null,null,null,null,null,null,null,null,null,null,57,"R-411A","kg","0,015*(R-1270)+0,875(HFC-22)+,11(HFC-152a)",1623.52,"Règlement sur la déclaration obligatoire de certaines émission de contaminants dans l'atmosphère, Loi sur la qualité de l'environnement, Q-2, a.2.2, 109.1 et 124.1 (note additionnelle: le 1,5% de propylene (R1270) a été négligé dans le calcul)"]
[{"$f":"DQ$2","v":{"$error":"#REF!"}},{"$f":"#REF!","v":{"$error":"#REF!"}},{"$f":"#REF!","v":{"$error":"#REF!"}},{"$f":"IF(#REF!=\"\",\"\",#REF!)","v":{"$error":"#REF!"}},{"$f":"#REF!","v":{"$error":"#REF!"}},{"$f":"#REF!","v":{"$error":"#REF!"}},{"$f":"#REF!","v":{"$error":"#REF!"}},null,null,null,null,null,null,null,null,null,null,null,null,null,null,null,null,null,null,58,"R-411B","kg","0,03*(R-1270)+0,94(HFC-22)+,03(HFC-152a)",1758.35,"Règlement sur la déclaration obligatoire de certaines émission de contaminants dans l'atmosphère, Loi sur la qualité de l'environnement, Q-2, a.2.2, 109.1 et 124.1 (note additionnelle: le 1,5% de propylene (R1270) a été négligé dans le calcul)"]
[{"$error":"#REF!"},{"$f":"#REF!","v":{"$error":"#REF!"}},{"$f":"#REF!","v":{"$error":"#REF!"}},{"$f":"IF(#REF!=\"\",\"\",#REF!)","v":{"$error":"#REF!"}},{"$f":"#REF!","v":{"$error":"#REF!"}},{"$f":"#REF!","v":{"$error":"#REF!"}},{"$f":"#REF!","v":{"$error":"#REF!"}},null,null,null,null,null,null,null,null,null,null,null,null,null,null,null,null,null,null,59,"R-412A","kg","0,7(HCFC-22)+0,05(PFC-218)+0,25(HCFC-142b)",2194.5,"Changes in atmospheric constituents and in radiative forcing (table 2.14 100-yr TAR) et Règlement sur la déclaration obligatoire de certaines émission de contaminants dans l'atmosphère, Loi sur la qualité de l'environnement, Q-2, a.2.2, 109.1 et 124.1"]
[{"$error":"#REF!"},{"$f":"#REF!","v":{"$error":"#REF!"}},{"$f":"#REF!","v":{"$error":"#REF!"}},{"$f":"IF(#REF!=\"\",\"\",#REF!)","v":{"$error":"#REF!"}},{"$f":"#REF!","v":{"$error":"#REF!"}},{"$f":"#REF!","v":{"$error":"#REF!"}},{"$f":"#REF!","v":{"$error":"#REF!"}},null,null,null,null,null,null,null,null,null,null,null,null,null,null,null,null,null,null,60,"R-413A","kg","0,09(PFC-218)+0,88(HFC-134a)+0,03*(600a)",1826.92,"Règlement sur la déclaration obligatoire de certaines émission de contaminants dans l'atmosphère, Loi sur la qualité de l'environnement, Q-2, a.2.2, 109.1 et 124.1 (note additionnelle: PRP du butane utilisé pour le PRP de l'isobutane)"]
[{"$error":"#REF!"},{"$f":"#REF!","v":{"$error":"#REF!"}},{"$f":"#REF!","v":{"$error":"#REF!"}},{"$f":"IF(#REF!=\"\",\"\",#REF!)","v":{"$error":"#REF!"}},{"$f":"#REF!","v":{"$error":"#REF!"}},{"$f":"#REF!","v":{"$error":"#REF!"}},{"$f":"#REF!","v":{"$error":"#REF!"}},null,null,null,null,null,null,null,null,null,null,null,null,null,null,null,null,null,null,61,"R-414A","kg","0,51(R-22)+0,285(HCFC-124)+,04*(600a)+0,165(142b)",1548.37,"Changes in atmospheric constituents and in radiative forcing (table 2.14 100-yr TAR) et Règlement sur la déclaration obligatoire de certaines émission de contaminants dans l'atmosphère, Loi sur la qualité de l'environnement, Q-2, a.2.2, 109.1 et 124.1"]
[{"$error":"#REF!"},{"$f":"#REF!","v":{"$error":"#REF!"}},{"$f":"#REF!","v":{"$error":"#REF!"}},{"$f":"IF(#REF!=\"\",\"\",#REF!)","v":{"$error":"#REF!"}},{"$f":"#REF!","v":{"$error":"#REF!"}},{"$f":"#REF!","v":{"$error":"#REF!"}},{"$f":"#REF!","v":{"$error":"#REF!"}},null,null,null,null,null,null,null,null,null,null,null,null,null,null,null,null,null,null,62,"R-414B","kg","0,5(R-22)+0,39(HCFC-124)+,015*(600a)+0,095(142b)",1388.42,"Changes in atmospheric constituents and in radiative forcing (table 2.14 100-yr TAR) et Règlement sur la déclaration obligatoire de certaines émission de contaminants dans l'atmosphère, Loi sur la qualité de l'environnement, Q-2, a.2.2, 109.1 et 124.1"]
[{"$error":"#REF!"},{"$f":"#REF!","v":{"$error":"#REF!"}},{"$f":"#REF!","v":{"$error":"#REF!"}},{"$f":"IF(#REF!=\"\",\"\",#REF!)","v":{"$error":"#REF!"}},{"$f":"#REF!","v":{"$error":"#REF!"}},{"$f":"#REF!","v":{"$error":"#REF!"}},{"$f":"#REF!","v":{"$error":"#REF!"}},null,null,null,null,null,null,null,null,null,null,null,null,null,null,null,null,null,null,99,"R-415A","kg","0,82(HFC-22)+0,18(HFC-152a)",1509.4,"Changes in atmospheric constituents and in radiative forcing (table 2.14 100-yr TAR) et Règlement sur la déclaration obligatoire de certaines émission de contaminants dans l'atmosphère, Loi sur la qualité de l'environnement, Q-2, a.2.2, 109.1 et 124.1"]
[null,{"$f":"#REF!","v":{"$error":"#REF!"}},{"$f":"#REF!","v":{"$error":"#REF!"}},{"$f":"IF(#REF!=\"\",\"\",#REF!)","v":{"$error":"#REF!"}},{"$f":"#REF!","v":{"$error":"#REF!"}},{"$f":"#REF!","v":{"$error":"#REF!"}},{"$f":"#REF!","v":{"$error":"#REF!"}},null,null,null,null,null,null,null,null,null,null,null,null,null,null,null,null,null,null,100,"R-415B","kg","0,25(HFC-22)+0,75(HFC-152a)",557.5,"Changes in atmospheric constituents and in radiative forcing (table 2.14 100-yr TAR) et Règlement sur la déclaration obligatoire de certaines émission de contaminants dans l'atmosphère, Loi sur la qualité de l'environnement, Q-2, a.2.2, 109.1 et 124.1",""]
[null,null,null,null,null,null,null,null,null,null,null,null,null,null,null,null,null,null,null,null,null,null,null,null,null,101,"R-416A","kg","0,59(HFC-134a)+0,395(HCFC-124)+0,015(600)",1034.01,"Changes in atmospheric constituents and in radiative forcing (table 2.14 100-yr TAR) et Règlement sur la déclaration obligatoire de certaines émission de contaminants dans l'atmosphère, Loi sur la qualité de l'environnement, Q-2, a.2.2, 109.1 et 124.1"]
["No_Projet_Sagir_Abrev","Code_FrmNRJ","Énergie","Unité","Production","Quantité","Coût","GJ","GES (t)","$/GJ","GJ/production",null,null,null,null,null,null,null,null,null,null,null,null,null,null,115,"R-417A","kg","0,466(HFC-125)+0,5(HFC-134a)+0,034(600)",2014.78,"Règlement sur la déclaration obligatoire de certaines émission de contaminants dans l'atmosphère, Loi sur la qualité de l'environnement, Q-2, a.2.2, 109.1 et 124.1"]
[{"$f":"DQ$2","v":{"$error":"#REF!"}},{"$f":"#REF!","v":{"$error":"#REF!"}},{"$f":"#REF!","v":{"$error":"#REF!"}},{"$f":"#REF!","v":{"$error":"#REF!"}},{"$f":"#REF!","v":{"$error":"#REF!"}},{"$f":"#REF!","v":{"$error":"#REF!"}},{"$f":"#REF!","v":{"$error":"#REF!"}},{"$f":"#REF!","v":{"$error":"#REF!"}},{"$f":"#REF!","v":{"$error":"#REF!"}},{"$f":"#REF!","v":{"$error":"#REF!"}},{"$f":"#REF!","v":{"$error":"#REF!"}},null,null,null,null,null,null,null,null,null,null,null,null,null,null,102,"R-418A","kg","0,015(propane)+0,96(HCFC-22)+0,025(HFC-152a)",1764.26,"Changes in atmospheric constituents and in radiative forcing (table 2.14 100-yr TAR) et Règlement sur la déclaration obligatoire de certaines émission de contaminants dans l'atmosphère, Loi sur la qualité de l'environnement, Q-2, a.2.2, 109.1 et 124.1"]
[{"$error":"#REF!"},{"$f":"#REF!","v":{"$error":"#REF!"}},{"$f":"#REF!","v":{"$error":"#REF!"}},{"$f":"#REF!","v":{"$error":"#REF!"}},{"$f":"#REF!","v":{"$error":"#REF!"}},{"$f":"#REF!","v":{"$error":"#REF!"}},{"$f":"#REF!","v":{"$error":"#REF!"}},{"$f":"#REF!","v":{"$error":"#REF!"}},{"$f":"#REF!","v":{"$error":"#REF!"}},{"$f":"#REF!","v":{"$error":"#REF!"}},{"$f":"#REF!","v":{"$error":"#REF!"}},null,null,null,null,null,null,null,null,null,null,null,null,null,null,103,"R-419A","kg","0,77(HFC-125)+0,19(HFC-134a)+0,04(ethane)",2442.04,"Règlement sur la déclaration obligatoire de certaines émission de contaminants dans l'atmosphère, Loi sur la qualité de l'environnement, Q-2, a.2.2, 109.1 et 124.1"]
[{"$error":"#REF!"},{"$f":"#REF!","v":{"$error":"#REF!"}},{"$f":"#REF!","v":{"$error":"#REF!"}},{"$f":"#REF!","v":{"$error":"#REF!"}},{"$f":"#REF!","v":{"$error":"#REF!"}},{"$f":"#REF!","v":{"$error":"#REF!"}},{"$f":"#REF!","v":{"$error":"#REF!"}},{"$f":"#REF!","v":{"$error":"#REF!"}},{"$f":"#REF!","v":{"$error":"#REF!"}},{"$f":"#REF!","v":{"$error":"#REF!"}},{"$f":"#REF!","v":{"$error":"#REF!"}},null,null,null,null,null,null,null,null,null,null,null,null,null,null,104,"R-420A","kg","0,88(HFC-134a)+0,12(HCFC-142b)",1421.2,"Changes in atmospheric constituents and in radiative forcing (table 2.14 100-yr TAR) et Règlement sur la déclaration obligatoire de certaines émission de contaminants dans l'atmosphère, Loi sur la qualité de l'environnement, Q-2, a.2.2, 109.1 et 124.1"]
[{"$error":"#REF!"},{"$f":"#REF!","v":{"$error":"#REF!"}},{"$f":"#REF!","v":{"$error":"#REF!"}},{"$f":"#REF!","v":{"$error":"#REF!"}},{"$f":"#REF!","v":{"$error":"#REF!"}},{"$f":"#REF!","v":{"$error":"#REF!"}},{"$f":"#REF!","v":{"$error":"#REF!"}},{"$f":"#REF!","v":{"$error":"#REF!"}},{"$f":"#REF!","v":{"$error":"#REF!"}},{"$f":"#REF!","v":{"$error":"#REF!"}},{"$f":"#REF!","v":{"$error":"#REF!"}},null,null,null,null,null,null,null,null,null,null,null,null,null,null,105,"R-421A","kg","0,58(HFC-125)+0,42(HFC-134a)",2170,"Règlement sur la déclaration obligatoire de certaines émission de contaminants dans l'atmosphère, Loi sur la qualité de l'environnement, Q-2, a.2.2, 109.1 et 124.1"]
[{"$error":"#REF!"},{"$f":"#REF!","v":{"$error":"#REF!"}},{"$f":"#REF!","v":{"$error":"#REF!"}},{"$f":"#REF!","v":{"$error":"#REF!"}},{"$f":"#REF!","v":{"$error":"#REF!"}},{"$f":"#REF!","v":{"$error":"#REF!"}},{"$f":"#REF!","v":{"$error":"#REF!"}},{"$f":"#REF!","v":{"$error":"#REF!"}},{"$f":"#REF!","v":{"$error":"#REF!"}},{"$f":"#REF!","v":{"$error":"#REF!"}},{"$f":"#REF!","v":{"$error":"#REF!"}},null,null,null,null,null,null,null,null,null,null,null,null,null,null,106,"R-421B","kg","0,85(HFC-125)+0,15(HFC-134a)",2575,"Règlement sur la déclaration obligatoire de certaines émission de contaminants dans l'atmosphère, Loi sur la qualité de l'environnement, Q-2, a.2.2, 109.1 et 124.1"]
[{"$error":"#REF!"},{"$f":"#REF!","v":{"$error":"#REF!"}},{"$f":"#REF!","v":{"$error":"#REF!"}},{"$f":"#REF!","v":{"$error":"#REF!"}},{"$f":"#REF!","v":{"$error":"#REF!"}},{"$f":"#REF!","v":{"$error":"#REF!"}},{"$f":"#REF!","v":{"$error":"#REF!"}},{"$f":"#REF!","v":{"$error":"#REF!"}},{"$f":"#REF!","v":{"$error":"#REF!"}},{"$f":"#REF!","v":{"$error":"#REF!"}},{"$f":"#REF!","v":{"$error":"#REF!"}},null,null,null,null,null,null,null,null,null,null,null,null,null,null,89,"R-422A","kg","0,851(HFC-125)+0,115(HFC-134a)+0,034*(600a)",2292.27,"Règlement sur la déclaration obligatoire de certaines émission de contaminants dans l'atmosphère, Loi sur la qualité de l'environnement, Q-2, a.2.2, 109.1 et 124.1"]
[null,null,null,null,null,null,null,null,null,null,null,null,null,null,null,null,null,null,null,null,null,null,null,null,null,90,"R-422B","kg","0,55(HFC-125)+0,42(HFC-134a)+0,03*(600a)",2138.91,"Règlement sur la déclaration obligatoire de certaines émission de contaminants dans l'atmosphère, Loi sur la qualité de l'environnement, Q-2, a.2.2, 109.1 et 124.1"]
["No_Projet_Sagir_Abrev","No","Type","Capacité_Actuel","Code_Refrig_Actuel","Ref_actuel","Formule_actuel","PRPActuel","Charge_Actuel","Code_unite_Actuel","Unite_actuel","Taux_Fuite","fuites_Actuel ","GES_actuel","Capacité_Prevu","Code_Refrig_Prevu","Ref_prevu","Formule_prevu","PRPprevu","Charge_prevu","Code_unite_prevu","Unite_prevu","fuites_prevu ","GES_prevu",null,91,"R-422C","kg","0,82(HFC-125)+0,15(HFC-134a)+0,03*(600a)",2543.92,"Règlement sur la déclaration obligatoire de certaines émission de contaminants dans l'atmosphère, Loi sur la qualité de l'environnement, Q-2, a.2.2, 109.1 et 124.1"]
[{"$f":"DQ$2","v":{"$error":"#REF!"}},{"$f":"#REF!","v":{"$error":"#REF!"}},{"$f":"IF(#REF!=\"\",\"\",#REF!)","v":{"$error":"#REF!"}},{"$f":"#REF!","v":{"$error":"#REF!"}},{"$f":"IF(F167=\"\",0,INDEX(OFFSET(PRP,,-1,,),MATCH(F167,PRP,0)))","v":{"$error":"#REF!"}},{"$f":"IF(#REF!=\"\",\"\",#REF!)","v":{"$error":"#REF!"}},{"$f":"IF(F167=\"\",\"\",INDEX(OFFSET(PRP,,2,,),MATCH(F167,PRP,0)))","v":{"$error":"#REF!"}},{"$f":"#REF!","v":{"$error":"#REF!"}},{"$f":"#REF!","v":{"$error":"#REF!"}},{"$f":"INDEX(OFFSET(Unite,,-1,,),MATCH(K167,Unite,0))","v":{"$error":"#REF!"}},{"$f":"#REF!","v":{"$error":"#REF!"}},{"$f":"#REF!","v":{"$error":"#REF!"}},{"$f":"#REF!*#REF!","v":{"$error":"#REF!"}},{"$f":"#REF!","v":{"$error":"#REF!"}},{"$f":"#REF!","v":{"$error":"#REF!"}},{"$f":"IF(Q167=\"\",0,INDEX(OFFSET(PRP,,-1,,),MATCH(Q167,PRP,0)))","v":{"$error":"#REF!"}},{"$f":"IF(#REF!=\"\",\"\",#REF!)","v":{"$error":"#REF!"}},{"$f":"IF(Q167=\"\",\"\",INDEX(OFFSET(PRP,,2,,),MATCH(Q167,PRP,0)))","v":{"$error":"#REF!"}},{"$f":"#REF!","v":{"$error":"#REF!"}},{"$f":"#REF!","v":{"$error":"#REF!"}},{"$f":"INDEX(OFFSET(Unite,,-1,,),MATCH(V167,Unite,0))","v":{"$error":"#REF!"}},{"$f":"#REF!","v":{"$error":"#REF!"}},{"$f":"#REF!*#REF!","v":{"$error":"#REF!"}},{"$f":"#REF!","v":{"$error":"#REF!"}},null,107,"R-423A","kg","0,525(HFC-134a)+0,475(HFC-227ea)",2060,"Règlement sur la déclaration obligatoire de certaines émission de contaminants dans l'atmosphère, Loi sur la qualité de l'environnement, Q-2, a.2.2, 109.1 et 124.1"]
[{"$error":"#REF!"},{"$f":"#REF!","v":{"$error":"#REF!"}},{"$f":"IF(#REF!=\"\",\"\",#REF!)","v":{"$error":"#REF!"}},{"$f":"#REF!","v":{"$error":"#REF!"}},{"$error":"#REF!"},{"$f":"IF(#REF!=\"\",\"\",#REF!)","v":{"$error":"#REF!"}},null,{"$f":"#REF!","v":{"$error":"#REF!"}},{"$f":"#REF!","v":{"$error":"#REF!"}},{"$error":"#REF!"},{"$f":"#REF!","v":{"$error":"#REF!"}},{"$f":"#REF!","v":{"$error":"#REF!"}},{"$f":"#REF!*#REF!","v":{"$error":"#REF!"}},{"$f":"#REF!","v":{"$error":"#REF!"}},{"$f":"#REF!","v":{"$error":"#REF!"}},{"$error":"#REF!"},{"$f":"IF(#REF!=\"\",\"\",#REF!)","v":{"$error":"#REF!"}},{"$error":"#REF!"},{"$f":"#REF!","v":{"$error":"#REF!"}},{"$f":"#REF!","v":{"$error":"#REF!"}},{"$error":"#REF!"},{"$f":"#REF!","v":{"$error":"#REF!"}},{"$f":"#REF!*#REF!","v":{"$error":"#REF!"}},{"$f":"#REF!","v":{"$error":"#REF!"}},null,108,"R-424A","kg",",505(125)+,47(134a)+0,09(600a)+,01(600)+,006(601a)",2183.87,"Règlement sur la déclaration obligatoire de certaines émission de contaminants dans l'atmosphère, Loi sur la qualité de l'environnement, Q-2, a.2.2, 109.1 et 124.1 (note dditionnelle: Pentane (601) et isopentane (601a) sont négligés et Butane (600) et iso"]
[{"$error":"#REF!"},{"$f":"#REF!","v":{"$error":"#REF!"}},{"$f":"IF(#REF!=\"\",\"\",#REF!)","v":{"$error":"#REF!"}},{"$f":"#REF!","v":{"$error":"#REF!"}},{"$error":"#REF!"},{"$f":"IF(#REF!=\"\",\"\",#REF!)","v":{"$error":"#REF!"}},null,{"$f":"#REF!","v":{"$error":"#REF!"}},{"$f":"#REF!","v":{"$error":"#REF!"}},{"$error":"#REF!"},{"$f":"#REF!","v":{"$error":"#REF!"}},{"$f":"#REF!","v":{"$error":"#REF!"}},{"$f":"#REF!*#REF!","v":{"$error":"#REF!"}},{"$f":"#REF!","v":{"$error":"#REF!"}},{"$f":"#REF!","v":{"$error":"#REF!"}},{"$error":"#REF!"},{"$f":"IF(#REF!=\"\",\"\",#REF!)","v":{"$error":"#REF!"}},{"$error":"#REF!"},{"$f":"#REF!","v":{"$error":"#REF!"}},{"$f":"#REF!","v":{"$error":"#REF!"}},{"$error":"#REF!"},{"$f":"#REF!","v":{"$error":"#REF!"}},{"$f":"#REF!*#REF!","v":{"$error":"#REF!"}},{"$f":"#REF!","v":{"$error":"#REF!"}},null,109,"R-425A","kg","0,185(HFC-32)+0,695(HFC-134a)+0,12(HFC-227ea)",1371.75,"Règlement sur la déclaration obligatoire de certaines émission de contaminants dans l'atmosphère, Loi sur la qualité de l'environnement, Q-2, a.2.2, 109.1 et 124.1"]
[{"$error":"#REF!"},{"$f":"#REF!","v":{"$error":"#REF!"}},{"$f":"IF(#REF!=\"\",\"\",#REF!)","v":{"$error":"#REF!"}},{"$f":"#REF!","v":{"$error":"#REF!"}},{"$error":"#REF!"},{"$f":"IF(#REF!=\"\",\"\",#REF!)","v":{"$error":"#REF!"}},null,{"$f":"#REF!","v":{"$error":"#REF!"}},{"$f":"#REF!","v":{"$error":"#REF!"}},{"$error":"#REF!"},{"$f":"#REF!","v":{"$error":"#REF!"}},{"$f":"#REF!","v":{"$error":"#REF!"}},{"$f":"#REF!*#REF!","v":{"$error":"#REF!"}},{"$f":"#REF!","v":{"$error":"#REF!"}},{"$f":"#REF!","v":{"$error":"#REF!"}},{"$error":"#REF!"},{"$f":"IF(#REF!=\"\",\"\",#REF!)","v":{"$error":"#REF!"}},{"$error":"#REF!"},{"$f":"#REF!","v":{"$error":"#REF!"}},{"$f":"#REF!","v":{"$error":"#REF!"}},{"$error":"#REF!"},{"$f":"#REF!","v":{"$error":"#REF!"}},{"$f":"#REF!*#REF!","v":{"$error":"#REF!"}},{"$f":"#REF!","v":{"$error":"#REF!"}},null,110,"R-426A","kg","0,051(HFC-125)+0,93(134a)+0,013(600a)+0,006(601a)",1374.73,"Règlement sur la déclaration obligatoire de certaines émission de contaminants dans l'atmosphère, Loi sur la qualité de l'environnement, Q-2, a.2.2, 109.1 et 124.1"]
[{"$error":"#REF!"},{"$f":"#REF!","v":{"$error":"#REF!"}},{"$f":"IF(#REF!=\"\",\"\",#REF!)","v":{"$error":"#REF!"}},{"$f":"#REF!","v":{"$error":"#REF!"}},{"$error":"#REF!"},{"$f":"IF(#REF!=\"\",\"\",#REF!)","v":{"$error":"#REF!"}},null,{"$f":"#REF!","v":{"$error":"#REF!"}},{"$f":"#REF!","v":{"$error":"#REF!"}},{"$error":"#REF!"},{"$f":"#REF!","v":{"$error":"#REF!"}},{"$f":"#REF!","v":{"$error":"#REF!"}},{"$f":"#REF!*#REF!","v":{"$error":"#REF!"}},{"$f":"#REF!","v":{"$error":"#REF!"}},{"$f":"#REF!","v":{"$error":"#REF!"}},{"$error":"#REF!"},{"$f":"IF(#REF!=\"\",\"\",#REF!)","v":{"$error":"#REF!"}},{"$error":"#REF!"},{"$f":"#REF!","v":{"$error":"#REF!"}},{"$f":"#REF!","v":{"$error":"#REF!"}},{"$error":"#REF!"},{"$f":"#REF!","v":{"$error":"#REF!"}},{"$f":"#REF!*#REF!","v":{"$error":"#REF!"}},{"$f":"#REF!","v":{"$error":"#REF!"}},null,111,"R-427A","kg","0,15(HFC32)+,25(HFC125)+,1(HFC143a)+,5(HFC134a)",1827.5,"Règlement sur la déclaration obligatoire de certaines émission de contaminants dans l'atmosphère, Loi sur la qualité de l'environnement, Q-2, a.2.2, 109.1 et 124.1"]
[{"$error":"#REF!"},{"$f":"#REF!","v":{"$error":"#REF!"}},{"$f":"IF(#REF!=\"\",\"\",#REF!)","v":{"$error":"#REF!"}},{"$f":"#REF!","v":{"$error":"#REF!"}},{"$error":"#REF!"},{"$f":"IF(#REF!=\"\",\"\",#REF!)","v":{"$error":"#REF!"}},null,{"$f":"#REF!","v":{"$error":"#REF!"}},{"$f":"#REF!","v":{"$error":"#REF!"}},{"$error":"#REF!"},{"$f":"#REF!","v":{"$error":"#REF!"}},{"$f":"#REF!","v":{"$error":"#REF!"}},{"$f":"#REF!*#REF!","v":{"$error":"#REF!"}},{"$f":"#REF!","v":{"$error":"#REF!"}},{"$f":"#REF!","v":{"$error":"#REF!"}},{"$error":"#REF!"},{"$f":"IF(#REF!=\"\",\"\",#REF!)","v":{"$error":"#REF!"}},{"$error":"#REF!"},{"$f":"#REF!","v":{"$error":"#REF!"}},{"$f":"#REF!","v":{"$error":"#REF!"}},{"$error":"#REF!"},{"$f":"#REF!","v":{"$error":"#REF!"}},{"$f":"#REF!*#REF!","v":{"$error":"#REF!"}},{"$f":"#REF!","v":{"$error":"#REF!"}},null,112,"R-428A","kg",",775(HFC125)+,2(HFC143a)+,006(propane)+0,019(600a)",2972.78,"Règlement sur la déclaration obligatoire de certaines émission de contaminants dans l'atmosphère, Loi sur la qualité de l'environnement, Q-2, a.2.2, 109.1 et 124.1"]
[null,null,null,null,null,null,null,null,null,null,null,null,null,null,null,null,null,null,null,null,null,null,null,null,null,93,"R-438A","kg",",085(32)+,45(125)+,442(134a)+,017(600)+,006*(601a)",1930.42,"Règlement sur la déclaration obligatoire de certaines émission de contaminants dans l'atmosphère, Loi sur la qualité de l'environnement, Q-2, a.2.2, 109.1 et 124.1 (note additionnelle: PRP du butane utilisé pour le PRP de l'isobutane)"]
["No_Projet_Sagir_Abrev","Code_Volet","Code_composante","Activité","GrandConsom","Secteur","Coût_Interne","Coût_externe","Coût","Aide_demande","QTE","CatMEE","CodeMEE",null,null,null,null,null,null,null,null,null,null,null,null,63,"R-500","kg","0,735(CFC-12)+0,262(HFC-152a)",8048.18,"Changes in atmospheric constituents and in radiative forcing (table 2.14 100-yr TAR) et Règlement sur la déclaration obligatoire de certaines émission de contaminants dans l'atmosphère, Loi sur la qualité de l'environnement, Q-2, a.2.2, 109.1 et 124.1"]
[{"$f":"DQ$2","v":{"$error":"#REF!"}},{"$f":"IF(E$56=TRUE,5,IF(F$56=TRUE,6,0))","v":0},{"$f":"#REF!","v":{"$error":"#REF!"}},{"$f":"#REF!","v":{"$error":"#REF!"}},false,{"$f":"IF(AND(DP$2=\"Agricole\",LEFT(C175,2)=\"52\"),\"Agricole\",\"Affaires\")","v":{"$error":"#REF!"}},{"$f":"#REF!","v":{"$error":"#REF!"}},{"$f":"#REF!","v":{"$error":"#REF!"}},{"$f":"#REF!","v":{"$error":"#REF!"}},{"$f":"#REF!","v":{"$error":"#REF!"}},{"$f":"#REF!","v":{"$error":"#REF!"}},{"$f":"IF(D175<>\"Choisir…\",INDEX(OFFSET(INDIRECT(AD$30),,1,,),MATCH(D175,INDIRECT(AD$30),0)),\"\")","v":{"$error":"#REF!"}},{"$f":"IF(D175<>\"Choisir…\",INDEX(OFFSET(INDIRECT(AD$30),,2,,),MATCH(D175,INDIRECT(AD$30),0)),\"\")","v":{"$error":"#REF!"}},null,null,null,null,null,null,null,null,null,null,null,null,64,"R-501","kg","0,75(HCFC-22)+0,25(CFC-12)",4082.5,"Changes in atmospheric constituents and in radiative forcing (table 2.14 100-yr TAR) et Règlement sur la déclaration obligatoire de certaines émission de contaminants dans l'atmosphère, Loi sur la qualité de l'environnement, Q-2, a.2.2, 109.1 et 124.1"]
[{"$error":"#REF!"},0,{"$f":"#REF!","v":{"$error":"#REF!"}},{"$f":"#REF!","v":{"$error":"#REF!"}},false,{"$error":"#REF!"},{"$f":"#REF!","v":{"$error":"#REF!"}},{"$f":"#REF!","v":{"$error":"#REF!"}},{"$f":"#REF!","v":{"$error":"#REF!"}},{"$f":"#REF!","v":{"$error":"#REF!"}},{"$f":"#REF!","v":{"$error":"#REF!"}},{"$error":"#REF!"},{"$error":"#REF!"},null,null,null,null,null,null,null,null,null,null,null,null,65,"R-502","kg","0,488(HCFC-22)+0,512(CFC-115)",4656.72,"Changes in atmospheric constituents and in radiative forcing (table 2.14 100-yr TAR) et Règlement sur la déclaration obligatoire de certaines émission de contaminants dans l'atmosphère, Loi sur la qualité de l'environnement, Q-2, a.2.2, 109.1 et 124.1"]
[{"$error":"#REF!"},0,{"$f":"#REF!","v":{"$error":"#REF!"}},{"$f":"#REF!","v":{"$error":"#REF!"}},false,{"$error":"#REF!"},{"$f":"#REF!","v":{"$error":"#REF!"}},{"$f":"#REF!","v":{"$error":"#REF!"}},{"$f":"#REF!","v":{"$error":"#REF!"}},{"$f":"#REF!","v":{"$error":"#REF!"}},{"$f":"#REF!","v":{"$error":"#REF!"}},{"$error":"#REF!"},{"$error":"#REF!"},null,null,null,null,null,null,null,null,null,null,null,null,66,"R-503","kg","0,401(HFC-23)+0,599(CFC-13)",13317.3,"Changes in atmospheric constituents and in radiative forcing (table 2.14 100-yr TAR) et Règlement sur la déclaration obligatoire de certaines émission de contaminants dans l'atmosphère, Loi sur la qualité de l'environnement, Q-2, a.2.2, 109.1 et 124.1"]
[{"$error":"#REF!"},0,{"$f":"#REF!","v":{"$error":"#REF!"}},{"$f":"#REF!","v":{"$error":"#REF!"}},false,{"$error":"#REF!"},{"$f":"#REF!","v":{"$error":"#REF!"}},{"$f":"#REF!","v":{"$error":"#REF!"}},{"$f":"#REF!","v":{"$error":"#REF!"}},{"$f":"#REF!","v":{"$error":"#REF!"}},{"$f":"#REF!","v":{"$error":"#REF!"}},{"$error":"#REF!"},{"$error":"#REF!"},null,null,null,null,null,null,null,null,null,null,null,null,67,"R-504","kg","0,482(HFC-32)+0,518(CFC-115)",4130.96,"Changes in atmospheric constituents and in radiative forcing (table 2.14 100-yr TAR) et Règlement sur la déclaration obligatoire de certaines émission de contaminants dans l'atmosphère, Loi sur la qualité de l'environnement, Q-2, a.2.2, 109.1 et 124.1"]
[{"$error":"#REF!"},0,{"$f":"#REF!","v":{"$error":"#REF!"}},{"$f":"#REF!","v":{"$error":"#REF!"}},false,{"$error":"#REF!"},{"$f":"#REF!","v":{"$error":"#REF!"}},{"$f":"#REF!","v":{"$error":"#REF!"}},{"$f":"#REF!","v":{"$error":"#REF!"}},{"$f":"#REF!","v":{"$error":"#REF!"}},{"$f":"#REF!","v":{"$error":"#REF!"}},{"$error":"#REF!"},{"$error":"#REF!"},null,null,null,null,null,null,null,null,null,null,null,null,69,"R-508A","kg","0,39(HFC-23)+0,61(PFC-116)",10175,"Règlement sur la déclaration obligatoire de certaines émission de contaminants dans l'atmosphère, Loi sur la qualité de l'environnement, Q-2, a.2.2, 109.1 et 124.1"]
[{"$error":"#REF!"},0,{"$f":"#REF!","v":{"$error":"#REF!"}},{"$f":"#REF!","v":{"$error":"#REF!"}},false,{"$error":"#REF!"},{"$f":"#REF!","v":{"$error":"#REF!"}},{"$f":"#REF!","v":{"$error":"#REF!"}},{"$f":"#REF!","v":{"$error":"#REF!"}},{"$f":"#REF!","v":{"$error":"#REF!"}},{"$f":"#REF!","v":{"$error":"#REF!"}},{"$error":"#REF!"},{"$error":"#REF!"},null,null,null,null,null,null,null,null,null,null,null,null,70,"R-508B","kg","0,46(HFC-23)+0,54(PFC-116)",10350,"Règlement sur la déclaration obligatoire de certaines émission de contaminants dans l'atmosphère, Loi sur la qualité de l'environnement, Q-2, a.2.2, 109.1 et 124.1"]
[null,null,null,null,null,null,null,null,null,null,null,null,null,null,null,null,null,null,null,null,null,null,null,null,null,71,"R-509A","kg","0,44(HCFC-22)+0,56(PFC-218)",4716.3999999999996,"Règlement sur la déclaration obligatoire de certaines émission de contaminants dans l'atmosphère, Loi sur la qualité de l'environnement, Q-2, a.2.2, 109.1 et 124.1"]
[null,null,null,null,null,null,null,null,null,null,null,null,null,null,null,null,null,null,null,null,null,null,null,null,null,75,"Tétrachlorure de carbone","kg","CCl4",1400,"Changes in atmospheric constituents and in radiative forcing (table 2.14 100-yr TAR)"]
[null,null,null,null,null,null,null,null,null,null,null,null,null,null,null,null,null,null,null,null,null,null,null,null,null,76,"Trifluorure d'azote","kg","NF3",17200,"Règlement sur la déclaration obligatoire de certaines émission de contaminants dans l'atmosphère, Loi sur la qualité de l'environnement, Q-2, a.2.2, 109.1 et 124.1"]
[null,null,null,null,null,null,null,null,null,null,null,null,null,null,null,null,null,null,null,null,null,null,null,null,null,82,"Autre","kg","N/A",0,""]
[null,null,null,null,null,null,null,null,null,null,null,null,null,null,null,"der"]
[]
[]
[]
[]
[]
[]
[]
[null,null,null,null,null,null,"No_Projet_Sagir_Abrev","NEQ","Code SCIAN","Type entreprise","Nom site","Adresse","Municipalité","Code postal","Entreprise","Code_entreprise","Regr_Entreprise","Tjatteint"]
[null,null,null,null,null,null,{"$f":"DQ$2","v":{"$error":"#REF!"}},{"$f":"IF(#REF!=\"\",\"\",#REF!)","v":{"$error":"#REF!"}},{"$f":"IF(#REF!=\"\",\"\",#REF!)","v":{"$error":"#REF!"}},{"$f":"IF(#REF!=\"\",\"\",#REF!)","v":{"$error":"#REF!"}},{"$f":"IF(#REF!=\"\",\"\",#REF!)","v":{"$error":"#REF!"}},{"$f":"IF(#REF!=\"\",\"\",#REF!)","v":{"$error":"#REF!"}},{"$f":"IF(#REF!=\"\",\"\",#REF!)","v":{"$error":"#REF!"}},{"$f":"IF(#REF!=\"\",\"\",#REF!)","v":{"$error":"#REF!"}},{"$f":"IF(#REF!=\"\",\"\",#REF!)","v":{"$error":"#REF!"}},{"$f":"IF(#REF!=\"\",\"\",#REF!)","v":{"$error":"#REF!"}},{"$f":"IF(#REF!=\"\",\"\",#REF!)","v":{"$error":"#REF!"}},{"$f":"IF(#REF!=\"\",\"\",#REF!)","v":{"$error":"#REF!"}}]
[null,null,null,null,null,null,{"$error":"#REF!"},{"$f":"IF(#REF!=\"\",\"\",#REF!)","v":{"$error":"#REF!"}},{"$f":"IF(#REF!=\"\",\"\",#REF!)","v":{"$error":"#REF!"}},{"$f":"IF(#REF!=\"\",\"\",#REF!)","v":{"$error":"#REF!"}},{"$f":"IF(#REF!=\"\",\"\",#REF!)","v":{"$error":"#REF!"}},{"$f":"IF(#REF!=\"\",\"\",#REF!)","v":{"$error":"#REF!"}},{"$f":"IF(#REF!=\"\",\"\",#REF!)","v":{"$error":"#REF!"}},{"$f":"IF(#REF!=\"\",\"\",#REF!)","v":{"$error":"#REF!"}},{"$f":"IF(#REF!=\"\",\"\",#REF!)","v":{"$error":"#REF!"}},{"$f":"IF(#REF!=\"\",\"\",#REF!)","v":{"$error":"#REF!"}},{"$f":"IF(#REF!=\"\",\"\",#REF!)","v":{"$error":"#REF!"}},{"$f":"IF(#REF!=\"\",\"\",#REF!)","v":{"$error":"#REF!"}}]
[null,null,null,null,null,null,{"$error":"#REF!"},{"$f":"IF(#REF!=\"\",\"\",#REF!)","v":{"$error":"#REF!"}},{"$f":"IF(#REF!=\"\",\"\",#REF!)","v":{"$error":"#REF!"}},{"$f":"IF(#REF!=\"\",\"\",#REF!)","v":{"$error":"#REF!"}},{"$f":"IF(#REF!=\"\",\"\",#REF!)","v":{"$error":"#REF!"}},{"$f":"IF(#REF!=\"\",\"\",#REF!)","v":{"$error":"#REF!"}},{"$f":"IF(#REF!=\"\",\"\",#REF!)","v":{"$error":"#REF!"}},{"$f":"IF(#REF!=\"\",\"\",#REF!)","v":{"$error":"#REF!"}},{"$f":"IF(#REF!=\"\",\"\",#REF!)","v":{"$error":"#REF!"}},{"$f":"IF(#REF!=\"\",\"\",#REF!)","v":{"$error":"#REF!"}},{"$f":"IF(#REF!=\"\",\"\",#REF!)","v":{"$error":"#REF!"}},{"$f":"IF(#REF!=\"\",\"\",#REF!)","v":{"$error":"#REF!"}}]
[null,null,null,null,null,null,{"$error":"#REF!"},{"$f":"IF(#REF!=\"\",\"\",#REF!)","v":{"$error":"#REF!"}},{"$f":"IF(#REF!=\"\",\"\",#REF!)","v":{"$error":"#REF!"}},{"$f":"IF(#REF!=\"\",\"\",#REF!)","v":{"$error":"#REF!"}},{"$f":"IF(#REF!=\"\",\"\",#REF!)","v":{"$error":"#REF!"}},{"$f":"IF(#REF!=\"\",\"\",#REF!)","v":{"$error":"#REF!"}},{"$f":"IF(#REF!=\"\",\"\",#REF!)","v":{"$error":"#REF!"}},{"$f":"IF(#REF!=\"\",\"\",#REF!)","v":{"$error":"#REF!"}},{"$f":"IF(#REF!=\"\",\"\",#REF!)","v":{"$error":"#REF!"}},{"$f":"IF(#REF!=\"\",\"\",#REF!)","v":{"$error":"#REF!"}},{"$f":"IF(#REF!=\"\",\"\",#REF!)","v":{"$error":"#REF!"}},{"$f":"IF(#REF!=\"\",\"\",#REF!)","v":{"$error":"#REF!"}}]
[null,null,null,null,null,null,{"$error":"#REF!"},{"$f":"IF(#REF!=\"\",\"\",#REF!)","v":{"$error":"#REF!"}},{"$f":"IF(#REF!=\"\",\"\",#REF!)","v":{"$error":"#REF!"}},{"$f":"IF(#REF!=\"\",\"\",#REF!)","v":{"$error":"#REF!"}},{"$f":"IF(#REF!=\"\",\"\",#REF!)","v":{"$error":"#REF!"}},{"$f":"IF(#REF!=\"\",\"\",#REF!)","v":{"$error":"#REF!"}},{"$f":"IF(#REF!=\"\",\"\",#REF!)","v":{"$error":"#REF!"}},{"$f":"IF(#REF!=\"\",\"\",#REF!)","v":{"$error":"#REF!"}},{"$f":"IF(#REF!=\"\",\"\",#REF!)","v":{"$error":"#REF!"}},{"$f":"IF(#REF!=\"\",\"\",#REF!)","v":{"$error":"#REF!"}},{"$f":"IF(#REF!=\"\",\"\",#REF!)","v":{"$error":"#REF!"}},{"$f":"IF(#REF!=\"\",\"\",#REF!)","v":{"$error":"#REF!"}}]
[null,null,null,null,null,null,{"$error":"#REF!"},{"$f":"IF(#REF!=\"\",\"\",#REF!)","v":{"$error":"#REF!"}},{"$f":"IF(#REF!=\"\",\"\",#REF!)","v":{"$error":"#REF!"}},{"$f":"IF(#REF!=\"\",\"\",#REF!)","v":{"$error":"#REF!"}},{"$f":"IF(#REF!=\"\",\"\",#REF!)","v":{"$error":"#REF!"}},{"$f":"IF(#REF!=\"\",\"\",#REF!)","v":{"$error":"#REF!"}},{"$f":"IF(#REF!=\"\",\"\",#REF!)","v":{"$error":"#REF!"}},{"$f":"IF(#REF!=\"\",\"\",#REF!)","v":{"$error":"#REF!"}},{"$f":"IF(#REF!=\"\",\"\",#REF!)","v":{"$error":"#REF!"}},{"$f":"IF(#REF!=\"\",\"\",#REF!)","v":{"$error":"#REF!"}},{"$f":"IF(#REF!=\"\",\"\",#REF!)","v":{"$error":"#REF!"}},{"$f":"IF(#REF!=\"\",\"\",#REF!)","v":{"$error":"#REF!"}}]
[null,null,null,null,null,null,{"$error":"#REF!"},{"$f":"IF(#REF!=\"\",\"\",#REF!)","v":{"$error":"#REF!"}},{"$f":"IF(#REF!=\"\",\"\",#REF!)","v":{"$error":"#REF!"}},{"$f":"IF(#REF!=\"\",\"\",#REF!)","v":{"$error":"#REF!"}},{"$f":"IF(#REF!=\"\",\"\",#REF!)","v":{"$error":"#REF!"}},{"$f":"IF(#REF!=\"\",\"\",#REF!)","v":{"$error":"#REF!"}},{"$f":"IF(#REF!=\"\",\"\",#REF!)","v":{"$error":"#REF!"}},{"$f":"IF(#REF!=\"\",\"\",#REF!)","v":{"$error":"#REF!"}},{"$f":"IF(#REF!=\"\",\"\",#REF!)","v":{"$error":"#REF!"}},{"$f":"IF(#REF!=\"\",\"\",#REF!)","v":{"$error":"#REF!"}},{"$f":"IF(#REF!=\"\",\"\",#REF!)","v":{"$error":"#REF!"}},{"$f":"IF(#REF!=\"\",\"\",#REF!)","v":{"$error":"#REF!"}}]
[null,null,null,null,null,null,{"$error":"#REF!"},{"$f":"IF(#REF!=\"\",\"\",#REF!)","v":{"$error":"#REF!"}},{"$f":"IF(#REF!=\"\",\"\",#REF!)","v":{"$error":"#REF!"}},{"$f":"IF(#REF!=\"\",\"\",#REF!)","v":{"$error":"#REF!"}},{"$f":"IF(#REF!=\"\",\"\",#REF!)","v":{"$error":"#REF!"}},{"$f":"IF(#REF!=\"\",\"\",#REF!)","v":{"$error":"#REF!"}},{"$f":"IF(#REF!=\"\",\"\",#REF!)","v":{"$error":"#REF!"}},{"$f":"IF(#REF!=\"\",\"\",#REF!)","v":{"$error":"#REF!"}},{"$f":"IF(#REF!=\"\",\"\",#REF!)","v":{"$error":"#REF!"}},{"$f":"IF(#REF!=\"\",\"\",#REF!)","v":{"$error":"#REF!"}},{"$f":"IF(#REF!=\"\",\"\",#REF!)","v":{"$error":"#REF!"}},{"$f":"IF(#REF!=\"\",\"\",#REF!)","v":{"$error":"#REF!"}}]
[null,null,null,null,null,null,{"$error":"#REF!"},{"$f":"IF(#REF!=\"\",\"\",#REF!)","v":{"$error":"#REF!"}},{"$f":"IF(#REF!=\"\",\"\",#REF!)","v":{"$error":"#REF!"}},{"$f":"IF(#REF!=\"\",\"\",#REF!)","v":{"$error":"#REF!"}},{"$f":"IF(#REF!=\"\",\"\",#REF!)","v":{"$error":"#REF!"}},{"$f":"IF(#REF!=\"\",\"\",#REF!)","v":{"$error":"#REF!"}},{"$f":"IF(#REF!=\"\",\"\",#REF!)","v":{"$error":"#REF!"}},{"$f":"IF(#REF!=\"\",\"\",#REF!)","v":{"$error":"#REF!"}},{"$f":"IF(#REF!=\"\",\"\",#REF!)","v":{"$error":"#REF!"}},{"$f":"IF(#REF!=\"\",\"\",#REF!)","v":{"$error":"#REF!"}},{"$f":"IF(#REF!=\"\",\"\",#REF!)","v":{"$error":"#REF!"}},{"$f":"IF(#REF!=\"\",\"\",#REF!)","v":{"$error":"#REF!"}}]
[null,null,null,null,null,null,{"$error":"#REF!"},{"$f":"IF(#REF!=\"\",\"\",#REF!)","v":{"$error":"#REF!"}},{"$f":"IF(#REF!=\"\",\"\",#REF!)","v":{"$error":"#REF!"}},{"$f":"IF(#REF!=\"\",\"\",#REF!)","v":{"$error":"#REF!"}},{"$f":"IF(#REF!=\"\",\"\",#REF!)","v":{"$error":"#REF!"}},{"$f":"IF(#REF!=\"\",\"\",#REF!)","v":{"$error":"#REF!"}},{"$f":"IF(#REF!=\"\",\"\",#REF!)","v":{"$error":"#REF!"}},{"$f":"IF(#REF!=\"\",\"\",#REF!)","v":{"$error":"#REF!"}},{"$f":"IF(#REF!=\"\",\"\",#REF!)","v":{"$error":"#REF!"}},{"$f":"IF(#REF!=\"\",\"\",#REF!)","v":{"$error":"#REF!"}},{"$f":"IF(#REF!=\"\",\"\",#REF!)","v":{"$error":"#REF!"}},{"$f":"IF(#REF!=\"\",\"\",#REF!)","v":{"$error":"#REF!"}}]
[null,null,null,null,null,null,{"$error":"#REF!"},{"$f":"IF(#REF!=\"\",\"\",#REF!)","v":{"$error":"#REF!"}},{"$f":"IF(#REF!=\"\",\"\",#REF!)","v":{"$error":"#REF!"}},{"$f":"IF(#REF!=\"\",\"\",#REF!)","v":{"$error":"#REF!"}},{"$f":"IF(#REF!=\"\",\"\",#REF!)","v":{"$error":"#REF!"}},{"$f":"IF(#REF!=\"\",\"\",#REF!)","v":{"$error":"#REF!"}},{"$f":"IF(#REF!=\"\",\"\",#REF!)","v":{"$error":"#REF!"}},{"$f":"IF(#REF!=\"\",\"\",#REF!)","v":{"$error":"#REF!"}},{"$f":"IF(#REF!=\"\",\"\",#REF!)","v":{"$error":"#REF!"}},{"$f":"IF(#REF!=\"\",\"\",#REF!)","v":{"$error":"#REF!"}},{"$f":"IF(#REF!=\"\",\"\",#REF!)","v":{"$error":"#REF!"}},{"$f":"IF(#REF!=\"\",\"\",#REF!)","v":{"$error":"#REF!"}}]
[null,null,null,null,null,null,{"$error":"#REF!"},{"$f":"IF(#REF!=\"\",\"\",#REF!)","v":{"$error":"#REF!"}},{"$f":"IF(#REF!=\"\",\"\",#REF!)","v":{"$error":"#REF!"}},{"$f":"IF(#REF!=\"\",\"\",#REF!)","v":{"$error":"#REF!"}},{"$f":"IF(#REF!=\"\",\"\",#REF!)","v":{"$error":"#REF!"}},{"$f":"IF(#REF!=\"\",\"\",#REF!)","v":{"$error":"#REF!"}},{"$f":"IF(#REF!=\"\",\"\",#REF!)","v":{"$error":"#REF!"}},{"$f":"IF(#REF!=\"\",\"\",#REF!)","v":{"$error":"#REF!"}},{"$f":"IF(#REF!=\"\",\"\",#REF!)","v":{"$error":"#REF!"}},{"$f":"IF(#REF!=\"\",\"\",#REF!)","v":{"$error":"#REF!"}},{"$f":"IF(#REF!=\"\",\"\",#REF!)","v":{"$error":"#REF!"}},{"$f":"IF(#REF!=\"\",\"\",#REF!)","v":{"$error":"#REF!"}}]
[null,null,null,null,null,null,{"$error":"#REF!"},{"$f":"IF(#REF!=\"\",\"\",#REF!)","v":{"$error":"#REF!"}},{"$f":"IF(#REF!=\"\",\"\",#REF!)","v":{"$error":"#REF!"}},{"$f":"IF(#REF!=\"\",\"\",#REF!)","v":{"$error":"#REF!"}},{"$f":"IF(#REF!=\"\",\"\",#REF!)","v":{"$error":"#REF!"}},{"$f":"IF(#REF!=\"\",\"\",#REF!)","v":{"$error":"#REF!"}},{"$f":"IF(#REF!=\"\",\"\",#REF!)","v":{"$error":"#REF!"}},{"$f":"IF(#REF!=\"\",\"\",#REF!)","v":{"$error":"#REF!"}},{"$f":"IF(#REF!=\"\",\"\",#REF!)","v":{"$error":"#REF!"}},{"$f":"IF(#REF!=\"\",\"\",#REF!)","v":{"$error":"#REF!"}},{"$f":"IF(#REF!=\"\",\"\",#REF!)","v":{"$error":"#REF!"}},{"$f":"IF(#REF!=\"\",\"\",#REF!)","v":{"$error":"#REF!"}}]
[null,null,null,null,null,null,{"$error":"#REF!"},{"$f":"IF(#REF!=\"\",\"\",#REF!)","v":{"$error":"#REF!"}},{"$f":"IF(#REF!=\"\",\"\",#REF!)","v":{"$error":"#REF!"}},{"$f":"IF(#REF!=\"\",\"\",#REF!)","v":{"$error":"#REF!"}},{"$f":"IF(#REF!=\"\",\"\",#REF!)","v":{"$error":"#REF!"}},{"$f":"IF(#REF!=\"\",\"\",#REF!)","v":{"$error":"#REF!"}},{"$f":"IF(#REF!=\"\",\"\",#REF!)","v":{"$error":"#REF!"}},{"$f":"IF(#REF!=\"\",\"\",#REF!)","v":{"$error":"#REF!"}},{"$f":"IF(#REF!=\"\",\"\",#REF!)","v":{"$error":"#REF!"}},{"$f":"IF(#REF!=\"\",\"\",#REF!)","v":{"$error":"#REF!"}},{"$f":"IF(#REF!=\"\",\"\",#REF!)","v":{"$error":"#REF!"}},{"$f":"IF(#REF!=\"\",\"\",#REF!)","v":{"$error":"#REF!"}}]
[null,null,null,null,null,null,{"$error":"#REF!"},{"$f":"IF(#REF!=\"\",\"\",#REF!)","v":{"$error":"#REF!"}},{"$f":"IF(#REF!=\"\",\"\",#REF!)","v":{"$error":"#REF!"}},{"$f":"IF(#REF!=\"\",\"\",#REF!)","v":{"$error":"#REF!"}},{"$f":"IF(#REF!=\"\",\"\",#REF!)","v":{"$error":"#REF!"}},{"$f":"IF(#REF!=\"\",\"\",#REF!)","v":{"$error":"#REF!"}},{"$f":"IF(#REF!=\"\",\"\",#REF!)","v":{"$error":"#REF!"}},{"$f":"IF(#REF!=\"\",\"\",#REF!)","v":{"$error":"#REF!"}},{"$f":"IF(#REF!=\"\",\"\",#REF!)","v":{"$error":"#REF!"}},{"$f":"IF(#REF!=\"\",\"\",#REF!)","v":{"$error":"#REF!"}},{"$f":"IF(#REF!=\"\",\"\",#REF!)","v":{"$error":"#REF!"}},{"$f":"IF(#REF!=\"\",\"\",#REF!)","v":{"$error":"#REF!"}}]
[null,null,null,null,null,null,{"$error":"#REF!"},{"$f":"IF(#REF!=\"\",\"\",#REF!)","v":{"$error":"#REF!"}},{"$f":"IF(#REF!=\"\",\"\",#REF!)","v":{"$error":"#REF!"}},{"$f":"IF(#REF!=\"\",\"\",#REF!)","v":{"$error":"#REF!"}},{"$f":"IF(#REF!=\"\",\"\",#REF!)","v":{"$error":"#REF!"}},{"$f":"IF(#REF!=\"\",\"\",#REF!)","v":{"$error":"#REF!"}},{"$f":"IF(#REF!=\"\",\"\",#REF!)","v":{"$error":"#REF!"}},{"$f":"IF(#REF!=\"\",\"\",#REF!)","v":{"$error":"#REF!"}},{"$f":"IF(#REF!=\"\",\"\",#REF!)","v":{"$error":"#REF!"}},{"$f":"IF(#REF!=\"\",\"\",#REF!)","v":{"$error":"#REF!"}},{"$f":"IF(#REF!=\"\",\"\",#REF!)","v":{"$error":"#REF!"}},{"$f":"IF(#REF!=\"\",\"\",#REF!)","v":{"$error":"#REF!"}}]
[null,null,null,null,null,null,{"$error":"#REF!"},{"$f":"IF(#REF!=\"\",\"\",#REF!)","v":{"$error":"#REF!"}},{"$f":"IF(#REF!=\"\",\"\",#REF!)","v":{"$error":"#REF!"}},{"$f":"IF(#REF!=\"\",\"\",#REF!)","v":{"$error":"#REF!"}},{"$f":"IF(#REF!=\"\",\"\",#REF!)","v":{"$error":"#REF!"}},{"$f":"IF(#REF!=\"\",\"\",#REF!)","v":{"$error":"#REF!"}},{"$f":"IF(#REF!=\"\",\"\",#REF!)","v":{"$error":"#REF!"}},{"$f":"IF(#REF!=\"\",\"\",#REF!)","v":{"$error":"#REF!"}},{"$f":"IF(#REF!=\"\",\"\",#REF!)","v":{"$error":"#REF!"}},{"$f":"IF(#REF!=\"\",\"\",#REF!)","v":{"$error":"#REF!"}},{"$f":"IF(#REF!=\"\",\"\",#REF!)","v":{"$error":"#REF!"}},{"$f":"IF(#REF!=\"\",\"\",#REF!)","v":{"$error":"#REF!"}}]
[null,null,null,null,null,null,{"$error":"#REF!"},{"$f":"IF(#REF!=\"\",\"\",#REF!)","v":{"$error":"#REF!"}},{"$f":"IF(#REF!=\"\",\"\",#REF!)","v":{"$error":"#REF!"}},{"$f":"IF(#REF!=\"\",\"\",#REF!)","v":{"$error":"#REF!"}},{"$f":"IF(#REF!=\"\",\"\",#REF!)","v":{"$error":"#REF!"}},{"$f":"IF(#REF!=\"\",\"\",#REF!)","v":{"$error":"#REF!"}},{"$f":"IF(#REF!=\"\",\"\",#REF!)","v":{"$error":"#REF!"}},{"$f":"IF(#REF!=\"\",\"\",#REF!)","v":{"$error":"#REF!"}},{"$f":"IF(#REF!=\"\",\"\",#REF!)","v":{"$error":"#REF!"}},{"$f":"IF(#REF!=\"\",\"\",#REF!)","v":{"$error":"#REF!"}},{"$f":"IF(#REF!=\"\",\"\",#REF!)","v":{"$error":"#REF!"}},{"$f":"IF(#REF!=\"\",\"\",#REF!)","v":{"$error":"#REF!"}}]
[null,null,null,null,null,null,{"$error":"#REF!"},{"$f":"IF(#REF!=\"\",\"\",#REF!)","v":{"$error":"#REF!"}},{"$f":"IF(#REF!=\"\",\"\",#REF!)","v":{"$error":"#REF!"}},{"$f":"IF(#REF!=\"\",\"\",#REF!)","v":{"$error":"#REF!"}},{"$f":"IF(#REF!=\"\",\"\",#REF!)","v":{"$error":"#REF!"}},{"$f":"IF(#REF!=\"\",\"\",#REF!)","v":{"$error":"#REF!"}},{"$f":"IF(#REF!=\"\",\"\",#REF!)","v":{"$error":"#REF!"}},{"$f":"IF(#REF!=\"\",\"\",#REF!)","v":{"$error":"#REF!"}},{"$f":"IF(#REF!=\"\",\"\",#REF!)","v":{"$error":"#REF!"}},{"$f":"IF(#REF!=\"\",\"\",#REF!)","v":{"$error":"#REF!"}},{"$f":"IF(#REF!=\"\",\"\",#REF!)","v":{"$error":"#REF!"}},{"$f":"IF(#REF!=\"\",\"\",#REF!)","v":{"$error":"#REF!"}}]
[null,null,null,null,null,null,{"$error":"#REF!"},{"$f":"IF(#REF!=\"\",\"\",#REF!)","v":{"$error":"#REF!"}},{"$f":"IF(#REF!=\"\",\"\",#REF!)","v":{"$error":"#REF!"}},{"$f":"IF(#REF!=\"\",\"\",#REF!)","v":{"$error":"#REF!"}},{"$f":"IF(#REF!=\"\",\"\",#REF!)","v":{"$error":"#REF!"}},{"$f":"IF(#REF!=\"\",\"\",#REF!)","v":{"$error":"#REF!"}},{"$f":"IF(#REF!=\"\",\"\",#REF!)","v":{"$error":"#REF!"}},{"$f":"IF(#REF!=\"\",\"\",#REF!)","v":{"$error":"#REF!"}},{"$f":"IF(#REF!=\"\",\"\",#REF!)","v":{"$error":"#REF!"}},{"$f":"IF(#REF!=\"\",\"\",#REF!)","v":{"$error":"#REF!"}},{"$f":"IF(#REF!=\"\",\"\",#REF!)","v":{"$error":"#REF!"}},{"$f":"IF(#REF!=\"\",\"\",#REF!)","v":{"$error":"#REF!"}}]
[null,null,null,null,null,null,{"$error":"#REF!"},{"$f":"IF(#REF!=\"\",\"\",#REF!)","v":{"$error":"#REF!"}},{"$f":"IF(#REF!=\"\",\"\",#REF!)","v":{"$error":"#REF!"}},{"$f":"IF(#REF!=\"\",\"\",#REF!)","v":{"$error":"#REF!"}},{"$f":"IF(#REF!=\"\",\"\",#REF!)","v":{"$error":"#REF!"}},{"$f":"IF(#REF!=\"\",\"\",#REF!)","v":{"$error":"#REF!"}},{"$f":"IF(#REF!=\"\",\"\",#REF!)","v":{"$error":"#REF!"}},{"$f":"IF(#REF!=\"\",\"\",#REF!)","v":{"$error":"#REF!"}},{"$f":"IF(#REF!=\"\",\"\",#REF!)","v":{"$error":"#REF!"}},{"$f":"IF(#REF!=\"\",\"\",#REF!)","v":{"$error":"#REF!"}},{"$f":"IF(#REF!=\"\",\"\",#REF!)","v":{"$error":"#REF!"}},{"$f":"IF(#REF!=\"\",\"\",#REF!)","v":{"$error":"#REF!"}}]
[null,null,null,null,null,null,{"$error":"#REF!"},{"$f":"IF(#REF!=\"\",\"\",#REF!)","v":{"$error":"#REF!"}},{"$f":"IF(#REF!=\"\",\"\",#REF!)","v":{"$error":"#REF!"}},{"$f":"IF(#REF!=\"\",\"\",#REF!)","v":{"$error":"#REF!"}},{"$f":"IF(#REF!=\"\",\"\",#REF!)","v":{"$error":"#REF!"}},{"$f":"IF(#REF!=\"\",\"\",#REF!)","v":{"$error":"#REF!"}},{"$f":"IF(#REF!=\"\",\"\",#REF!)","v":{"$error":"#REF!"}},{"$f":"IF(#REF!=\"\",\"\",#REF!)","v":{"$error":"#REF!"}},{"$f":"IF(#REF!=\"\",\"\",#REF!)","v":{"$error":"#REF!"}},{"$f":"IF(#REF!=\"\",\"\",#REF!)","v":{"$error":"#REF!"}},{"$f":"IF(#REF!=\"\",\"\",#REF!)","v":{"$error":"#REF!"}},{"$f":"IF(#REF!=\"\",\"\",#REF!)","v":{"$error":"#REF!"}}]
[null,null,null,null,null,null,{"$error":"#REF!"},{"$f":"IF(#REF!=\"\",\"\",#REF!)","v":{"$error":"#REF!"}},{"$f":"IF(#REF!=\"\",\"\",#REF!)","v":{"$error":"#REF!"}},{"$f":"IF(#REF!=\"\",\"\",#REF!)","v":{"$error":"#REF!"}},{"$f":"IF(#REF!=\"\",\"\",#REF!)","v":{"$error":"#REF!"}},{"$f":"IF(#REF!=\"\",\"\",#REF!)","v":{"$error":"#REF!"}},{"$f":"IF(#REF!=\"\",\"\",#REF!)","v":{"$error":"#REF!"}},{"$f":"IF(#REF!=\"\",\"\",#REF!)","v":{"$error":"#REF!"}},{"$f":"IF(#REF!=\"\",\"\",#REF!)","v":{"$error":"#REF!"}},{"$f":"IF(#REF!=\"\",\"\",#REF!)","v":{"$error":"#REF!"}},{"$f":"IF(#REF!=\"\",\"\",#REF!)","v":{"$error":"#REF!"}},{"$f":"IF(#REF!=\"\",\"\",#REF!)","v":{"$error":"#REF!"}}]
[null,null,null,null,null,null,{"$error":"#REF!"},{"$f":"IF(#REF!=\"\",\"\",#REF!)","v":{"$error":"#REF!"}},{"$f":"IF(#REF!=\"\",\"\",#REF!)","v":{"$error":"#REF!"}},{"$f":"IF(#REF!=\"\",\"\",#REF!)","v":{"$error":"#REF!"}},{"$f":"IF(#REF!=\"\",\"\",#REF!)","v":{"$error":"#REF!"}},{"$f":"IF(#REF!=\"\",\"\",#REF!)","v":{"$error":"#REF!"}},{"$f":"IF(#REF!=\"\",\"\",#REF!)","v":{"$error":"#REF!"}},{"$f":"IF(#REF!=\"\",\"\",#REF!)","v":{"$error":"#REF!"}},{"$f":"IF(#REF!=\"\",\"\",#REF!)","v":{"$error":"#REF!"}},{"$f":"IF(#REF!=\"\",\"\",#REF!)","v":{"$error":"#REF!"}},{"$f":"IF(#REF!=\"\",\"\",#REF!)","v":{"$error":"#REF!"}},{"$f":"IF(#REF!=\"\",\"\",#REF!)","v":{"$error":"#REF!"}}]
[null,null,null,null,null,null,{"$error":"#REF!"},{"$f":"IF(#REF!=\"\",\"\",#REF!)","v":{"$error":"#REF!"}},{"$f":"IF(#REF!=\"\",\"\",#REF!)","v":{"$error":"#REF!"}},{"$f":"IF(#REF!=\"\",\"\",#REF!)","v":{"$error":"#REF!"}},{"$f":"IF(#REF!=\"\",\"\",#REF!)","v":{"$error":"#REF!"}},{"$f":"IF(#REF!=\"\",\"\",#REF!)","v":{"$error":"#REF!"}},{"$f":"IF(#REF!=\"\",\"\",#REF!)","v":{"$error":"#REF!"}},{"$f":"IF(#REF!=\"\",\"\",#REF!)","v":{"$error":"#REF!"}},{"$f":"IF(#REF!=\"\",\"\",#REF!)","v":{"$error":"#REF!"}},{"$f":"IF(#REF!=\"\",\"\",#REF!)","v":{"$error":"#REF!"}},{"$f":"IF(#REF!=\"\",\"\",#REF!)","v":{"$error":"#REF!"}},{"$f":"IF(#REF!=\"\",\"\",#REF!)","v":{"$error":"#REF!"}}]
[null,null,null,null,null,null,{"$error":"#REF!"},{"$f":"IF(#REF!=\"\",\"\",#REF!)","v":{"$error":"#REF!"}},{"$f":"IF(#REF!=\"\",\"\",#REF!)","v":{"$error":"#REF!"}},{"$f":"IF(#REF!=\"\",\"\",#REF!)","v":{"$error":"#REF!"}},{"$f":"IF(#REF!=\"\",\"\",#REF!)","v":{"$error":"#REF!"}},{"$f":"IF(#REF!=\"\",\"\",#REF!)","v":{"$error":"#REF!"}},{"$f":"IF(#REF!=\"\",\"\",#REF!)","v":{"$error":"#REF!"}},{"$f":"IF(#REF!=\"\",\"\",#REF!)","v":{"$error":"#REF!"}},{"$f":"IF(#REF!=\"\",\"\",#REF!)","v":{"$error":"#REF!"}},{"$f":"IF(#REF!=\"\",\"\",#REF!)","v":{"$error":"#REF!"}},{"$f":"IF(#REF!=\"\",\"\",#REF!)","v":{"$error":"#REF!"}},{"$f":"IF(#REF!=\"\",\"\",#REF!)","v":{"$error":"#REF!"}}]
[null,null,null,null,null,null,{"$error":"#REF!"},{"$f":"IF(#REF!=\"\",\"\",#REF!)","v":{"$error":"#REF!"}},{"$f":"IF(#REF!=\"\",\"\",#REF!)","v":{"$error":"#REF!"}},{"$f":"IF(#REF!=\"\",\"\",#REF!)","v":{"$error":"#REF!"}},{"$f":"IF(#REF!=\"\",\"\",#REF!)","v":{"$error":"#REF!"}},{"$f":"IF(#REF!=\"\",\"\",#REF!)","v":{"$error":"#REF!"}},{"$f":"IF(#REF!=\"\",\"\",#REF!)","v":{"$error":"#REF!"}},{"$f":"IF(#REF!=\"\",\"\",#REF!)","v":{"$error":"#REF!"}},{"$f":"IF(#REF!=\"\",\"\",#REF!)","v":{"$error":"#REF!"}},{"$f":"IF(#REF!=\"\",\"\",#REF!)","v":{"$error":"#REF!"}},{"$f":"IF(#REF!=\"\",\"\",#REF!)","v":{"$error":"#REF!"}},{"$f":"IF(#REF!=\"\",\"\",#REF!)","v":{"$error":"#REF!"}},null,null,null,null,null,null,null,null,null,null,null,null,5]
[null,null,null,null,null,null,{"$error":"#REF!"},{"$f":"IF(#REF!=\"\",\"\",#REF!)","v":{"$error":"#REF!"}},{"$f":"IF(#REF!=\"\",\"\",#REF!)","v":{"$error":"#REF!"}},{"$f":"IF(#REF!=\"\",\"\",#REF!)","v":{"$error":"#REF!"}},{"$f":"IF(#REF!=\"\",\"\",#REF!)","v":{"$error":"#REF!"}},{"$f":"IF(#REF!=\"\",\"\",#REF!)","v":{"$error":"#REF!"}},{"$f":"IF(#REF!=\"\",\"\",#REF!)","v":{"$error":"#REF!"}},{"$f":"IF(#REF!=\"\",\"\",#REF!)","v":{"$error":"#REF!"}},{"$f":"IF(#REF!=\"\",\"\",#REF!)","v":{"$error":"#REF!"}},{"$f":"IF(#REF!=\"\",\"\",#REF!)","v":{"$error":"#REF!"}},{"$f":"IF(#REF!=\"\",\"\",#REF!)","v":{"$error":"#REF!"}},{"$f":"IF(#REF!=\"\",\"\",#REF!)","v":{"$error":"#REF!"}},null,null,null,null,null,null,null,null,null,null,null,null,0.25]
[null,null,null,null,null,null,{"$error":"#REF!"},{"$f":"IF(#REF!=\"\",\"\",#REF!)","v":{"$error":"#REF!"}},{"$f":"IF(#REF!=\"\",\"\",#REF!)","v":{"$error":"#REF!"}},{"$f":"IF(#REF!=\"\",\"\",#REF!)","v":{"$error":"#REF!"}},{"$f":"IF(#REF!=\"\",\"\",#REF!)","v":{"$error":"#REF!"}},{"$f":"IF(#REF!=\"\",\"\",#REF!)","v":{"$error":"#REF!"}},{"$f":"IF(#REF!=\"\",\"\",#REF!)","v":{"$error":"#REF!"}},{"$f":"IF(#REF!=\"\",\"\",#REF!)","v":{"$error":"#REF!"}},{"$f":"IF(#REF!=\"\",\"\",#REF!)","v":{"$error":"#REF!"}},{"$f":"IF(#REF!=\"\",\"\",#REF!)","v":{"$error":"#REF!"}},{"$f":"IF(#REF!=\"\",\"\",#REF!)","v":{"$error":"#REF!"}},{"$f":"IF(#REF!=\"\",\"\",#REF!)","v":{"$error":"#REF!"}},null,null,null,null,null,null,null,null,null,null,null,null,0.1]
[null,null,null,null,null,null,null,null,null,null,null,null,null,null,null,null,null,null,null,null,null,null,null,null,null,null,null,36403,"litre/an",null,0.55000000000000004,"taux participation",null,38.68,2789.7930000000001]
[]
[]
[]
[]
[]
[]
[]
[]
[]
[]
[]
[]
[]
[]
[]
[]
[]
[]
[]
[]
[]
[]
[]
[]
["No_Projet_Sagir_Abrev","Type_Depense","Cint","Cext","Ctot","CintProj","CextProj","CtotProj"]
[{"$f":"DQ$2","v":{"$error":"#REF!"}},{"$f":"#REF!","v":{"$error":"#REF!"}},{"$f":"#REF!","v":{"$error":"#REF!"}},{"$f":"#REF!","v":{"$error":"#REF!"}},{"$f":"#REF!","v":{"$error":"#REF!"}},{"$f":"#REF!","v":{"$error":"#REF!"}},{"$f":"#REF!","v":{"$error":"#REF!"}},{"$f":"#REF!","v":{"$error":"#REF!"}}]
[{"$error":"#REF!"},{"$f":"#REF!","v":{"$error":"#REF!"}},{"$f":"#REF!","v":{"$error":"#REF!"}},{"$f":"#REF!","v":{"$error":"#REF!"}},{"$f":"#REF!","v":{"$error":"#REF!"}},{"$f":"#REF!","v":{"$error":"#REF!"}},{"$f":"#REF!","v":{"$error":"#REF!"}},{"$f":"#REF!","v":{"$error":"#REF!"}}]
[{"$error":"#REF!"},{"$f":"#REF!","v":{"$error":"#REF!"}},{"$f":"#REF!","v":{"$error":"#REF!"}},{"$f":"#REF!","v":{"$error":"#REF!"}},{"$f":"#REF!","v":{"$error":"#REF!"}},{"$f":"#REF!","v":{"$error":"#REF!"}},{"$f":"#REF!","v":{"$error":"#REF!"}},{"$f":"#REF!","v":{"$error":"#REF!"}}]
[{"$error":"#REF!"},{"$f":"#REF!","v":{"$error":"#REF!"}},{"$f":"#REF!","v":{"$error":"#REF!"}},{"$f":"#REF!","v":{"$error":"#REF!"}},{"$f":"#REF!","v":{"$error":"#REF!"}},{"$f":"#REF!","v":{"$error":"#REF!"}},{"$f":"#REF!","v":{"$error":"#REF!"}},{"$f":"#REF!","v":{"$error":"#REF!"}}]
[{"$error":"#REF!"},{"$f":"#REF!","v":{"$error":"#REF!"}},{"$f":"#REF!","v":{"$error":"#REF!"}},{"$f":"#REF!","v":{"$error":"#REF!"}},{"$f":"#REF!","v":{"$error":"#REF!"}},{"$f":"#REF!","v":{"$error":"#REF!"}},{"$f":"#REF!","v":{"$error":"#REF!"}},{"$f":"#REF!","v":{"$error":"#REF!"}}]
[{"$error":"#REF!"},{"$f":"#REF!","v":{"$error":"#REF!"}},{"$f":"#REF!","v":{"$error":"#REF!"}},{"$f":"#REF!","v":{"$error":"#REF!"}},{"$f":"#REF!","v":{"$error":"#REF!"}},{"$f":"#REF!","v":{"$error":"#REF!"}},{"$f":"#REF!","v":{"$error":"#REF!"}},{"$f":"#REF!","v":{"$error":"#REF!"}}]

{"sheet":"Code SCIAN","index":7,"n_rows":0,"n_cols":0,"rows_kept":0,"cut":false,"hidden":true,"merged":[]}